Workbook

Sheet Board
C1: =rngProjectName -> Ремонт в квартире | J1: Менеджер проекта: | M1: =rngProjectManager -> Пиявкин Серёжа | R1: Отчёт на: | U1: =rngReportDate -> 2014-10-25 | X1: © Батьянов Д.С.
B2: Проект
J3: Спонсор проекта: | M3: =rngProjectSponsor -> Пиявкина Раиса Марковна | R3: Стадия проекта: | U3: Реализация | X3: perfect-excel.ru
B9: Пункт плана | H9: Начало | J9: Окончание | L9: Статус
B10: =IFERROR(INDEX(rngSystemData,SMALL(rngSystemL1,ROW()-9)-1,2),"") -> Планирование | H10: =IFERROR(INDEX(rngSystemData,SMALL(rngSystemL1,ROW()-9)-1,6),"") -> 2014-03-01 | J10: =IFERROR(INDEX(rngSystemData,SMALL(rngSystemL1,ROW()-9)-1,7),"") -> 2014-05-13 | L10: =IFERROR(INDEX(rngSystemData,SMALL(rngSystemL1,ROW()-9)-1,12),"") -> 0.9787234043 | S10: График | W10: Риски
B11: Реализация | H11: 2014-05-14 | J11: 2014-08-06 | L11: 0.779787234
B12: Завершение | H12: 2014-08-04 | J12: 2014-08-09 | L12: 0
S13: Бюджет | W13: Проблемы
P16: Статус проекта | S16: Качество
S19: Ресурсы
B25: Проблема | D25: Серьёзность | F25: Статус | H25: Риск | J25: Серьёзность | L25: Вероятность | N25: Количество этапов | R25: 1 | S25: =System!AD102 -> 32
B26: =IFERROR(INDEX(tblIssues[],(ROW()-24)/2,1),"") -> Плохое качество материалов | E26: =IFERROR(VLOOKUP(INDEX(tblIssues[],(ROW()-24)/2,2),refIssueDamage[],2,0),"") -> 0.25 | F26: =IFERROR(VLOOKUP(INDEX(tblIssues[],(ROW()-24)/2,3),refIssueStatus[],3,0),"") -> @ | H26: =IFERROR(INDEX(tblRisks[],(ROW()-24)/2,1),"") -> Запой Михалыча | K26: =IFERROR(VLOOKUP(INDEX(tblRisks[],(ROW()-24)/2,2),refRiskDamage[],2,0),"") -> 0.25 | L26: =IFERROR(VLOOKUP(INDEX(tblRisks[],(ROW()-24)/2,3),refRiskProb[],2,0),"") -> 0.25 | N26: из них выполнено | R26: =IFERROR(S26/S25,0) -> 0.59375 | S26: =System!$L$102 -> 19
N27: Количество вех | R27: 1 | S27: =System!$D$102 -> 8
B28: =IFERROR(INDEX(tblIssues[],(ROW()-24)/2,1),"") ->  | E28: =IFERROR(VLOOKUP(INDEX(tblIssues[],(ROW()-24)/2,2),refIssueDamage[],2,0),"") ->  | F28: =IFERROR(VLOOKUP(INDEX(tblIssues[],(ROW()-24)/2,3),refIssueStatus[],3,0),"") ->  | H28: =IFERROR(INDEX(tblRisks[],(ROW()-24)/2,1),"") -> Проблемы с финансированием | K28: =IFERROR(VLOOKUP(INDEX(tblRisks[],(ROW()-24)/2,2),refRiskDamage[],2,0),"") -> 0.5 | L28: =IFERROR(VLOOKUP(INDEX(tblRisks[],(ROW()-24)/2,3),refRiskProb[],2,0),"") -> 0.05 | N28: из них пройдено | R28: =IFERROR(S28/S27,0) -> 0.375 | S28: =System!F113 -> 3
N29: Всего дней по плану | S29: =System!$H$102 -> 162
B30: =IFERROR(INDEX(tblIssues[],(ROW()-24)/2,1),"") ->  | E30: =IFERROR(VLOOKUP(INDEX(tblIssues[],(ROW()-24)/2,2),refIssueDamage[],2,0),"") ->  | F30: =IFERROR(VLOOKUP(INDEX(tblIssues[],(ROW()-24)/2,3),refIssueStatus[],3,0),"") ->  | H30: =IFERROR(INDEX(tblRisks[],(ROW()-24)/2,1),"") ->  | K30: =IFERROR(VLOOKUP(INDEX(tblRisks[],(ROW()-24)/2,2),refRiskDamage[],2,0),"") ->  | L30: =IFERROR(VLOOKUP(INDEX(tblRisks[],(ROW()-24)/2,3),refRiskProb[],2,0),"") ->  | N30: Всего дней по факту | S30: =System!$K$102 -> 191
N31: =IF(S30-S29>=0,"отставание факта от плана","опережение фактом плана") -> отставание факта от плана | R31: =S31/S29 -> 0.1790123457 | S31: =ABS(S30-S29) -> 29
B32: =IFERROR(INDEX(tblIssues[],(ROW()-24)/2,1),"") ->  | E32: =IFERROR(VLOOKUP(INDEX(tblIssues[],(ROW()-24)/2,2),refIssueDamage[],2,0),"") ->  | F32: =IFERROR(VLOOKUP(INDEX(tblIssues[],(ROW()-24)/2,3),refIssueStatus[],3,0),"") ->  | H32: =IFERROR(INDEX(tblRisks[],(ROW()-24)/2,1),"") ->  | K32: =IFERROR(VLOOKUP(INDEX(tblRisks[],(ROW()-24)/2,2),refRiskDamage[],2,0),"") ->  | L32: =IFERROR(VLOOKUP(INDEX(tblRisks[],(ROW()-24)/2,3),refRiskProb[],2,0),"") ->  | N32: Отставание по завершению пунктов, дней
N33: базируясь на плановых датах | R33: =IFERROR(System!AI102/System!AG102,0) -> 0.1537037037 | S33: =ROUND(System!$AI$102,0) -> 25
B34: =IFERROR(INDEX(tblIssues[],(ROW()-24)/2,1),"") ->  | E34: =IFERROR(VLOOKUP(INDEX(tblIssues[],(ROW()-24)/2,2),refIssueDamage[],2,0),"") ->  | F34: =IFERROR(VLOOKUP(INDEX(tblIssues[],(ROW()-24)/2,3),refIssueStatus[],3,0),"") ->  | H34: =IFERROR(INDEX(tblRisks[],(ROW()-24)/2,1),"") ->  | K34: =IFERROR(VLOOKUP(INDEX(tblRisks[],(ROW()-24)/2,2),refRiskDamage[],2,0),"") ->  | L34: =IFERROR(VLOOKUP(INDEX(tblRisks[],(ROW()-24)/2,3),refRiskProb[],2,0),"") ->  | N34: базируясь на фактических датах | R34: =IFERROR(System!AJ102/System!AH102,0) -> 0.1345549738 | S34: =ROUND(System!$AJ$102,0) -> 26
N35: =IF('Act+Res'!AL5>0,"Дефицит ресурсов","Избыток ресурсов") -> Дефицит ресурсов | R35: =ABS('Act+Res'!$AL$5) -> 0.1211020466
B36: =IFERROR(INDEX(tblIssues[],(ROW()-24)/2,1),"") ->  | E36: =IFERROR(VLOOKUP(INDEX(tblIssues[],(ROW()-24)/2,2),refIssueDamage[],2,0),"") ->  | F36: =IFERROR(VLOOKUP(INDEX(tblIssues[],(ROW()-24)/2,3),refIssueStatus[],3,0),"") ->  | H36: =IFERROR(INDEX(tblRisks[],(ROW()-24)/2,1),"") ->  | K36: =IFERROR(VLOOKUP(INDEX(tblRisks[],(ROW()-24)/2,2),refRiskDamage[],2,0),"") ->  | L36: =IFERROR(VLOOKUP(INDEX(tblRisks[],(ROW()-24)/2,3),refRiskProb[],2,0),"") -> 
AD73: 1

Sheet Gant
C1: 6 | L1: 11 | M1: 12 | N1: 13 | O1: 14 | P1: 15 | Q1: 16 | R1: 17 | S1: 18 | T1: 19 | U1: 20 | V1: 21 | W1: 22 | X1: 23 | Y1: 24 | Z1: 25 | AA1: 26 | AB1: 27 | AC1: 28 | AD1: 29 | AE1: 30 | AF1: 31 | AG1: 32 | AH1: 33 | AI1: 34 | AJ1: 35 | AK1: 36 | AL1: 37 | AM1: 38 | AN1: 39 | AO1: 40 | AP1: 41 | AQ1: 42 | AR1: 43 | AS1: 44 | AT1: 45 | AU1: 46 | AV1: 47 | AW1: 48 | AX1: 49 | AY1: 50 | AZ1: 51 | BA1: 52 | BB1: 53 | BC1: 54 | BD1: 55 | BE1: 56 | BF1: 57 | BG1: 58 | BH1: 59 | BI1: 60 | BJ1: 61 | BK1: 62 | BL1: 63 | BM1: 64 | BN1: 65 | BO1: 66 | BP1: 67 | BQ1: 68 | BR1: 69 | BS1: 70 | BT1: 71 | BU1: 72 | BV1: 73 | BW1: 74 | BX1: 75 | BY1: 76 | BZ1: 77 | CA1: 78 | CB1: 79 | CC1: 80 | CD1: 81 | CE1: 82 | CF1: 83 | CG1: 84 | CH1: 85 | CI1: 86 | CJ1: 87 | CK1: 88 | CL1: 89 | CM1: 90 | CN1: 91 | CO1: 92 | CP1: 93 | CQ1: 94 | CR1: 95 | CS1: 96 | CT1: 97 | CU1: 98 | CV1: 99 | CW1: 100 | CX1: 101 | CY1: 102 | CZ1: 103 | DA1: 104 | DB1: 105 | DC1: 106 | DD1: 107 | DE1: 108 | DF1: 109 | DG1: 110 | DH1: 111 | DI1: 112 | DJ1: 113 | DK1: 114 | DL1: 115 | DM1: 116 | DN1: 117 | DO1: 118 | DP1: 119 | DQ1: 120 | DR1: 121 | DS1: 122 | DT1: 123 | DU1: 124 | DV1: 125 | DW1: 126 | DX1: 127 | DY1: 128 | DZ1: 129 | EA1: 130 | EB1: 131 | EC1: 132 | ED1: 133 | EE1: 134 | EF1: 135 | EG1: 136 | EH1: 137 | EI1: 138 | EJ1: 139 | EK1: 140 | EL1: 141 | EM1: 142 | EN1: 143 | EO1: 144 | EP1: 145 | EQ1: 146 | ER1: 147 | ES1: 148 | ET1: 149 | EU1: 150 | EV1: 151 | EW1: 152 | EX1: 153 | EY1: 154 | EZ1: 155 | FA1: 156 | FB1: 157 | FC1: 158 | FD1: 159 | FE1: 160 | FF1: 161 | FG1: 162 | FH1: 163 | FI1: 164 | FJ1: 165 | FK1: 166 | FL1: 167 | FM1: 168 | FN1: 169 | FO1: 170 | FP1: 171 | FQ1: 172 | FR1: 173 | FS1: 174 | FT1: 175 | FU1: 176 | FV1: 177 | FW1: 178 | FX1: 179 | FY1: 180 | FZ1: 181 | GA1: 182 | GB1: 183 | GC1: 184 | GD1: 185 | GE1: 186 | GF1: 187 | GG1: 188 | GH1: 189 | GI1: 190 | GJ1: 191 | GK1: 192 | GL1: 193 | GM1: 194 | GN1: 195 | GO1: 196 | GP1: 197 | GQ1: 198 | GR1: 199 | GS1: 200 | GT1: 201 | GU1: 202 | GV1: 203 | GW1: 204 | GX1: 205 | GY1: 206 | GZ1: 207 | HA1: 208 | HB1: 209 | HC1: 210 | HD1: 211 | HE1: 212 | HF1: 213 | HG1: 214 | HH1: 215 | HI1: 216 | HJ1: 217 | HK1: 218 | HL1: 219 | HM1: 220 | HN1: 221 | HO1: 222 | HP1: 223 | HQ1: 224 | HR1: 225 | HS1: 226 | HT1: 227 | HU1: 228 | HV1: 229 | HW1: 230 | HX1: 231 | HY1: 232 | HZ1: 233 | IA1: 234 | IB1: 235 | IC1: 236 | ID1: 237 | IE1: 238 | IF1: 239 | IG1: 240 | IH1: 241 | II1: 242 | IJ1: 243 | IK1: 244 | IL1: 245 | IM1: 246 | IN1: 247 | IO1: 248 | IP1: 249 | IQ1: 250 | IR1: 251 | IS1: 252 | IT1: 253 | IU1: 254 | IV1: 255 | IW1: 256 | IX1: 257 | IY1: 258 | IZ1: 259 | JA1: 260 | JB1: 261 | JC1: 262 | JD1: 263 | JE1: 264 | JF1: 265 | JG1: 266 | JH1: 267 | JI1: 268 | JJ1: 269 | JK1: 270 | JL1: 271 | JM1: 272 | JN1: 273 | JO1: 274 | JP1: 275 | JQ1: 276 | JR1: 277 | JS1: 278 | JT1: 279 | JU1: 280 | JV1: 281 | JW1: 282 | JX1: 283 | JY1: 284 | JZ1: 285 | KA1: 286 | KB1: 287 | KC1: 288 | KD1: 289 | KE1: 290 | KF1: 291 | KG1: 292 | KH1: 293 | KI1: 294 | KJ1: 295 | KK1: 296 | KL1: 297 | KM1: 298 | KN1: 299 | KO1: 300 | KP1: 301 | KQ1: 302 | KR1: 303 | KS1: 304 | KT1: 305 | KU1: 306 | KV1: 307 | KW1: 308 | KX1: 309 | KY1: 310 | KZ1: 311 | LA1: 312 | LB1: 313 | LC1: 314 | LD1: 315 | LE1: 316 | LF1: 317 | LG1: 318 | LH1: 319 | LI1: 320 | LJ1: 321 | LK1: 322 | LL1: 323 | LM1: 324 | LN1: 325 | LO1: 326 | LP1: 327 | LQ1: 328 | LR1: 329 | LS1: 330 | LT1: 331 | LU1: 332 | LV1: 333 | LW1: 334 | LX1: 335 | LY1: 336 | LZ1: 337 | MA1: 338 | MB1: 339 | MC1: 340 | MD1: 341 | ME1: 342 | MF1: 343 | MG1: 344 | MH1: 345 | MI1: 346 | MJ1: 347 | MK1: 348 | ML1: 349 | MM1: 350 | MN1: 351 | MO1: 352 | MP1: 353 | MQ1: 354 | MR1: 355 | MS1: 356 | MT1: 357 | MU1: 358 | MV1: 359 | MW1: 360 | MX1: 361 | MY1: 362 | MZ1: 363 | NA1: 364 | NB1: 365 | NC1: 366 | ND1: 367 | NE1: 368 | NF1: 369 | NG1: 370 | NH1: 371 | NI1: 372 | NJ1: 373 | NK1: 374 | NL1: 375 | NM1: 376 | NN1: 377 | NO1: 378 | NP1: 379 | NQ1: 380 | NR1: 381 | NS1: 382 | NT1: 383 | NU1: 384 | NV1: 385 | NW1: 386 | NX1: 387 | NY1: 388 | NZ1: 389 | OA1: 390 | OB1: 391 | OC1: 392 | OD1: 393 | OE1: 394 | OF1: 395 | OG1: 396 | OH1: 397 | OI1: 398 | OJ1: 399 | OK1: 400 | OL1: 401 | OM1: 402 | ON1: 403 | OO1: 404 | OP1: 405 | OQ1: 406 | OR1: 407 | OS1: 408 | OT1: 409 | OU1: 410 | OV1: 411 | OW1: 412 | OX1: 413 | OY1: 414 | OZ1: 415 | PA1: 416 | PB1: 417 | PC1: 418 | PD1: 419 | PE1: 420 | PF1: 421 | PG1: 422 | PH1: 423 | PI1: 424 | PJ1: 425 | PK1: 426 | PL1: 427 | PM1: 428 | PN1: 429 | PO1: 430 | PP1: 431 | PQ1: 432 | PR1: 433 | PS1: 434 | PT1: 435 | PU1: 436 | PV1: 437 | PW1: 438 | PX1: 439 | PY1: 440 | PZ1: 441 | QA1: 442 | QB1: 443 | QC1: 444 | QD1: 445 | QE1: 446 | QF1: 447 | QG1: 448 | QH1: 449 | QI1: 450 | QJ1: 451 | QK1: 452 | QL1: 453 | QM1: 454 | QN1: 455 | QO1: 456 | QP1: 457 | QQ1: 458 | QR1: 459 | QS1: 460 | QT1: 461 | QU1: 462 | QV1: 463 | QW1: 464 | QX1: 465 | QY1: 466 | QZ1: 467 | RA1: 468 | RB1: 469 | RC1: 470 | RD1: 471 | RE1: 472 | RF1: 473 | RG1: 474 | RH1: 475 | RI1: 476 | RJ1: 477 | RK1: 478 | RL1: 479 | RM1: 480 | RN1: 481 | RO1: 482 | RP1: 483 | RQ1: 484 | RR1: 485 | RS1: 486 | RT1: 487 | RU1: 488 | RV1: 489 | RW1: 490 | RX1: 491 | RY1: 492 | RZ1: 493 | SA1: 494 | SB1: 495 | SC1: 496 | SD1: 497 | SE1: 498 | SF1: 499 | SG1: 500 | SH1: 501 | SI1: 502 | SJ1: 503 | SK1: 504 | SL1: 505 | SM1: 506 | SN1: 507 | SO1: 508 | SP1: 509 | SQ1: 510 | SS1: 1
B2: =MAX($I$6:$I$105)+1 -> 92 | C2: =INDEX(refMagnify[M],$C$1) -> 2 | D2: =ROUND(1/gDpC,2) -> 0.5 | E2: TRUE | F2: 2015-04-24 | J2: Конец | L2: =INT(gStartPrj+(L$1-gFstCol+1-gDelta)*gDpC) -> 2014-03-02 | M2: 2014-03-04 | N2: 2014-03-06 | O2: 2014-03-08 | P2: 2014-03-10 | Q2: 2014-03-12 | R2: 2014-03-14 | S2: 2014-03-16 | T2: 2014-03-18 | U2: 2014-03-20 | V2: 2014-03-22 | W2: 2014-03-24 | X2: 2014-03-26 | Y2: 2014-03-28 | Z2: 2014-03-30 | AA2: 2014-04-01 | AB2: 2014-04-03 | AC2: 2014-04-05 | AD2: 2014-04-07 | AE2: 2014-04-09 | AF2: 2014-04-11 | AG2: 2014-04-13 | AH2: 2014-04-15 | AI2: 2014-04-17 | AJ2: 2014-04-19 | AK2: 2014-04-21 | AL2: 2014-04-23 | AM2: 2014-04-25 | AN2: 2014-04-27 | AO2: 2014-04-29 | AP2: 2014-05-01 | AQ2: 2014-05-03 | AR2: 2014-05-05 | AS2: 2014-05-07 | AT2: 2014-05-09 | AU2: 2014-05-11 | AV2: 2014-05-13 | AW2: 2014-05-15 | AX2: 2014-05-17 | AY2: 2014-05-19 | AZ2: 2014-05-21 | BA2: 2014-05-23 | BB2: 2014-05-25 | BC2: 2014-05-27 | BD2: 2014-05-29 | BE2: 2014-05-31 | BF2: 2014-06-02 | BG2: 2014-06-04 | BH2: 2014-06-06 | BI2: 2014-06-08 | BJ2: 2014-06-10 | BK2: 2014-06-12 | BL2: 2014-06-14 | BM2: 2014-06-16 | BN2: 2014-06-18 | BO2: 2014-06-20 | BP2: 2014-06-22 | BQ2: 2014-06-24 | BR2: 2014-06-26 | BS2: 2014-06-28 | BT2: 2014-06-30 | BU2: 2014-07-02 | BV2: 2014-07-04 | BW2: 2014-07-06 | BX2: =INT(gStartPrj+(BX$1-gFstCol+1-gDelta)*gDpC) -> 2014-07-08 | BY2: 2014-07-10 | BZ2: 2014-07-12 | CA2: 2014-07-14 | CB2: 2014-07-16 | CC2: 2014-07-18 | CD2: 2014-07-20 | CE2: 2014-07-22 | CF2: 2014-07-24 | CG2: 2014-07-26 | CH2: 2014-07-28 | CI2: 2014-07-30 | CJ2: 2014-08-01 | CK2: 2014-08-03 | CL2: 2014-08-05 | CM2: 2014-08-07 | CN2: 2014-08-09 | CO2: 2014-08-11 | CP2: 2014-08-13 | CQ2: 2014-08-15 | CR2: 2014-08-17 | CS2: 2014-08-19 | CT2: 2014-08-21 | CU2: 2014-08-23 | CV2: 2014-08-25 | CW2: 2014-08-27 | CX2: 2014-08-29 | CY2: 2014-08-31 | CZ2: 2014-09-02 | DA2: 2014-09-04 | DB2: 2014-09-06 | DC2: 2014-09-08 | DD2: 2014-09-10 | DE2: 2014-09-12 | DF2: 2014-09-14 | DG2: 2014-09-16 | DH2: 2014-09-18 | DI2: 2014-09-20 | DJ2: 2014-09-22 | DK2: 2014-09-24 | DL2: 2014-09-26 | DM2: 2014-09-28 | DN2: 2014-09-30 | DO2: 2014-10-02 | DP2: 2014-10-04 | DQ2: 2014-10-06 | DR2: 2014-10-08 | DS2: 2014-10-10 | DT2: 2014-10-12 | DU2: 2014-10-14 | DV2: 2014-10-16 | DW2: 2014-10-18 | DX2: 2014-10-20 | DY2: 2014-10-22 | DZ2: 2014-10-24 | EA2: 2014-10-26 | EB2: 2014-10-28 | EC2: 2014-10-30 | ED2: 2014-11-01 | EE2: 2014-11-03 | EF2: 2014-11-05 | EG2: 2014-11-07 | EH2: 2014-11-09 | EI2: 2014-11-11 | EJ2: =INT(gStartPrj+(EJ$1-gFstCol+1-gDelta)*gDpC) -> 2014-11-13 | EK2: 2014-11-15 | EL2: 2014-11-17 | EM2: 2014-11-19 | EN2: 2014-11-21 | EO2: 2014-11-23 | EP2: 2014-11-25 | EQ2: 2014-11-27 | ER2: 2014-11-29 | ES2: 2014-12-01 | ET2: 2014-12-03 | EU2: 2014-12-05 | EV2: 2014-12-07 | EW2: 2014-12-09 | EX2: 2014-12-11 | EY2: 2014-12-13 | EZ2: 2014-12-15 | FA2: 2014-12-17 | FB2: 2014-12-19 | FC2: 2014-12-21 | FD2: 2014-12-23 | FE2: 2014-12-25 | FF2: 2014-12-27 | FG2: 2014-12-29 | FH2: 2014-12-31 | FI2: 2015-01-02 | FJ2: 2015-01-04 | FK2: 2015-01-06 | FL2: 2015-01-08 | FM2: 2015-01-10 | FN2: 2015-01-12 | FO2: 2015-01-14 | FP2: 2015-01-16 | FQ2: 2015-01-18 | FR2: 2015-01-20 | FS2: 2015-01-22 | FT2: 2015-01-24 | FU2: 2015-01-26 | FV2: 2015-01-28 | FW2: 2015-01-30 | FX2: 2015-02-01 | FY2: 2015-02-03 | FZ2: 2015-02-05 | GA2: 2015-02-07 | GB2: 2015-02-09 | GC2: 2015-02-11 | GD2: 2015-02-13 | GE2: 2015-02-15 | GF2: 2015-02-17 | GG2: 2015-02-19 | GH2: 2015-02-21 | GI2: 2015-02-23 | GJ2: 2015-02-25 | GK2: 2015-02-27 | GL2: 2015-03-01 | GM2: 2015-03-03 | GN2: 2015-03-05 | GO2: 2015-03-07 | GP2: 2015-03-09 | GQ2: 2015-03-11 | GR2: 2015-03-13 | GS2: 2015-03-15 | GT2: 2015-03-17 | GU2: 2015-03-19 | GV2: =INT(gStartPrj+(GV$1-gFstCol+1-gDelta)*gDpC) -> 2015-03-21 | GW2: 2015-03-23 | GX2: 2015-03-25 | GY2: 2015-03-27 | GZ2: 2015-03-29 | HA2: 2015-03-31 | HB2: 2015-04-02 | HC2: 2015-04-04 | HD2: 2015-04-06 | HE2: 2015-04-08 | HF2: 2015-04-10 | HG2: 2015-04-12 | HH2: 2015-04-14 | HI2: 2015-04-16 | HJ2: 2015-04-18 | HK2: 2015-04-20 | HL2: 2015-04-22 | HM2: 2015-04-24 | HN2: 2015-04-26 | HO2: 2015-04-28 | HP2: 2015-04-30 | HQ2: 2015-05-02 | HR2: 2015-05-04 | HS2: 2015-05-06 | HT2: 2015-05-08 | HU2: 2015-05-10 | HV2: 2015-05-12 | HW2: 2015-05-14 | HX2: 2015-05-16 | HY2: 2015-05-18 | HZ2: 2015-05-20 | IA2: 2015-05-22 | IB2: 2015-05-24 | IC2: 2015-05-26 | ID2: 2015-05-28 | IE2: 2015-05-30 | IF2: 2015-06-01 | IG2: 2015-06-03 | IH2: 2015-06-05 | II2: 2015-06-07 | IJ2: 2015-06-09 | IK2: 2015-06-11 | IL2: 2015-06-13 | IM2: 2015-06-15 | IN2: 2015-06-17 | IO2: 2015-06-19 | IP2: 2015-06-21 | IQ2: 2015-06-23 | IR2: 2015-06-25 | IS2: 2015-06-27 | IT2: 2015-06-29 | IU2: 2015-07-01 | IV2: 2015-07-03 | IW2: 2015-07-05 | IX2: 2015-07-07 | IY2: 2015-07-09 | IZ2: 2015-07-11 | JA2: 2015-07-13 | JB2: 2015-07-15 | JC2: 2015-07-17 | JD2: 2015-07-19 | JE2: 2015-07-21 | JF2: 2015-07-23 | JG2: 2015-07-25 | JH2: =INT(gStartPrj+(JH$1-gFstCol+1-gDelta)*gDpC) -> 2015-07-27 | JI2: 2015-07-29 | JJ2: 2015-07-31 | JK2: 2015-08-02 | JL2: 2015-08-04 | JM2: 2015-08-06 | JN2: 2015-08-08 | JO2: 2015-08-10 | JP2: 2015-08-12 | JQ2: 2015-08-14 | JR2: 2015-08-16 | JS2: 2015-08-18 | JT2: 2015-08-20 | JU2: 2015-08-22 | JV2: 2015-08-24 | JW2: 2015-08-26 | JX2: 2015-08-28 | JY2: 2015-08-30 | JZ2: 2015-09-01 | KA2: 2015-09-03 | KB2: 2015-09-05 | KC2: 2015-09-07 | KD2: 2015-09-09 | KE2: 2015-09-11 | KF2: 2015-09-13 | KG2: 2015-09-15 | KH2: 2015-09-17 | KI2: 2015-09-19 | KJ2: 2015-09-21 | KK2: 2015-09-23 | KL2: 2015-09-25 | KM2: 2015-09-27 | KN2: 2015-09-29 | KO2: 2015-10-01 | KP2: 2015-10-03 | KQ2: 2015-10-05 | KR2: 2015-10-07 | KS2: 2015-10-09 | KT2: 2015-10-11 | KU2: 2015-10-13 | KV2: 2015-10-15 | KW2: 2015-10-17 | KX2: 2015-10-19 | KY2: 2015-10-21 | KZ2: 2015-10-23 | LA2: 2015-10-25 | LB2: 2015-10-27 | LC2: 2015-10-29 | LD2: 2015-10-31 | LE2: 2015-11-02 | LF2: 2015-11-04 | LG2: 2015-11-06 | LH2: 2015-11-08 | LI2: 2015-11-10 | LJ2: 2015-11-12 | LK2: 2015-11-14 | LL2: 2015-11-16 | LM2: 2015-11-18 | LN2: 2015-11-20 | LO2: 2015-11-22 | LP2: 2015-11-24 | LQ2: 2015-11-26 | LR2: 2015-11-28 | LS2: 2015-11-30 | LT2: =INT(gStartPrj+(LT$1-gFstCol+1-gDelta)*gDpC) -> 2015-12-02 | LU2: 2015-12-04 | LV2: 2015-12-06 | LW2: 2015-12-08 | LX2: 2015-12-10 | LY2: 2015-12-12 | LZ2: 2015-12-14 | MA2: 2015-12-16 | MB2: 2015-12-18 | MC2: 2015-12-20 | MD2: 2015-12-22 | ME2: 2015-12-24 | MF2: 2015-12-26 | MG2: 2015-12-28 | MH2: 2015-12-30 | MI2: 2016-01-01 | MJ2: 2016-01-03 | MK2: 2016-01-05 | ML2: 2016-01-07 | MM2: 2016-01-09 | MN2: 2016-01-11 | MO2: 2016-01-13 | MP2: 2016-01-15 | MQ2: 2016-01-17 | MR2: 2016-01-19 | MS2: 2016-01-21 | MT2: 2016-01-23 | MU2: 2016-01-25 | MV2: 2016-01-27 | MW2: 2016-01-29 | MX2: 2016-01-31 | MY2: 2016-02-02 | MZ2: 2016-02-04 | NA2: 2016-02-06 | NB2: 2016-02-08 | NC2: 2016-02-10 | ND2: 2016-02-12 | NE2: 2016-02-14 | NF2: 2016-02-16 | NG2: 2016-02-18 | NH2: 2016-02-20 | NI2: 2016-02-22 | NJ2: 2016-02-24 | NK2: 2016-02-26 | NL2: 2016-02-28 | NM2: 2016-03-01 | NN2: 2016-03-03 | NO2: 2016-03-05 | NP2: 2016-03-07 | NQ2: 2016-03-09 | NR2: 2016-03-11 | NS2: 2016-03-13 | NT2: 2016-03-15 | NU2: 2016-03-17 | NV2: 2016-03-19 | NW2: 2016-03-21 | NX2: 2016-03-23 | NY2: 2016-03-25 | NZ2: 2016-03-27 | OA2: 2016-03-29 | OB2: 2016-03-31 | OC2: 2016-04-02 | OD2: 2016-04-04 | OE2: 2016-04-06 | OF2: =INT(gStartPrj+(OF$1-gFstCol+1-gDelta)*gDpC) -> 2016-04-08 | OG2: 2016-04-10 | OH2: 2016-04-12 | OI2: 2016-04-14 | OJ2: 2016-04-16 | OK2: 2016-04-18 | OL2: 2016-04-20 | OM2: 2016-04-22 | ON2: 2016-04-24 | OO2: 2016-04-26 | OP2: 2016-04-28 | OQ2: 2016-04-30 | OR2: 2016-05-02 | OS2: 2016-05-04 | OT2: 2016-05-06 | OU2: 2016-05-08 | OV2: 2016-05-10 | OW2: 2016-05-12 | OX2: 2016-05-14 | OY2: 2016-05-16 | OZ2: 2016-05-18 | PA2: 2016-05-20 | PB2: 2016-05-22 | PC2: 2016-05-24 | PD2: 2016-05-26 | PE2: 2016-05-28 | PF2: 2016-05-30 | PG2: 2016-06-01 | PH2: 2016-06-03 | PI2: 2016-06-05 | PJ2: 2016-06-07 | PK2: 2016-06-09 | PL2: 2016-06-11 | PM2: 2016-06-13 | PN2: 2016-06-15 | PO2: 2016-06-17 | PP2: 2016-06-19 | PQ2: 2016-06-21 | PR2: 2016-06-23 | PS2: 2016-06-25 | PT2: 2016-06-27 | PU2: 2016-06-29 | PV2: 2016-07-01 | PW2: 2016-07-03 | PX2: 2016-07-05 | PY2: 2016-07-07 | PZ2: 2016-07-09 | QA2: 2016-07-11 | QB2: 2016-07-13 | QC2: 2016-07-15 | QD2: 2016-07-17 | QE2: 2016-07-19 | QF2: 2016-07-21 | QG2: 2016-07-23 | QH2: 2016-07-25 | QI2: 2016-07-27 | QJ2: 2016-07-29 | QK2: 2016-07-31 | QL2: 2016-08-02 | QM2: 2016-08-04 | QN2: 2016-08-06 | QO2: 2016-08-08 | QP2: 2016-08-10 | QQ2: 2016-08-12 | QR2: =INT(gStartPrj+(QR$1-gFstCol+1-gDelta)*gDpC) -> 2016-08-14 | QS2: 2016-08-16 | QT2: 2016-08-18 | QU2: 2016-08-20 | QV2: 2016-08-22 | QW2: 2016-08-24 | QX2: 2016-08-26 | QY2: 2016-08-28 | QZ2: 2016-08-30 | RA2: 2016-09-01 | RB2: 2016-09-03 | RC2: 2016-09-05 | RD2: 2016-09-07 | RE2: 2016-09-09 | RF2: 2016-09-11 | RG2: 2016-09-13 | RH2: 2016-09-15 | RI2: 2016-09-17 | RJ2: 2016-09-19 | RK2: 2016-09-21 | RL2: 2016-09-23 | RM2: 2016-09-25 | RN2: 2016-09-27 | RO2: 2016-09-29 | RP2: 2016-10-01 | RQ2: 2016-10-03 | RR2: 2016-10-05 | RS2: 2016-10-07 | RT2: 2016-10-09 | RU2: 2016-10-11 | RV2: 2016-10-13 | RW2: 2016-10-15 | RX2: 2016-10-17 | RY2: 2016-10-19 | RZ2: 2016-10-21 | SA2: 2016-10-23 | SB2: 2016-10-25 | SC2: 2016-10-27 | SD2: 2016-10-29 | SE2: 2016-10-31 | SF2: 2016-11-02 | SG2: 2016-11-04 | SH2: 2016-11-06 | SI2: 2016-11-08 | SJ2: 2016-11-10 | SK2: 2016-11-12 | SL2: 2016-11-14 | SM2: 2016-11-16 | SN2: 2016-11-18 | SO2: 2016-11-20 | SP2: 2016-11-22 | SQ2: 2016-11-24 | SS2: =IF(zzzTechVisibility,1,0) -> 0
B3: 2014-03-01 | C3: 11 | D3: 0.001 | E3: =VLOOKUP(gDpC,refMagnify[],2,0) -> 1 | J3: Начало | L3: =INT(gStartPrj+(L$1-gFstCol+gDelta)*gDpC) -> 2014-03-01 | M3: 2014-03-03 | N3: 2014-03-05 | O3: 2014-03-07 | P3: 2014-03-09 | Q3: 2014-03-11 | R3: 2014-03-13 | S3: 2014-03-15 | T3: 2014-03-17 | U3: 2014-03-19 | V3: 2014-03-21 | W3: 2014-03-23 | X3: 2014-03-25 | Y3: 2014-03-27 | Z3: 2014-03-29 | AA3: 2014-03-31 | AB3: 2014-04-02 | AC3: 2014-04-04 | AD3: 2014-04-06 | AE3: 2014-04-08 | AF3: 2014-04-10 | AG3: 2014-04-12 | AH3: 2014-04-14 | AI3: 2014-04-16 | AJ3: 2014-04-18 | AK3: 2014-04-20 | AL3: 2014-04-22 | AM3: 2014-04-24 | AN3: 2014-04-26 | AO3: 2014-04-28 | AP3: 2014-04-30 | AQ3: 2014-05-02 | AR3: 2014-05-04 | AS3: 2014-05-06 | AT3: 2014-05-08 | AU3: 2014-05-10 | AV3: 2014-05-12 | AW3: 2014-05-14 | AX3: 2014-05-16 | AY3: 2014-05-18 | AZ3: 2014-05-20 | BA3: 2014-05-22 | BB3: 2014-05-24 | BC3: 2014-05-26 | BD3: 2014-05-28 | BE3: 2014-05-30 | BF3: 2014-06-01 | BG3: 2014-06-03 | BH3: 2014-06-05 | BI3: 2014-06-07 | BJ3: 2014-06-09 | BK3: 2014-06-11 | BL3: 2014-06-13 | BM3: 2014-06-15 | BN3: 2014-06-17 | BO3: 2014-06-19 | BP3: 2014-06-21 | BQ3: 2014-06-23 | BR3: 2014-06-25 | BS3: 2014-06-27 | BT3: 2014-06-29 | BU3: 2014-07-01 | BV3: 2014-07-03 | BW3: 2014-07-05 | BX3: =INT(gStartPrj+(BX$1-gFstCol+gDelta)*gDpC) -> 2014-07-07 | BY3: 2014-07-09 | BZ3: 2014-07-11 | CA3: 2014-07-13 | CB3: 2014-07-15 | CC3: 2014-07-17 | CD3: 2014-07-19 | CE3: 2014-07-21 | CF3: 2014-07-23 | CG3: 2014-07-25 | CH3: 2014-07-27 | CI3: 2014-07-29 | CJ3: 2014-07-31 | CK3: 2014-08-02 | CL3: 2014-08-04 | CM3: 2014-08-06 | CN3: 2014-08-08 | CO3: 2014-08-10 | CP3: 2014-08-12 | CQ3: 2014-08-14 | CR3: 2014-08-16 | CS3: 2014-08-18 | CT3: 2014-08-20 | CU3: 2014-08-22 | CV3: 2014-08-24 | CW3: 2014-08-26 | CX3: 2014-08-28 | CY3: 2014-08-30 | CZ3: 2014-09-01 | DA3: 2014-09-03 | DB3: 2014-09-05 | DC3: 2014-09-07 | DD3: 2014-09-09 | DE3: 2014-09-11 | DF3: 2014-09-13 | DG3: 2014-09-15 | DH3: 2014-09-17 | DI3: 2014-09-19 | DJ3: 2014-09-21 | DK3: 2014-09-23 | DL3: 2014-09-25 | DM3: 2014-09-27 | DN3: 2014-09-29 | DO3: 2014-10-01 | DP3: 2014-10-03 | DQ3: 2014-10-05 | DR3: 2014-10-07 | DS3: 2014-10-09 | DT3: 2014-10-11 | DU3: 2014-10-13 | DV3: 2014-10-15 | DW3: 2014-10-17 | DX3: 2014-10-19 | DY3: 2014-10-21 | DZ3: 2014-10-23 | EA3: 2014-10-25 | EB3: 2014-10-27 | EC3: 2014-10-29 | ED3: 2014-10-31 | EE3: 2014-11-02 | EF3: 2014-11-04 | EG3: 2014-11-06 | EH3: 2014-11-08 | EI3: 2014-11-10 | EJ3: =INT(gStartPrj+(EJ$1-gFstCol+gDelta)*gDpC) -> 2014-11-12 | EK3: 2014-11-14 | EL3: 2014-11-16 | EM3: 2014-11-18 | EN3: 2014-11-20 | EO3: 2014-11-22 | EP3: 2014-11-24 | EQ3: 2014-11-26 | ER3: 2014-11-28 | ES3: 2014-11-30 | ET3: 2014-12-02 | EU3: 2014-12-04 | EV3: 2014-12-06 | EW3: 2014-12-08 | EX3: 2014-12-10 | EY3: 2014-12-12 | EZ3: 2014-12-14 | FA3: 2014-12-16 | FB3: 2014-12-18 | FC3: 2014-12-20 | FD3: 2014-12-22 | FE3: 2014-12-24 | FF3: 2014-12-26 | FG3: 2014-12-28 | FH3: 2014-12-30 | FI3: 2015-01-01 | FJ3: 2015-01-03 | FK3: 2015-01-05 | FL3: 2015-01-07 | FM3: 2015-01-09 | FN3: 2015-01-11 | FO3: 2015-01-13 | FP3: 2015-01-15 | FQ3: 2015-01-17 | FR3: 2015-01-19 | FS3: 2015-01-21 | FT3: 2015-01-23 | FU3: 2015-01-25 | FV3: 2015-01-27 | FW3: 2015-01-29 | FX3: 2015-01-31 | FY3: 2015-02-02 | FZ3: 2015-02-04 | GA3: 2015-02-06 | GB3: 2015-02-08 | GC3: 2015-02-10 | GD3: 2015-02-12 | GE3: 2015-02-14 | GF3: 2015-02-16 | GG3: 2015-02-18 | GH3: 2015-02-20 | GI3: 2015-02-22 | GJ3: 2015-02-24 | GK3: 2015-02-26 | GL3: 2015-02-28 | GM3: 2015-03-02 | GN3: 2015-03-04 | GO3: 2015-03-06 | GP3: 2015-03-08 | GQ3: 2015-03-10 | GR3: 2015-03-12 | GS3: 2015-03-14 | GT3: 2015-03-16 | GU3: 2015-03-18 | GV3: =INT(gStartPrj+(GV$1-gFstCol+gDelta)*gDpC) -> 2015-03-20 | GW3: 2015-03-22 | GX3: 2015-03-24 | GY3: 2015-03-26 | GZ3: 2015-03-28 | HA3: 2015-03-30 | HB3: 2015-04-01 | HC3: 2015-04-03 | HD3: 2015-04-05 | HE3: 2015-04-07 | HF3: 2015-04-09 | HG3: 2015-04-11 | HH3: 2015-04-13 | HI3: 2015-04-15 | HJ3: 2015-04-17 | HK3: 2015-04-19 | HL3: 2015-04-21 | HM3: 2015-04-23 | HN3: 2015-04-25 | HO3: 2015-04-27 | HP3: 2015-04-29 | HQ3: 2015-05-01 | HR3: 2015-05-03 | HS3: 2015-05-05 | HT3: 2015-05-07 | HU3: 2015-05-09 | HV3: 2015-05-11 | HW3: 2015-05-13 | HX3: 2015-05-15 | HY3: 2015-05-17 | HZ3: 2015-05-19 | IA3: 2015-05-21 | IB3: 2015-05-23 | IC3: 2015-05-25 | ID3: 2015-05-27 | IE3: 2015-05-29 | IF3: 2015-05-31 | IG3: 2015-06-02 | IH3: 2015-06-04 | II3: 2015-06-06 | IJ3: 2015-06-08 | IK3: 2015-06-10 | IL3: 2015-06-12 | IM3: 2015-06-14 | IN3: 2015-06-16 | IO3: 2015-06-18 | IP3: 2015-06-20 | IQ3: 2015-06-22 | IR3: 2015-06-24 | IS3: 2015-06-26 | IT3: 2015-06-28 | IU3: 2015-06-30 | IV3: 2015-07-02 | IW3: 2015-07-04 | IX3: 2015-07-06 | IY3: 2015-07-08 | IZ3: 2015-07-10 | JA3: 2015-07-12 | JB3: 2015-07-14 | JC3: 2015-07-16 | JD3: 2015-07-18 | JE3: 2015-07-20 | JF3: 2015-07-22 | JG3: 2015-07-24 | JH3: =INT(gStartPrj+(JH$1-gFstCol+gDelta)*gDpC) -> 2015-07-26 | JI3: 2015-07-28 | JJ3: 2015-07-30 | JK3: 2015-08-01 | JL3: 2015-08-03 | JM3: 2015-08-05 | JN3: 2015-08-07 | JO3: 2015-08-09 | JP3: 2015-08-11 | JQ3: 2015-08-13 | JR3: 2015-08-15 | JS3: 2015-08-17 | JT3: 2015-08-19 | JU3: 2015-08-21 | JV3: 2015-08-23 | JW3: 2015-08-25 | JX3: 2015-08-27 | JY3: 2015-08-29 | JZ3: 2015-08-31 | KA3: 2015-09-02 | KB3: 2015-09-04 | KC3: 2015-09-06 | KD3: 2015-09-08 | KE3: 2015-09-10 | KF3: 2015-09-12 | KG3: 2015-09-14 | KH3: 2015-09-16 | KI3: 2015-09-18 | KJ3: 2015-09-20 | KK3: 2015-09-22 | KL3: 2015-09-24 | KM3: 2015-09-26 | KN3: 2015-09-28 | KO3: 2015-09-30 | KP3: 2015-10-02 | KQ3: 2015-10-04 | KR3: 2015-10-06 | KS3: 2015-10-08 | KT3: 2015-10-10 | KU3: 2015-10-12 | KV3: 2015-10-14 | KW3: 2015-10-16 | KX3: 2015-10-18 | KY3: 2015-10-20 | KZ3: 2015-10-22 | LA3: 2015-10-24 | LB3: 2015-10-26 | LC3: 2015-10-28 | LD3: 2015-10-30 | LE3: 2015-11-01 | LF3: 2015-11-03 | LG3: 2015-11-05 | LH3: 2015-11-07 | LI3: 2015-11-09 | LJ3: 2015-11-11 | LK3: 2015-11-13 | LL3: 2015-11-15 | LM3: 2015-11-17 | LN3: 2015-11-19 | LO3: 2015-11-21 | LP3: 2015-11-23 | LQ3: 2015-11-25 | LR3: 2015-11-27 | LS3: 2015-11-29 | LT3: =INT(gStartPrj+(LT$1-gFstCol+gDelta)*gDpC) -> 2015-12-01 | LU3: 2015-12-03 | LV3: 2015-12-05 | LW3: 2015-12-07 | LX3: 2015-12-09 | LY3: 2015-12-11 | LZ3: 2015-12-13 | MA3: 2015-12-15 | MB3: 2015-12-17 | MC3: 2015-12-19 | MD3: 2015-12-21 | ME3: 2015-12-23 | MF3: 2015-12-25 | MG3: 2015-12-27 | MH3: 2015-12-29 | MI3: 2015-12-31 | MJ3: 2016-01-02 | MK3: 2016-01-04 | ML3: 2016-01-06 | MM3: 2016-01-08 | MN3: 2016-01-10 | MO3: 2016-01-12 | MP3: 2016-01-14 | MQ3: 2016-01-16 | MR3: 2016-01-18 | MS3: 2016-01-20 | MT3: 2016-01-22 | MU3: 2016-01-24 | MV3: 2016-01-26 | MW3: 2016-01-28 | MX3: 2016-01-30 | MY3: 2016-02-01 | MZ3: 2016-02-03 | NA3: 2016-02-05 | NB3: 2016-02-07 | NC3: 2016-02-09 | ND3: 2016-02-11 | NE3: 2016-02-13 | NF3: 2016-02-15 | NG3: 2016-02-17 | NH3: 2016-02-19 | NI3: 2016-02-21 | NJ3: 2016-02-23 | NK3: 2016-02-25 | NL3: 2016-02-27 | NM3: 2016-02-29 | NN3: 2016-03-02 | NO3: 2016-03-04 | NP3: 2016-03-06 | NQ3: 2016-03-08 | NR3: 2016-03-10 | NS3: 2016-03-12 | NT3: 2016-03-14 | NU3: 2016-03-16 | NV3: 2016-03-18 | NW3: 2016-03-20 | NX3: 2016-03-22 | NY3: 2016-03-24 | NZ3: 2016-03-26 | OA3: 2016-03-28 | OB3: 2016-03-30 | OC3: 2016-04-01 | OD3: 2016-04-03 | OE3: 2016-04-05 | OF3: =INT(gStartPrj+(OF$1-gFstCol+gDelta)*gDpC) -> 2016-04-07 | OG3: 2016-04-09 | OH3: 2016-04-11 | OI3: 2016-04-13 | OJ3: 2016-04-15 | OK3: 2016-04-17 | OL3: 2016-04-19 | OM3: 2016-04-21 | ON3: 2016-04-23 | OO3: 2016-04-25 | OP3: 2016-04-27 | OQ3: 2016-04-29 | OR3: 2016-05-01 | OS3: 2016-05-03 | OT3: 2016-05-05 | OU3: 2016-05-07 | OV3: 2016-05-09 | OW3: 2016-05-11 | OX3: 2016-05-13 | OY3: 2016-05-15 | OZ3: 2016-05-17 | PA3: 2016-05-19 | PB3: 2016-05-21 | PC3: 2016-05-23 | PD3: 2016-05-25 | PE3: 2016-05-27 | PF3: 2016-05-29 | PG3: 2016-05-31 | PH3: 2016-06-02 | PI3: 2016-06-04 | PJ3: 2016-06-06 | PK3: 2016-06-08 | PL3: 2016-06-10 | PM3: 2016-06-12 | PN3: 2016-06-14 | PO3: 2016-06-16 | PP3: 2016-06-18 | PQ3: 2016-06-20 | PR3: 2016-06-22 | PS3: 2016-06-24 | PT3: 2016-06-26 | PU3: 2016-06-28 | PV3: 2016-06-30 | PW3: 2016-07-02 | PX3: 2016-07-04 | PY3: 2016-07-06 | PZ3: 2016-07-08 | QA3: 2016-07-10 | QB3: 2016-07-12 | QC3: 2016-07-14 | QD3: 2016-07-16 | QE3: 2016-07-18 | QF3: 2016-07-20 | QG3: 2016-07-22 | QH3: 2016-07-24 | QI3: 2016-07-26 | QJ3: 2016-07-28 | QK3: 2016-07-30 | QL3: 2016-08-01 | QM3: 2016-08-03 | QN3: 2016-08-05 | QO3: 2016-08-07 | QP3: 2016-08-09 | QQ3: 2016-08-11 | QR3: =INT(gStartPrj+(QR$1-gFstCol+gDelta)*gDpC) -> 2016-08-13 | QS3: 2016-08-15 | QT3: 2016-08-17 | QU3: 2016-08-19 | QV3: 2016-08-21 | QW3: 2016-08-23 | QX3: 2016-08-25 | QY3: 2016-08-27 | QZ3: 2016-08-29 | RA3: 2016-08-31 | RB3: 2016-09-02 | RC3: 2016-09-04 | RD3: 2016-09-06 | RE3: 2016-09-08 | RF3: 2016-09-10 | RG3: 2016-09-12 | RH3: 2016-09-14 | RI3: 2016-09-16 | RJ3: 2016-09-18 | RK3: 2016-09-20 | RL3: 2016-09-22 | RM3: 2016-09-24 | RN3: 2016-09-26 | RO3: 2016-09-28 | RP3: 2016-09-30 | RQ3: 2016-10-02 | RR3: 2016-10-04 | RS3: 2016-10-06 | RT3: 2016-10-08 | RU3: 2016-10-10 | RV3: 2016-10-12 | RW3: 2016-10-14 | RX3: 2016-10-16 | RY3: 2016-10-18 | RZ3: 2016-10-20 | SA3: 2016-10-22 | SB3: 2016-10-24 | SC3: 2016-10-26 | SD3: 2016-10-28 | SE3: 2016-10-30 | SF3: 2016-11-01 | SG3: 2016-11-03 | SH3: 2016-11-05 | SI3: 2016-11-07 | SJ3: 2016-11-09 | SK3: 2016-11-11 | SL3: 2016-11-13 | SM3: 2016-11-15 | SN3: 2016-11-17 | SO3: 2016-11-19 | SP3: 2016-11-21 | SQ3: 2016-11-23 | SS3: =IF(zzzTechVisibility,1,0) -> 0
B4: Пункт плана | C4: Начало | D4: Окончание | E4: Уровень | F4: Завершено | G4: Первая колонка | H4: Средняя колонка | I4: Последняя колонка | J4: Тип | L4: =IF( L$5-gCpD*INT(L$5/gCpD)<1," "& CHOOSE(gDType, TEXT(L$3,"ДД МММ"), IF(MONTH(L$3)=MONTH(L$2), TEXT(L$3,"Д")&"-"&TEXT(L$2,"Д МММ"), TEXT(L$3,"Д МММ")&" - "&TEXT(L$2,"Д МММ")), "week "&WEEKNUM(L$3,2)), "") -> 01 мар | M4: 03 мар | N4: 05 мар | O4: 07 мар | P4: 09 мар | Q4: 11 мар | R4: 13 мар | S4: 15 мар | T4: 17 мар | U4: 19 мар | V4: 21 мар | W4: 23 мар | X4: 25 мар | Y4: 27 мар | Z4: 29 мар | AA4: 31 мар | AB4: 02 апр | AC4: 04 апр | AD4: 06 апр | AE4: 08 апр | AF4: 10 апр | AG4: 12 апр | AH4: 14 апр | AI4: 16 апр | AJ4: 18 апр | AK4: 20 апр | AL4: 22 апр | AM4: 24 апр | AN4: 26 апр | AO4: 28 апр | AP4: 30 апр | AQ4: 02 май | AR4: 04 май | AS4: 06 май | AT4: 08 май | AU4: 10 май | AV4: 12 май | AW4: 14 май | AX4: 16 май | AY4: 18 май | AZ4: 20 май | BA4: 22 май | BB4: 24 май | BC4: 26 май | BD4: 28 май | BE4: 30 май | BF4: 01 июн | BG4: 03 июн | BH4: 05 июн | BI4: 07 июн | BJ4: 09 июн | BK4: 11 июн | BL4: 13 июн | BM4: 15 июн | BN4: 17 июн | BO4: 19 июн | BP4: 21 июн | BQ4: 23 июн | BR4: 25 июн | BS4: 27 июн | BT4: 29 июн | BU4: 01 июл | BV4: 03 июл | BW4: 05 июл | BX4: =IF( BX$5-gCpD*INT(BX$5/gCpD)<1," "& CHOOSE(gDType, TEXT(BX$3,"ДД МММ"), IF(MONTH(BX$3)=MONTH(BX$2), TEXT(BX$3,"Д")&"-"&TEXT(BX$2,"Д МММ"), TEXT(BX$3,"Д МММ")&" - "&TEXT(BX$2,"Д МММ")), "week "&WEEKNUM(BX$3,2)), "") -> 07 июл | BY4: 09 июл | BZ4: 11 июл | CA4: 13 июл | CB4: 15 июл | CC4: 17 июл | CD4: 19 июл | CE4: 21 июл | CF4: 23 июл | CG4: 25 июл | CH4: 27 июл | CI4: 29 июл | CJ4: 31 июл | CK4: 02 авг | CL4: 04 авг | CM4: 06 авг | CN4: 08 авг | CO4: 10 авг | CP4: 12 авг | CQ4: 14 авг | CR4: 16 авг | CS4: 18 авг | CT4: 20 авг | CU4: 22 авг | CV4: 24 авг | CW4: 26 авг | CX4: 28 авг | CY4: 30 авг | CZ4: 01 сен | DA4: 03 сен | DB4: 05 сен | DC4: 07 сен | DD4: 09 сен | DE4: 11 сен | DF4: 13 сен | DG4: 15 сен | DH4: 17 сен | DI4: 19 сен | DJ4: 21 сен | DK4: 23 сен | DL4: 25 сен | DM4: 27 сен | DN4: 29 сен | DO4: 01 окт | DP4: 03 окт | DQ4: 05 окт | DR4: 07 окт | DS4: 09 окт | DT4: 11 окт | DU4: 13 окт | DV4: 15 окт | DW4: 17 окт | DX4: 19 окт | DY4: 21 окт | DZ4: 23 окт | EA4: 25 окт | EB4: 27 окт | EC4: 29 окт | ED4: 31 окт | EE4: 02 ноя | EF4: 04 ноя | EG4: 06 ноя | EH4: 08 ноя | EI4: 10 ноя | EJ4: =IF( EJ$5-gCpD*INT(EJ$5/gCpD)<1," "& CHOOSE(gDType, TEXT(EJ$3,"ДД МММ"), IF(MONTH(EJ$3)=MONTH(EJ$2), TEXT(EJ$3,"Д")&"-"&TEXT(EJ$2,"Д МММ"), TEXT(EJ$3,"Д МММ")&" - "&TEXT(EJ$2,"Д МММ")), "week "&WEEKNUM(EJ$3,2)), "") -> 12 ноя | EK4: 14 ноя | EL4: 16 ноя | EM4: 18 ноя | EN4: 20 ноя | EO4: 22 ноя | EP4: 24 ноя | EQ4: 26 ноя | ER4: 28 ноя | ES4: 30 ноя | ET4: 02 дек | EU4: 04 дек | EV4: 06 дек | EW4: 08 дек | EX4: 10 дек | EY4: 12 дек | EZ4: 14 дек | FA4: 16 дек | FB4: 18 дек | FC4: 20 дек | FD4: 22 дек | FE4: 24 дек | FF4: 26 дек | FG4: 28 дек | FH4: 30 дек | FI4: 01 янв | FJ4: 03 янв | FK4: 05 янв | FL4: 07 янв | FM4: 09 янв | FN4: 11 янв | FO4: 13 янв | FP4: 15 янв | FQ4: 17 янв | FR4: 19 янв | FS4: 21 янв | FT4: 23 янв | FU4: 25 янв | FV4: 27 янв | FW4: 29 янв | FX4: 31 янв | FY4: 02 фев | FZ4: 04 фев | GA4: 06 фев | GB4: 08 фев | GC4: 10 фев | GD4: 12 фев | GE4: 14 фев | GF4: 16 фев | GG4: 18 фев | GH4: 20 фев | GI4: 22 фев | GJ4: 24 фев | GK4: 26 фев | GL4: 28 фев | GM4: 02 мар | GN4: 04 мар | GO4: 06 мар | GP4: 08 мар | GQ4: 10 мар | GR4: 12 мар | GS4: 14 мар | GT4: 16 мар | GU4: 18 мар | GV4: =IF( GV$5-gCpD*INT(GV$5/gCpD)<1," "& CHOOSE(gDType, TEXT(GV$3,"ДД МММ"), IF(MONTH(GV$3)=MONTH(GV$2), TEXT(GV$3,"Д")&"-"&TEXT(GV$2,"Д МММ"), TEXT(GV$3,"Д МММ")&" - "&TEXT(GV$2,"Д МММ")), "week "&WEEKNUM(GV$3,2)), "") -> 20 мар | GW4: 22 мар | GX4: 24 мар | GY4: 26 мар | GZ4: 28 мар | HA4: 30 мар | HB4: 01 апр | HC4: 03 апр | HD4: 05 апр | HE4: 07 апр | HF4: 09 апр | HG4: 11 апр | HH4: 13 апр | HI4: 15 апр | HJ4: 17 апр | HK4: 19 апр | HL4: 21 апр | HM4: 23 апр | HN4: 25 апр | HO4: 27 апр | HP4: 29 апр | HQ4: 01 май | HR4: 03 май | HS4: 05 май | HT4: 07 май | HU4: 09 май | HV4: 11 май | HW4: 13 май | HX4: 15 май | HY4: 17 май | HZ4: 19 май | IA4: 21 май | IB4: 23 май | IC4: 25 май | ID4: 27 май | IE4: 29 май | IF4: 31 май | IG4: 02 июн | IH4: 04 июн | II4: 06 июн | IJ4: 08 июн | IK4: 10 июн | IL4: 12 июн | IM4: 14 июн | IN4: 16 июн | IO4: 18 июн | IP4: 20 июн | IQ4: 22 июн | IR4: 24 июн | IS4: 26 июн | IT4: 28 июн | IU4: 30 июн | IV4: 02 июл | IW4: 04 июл | IX4: 06 июл | IY4: 08 июл | IZ4: 10 июл | JA4: 12 июл | JB4: 14 июл | JC4: 16 июл | JD4: 18 июл | JE4: 20 июл | JF4: 22 июл | JG4: 24 июл | JH4: =IF( JH$5-gCpD*INT(JH$5/gCpD)<1," "& CHOOSE(gDType, TEXT(JH$3,"ДД МММ"), IF(MONTH(JH$3)=MONTH(JH$2), TEXT(JH$3,"Д")&"-"&TEXT(JH$2,"Д МММ"), TEXT(JH$3,"Д МММ")&" - "&TEXT(JH$2,"Д МММ")), "week "&WEEKNUM(JH$3,2)), "") -> 26 июл | JI4: 28 июл | JJ4: 30 июл | JK4: 01 авг | JL4: 03 авг | JM4: 05 авг | JN4: 07 авг | JO4: 09 авг | JP4: 11 авг | JQ4: 13 авг | JR4: 15 авг | JS4: 17 авг | JT4: 19 авг | JU4: 21 авг | JV4: 23 авг | JW4: 25 авг | JX4: 27 авг | JY4: 29 авг | JZ4: 31 авг | KA4: 02 сен | KB4: 04 сен | KC4: 06 сен | KD4: 08 сен | KE4: 10 сен | KF4: 12 сен | KG4: 14 сен | KH4: 16 сен | KI4: 18 сен | KJ4: 20 сен | KK4: 22 сен | KL4: 24 сен | KM4: 26 сен | KN4: 28 сен | KO4: 30 сен | KP4: 02 окт | KQ4: 04 окт | KR4: 06 окт | KS4: 08 окт | KT4: 10 окт | KU4: 12 окт | KV4: 14 окт | KW4: 16 окт | KX4: 18 окт | KY4: 20 окт | KZ4: 22 окт | LA4: 24 окт | LB4: 26 окт | LC4: 28 окт | LD4: 30 окт | LE4: 01 ноя | LF4: 03 ноя | LG4: 05 ноя | LH4: 07 ноя | LI4: 09 ноя | LJ4: 11 ноя | LK4: 13 ноя | LL4: 15 ноя | LM4: 17 ноя | LN4: 19 ноя | LO4: 21 ноя | LP4: 23 ноя | LQ4: 25 ноя | LR4: 27 ноя | LS4: 29 ноя | LT4: =IF( LT$5-gCpD*INT(LT$5/gCpD)<1," "& CHOOSE(gDType, TEXT(LT$3,"ДД МММ"), IF(MONTH(LT$3)=MONTH(LT$2), TEXT(LT$3,"Д")&"-"&TEXT(LT$2,"Д МММ"), TEXT(LT$3,"Д МММ")&" - "&TEXT(LT$2,"Д МММ")), "week "&WEEKNUM(LT$3,2)), "") -> 01 дек | LU4: 03 дек | LV4: 05 дек | LW4: 07 дек | LX4: 09 дек | LY4: 11 дек | LZ4: 13 дек | MA4: 15 дек | MB4: 17 дек | MC4: 19 дек | MD4: 21 дек | ME4: 23 дек | MF4: 25 дек | MG4: 27 дек | MH4: 29 дек | MI4: 31 дек | MJ4: 02 янв | MK4: 04 янв | ML4: 06 янв | MM4: 08 янв | MN4: 10 янв | MO4: 12 янв | MP4: 14 янв | MQ4: 16 янв | MR4: 18 янв | MS4: 20 янв | MT4: 22 янв | MU4: 24 янв | MV4: 26 янв | MW4: 28 янв | MX4: 30 янв | MY4: 01 фев | MZ4: 03 фев | NA4: 05 фев | NB4: 07 фев | NC4: 09 фев | ND4: 11 фев | NE4: 13 фев | NF4: 15 фев | NG4: 17 фев | NH4: 19 фев | NI4: 21 фев | NJ4: 23 фев | NK4: 25 фев | NL4: 27 фев | NM4: 29 фев | NN4: 02 мар | NO4: 04 мар | NP4: 06 мар | NQ4: 08 мар | NR4: 10 мар | NS4: 12 мар | NT4: 14 мар | NU4: 16 мар | NV4: 18 мар | NW4: 20 мар | NX4: 22 мар | NY4: 24 мар | NZ4: 26 мар | OA4: 28 мар | OB4: 30 мар | OC4: 01 апр | OD4: 03 апр | OE4: 05 апр | OF4: =IF( OF$5-gCpD*INT(OF$5/gCpD)<1," "& CHOOSE(gDType, TEXT(OF$3,"ДД МММ"), IF(MONTH(OF$3)=MONTH(OF$2), TEXT(OF$3,"Д")&"-"&TEXT(OF$2,"Д МММ"), TEXT(OF$3,"Д МММ")&" - "&TEXT(OF$2,"Д МММ")), "week "&WEEKNUM(OF$3,2)), "") -> 07 апр | OG4: 09 апр | OH4: 11 апр | OI4: 13 апр | OJ4: 15 апр | OK4: 17 апр | OL4: 19 апр | OM4: 21 апр | ON4: 23 апр | OO4: 25 апр | OP4: 27 апр | OQ4: 29 апр | OR4: 01 май | OS4: 03 май | OT4: 05 май | OU4: 07 май | OV4: 09 май | OW4: 11 май | OX4: 13 май | OY4: 15 май | OZ4: 17 май | PA4: 19 май | PB4: 21 май | PC4: 23 май | PD4: 25 май | PE4: 27 май | PF4: 29 май | PG4: 31 май | PH4: 02 июн | PI4: 04 июн | PJ4: 06 июн | PK4: 08 июн | PL4: 10 июн | PM4: 12 июн | PN4: 14 июн | PO4: 16 июн | PP4: 18 июн | PQ4: 20 июн | PR4: 22 июн | PS4: 24 июн | PT4: 26 июн | PU4: 28 июн | PV4: 30 июн | PW4: 02 июл | PX4: 04 июл | PY4: 06 июл | PZ4: 08 июл | QA4: 10 июл | QB4: 12 июл | QC4: 14 июл | QD4: 16 июл | QE4: 18 июл | QF4: 20 июл | QG4: 22 июл | QH4: 24 июл | QI4: 26 июл | QJ4: 28 июл | QK4: 30 июл | QL4: 01 авг | QM4: 03 авг | QN4: 05 авг | QO4: 07 авг | QP4: 09 авг | QQ4: 11 авг | QR4: =IF( QR$5-gCpD*INT(QR$5/gCpD)<1," "& CHOOSE(gDType, TEXT(QR$3,"ДД МММ"), IF(MONTH(QR$3)=MONTH(QR$2), TEXT(QR$3,"Д")&"-"&TEXT(QR$2,"Д МММ"), TEXT(QR$3,"Д МММ")&" - "&TEXT(QR$2,"Д МММ")), "week "&WEEKNUM(QR$3,2)), "") -> 13 авг | QS4: 15 авг | QT4: 17 авг | QU4: 19 авг | QV4: 21 авг | QW4: 23 авг | QX4: 25 авг | QY4: 27 авг | QZ4: 29 авг | RA4: 31 авг | RB4: 02 сен | RC4: 04 сен | RD4: 06 сен | RE4: 08 сен | RF4: 10 сен | RG4: 12 сен | RH4: 14 сен | RI4: 16 сен | RJ4: 18 сен | RK4: 20 сен | RL4: 22 сен | RM4: 24 сен | RN4: 26 сен | RO4: 28 сен | RP4: 30 сен | RQ4: 02 окт | RR4: 04 окт | RS4: 06 окт | RT4: 08 окт | RU4: 10 окт | RV4: 12 окт | RW4: 14 окт | RX4: 16 окт | RY4: 18 окт | RZ4: 20 окт | SA4: 22 окт | SB4: 24 окт | SC4: 26 окт | SD4: 28 окт | SE4: 30 окт | SF4: 01 ноя | SG4: 03 ноя | SH4: 05 ноя | SI4: 07 ноя | SJ4: 09 ноя | SK4: 11 ноя | SL4: 13 ноя | SM4: 15 ноя | SN4: 17 ноя | SO4: 19 ноя | SP4: 21 ноя | SQ4: 23 ноя | SS4: 1
L5: =L$1-gFstCol -> 0 | M5: 1 | N5: 2 | O5: 3 | P5: 4 | Q5: 5 | R5: 6 | S5: 7 | T5: 8 | U5: 9 | V5: 10 | W5: 11 | X5: 12 | Y5: 13 | Z5: 14 | AA5: 15 | AB5: 16 | AC5: 17 | AD5: 18 | AE5: 19 | AF5: 20 | AG5: 21 | AH5: 22 | AI5: 23 | AJ5: 24 | AK5: 25 | AL5: 26 | AM5: 27 | AN5: 28 | AO5: 29 | AP5: 30 | AQ5: 31 | AR5: 32 | AS5: 33 | AT5: 34 | AU5: 35 | AV5: 36 | AW5: 37 | AX5: 38 | AY5: 39 | AZ5: 40 | BA5: 41 | BB5: 42 | BC5: 43 | BD5: 44 | BE5: 45 | BF5: 46 | BG5: 47 | BH5: 48 | BI5: 49 | BJ5: 50 | BK5: 51 | BL5: 52 | BM5: 53 | BN5: 54 | BO5: 55 | BP5: 56 | BQ5: 57 | BR5: 58 | BS5: 59 | BT5: 60 | BU5: 61 | BV5: 62 | BW5: 63 | BX5: =BX$1-gFstCol -> 64 | BY5: 65 | BZ5: 66 | CA5: 67 | CB5: 68 | CC5: 69 | CD5: 70 | CE5: 71 | CF5: 72 | CG5: 73 | CH5: 74 | CI5: 75 | CJ5: 76 | CK5: 77 | CL5: 78 | CM5: 79 | CN5: 80 | CO5: 81 | CP5: 82 | CQ5: 83 | CR5: 84 | CS5: 85 | CT5: 86 | CU5: 87 | CV5: 88 | CW5: 89 | CX5: 90 | CY5: 91 | CZ5: 92 | DA5: 93 | DB5: 94 | DC5: 95 | DD5: 96 | DE5: 97 | DF5: 98 | DG5: 99 | DH5: 100 | DI5: 101 | DJ5: 102 | DK5: 103 | DL5: 104 | DM5: 105 | DN5: 106 | DO5: 107 | DP5: 108 | DQ5: 109 | DR5: 110 | DS5: 111 | DT5: 112 | DU5: 113 | DV5: 114 | DW5: 115 | DX5: 116 | DY5: 117 | DZ5: 118 | EA5: 119 | EB5: 120 | EC5: 121 | ED5: 122 | EE5: 123 | EF5: 124 | EG5: 125 | EH5: 126 | EI5: 127 | EJ5: =EJ$1-gFstCol -> 128 | EK5: 129 | EL5: 130 | EM5: 131 | EN5: 132 | EO5: 133 | EP5: 134 | EQ5: 135 | ER5: 136 | ES5: 137 | ET5: 138 | EU5: 139 | EV5: 140 | EW5: 141 | EX5: 142 | EY5: 143 | EZ5: 144 | FA5: 145 | FB5: 146 | FC5: 147 | FD5: 148 | FE5: 149 | FF5: 150 | FG5: 151 | FH5: 152 | FI5: 153 | FJ5: 154 | FK5: 155 | FL5: 156 | FM5: 157 | FN5: 158 | FO5: 159 | FP5: 160 | FQ5: 161 | FR5: 162 | FS5: 163 | FT5: 164 | FU5: 165 | FV5: 166 | FW5: 167 | FX5: 168 | FY5: 169 | FZ5: 170 | GA5: 171 | GB5: 172 | GC5: 173 | GD5: 174 | GE5: 175 | GF5: 176 | GG5: 177 | GH5: 178 | GI5: 179 | GJ5: 180 | GK5: 181 | GL5: 182 | GM5: 183 | GN5: 184 | GO5: 185 | GP5: 186 | GQ5: 187 | GR5: 188 | GS5: 189 | GT5: 190 | GU5: 191 | GV5: =GV$1-gFstCol -> 192 | GW5: 193 | GX5: 194 | GY5: 195 | GZ5: 196 | HA5: 197 | HB5: 198 | HC5: 199 | HD5: 200 | HE5: 201 | HF5: 202 | HG5: 203 | HH5: 204 | HI5: 205 | HJ5: 206 | HK5: 207 | HL5: 208 | HM5: 209 | HN5: 210 | HO5: 211 | HP5: 212 | HQ5: 213 | HR5: 214 | HS5: 215 | HT5: 216 | HU5: 217 | HV5: 218 | HW5: 219 | HX5: 220 | HY5: 221 | HZ5: 222 | IA5: 223 | IB5: 224 | IC5: 225 | ID5: 226 | IE5: 227 | IF5: 228 | IG5: 229 | IH5: 230 | II5: 231 | IJ5: 232 | IK5: 233 | IL5: 234 | IM5: 235 | IN5: 236 | IO5: 237 | IP5: 238 | IQ5: 239 | IR5: 240 | IS5: 241 | IT5: 242 | IU5: 243 | IV5: 244 | IW5: 245 | IX5: 246 | IY5: 247 | IZ5: 248 | JA5: 249 | JB5: 250 | JC5: 251 | JD5: 252 | JE5: 253 | JF5: 254 | JG5: 255 | JH5: =JH$1-gFstCol -> 256 | JI5: 257 | JJ5: 258 | JK5: 259 | JL5: 260 | JM5: 261 | JN5: 262 | JO5: 263 | JP5: 264 | JQ5: 265 | JR5: 266 | JS5: 267 | JT5: 268 | JU5: 269 | JV5: 270 | JW5: 271 | JX5: 272 | JY5: 273 | JZ5: 274 | KA5: 275 | KB5: 276 | KC5: 277 | KD5: 278 | KE5: 279 | KF5: 280 | KG5: 281 | KH5: 282 | KI5: 283 | KJ5: 284 | KK5: 285 | KL5: 286 | KM5: 287 | KN5: 288 | KO5: 289 | KP5: 290 | KQ5: 291 | KR5: 292 | KS5: 293 | KT5: 294 | KU5: 295 | KV5: 296 | KW5: 297 | KX5: 298 | KY5: 299 | KZ5: 300 | LA5: 301 | LB5: 302 | LC5: 303 | LD5: 304 | LE5: 305 | LF5: 306 | LG5: 307 | LH5: 308 | LI5: 309 | LJ5: 310 | LK5: 311 | LL5: 312 | LM5: 313 | LN5: 314 | LO5: 315 | LP5: 316 | LQ5: 317 | LR5: 318 | LS5: 319 | LT5: =LT$1-gFstCol -> 320 | LU5: 321 | LV5: 322 | LW5: 323 | LX5: 324 | LY5: 325 | LZ5: 326 | MA5: 327 | MB5: 328 | MC5: 329 | MD5: 330 | ME5: 331 | MF5: 332 | MG5: 333 | MH5: 334 | MI5: 335 | MJ5: 336 | MK5: 337 | ML5: 338 | MM5: 339 | MN5: 340 | MO5: 341 | MP5: 342 | MQ5: 343 | MR5: 344 | MS5: 345 | MT5: 346 | MU5: 347 | MV5: 348 | MW5: 349 | MX5: 350 | MY5: 351 | MZ5: 352 | NA5: 353 | NB5: 354 | NC5: 355 | ND5: 356 | NE5: 357 | NF5: 358 | NG5: 359 | NH5: 360 | NI5: 361 | NJ5: 362 | NK5: 363 | NL5: 364 | NM5: 365 | NN5: 366 | NO5: 367 | NP5: 368 | NQ5: 369 | NR5: 370 | NS5: 371 | NT5: 372 | NU5: 373 | NV5: 374 | NW5: 375 | NX5: 376 | NY5: 377 | NZ5: 378 | OA5: 379 | OB5: 380 | OC5: 381 | OD5: 382 | OE5: 383 | OF5: =OF$1-gFstCol -> 384 | OG5: 385 | OH5: 386 | OI5: 387 | OJ5: 388 | OK5: 389 | OL5: 390 | OM5: 391 | ON5: 392 | OO5: 393 | OP5: 394 | OQ5: 395 | OR5: 396 | OS5: 397 | OT5: 398 | OU5: 399 | OV5: 400 | OW5: 401 | OX5: 402 | OY5: 403 | OZ5: 404 | PA5: 405 | PB5: 406 | PC5: 407 | PD5: 408 | PE5: 409 | PF5: 410 | PG5: 411 | PH5: 412 | PI5: 413 | PJ5: 414 | PK5: 415 | PL5: 416 | PM5: 417 | PN5: 418 | PO5: 419 | PP5: 420 | PQ5: 421 | PR5: 422 | PS5: 423 | PT5: 424 | PU5: 425 | PV5: 426 | PW5: 427 | PX5: 428 | PY5: 429 | PZ5: 430 | QA5: 431 | QB5: 432 | QC5: 433 | QD5: 434 | QE5: 435 | QF5: 436 | QG5: 437 | QH5: 438 | QI5: 439 | QJ5: 440 | QK5: 441 | QL5: 442 | QM5: 443 | QN5: 444 | QO5: 445 | QP5: 446 | QQ5: 447 | QR5: =QR$1-gFstCol -> 448 | QS5: 449 | QT5: 450 | QU5: 451 | QV5: 452 | QW5: 453 | QX5: 454 | QY5: 455 | QZ5: 456 | RA5: 457 | RB5: 458 | RC5: 459 | RD5: 460 | RE5: 461 | RF5: 462 | RG5: 463 | RH5: 464 | RI5: 465 | RJ5: 466 | RK5: 467 | RL5: 468 | RM5: 469 | RN5: 470 | RO5: 471 | RP5: 472 | RQ5: 473 | RR5: 474 | RS5: 475 | RT5: 476 | RU5: 477 | RV5: 478 | RW5: 479 | RX5: 480 | RY5: 481 | RZ5: 482 | SA5: 483 | SB5: 484 | SC5: 485 | SD5: 486 | SE5: 487 | SF5: 488 | SG5: 489 | SH5: 490 | SI5: 491 | SJ5: 492 | SK5: 493 | SL5: 494 | SM5: 495 | SN5: 496 | SO5: 497 | SP5: 498 | SQ5: 499 | SS5: 1
B6: =IF($SS6,IF(E6=1,System!B2," "&System!B2),"") -> Планирование | C6: =IF($SS6,IF(gIsItPlan,System!F2,System!I2),"") -> 2014-03-01 | D6: =IF($SS6,IF(gIsItPlan,System!G2,System!J2),"") -> 2014-05-13 | E6: =System!C2 -> 1 | F6: =System!L2 -> 0.9787234043 | G6: =IF($SS6,gFstCol+MATCH($C6,gGantStartDates,1)-1-IF(gDpC<1,gCpD-1,0),0) -> 11 | H6: =IF($SS6,$G6+ROUND(($I6-$G6)*$F6-gDelta,0),0) -> 46 | I6: =IF($SS6,gFstCol+MATCH($D6,gGantStartDates,1)-1,0) -> 47 | J6: =IF($E6=1,0,20) -> 0 | L6: =IF(L$1>$I6,0, IF(L$1<$G6,0, IF(AND(L$1>$G6,L$1<$H6),14+$J6, IF(AND(L$1>$H6,L$1<$I6),4+$J6, IF(AND(L$1=$G6,L$1<>$H6,L$1<>$I6),11+$J6, IF(AND(L$1<>$G6,L$1=$H6,L$1<>$I6),12+$J6, IF(AND(L$1<>$G6,L$1<>$H6,L$1=$I6),2+$J6, IF(AND(L$1=$G6,L$1=$H6,L$1<>$I6,$F6<>0),13+$J6, IF(AND(L$1=$G6,L$1=$H6,L$1<>$I6,$F6=0),1+$J6, IF(AND(L$1<>$G6,L$1=$H6,L$1=$I6),12+$J6, IF(AND(L$1=$G6,L$1=$H6,L$1=$I6,$F6<=0.5),3+$J6,13+$J6))))))))))) -> 11 | M6: =IF(M$1>$I6,0, IF(M$1<$G6,0, IF(AND(M$1>$G6,M$1<$H6),14+$J6, IF(AND(M$1>$H6,M$1<$I6),4+$J6, IF(AND(M$1=$G6,M$1<>$H6,M$1<>$I6),11+$J6, IF(AND(M$1<>$G6,M$1=$H6,M$1<>$I6),12+$J6, IF(AND(M$1<>$G6,M$1<>$H6,M$1=$I6),2+$J6, IF(AND(M$1=$G6,M$1=$H6,M$1<>$I6,$F6<>0),13+$J6, IF(AND(M$1=$G6,M$1=$H6,M$1<>$I6,$F6=0),1+$J6, IF(AND(M$1<>$G6,M$1=$H6,M$1=$I6),12+$J6, IF(AND(M$1=$G6,M$1=$H6,M$1=$I6,$F6<=0.5),3+$J6,13+$J6))))))))))) -> 14 | N6: 14 | O6: 14 | P6: 14 | Q6: 14 | R6: 14 | S6: 14 | T6: 14 | U6: 14 | V6: 14 | W6: 14 | X6: 14 | Y6: 14 | Z6: 14 | AA6: 14 | AB6: 14 | AC6: 14 | AD6: 14 | AE6: 14 | AF6: 14 | AG6: 14 | AH6: 14 | AI6: 14 | AJ6: 14 | AK6: 14 | AL6: 14 | AM6: 14 | AN6: 14 | AO6: 14 | AP6: 14 | AQ6: 14 | AR6: 14 | AS6: 14 | AT6: 14 | AU6: 12 | AV6: 2 | AW6: 0 | AX6: 0 | AY6: 0 | AZ6: 0 | BA6: 0 | BB6: 0 | BC6: 0 | BD6: 0 | BE6: 0 | BF6: 0 | BG6: 0 | BH6: 0 | BI6: 0 | BJ6: 0 | BK6: 0 | BL6: 0 | BM6: 0 | BN6: 0 | BO6: 0 | BP6: 0 | BQ6: 0 | BR6: 0 | BS6: 0 | BT6: 0 | BU6: 0 | BV6: 0 | BW6: 0 | BX6: 0 | BY6: =IF(BY$1>$I6,0, IF(BY$1<$G6,0, IF(AND(BY$1>$G6,BY$1<$H6),14+$J6, IF(AND(BY$1>$H6,BY$1<$I6),4+$J6, IF(AND(BY$1=$G6,BY$1<>$H6,BY$1<>$I6),11+$J6, IF(AND(BY$1<>$G6,BY$1=$H6,BY$1<>$I6),12+$J6, IF(AND(BY$1<>$G6,BY$1<>$H6,BY$1=$I6),2+$J6, IF(AND(BY$1=$G6,BY$1=$H6,BY$1<>$I6,$F6<>0),13+$J6, IF(AND(BY$1=$G6,BY$1=$H6,BY$1<>$I6,$F6=0),1+$J6, IF(AND(BY$1<>$G6,BY$1=$H6,BY$1=$I6),12+$J6, IF(AND(BY$1=$G6,BY$1=$H6,BY$1=$I6,$F6<=0.5),3+$J6,13+$J6))))))))))) -> 0 | BZ6: 0 | CA6: 0 | CB6: 0 | CC6: 0 | CD6: 0 | CE6: 0 | CF6: 0 | CG6: 0 | CH6: 0 | CI6: 0 | CJ6: 0 | CK6: 0 | CL6: 0 | CM6: 0 | CN6: 0 | CO6: 0 | CP6: 0 | CQ6: 0 | CR6: 0 | CS6: 0 | CT6: 0 | CU6: 0 | CV6: 0 | CW6: 0 | CX6: 0 | CY6: 0 | CZ6: 0 | DA6: 0 | DB6: 0 | DC6: 0 | DD6: 0 | DE6: 0 | DF6: 0 | DG6: 0 | DH6: 0 | DI6: 0 | DJ6: 0 | DK6: 0 | DL6: 0 | DM6: 0 | DN6: 0 | DO6: 0 | DP6: 0 | DQ6: 0 | DR6: 0 | DS6: 0 | DT6: 0 | DU6: 0 | DV6: 0 | DW6: 0 | DX6: 0 | DY6: 0 | DZ6: 0 | EA6: 0 | EB6: 0 | EC6: 0 | ED6: 0 | EE6: 0 | EF6: 0 | EG6: 0 | EH6: 0 | EI6: 0 | EJ6: 0 | EK6: =IF(EK$1>$I6,0, IF(EK$1<$G6,0, IF(AND(EK$1>$G6,EK$1<$H6),14+$J6, IF(AND(EK$1>$H6,EK$1<$I6),4+$J6, IF(AND(EK$1=$G6,EK$1<>$H6,EK$1<>$I6),11+$J6, IF(AND(EK$1<>$G6,EK$1=$H6,EK$1<>$I6),12+$J6, IF(AND(EK$1<>$G6,EK$1<>$H6,EK$1=$I6),2+$J6, IF(AND(EK$1=$G6,EK$1=$H6,EK$1<>$I6,$F6<>0),13+$J6, IF(AND(EK$1=$G6,EK$1=$H6,EK$1<>$I6,$F6=0),1+$J6, IF(AND(EK$1<>$G6,EK$1=$H6,EK$1=$I6),12+$J6, IF(AND(EK$1=$G6,EK$1=$H6,EK$1=$I6,$F6<=0.5),3+$J6,13+$J6))))))))))) -> 0 | EL6: 0 | EM6: 0 | EN6: 0 | EO6: 0 | EP6: 0 | EQ6: 0 | ER6: 0 | ES6: 0 | ET6: 0 | EU6: 0 | EV6: 0 | EW6: 0 | EX6: 0 | EY6: 0 | EZ6: 0 | FA6: 0 | FB6: 0 | FC6: 0 | FD6: 0 | FE6: 0 | FF6: 0 | FG6: 0 | FH6: 0 | FI6: 0 | FJ6: 0 | FK6: 0 | FL6: 0 | FM6: 0 | FN6: 0 | FO6: 0 | FP6: 0 | FQ6: 0 | FR6: 0 | FS6: 0 | FT6: 0 | FU6: 0 | FV6: 0 | FW6: 0 | FX6: 0 | FY6: 0 | FZ6: 0 | GA6: 0 | GB6: 0 | GC6: 0 | GD6: 0 | GE6: 0 | GF6: 0 | GG6: 0 | GH6: 0 | GI6: 0 | GJ6: 0 | GK6: 0 | GL6: 0 | GM6: 0 | GN6: 0 | GO6: 0 | GP6: 0 | GQ6: 0 | GR6: 0 | GS6: 0 | GT6: 0 | GU6: 0 | GV6: 0 | GW6: =IF(GW$1>$I6,0, IF(GW$1<$G6,0, IF(AND(GW$1>$G6,GW$1<$H6),14+$J6, IF(AND(GW$1>$H6,GW$1<$I6),4+$J6, IF(AND(GW$1=$G6,GW$1<>$H6,GW$1<>$I6),11+$J6, IF(AND(GW$1<>$G6,GW$1=$H6,GW$1<>$I6),12+$J6, IF(AND(GW$1<>$G6,GW$1<>$H6,GW$1=$I6),2+$J6, IF(AND(GW$1=$G6,GW$1=$H6,GW$1<>$I6,$F6<>0),13+$J6, IF(AND(GW$1=$G6,GW$1=$H6,GW$1<>$I6,$F6=0),1+$J6, IF(AND(GW$1<>$G6,GW$1=$H6,GW$1=$I6),12+$J6, IF(AND(GW$1=$G6,GW$1=$H6,GW$1=$I6,$F6<=0.5),3+$J6,13+$J6))))))))))) -> 0 | GX6: 0 | GY6: 0 | GZ6: 0 | HA6: 0 | HB6: 0 | HC6: 0 | HD6: 0 | HE6: 0 | HF6: 0 | HG6: 0 | HH6: 0 | HI6: 0 | HJ6: 0 | HK6: 0 | HL6: 0 | HM6: 0 | HN6: 0 | HO6: 0 | HP6: 0 | HQ6: 0 | HR6: 0 | HS6: 0 | HT6: 0 | HU6: 0 | HV6: 0 | HW6: 0 | HX6: 0 | HY6: 0 | HZ6: 0 | IA6: 0 | IB6: 0 | IC6: 0 | ID6: 0 | IE6: 0 | IF6: 0 | IG6: 0 | IH6: 0 | II6: 0 | IJ6: 0 | IK6: 0 | IL6: 0 | IM6: 0 | IN6: 0 | IO6: 0 | IP6: 0 | IQ6: 0 | IR6: 0 | IS6: 0 | IT6: 0 | IU6: 0 | IV6: 0 | IW6: 0 | IX6: 0 | IY6: 0 | IZ6: 0 | JA6: 0 | JB6: 0 | JC6: 0 | JD6: 0 | JE6: 0 | JF6: 0 | JG6: 0 | JH6: 0 | JI6: =IF(JI$1>$I6,0, IF(JI$1<$G6,0, IF(AND(JI$1>$G6,JI$1<$H6),14+$J6, IF(AND(JI$1>$H6,JI$1<$I6),4+$J6, IF(AND(JI$1=$G6,JI$1<>$H6,JI$1<>$I6),11+$J6, IF(AND(JI$1<>$G6,JI$1=$H6,JI$1<>$I6),12+$J6, IF(AND(JI$1<>$G6,JI$1<>$H6,JI$1=$I6),2+$J6, IF(AND(JI$1=$G6,JI$1=$H6,JI$1<>$I6,$F6<>0),13+$J6, IF(AND(JI$1=$G6,JI$1=$H6,JI$1<>$I6,$F6=0),1+$J6, IF(AND(JI$1<>$G6,JI$1=$H6,JI$1=$I6),12+$J6, IF(AND(JI$1=$G6,JI$1=$H6,JI$1=$I6,$F6<=0.5),3+$J6,13+$J6))))))))))) -> 0 | JJ6: 0 | JK6: 0 | JL6: 0 | JM6: 0 | JN6: 0 | JO6: 0 | JP6: 0 | JQ6: 0 | JR6: 0 | JS6: 0 | JT6: 0 | JU6: 0 | JV6: 0 | JW6: 0 | JX6: 0 | JY6: 0 | JZ6: 0 | KA6: 0 | KB6: 0 | KC6: 0 | KD6: 0 | KE6: 0 | KF6: 0 | KG6: 0 | KH6: 0 | KI6: 0 | KJ6: 0 | KK6: 0 | KL6: 0 | KM6: 0 | KN6: 0 | KO6: 0 | KP6: 0 | KQ6: 0 | KR6: 0 | KS6: 0 | KT6: 0 | KU6: 0 | KV6: 0 | KW6: 0 | KX6: 0 | KY6: 0 | KZ6: 0 | LA6: 0 | LB6: 0 | LC6: 0 | LD6: 0 | LE6: 0 | LF6: 0 | LG6: 0 | LH6: 0 | LI6: 0 | LJ6: 0 | LK6: 0 | LL6: 0 | LM6: 0 | LN6: 0 | LO6: 0 | LP6: 0 | LQ6: 0 | LR6: 0 | LS6: 0 | LT6: 0 | LU6: =IF(LU$1>$I6,0, IF(LU$1<$G6,0, IF(AND(LU$1>$G6,LU$1<$H6),14+$J6, IF(AND(LU$1>$H6,LU$1<$I6),4+$J6, IF(AND(LU$1=$G6,LU$1<>$H6,LU$1<>$I6),11+$J6, IF(AND(LU$1<>$G6,LU$1=$H6,LU$1<>$I6),12+$J6, IF(AND(LU$1<>$G6,LU$1<>$H6,LU$1=$I6),2+$J6, IF(AND(LU$1=$G6,LU$1=$H6,LU$1<>$I6,$F6<>0),13+$J6, IF(AND(LU$1=$G6,LU$1=$H6,LU$1<>$I6,$F6=0),1+$J6, IF(AND(LU$1<>$G6,LU$1=$H6,LU$1=$I6),12+$J6, IF(AND(LU$1=$G6,LU$1=$H6,LU$1=$I6,$F6<=0.5),3+$J6,13+$J6))))))))))) -> 0 | LV6: 0 | LW6: 0 | LX6: 0 | LY6: 0 | LZ6: 0 | MA6: 0 | MB6: 0 | MC6: 0 | MD6: 0 | ME6: 0 | MF6: 0 | MG6: 0 | MH6: 0 | MI6: 0 | MJ6: 0 | MK6: 0 | ML6: 0 | MM6: 0 | MN6: 0 | MO6: 0 | MP6: 0 | MQ6: 0 | MR6: 0 | MS6: 0 | MT6: 0 | MU6: 0 | MV6: 0 | MW6: 0 | MX6: 0 | MY6: 0 | MZ6: 0 | NA6: 0 | NB6: 0 | NC6: 0 | ND6: 0 | NE6: 0 | NF6: 0 | NG6: 0 | NH6: 0 | NI6: 0 | NJ6: 0 | NK6: 0 | NL6: 0 | NM6: 0 | NN6: 0 | NO6: 0 | NP6: 0 | NQ6: 0 | NR6: 0 | NS6: 0 | NT6: 0 | NU6: 0 | NV6: 0 | NW6: 0 | NX6: 0 | NY6: 0 | NZ6: 0 | OA6: 0 | OB6: 0 | OC6: 0 | OD6: 0 | OE6: 0 | OF6: 0 | OG6: =IF(OG$1>$I6,0, IF(OG$1<$G6,0, IF(AND(OG$1>$G6,OG$1<$H6),14+$J6, IF(AND(OG$1>$H6,OG$1<$I6),4+$J6, IF(AND(OG$1=$G6,OG$1<>$H6,OG$1<>$I6),11+$J6, IF(AND(OG$1<>$G6,OG$1=$H6,OG$1<>$I6),12+$J6, IF(AND(OG$1<>$G6,OG$1<>$H6,OG$1=$I6),2+$J6, IF(AND(OG$1=$G6,OG$1=$H6,OG$1<>$I6,$F6<>0),13+$J6, IF(AND(OG$1=$G6,OG$1=$H6,OG$1<>$I6,$F6=0),1+$J6, IF(AND(OG$1<>$G6,OG$1=$H6,OG$1=$I6),12+$J6, IF(AND(OG$1=$G6,OG$1=$H6,OG$1=$I6,$F6<=0.5),3+$J6,13+$J6))))))))))) -> 0 | OH6: 0 | OI6: 0 | OJ6: 0 | OK6: 0 | OL6: 0 | OM6: 0 | ON6: 0 | OO6: 0 | OP6: 0 | OQ6: 0 | OR6: 0 | OS6: 0 | OT6: 0 | OU6: 0 | OV6: 0 | OW6: 0 | OX6: 0 | OY6: 0 | OZ6: 0 | PA6: 0 | PB6: 0 | PC6: 0 | PD6: 0 | PE6: 0 | PF6: 0 | PG6: 0 | PH6: 0 | PI6: 0 | PJ6: 0 | PK6: 0 | PL6: 0 | PM6: 0 | PN6: 0 | PO6: 0 | PP6: 0 | PQ6: 0 | PR6: 0 | PS6: 0 | PT6: 0 | PU6: 0 | PV6: 0 | PW6: 0 | PX6: 0 | PY6: 0 | PZ6: 0 | QA6: 0 | QB6: 0 | QC6: 0 | QD6: 0 | QE6: 0 | QF6: 0 | QG6: 0 | QH6: 0 | QI6: 0 | QJ6: 0 | QK6: 0 | QL6: 0 | QM6: 0 | QN6: 0 | QO6: 0 | QP6: 0 | QQ6: 0 | QR6: 0 | QS6: =IF(QS$1>$I6,0, IF(QS$1<$G6,0, IF(AND(QS$1>$G6,QS$1<$H6),14+$J6, IF(AND(QS$1>$H6,QS$1<$I6),4+$J6, IF(AND(QS$1=$G6,QS$1<>$H6,QS$1<>$I6),11+$J6, IF(AND(QS$1<>$G6,QS$1=$H6,QS$1<>$I6),12+$J6, IF(AND(QS$1<>$G6,QS$1<>$H6,QS$1=$I6),2+$J6, IF(AND(QS$1=$G6,QS$1=$H6,QS$1<>$I6,$F6<>0),13+$J6, IF(AND(QS$1=$G6,QS$1=$H6,QS$1<>$I6,$F6=0),1+$J6, IF(AND(QS$1<>$G6,QS$1=$H6,QS$1=$I6),12+$J6, IF(AND(QS$1=$G6,QS$1=$H6,QS$1=$I6,$F6<=0.5),3+$J6,13+$J6))))))))))) -> 0 | QT6: 0 | QU6: 0 | QV6: 0 | QW6: 0 | QX6: 0 | QY6: 0 | QZ6: 0 | RA6: 0 | RB6: 0 | RC6: 0 | RD6: 0 | RE6: 0 | RF6: 0 | RG6: 0 | RH6: 0 | RI6: 0 | RJ6: 0 | RK6: 0 | RL6: 0 | RM6: 0 | RN6: 0 | RO6: 0 | RP6: 0 | RQ6: 0 | RR6: 0 | RS6: 0 | RT6: 0 | RU6: 0 | RV6: 0 | RW6: 0 | RX6: 0 | RY6: 0 | RZ6: 0 | SA6: 0 | SB6: 0 | SC6: 0 | SD6: 0 | SE6: 0 | SF6: 0 | SG6: 0 | SH6: 0 | SI6: 0 | SJ6: 0 | SK6: 0 | SL6: 0 | SM6: 0 | SN6: 0 | SO6: 0 | SP6: 0 | SQ6: 0 | SS6: =IF(gIsItPlan,IF(AND(System!Z2,System!AA2),1,0),IF(AND(System!Z2,System!AB2),1,0)) -> 1
B7: =IF($SS7,IF(E7=1,System!B3," "&System!B3),"") -> Выявление ремонтируемых помещений | C7: =IF($SS7,IF(gIsItPlan,System!F3,System!I3),"") -> 2014-03-01 | D7: =IF($SS7,IF(gIsItPlan,System!G3,System!J3),"") -> 2014-03-01 | E7: =System!C3 -> 2 | F7: =System!L3 -> 1 | G7: 11 | H7: 11 | I7: 11 | J7: =IF($E7=1,0,20) -> 20 | L7: =IF(L$1>$I7,0, IF(L$1<$G7,0, IF(AND(L$1>$G7,L$1<$H7),14+$J7, IF(AND(L$1>$H7,L$1<$I7),4+$J7, IF(AND(L$1=$G7,L$1<>$H7,L$1<>$I7),11+$J7, IF(AND(L$1<>$G7,L$1=$H7,L$1<>$I7),12+$J7, IF(AND(L$1<>$G7,L$1<>$H7,L$1=$I7),2+$J7, IF(AND(L$1=$G7,L$1=$H7,L$1<>$I7,$F7<>0),13+$J7, IF(AND(L$1=$G7,L$1=$H7,L$1<>$I7,$F7=0),1+$J7, IF(AND(L$1<>$G7,L$1=$H7,L$1=$I7),12+$J7, IF(AND(L$1=$G7,L$1=$H7,L$1=$I7,$F7<=0.5),3+$J7,13+$J7))))))))))) -> 33 | M7: 0 | N7: 0 | O7: 0 | P7: 0 | Q7: 0 | R7: 0 | S7: 0 | T7: 0 | U7: 0 | V7: 0 | W7: 0 | X7: 0 | Y7: 0 | Z7: 0 | AA7: 0 | AB7: 0 | AC7: 0 | AD7: 0 | AE7: 0 | AF7: 0 | AG7: 0 | AH7: 0 | AI7: 0 | AJ7: 0 | AK7: 0 | AL7: 0 | AM7: 0 | AN7: 0 | AO7: 0 | AP7: 0 | AQ7: 0 | AR7: 0 | AS7: 0 | AT7: 0 | AU7: 0 | AV7: 0 | AW7: 0 | AX7: 0 | AY7: 0 | AZ7: 0 | BA7: 0 | BB7: 0 | BC7: 0 | BD7: 0 | BE7: 0 | BF7: 0 | BG7: 0 | BH7: 0 | BI7: 0 | BJ7: 0 | BK7: 0 | BL7: 0 | BM7: 0 | BN7: 0 | BO7: 0 | BP7: 0 | BQ7: 0 | BR7: 0 | BS7: 0 | BT7: 0 | BU7: 0 | BV7: 0 | BW7: 0 | BX7: 0 | BY7: 0 | BZ7: 0 | CA7: 0 | CB7: 0 | CC7: 0 | CD7: 0 | CE7: 0 | CF7: 0 | CG7: 0 | CH7: 0 | CI7: 0 | CJ7: 0 | CK7: 0 | CL7: 0 | CM7: 0 | CN7: 0 | CO7: 0 | CP7: 0 | CQ7: 0 | CR7: 0 | CS7: 0 | CT7: 0 | CU7: 0 | CV7: 0 | CW7: 0 | CX7: 0 | CY7: 0 | CZ7: 0 | DA7: 0 | DB7: 0 | DC7: 0 | DD7: 0 | DE7: 0 | DF7: 0 | DG7: 0 | DH7: 0 | DI7: 0 | DJ7: 0 | DK7: 0 | DL7: 0 | DM7: 0 | DN7: 0 | DO7: 0 | DP7: 0 | DQ7: 0 | DR7: 0 | DS7: 0 | DT7: 0 | DU7: 0 | DV7: 0 | DW7: 0 | DX7: 0 | DY7: 0 | DZ7: 0 | EA7: 0 | EB7: 0 | EC7: 0 | ED7: 0 | EE7: 0 | EF7: 0 | EG7: 0 | EH7: 0 | EI7: 0 | EJ7: 0 | EK7: 0 | EL7: 0 | EM7: 0 | EN7: 0 | EO7: 0 | EP7: 0 | EQ7: 0 | ER7: 0 | ES7: 0 | ET7: 0 | EU7: 0 | EV7: 0 | EW7: 0 | EX7: 0 | EY7: 0 | EZ7: 0 | FA7: 0 | FB7: 0 | FC7: 0 | FD7: 0 | FE7: 0 | FF7: 0 | FG7: 0 | FH7: 0 | FI7: 0 | FJ7: 0 | FK7: 0 | FL7: 0 | FM7: 0 | FN7: 0 | FO7: 0 | FP7: 0 | FQ7: 0 | FR7: 0 | FS7: 0 | FT7: 0 | FU7: 0 | FV7: 0 | FW7: 0 | FX7: 0 | FY7: 0 | FZ7: 0 | GA7: 0 | GB7: 0 | GC7: 0 | GD7: 0 | GE7: 0 | GF7: 0 | GG7: 0 | GH7: 0 | GI7: 0 | GJ7: 0 | GK7: 0 | GL7: 0 | GM7: 0 | GN7: 0 | GO7: 0 | GP7: 0 | GQ7: 0 | GR7: 0 | GS7: 0 | GT7: 0 | GU7: 0 | GV7: 0 | GW7: 0 | GX7: 0 | GY7: 0 | GZ7: 0 | HA7: 0 | HB7: 0 | HC7: 0 | HD7: 0 | HE7: 0 | HF7: 0 | HG7: 0 | HH7: 0 | HI7: 0 | HJ7: 0 | HK7: 0 | HL7: 0 | HM7: 0 | HN7: 0 | HO7: 0 | HP7: 0 | HQ7: 0 | HR7: 0 | HS7: 0 | HT7: 0 | HU7: 0 | HV7: 0 | HW7: 0 | HX7: 0 | HY7: 0 | HZ7: 0 | IA7: 0 | IB7: 0 | IC7: 0 | ID7: 0 | IE7: 0 | IF7: 0 | IG7: 0 | IH7: 0 | II7: 0 | IJ7: 0 | IK7: 0 | IL7: 0 | IM7: 0 | IN7: 0 | IO7: 0 | IP7: 0 | IQ7: 0 | IR7: 0 | IS7: 0 | IT7: 0 | IU7: 0 | IV7: 0 | IW7: 0 | IX7: 0 | IY7: 0 | IZ7: 0 | JA7: 0 | JB7: 0 | JC7: 0 | JD7: 0 | JE7: 0 | JF7: 0 | JG7: 0 | JH7: 0 | JI7: 0 | JJ7: 0 | JK7: 0 | JL7: 0 | JM7: 0 | JN7: 0 | JO7: 0 | JP7: 0 | JQ7: 0 | JR7: 0 | JS7: 0 | JT7: 0 | JU7: 0 | JV7: 0 | JW7: 0 | JX7: 0 | JY7: 0 | JZ7: 0 | KA7: 0 | KB7: 0 | KC7: 0 | KD7: 0 | KE7: 0 | KF7: 0 | KG7: 0 | KH7: 0 | KI7: 0 | KJ7: 0 | KK7: 0 | KL7: 0 | KM7: 0 | KN7: 0 | KO7: 0 | KP7: 0 | KQ7: 0 | KR7: 0 | KS7: 0 | KT7: 0 | KU7: 0 | KV7: 0 | KW7: 0 | KX7: 0 | KY7: 0 | KZ7: 0 | LA7: 0 | LB7: 0 | LC7: 0 | LD7: 0 | LE7: 0 | LF7: 0 | LG7: 0 | LH7: 0 | LI7: 0 | LJ7: 0 | LK7: 0 | LL7: 0 | LM7: 0 | LN7: 0 | LO7: 0 | LP7: 0 | LQ7: 0 | LR7: 0 | LS7: 0 | LT7: 0 | LU7: 0 | LV7: 0 | LW7: 0 | LX7: 0 | LY7: 0 | LZ7: 0 | MA7: 0 | MB7: 0 | MC7: 0 | MD7: 0 | ME7: 0 | MF7: 0 | MG7: 0 | MH7: 0 | MI7: 0 | MJ7: 0 | MK7: 0 | ML7: 0 | MM7: 0 | MN7: 0 | MO7: 0 | MP7: 0 | MQ7: 0 | MR7: 0 | MS7: 0 | MT7: 0 | MU7: 0 | MV7: 0 | MW7: 0 | MX7: 0 | MY7: 0 | MZ7: 0 | NA7: 0 | NB7: 0 | NC7: 0 | ND7: 0 | NE7: 0 | NF7: 0 | NG7: 0 | NH7: 0 | NI7: 0 | NJ7: 0 | NK7: 0 | NL7: 0 | NM7: 0 | NN7: 0 | NO7: 0 | NP7: 0 | NQ7: 0 | NR7: 0 | NS7: 0 | NT7: 0 | NU7: 0 | NV7: 0 | NW7: 0 | NX7: 0 | NY7: 0 | NZ7: 0 | OA7: 0 | OB7: 0 | OC7: 0 | OD7: 0 | OE7: 0 | OF7: 0 | OG7: 0 | OH7: 0 | OI7: 0 | OJ7: 0 | OK7: 0 | OL7: 0 | OM7: 0 | ON7: 0 | OO7: 0 | OP7: 0 | OQ7: 0 | OR7: 0 | OS7: 0 | OT7: 0 | OU7: 0 | OV7: 0 | OW7: 0 | OX7: 0 | OY7: 0 | OZ7: 0 | PA7: 0 | PB7: 0 | PC7: 0 | PD7: 0 | PE7: 0 | PF7: 0 | PG7: 0 | PH7: 0 | PI7: 0 | PJ7: 0 | PK7: 0 | PL7: 0 | PM7: 0 | PN7: 0 | PO7: 0 | PP7: 0 | PQ7: 0 | PR7: 0 | PS7: 0 | PT7: 0 | PU7: 0 | PV7: 0 | PW7: 0 | PX7: 0 | PY7: 0 | PZ7: 0 | QA7: 0 | QB7: 0 | QC7: 0 | QD7: 0 | QE7: 0 | QF7: 0 | QG7: 0 | QH7: 0 | QI7: 0 | QJ7: 0 | QK7: 0 | QL7: 0 | QM7: 0 | QN7: 0 | QO7: 0 | QP7: 0 | QQ7: 0 | QR7: 0 | QS7: 0 | QT7: 0 | QU7: 0 | QV7: 0 | QW7: 0 | QX7: 0 | QY7: 0 | QZ7: 0 | RA7: 0 | RB7: 0 | RC7: 0 | RD7: 0 | RE7: 0 | RF7: 0 | RG7: 0 | RH7: 0 | RI7: 0 | RJ7: 0 | RK7: 0 | RL7: 0 | RM7: 0 | RN7: 0 | RO7: 0 | RP7: 0 | RQ7: 0 | RR7: 0 | RS7: 0 | RT7: 0 | RU7: 0 | RV7: 0 | RW7: 0 | RX7: 0 | RY7: 0 | RZ7: 0 | SA7: 0 | SB7: 0 | SC7: 0 | SD7: 0 | SE7: 0 | SF7: 0 | SG7: 0 | SH7: 0 | SI7: 0 | SJ7: 0 | SK7: 0 | SL7: 0 | SM7: 0 | SN7: 0 | SO7: 0 | SP7: 0 | SQ7: 0 | SS7: =IF(gIsItPlan,IF(AND(System!Z3,System!AA3),1,0),IF(AND(System!Z3,System!AB3),1,0)) -> 1
B8: =IF($SS8,IF(E8=1,System!B4," "&System!B4),"") -> Требования к ремонту | C8: =IF($SS8,IF(gIsItPlan,System!F4,System!I4),"") -> 2014-03-02 | D8: =IF($SS8,IF(gIsItPlan,System!G4,System!J4),"") -> 2014-03-02 | E8: =System!C4 -> 2 | F8: =System!L4 -> 1 | G8: 11 | H8: 11 | I8: 11 | J8: 20 | L8: 33 | M8: 0 | N8: 0 | O8: 0 | P8: 0 | Q8: 0 | R8: 0 | S8: 0 | T8: 0 | U8: 0 | V8: 0 | W8: 0 | X8: 0 | Y8: 0 | Z8: 0 | AA8: 0 | AB8: 0 | AC8: 0 | AD8: 0 | AE8: 0 | AF8: 0 | AG8: 0 | AH8: 0 | AI8: 0 | AJ8: 0 | AK8: 0 | AL8: 0 | AM8: 0 | AN8: 0 | AO8: 0 | AP8: 0 | AQ8: 0 | AR8: 0 | AS8: 0 | AT8: 0 | AU8: 0 | AV8: 0 | AW8: 0 | AX8: 0 | AY8: 0 | AZ8: 0 | BA8: 0 | BB8: 0 | BC8: 0 | BD8: 0 | BE8: 0 | BF8: 0 | BG8: 0 | BH8: 0 | BI8: 0 | BJ8: 0 | BK8: 0 | BL8: 0 | BM8: 0 | BN8: 0 | BO8: 0 | BP8: 0 | BQ8: 0 | BR8: 0 | BS8: 0 | BT8: 0 | BU8: 0 | BV8: 0 | BW8: 0 | BX8: 0 | BY8: 0 | BZ8: 0 | CA8: 0 | CB8: 0 | CC8: 0 | CD8: 0 | CE8: 0 | CF8: 0 | CG8: 0 | CH8: 0 | CI8: 0 | CJ8: 0 | CK8: 0 | CL8: 0 | CM8: 0 | CN8: 0 | CO8: 0 | CP8: 0 | CQ8: 0 | CR8: 0 | CS8: 0 | CT8: 0 | CU8: 0 | CV8: 0 | CW8: 0 | CX8: 0 | CY8: 0 | CZ8: 0 | DA8: 0 | DB8: 0 | DC8: 0 | DD8: 0 | DE8: 0 | DF8: 0 | DG8: 0 | DH8: 0 | DI8: 0 | DJ8: 0 | DK8: 0 | DL8: 0 | DM8: 0 | DN8: 0 | DO8: 0 | DP8: 0 | DQ8: 0 | DR8: 0 | DS8: 0 | DT8: 0 | DU8: 0 | DV8: 0 | DW8: 0 | DX8: 0 | DY8: 0 | DZ8: 0 | EA8: 0 | EB8: 0 | EC8: 0 | ED8: 0 | EE8: 0 | EF8: 0 | EG8: 0 | EH8: 0 | EI8: 0 | EJ8: 0 | EK8: 0 | EL8: 0 | EM8: 0 | EN8: 0 | EO8: 0 | EP8: 0 | EQ8: 0 | ER8: 0 | ES8: 0 | ET8: 0 | EU8: 0 | EV8: 0 | EW8: 0 | EX8: 0 | EY8: 0 | EZ8: 0 | FA8: 0 | FB8: 0 | FC8: 0 | FD8: 0 | FE8: 0 | FF8: 0 | FG8: 0 | FH8: 0 | FI8: 0 | FJ8: 0 | FK8: 0 | FL8: 0 | FM8: 0 | FN8: 0 | FO8: 0 | FP8: 0 | FQ8: 0 | FR8: 0 | FS8: 0 | FT8: 0 | FU8: 0 | FV8: 0 | FW8: 0 | FX8: 0 | FY8: 0 | FZ8: 0 | GA8: 0 | GB8: 0 | GC8: 0 | GD8: 0 | GE8: 0 | GF8: 0 | GG8: 0 | GH8: 0 | GI8: 0 | GJ8: 0 | GK8: 0 | GL8: 0 | GM8: 0 | GN8: 0 | GO8: 0 | GP8: 0 | GQ8: 0 | GR8: 0 | GS8: 0 | GT8: 0 | GU8: 0 | GV8: 0 | GW8: 0 | GX8: 0 | GY8: 0 | GZ8: 0 | HA8: 0 | HB8: 0 | HC8: 0 | HD8: 0 | HE8: 0 | HF8: 0 | HG8: 0 | HH8: 0 | HI8: 0 | HJ8: 0 | HK8: 0 | HL8: 0 | HM8: 0 | HN8: 0 | HO8: 0 | HP8: 0 | HQ8: 0 | HR8: 0 | HS8: 0 | HT8: 0 | HU8: 0 | HV8: 0 | HW8: 0 | HX8: 0 | HY8: 0 | HZ8: 0 | IA8: 0 | IB8: 0 | IC8: 0 | ID8: 0 | IE8: 0 | IF8: 0 | IG8: 0 | IH8: 0 | II8: 0 | IJ8: 0 | IK8: 0 | IL8: 0 | IM8: 0 | IN8: 0 | IO8: 0 | IP8: 0 | IQ8: 0 | IR8: 0 | IS8: 0 | IT8: 0 | IU8: 0 | IV8: 0 | IW8: 0 | IX8: 0 | IY8: 0 | IZ8: 0 | JA8: 0 | JB8: 0 | JC8: 0 | JD8: 0 | JE8: 0 | JF8: 0 | JG8: 0 | JH8: 0 | JI8: 0 | JJ8: 0 | JK8: 0 | JL8: 0 | JM8: 0 | JN8: 0 | JO8: 0 | JP8: 0 | JQ8: 0 | JR8: 0 | JS8: 0 | JT8: 0 | JU8: 0 | JV8: 0 | JW8: 0 | JX8: 0 | JY8: 0 | JZ8: 0 | KA8: 0 | KB8: 0 | KC8: 0 | KD8: 0 | KE8: 0 | KF8: 0 | KG8: 0 | KH8: 0 | KI8: 0 | KJ8: 0 | KK8: 0 | KL8: 0 | KM8: 0 | KN8: 0 | KO8: 0 | KP8: 0 | KQ8: 0 | KR8: 0 | KS8: 0 | KT8: 0 | KU8: 0 | KV8: 0 | KW8: 0 | KX8: 0 | KY8: 0 | KZ8: 0 | LA8: 0 | LB8: 0 | LC8: 0 | LD8: 0 | LE8: 0 | LF8: 0 | LG8: 0 | LH8: 0 | LI8: 0 | LJ8: 0 | LK8: 0 | LL8: 0 | LM8: 0 | LN8: 0 | LO8: 0 | LP8: 0 | LQ8: 0 | LR8: 0 | LS8: 0 | LT8: 0 | LU8: 0 | LV8: 0 | LW8: 0 | LX8: 0 | LY8: 0 | LZ8: 0 | MA8: 0 | MB8: 0 | MC8: 0 | MD8: 0 | ME8: 0 | MF8: 0 | MG8: 0 | MH8: 0 | MI8: 0 | MJ8: 0 | MK8: 0 | ML8: 0 | MM8: 0 | MN8: 0 | MO8: 0 | MP8: 0 | MQ8: 0 | MR8: 0 | MS8: 0 | MT8: 0 | MU8: 0 | MV8: 0 | MW8: 0 | MX8: 0 | MY8: 0 | MZ8: 0 | NA8: 0 | NB8: 0 | NC8: 0 | ND8: 0 | NE8: 0 | NF8: 0 | NG8: 0 | NH8: 0 | NI8: 0 | NJ8: 0 | NK8: 0 | NL8: 0 | NM8: 0 | NN8: 0 | NO8: 0 | NP8: 0 | NQ8: 0 | NR8: 0 | NS8: 0 | NT8: 0 | NU8: 0 | NV8: 0 | NW8: 0 | NX8: 0 | NY8: 0 | NZ8: 0 | OA8: 0 | OB8: 0 | OC8: 0 | OD8: 0 | OE8: 0 | OF8: 0 | OG8: 0 | OH8: 0 | OI8: 0 | OJ8: 0 | OK8: 0 | OL8: 0 | OM8: 0 | ON8: 0 | OO8: 0 | OP8: 0 | OQ8: 0 | OR8: 0 | OS8: 0 | OT8: 0 | OU8: 0 | OV8: 0 | OW8: 0 | OX8: 0 | OY8: 0 | OZ8: 0 | PA8: 0 | PB8: 0 | PC8: 0 | PD8: 0 | PE8: 0 | PF8: 0 | PG8: 0 | PH8: 0 | PI8: 0 | PJ8: 0 | PK8: 0 | PL8: 0 | PM8: 0 | PN8: 0 | PO8: 0 | PP8: 0 | PQ8: 0 | PR8: 0 | PS8: 0 | PT8: 0 | PU8: 0 | PV8: 0 | PW8: 0 | PX8: 0 | PY8: 0 | PZ8: 0 | QA8: 0 | QB8: 0 | QC8: 0 | QD8: 0 | QE8: 0 | QF8: 0 | QG8: 0 | QH8: 0 | QI8: 0 | QJ8: 0 | QK8: 0 | QL8: 0 | QM8: 0 | QN8: 0 | QO8: 0 | QP8: 0 | QQ8: 0 | QR8: 0 | QS8: 0 | QT8: 0 | QU8: 0 | QV8: 0 | QW8: 0 | QX8: 0 | QY8: 0 | QZ8: 0 | RA8: 0 | RB8: 0 | RC8: 0 | RD8: 0 | RE8: 0 | RF8: 0 | RG8: 0 | RH8: 0 | RI8: 0 | RJ8: 0 | RK8: 0 | RL8: 0 | RM8: 0 | RN8: 0 | RO8: 0 | RP8: 0 | RQ8: 0 | RR8: 0 | RS8: 0 | RT8: 0 | RU8: 0 | RV8: 0 | RW8: 0 | RX8: 0 | RY8: 0 | RZ8: 0 | SA8: 0 | SB8: 0 | SC8: 0 | SD8: 0 | SE8: 0 | SF8: 0 | SG8: 0 | SH8: 0 | SI8: 0 | SJ8: 0 | SK8: 0 | SL8: 0 | SM8: 0 | SN8: 0 | SO8: 0 | SP8: 0 | SQ8: 0 | SS8: =IF(gIsItPlan,IF(AND(System!Z4,System!AA4),1,0),IF(AND(System!Z4,System!AB4),1,0)) -> 1
B9: =IF($SS9,IF(E9=1,System!B5," "&System!B5),"") -> Определение верхней границы затрат | C9: =IF($SS9,IF(gIsItPlan,System!F5,System!I5),"") -> 2014-03-03 | D9: =IF($SS9,IF(gIsItPlan,System!G5,System!J5),"") -> 2014-03-03 | E9: =System!C5 -> 2 | F9: =System!L5 -> 1 | G9: 12 | H9: 12 | I9: 12 | J9: 20 | L9: 0 | M9: 33 | N9: 0 | O9: 0 | P9: 0 | Q9: 0 | R9: 0 | S9: 0 | T9: 0 | U9: 0 | V9: 0 | W9: 0 | X9: 0 | Y9: 0 | Z9: 0 | AA9: 0 | AB9: 0 | AC9: 0 | AD9: 0 | AE9: 0 | AF9: 0 | AG9: 0 | AH9: 0 | AI9: 0 | AJ9: 0 | AK9: 0 | AL9: 0 | AM9: 0 | AN9: 0 | AO9: 0 | AP9: 0 | AQ9: 0 | AR9: 0 | AS9: 0 | AT9: 0 | AU9: 0 | AV9: 0 | AW9: 0 | AX9: 0 | AY9: 0 | AZ9: 0 | BA9: 0 | BB9: 0 | BC9: 0 | BD9: 0 | BE9: 0 | BF9: 0 | BG9: 0 | BH9: 0 | BI9: 0 | BJ9: 0 | BK9: 0 | BL9: 0 | BM9: 0 | BN9: 0 | BO9: 0 | BP9: 0 | BQ9: 0 | BR9: 0 | BS9: 0 | BT9: 0 | BU9: 0 | BV9: 0 | BW9: 0 | BX9: =IF(BX$1>$I9,0, IF(BX$1<$G9,0, IF(AND(BX$1>$G9,BX$1<$H9),14+$J9, IF(AND(BX$1>$H9,BX$1<$I9),4+$J9, IF(AND(BX$1=$G9,BX$1<>$H9,BX$1<>$I9),11+$J9, IF(AND(BX$1<>$G9,BX$1=$H9,BX$1<>$I9),12+$J9, IF(AND(BX$1<>$G9,BX$1<>$H9,BX$1=$I9),2+$J9, IF(AND(BX$1=$G9,BX$1=$H9,BX$1<>$I9,$F9<>0),13+$J9, IF(AND(BX$1=$G9,BX$1=$H9,BX$1<>$I9,$F9=0),1+$J9, IF(AND(BX$1<>$G9,BX$1=$H9,BX$1=$I9),12+$J9, IF(AND(BX$1=$G9,BX$1=$H9,BX$1=$I9,$F9<=0.5),3+$J9,13+$J9))))))))))) -> 0 | BY9: 0 | BZ9: 0 | CA9: 0 | CB9: 0 | CC9: 0 | CD9: 0 | CE9: 0 | CF9: 0 | CG9: 0 | CH9: 0 | CI9: 0 | CJ9: 0 | CK9: 0 | CL9: 0 | CM9: 0 | CN9: 0 | CO9: 0 | CP9: 0 | CQ9: 0 | CR9: 0 | CS9: 0 | CT9: 0 | CU9: 0 | CV9: 0 | CW9: 0 | CX9: 0 | CY9: 0 | CZ9: 0 | DA9: 0 | DB9: 0 | DC9: 0 | DD9: 0 | DE9: 0 | DF9: 0 | DG9: 0 | DH9: 0 | DI9: 0 | DJ9: 0 | DK9: 0 | DL9: 0 | DM9: 0 | DN9: 0 | DO9: 0 | DP9: 0 | DQ9: 0 | DR9: 0 | DS9: 0 | DT9: 0 | DU9: 0 | DV9: 0 | DW9: 0 | DX9: 0 | DY9: 0 | DZ9: 0 | EA9: 0 | EB9: 0 | EC9: 0 | ED9: 0 | EE9: 0 | EF9: 0 | EG9: 0 | EH9: 0 | EI9: 0 | EJ9: =IF(EJ$1>$I9,0, IF(EJ$1<$G9,0, IF(AND(EJ$1>$G9,EJ$1<$H9),14+$J9, IF(AND(EJ$1>$H9,EJ$1<$I9),4+$J9, IF(AND(EJ$1=$G9,EJ$1<>$H9,EJ$1<>$I9),11+$J9, IF(AND(EJ$1<>$G9,EJ$1=$H9,EJ$1<>$I9),12+$J9, IF(AND(EJ$1<>$G9,EJ$1<>$H9,EJ$1=$I9),2+$J9, IF(AND(EJ$1=$G9,EJ$1=$H9,EJ$1<>$I9,$F9<>0),13+$J9, IF(AND(EJ$1=$G9,EJ$1=$H9,EJ$1<>$I9,$F9=0),1+$J9, IF(AND(EJ$1<>$G9,EJ$1=$H9,EJ$1=$I9),12+$J9, IF(AND(EJ$1=$G9,EJ$1=$H9,EJ$1=$I9,$F9<=0.5),3+$J9,13+$J9))))))))))) -> 0 | EK9: 0 | EL9: 0 | EM9: 0 | EN9: 0 | EO9: 0 | EP9: 0 | EQ9: 0 | ER9: 0 | ES9: 0 | ET9: 0 | EU9: 0 | EV9: 0 | EW9: 0 | EX9: 0 | EY9: 0 | EZ9: 0 | FA9: 0 | FB9: 0 | FC9: 0 | FD9: 0 | FE9: 0 | FF9: 0 | FG9: 0 | FH9: 0 | FI9: 0 | FJ9: 0 | FK9: 0 | FL9: 0 | FM9: 0 | FN9: 0 | FO9: 0 | FP9: 0 | FQ9: 0 | FR9: 0 | FS9: 0 | FT9: 0 | FU9: 0 | FV9: 0 | FW9: 0 | FX9: 0 | FY9: 0 | FZ9: 0 | GA9: 0 | GB9: 0 | GC9: 0 | GD9: 0 | GE9: 0 | GF9: 0 | GG9: 0 | GH9: 0 | GI9: 0 | GJ9: 0 | GK9: 0 | GL9: 0 | GM9: 0 | GN9: 0 | GO9: 0 | GP9: 0 | GQ9: 0 | GR9: 0 | GS9: 0 | GT9: 0 | GU9: 0 | GV9: =IF(GV$1>$I9,0, IF(GV$1<$G9,0, IF(AND(GV$1>$G9,GV$1<$H9),14+$J9, IF(AND(GV$1>$H9,GV$1<$I9),4+$J9, IF(AND(GV$1=$G9,GV$1<>$H9,GV$1<>$I9),11+$J9, IF(AND(GV$1<>$G9,GV$1=$H9,GV$1<>$I9),12+$J9, IF(AND(GV$1<>$G9,GV$1<>$H9,GV$1=$I9),2+$J9, IF(AND(GV$1=$G9,GV$1=$H9,GV$1<>$I9,$F9<>0),13+$J9, IF(AND(GV$1=$G9,GV$1=$H9,GV$1<>$I9,$F9=0),1+$J9, IF(AND(GV$1<>$G9,GV$1=$H9,GV$1=$I9),12+$J9, IF(AND(GV$1=$G9,GV$1=$H9,GV$1=$I9,$F9<=0.5),3+$J9,13+$J9))))))))))) -> 0 | GW9: 0 | GX9: 0 | GY9: 0 | GZ9: 0 | HA9: 0 | HB9: 0 | HC9: 0 | HD9: 0 | HE9: 0 | HF9: 0 | HG9: 0 | HH9: 0 | HI9: 0 | HJ9: 0 | HK9: 0 | HL9: 0 | HM9: 0 | HN9: 0 | HO9: 0 | HP9: 0 | HQ9: 0 | HR9: 0 | HS9: 0 | HT9: 0 | HU9: 0 | HV9: 0 | HW9: 0 | HX9: 0 | HY9: 0 | HZ9: 0 | IA9: 0 | IB9: 0 | IC9: 0 | ID9: 0 | IE9: 0 | IF9: 0 | IG9: 0 | IH9: 0 | II9: 0 | IJ9: 0 | IK9: 0 | IL9: 0 | IM9: 0 | IN9: 0 | IO9: 0 | IP9: 0 | IQ9: 0 | IR9: 0 | IS9: 0 | IT9: 0 | IU9: 0 | IV9: 0 | IW9: 0 | IX9: 0 | IY9: 0 | IZ9: 0 | JA9: 0 | JB9: 0 | JC9: 0 | JD9: 0 | JE9: 0 | JF9: 0 | JG9: 0 | JH9: =IF(JH$1>$I9,0, IF(JH$1<$G9,0, IF(AND(JH$1>$G9,JH$1<$H9),14+$J9, IF(AND(JH$1>$H9,JH$1<$I9),4+$J9, IF(AND(JH$1=$G9,JH$1<>$H9,JH$1<>$I9),11+$J9, IF(AND(JH$1<>$G9,JH$1=$H9,JH$1<>$I9),12+$J9, IF(AND(JH$1<>$G9,JH$1<>$H9,JH$1=$I9),2+$J9, IF(AND(JH$1=$G9,JH$1=$H9,JH$1<>$I9,$F9<>0),13+$J9, IF(AND(JH$1=$G9,JH$1=$H9,JH$1<>$I9,$F9=0),1+$J9, IF(AND(JH$1<>$G9,JH$1=$H9,JH$1=$I9),12+$J9, IF(AND(JH$1=$G9,JH$1=$H9,JH$1=$I9,$F9<=0.5),3+$J9,13+$J9))))))))))) -> 0 | JI9: 0 | JJ9: 0 | JK9: 0 | JL9: 0 | JM9: 0 | JN9: 0 | JO9: 0 | JP9: 0 | JQ9: 0 | JR9: 0 | JS9: 0 | JT9: 0 | JU9: 0 | JV9: 0 | JW9: 0 | JX9: 0 | JY9: 0 | JZ9: 0 | KA9: 0 | KB9: 0 | KC9: 0 | KD9: 0 | KE9: 0 | KF9: 0 | KG9: 0 | KH9: 0 | KI9: 0 | KJ9: 0 | KK9: 0 | KL9: 0 | KM9: 0 | KN9: 0 | KO9: 0 | KP9: 0 | KQ9: 0 | KR9: 0 | KS9: 0 | KT9: 0 | KU9: 0 | KV9: 0 | KW9: 0 | KX9: 0 | KY9: 0 | KZ9: 0 | LA9: 0 | LB9: 0 | LC9: 0 | LD9: 0 | LE9: 0 | LF9: 0 | LG9: 0 | LH9: 0 | LI9: 0 | LJ9: 0 | LK9: 0 | LL9: 0 | LM9: 0 | LN9: 0 | LO9: 0 | LP9: 0 | LQ9: 0 | LR9: 0 | LS9: 0 | LT9: =IF(LT$1>$I9,0, IF(LT$1<$G9,0, IF(AND(LT$1>$G9,LT$1<$H9),14+$J9, IF(AND(LT$1>$H9,LT$1<$I9),4+$J9, IF(AND(LT$1=$G9,LT$1<>$H9,LT$1<>$I9),11+$J9, IF(AND(LT$1<>$G9,LT$1=$H9,LT$1<>$I9),12+$J9, IF(AND(LT$1<>$G9,LT$1<>$H9,LT$1=$I9),2+$J9, IF(AND(LT$1=$G9,LT$1=$H9,LT$1<>$I9,$F9<>0),13+$J9, IF(AND(LT$1=$G9,LT$1=$H9,LT$1<>$I9,$F9=0),1+$J9, IF(AND(LT$1<>$G9,LT$1=$H9,LT$1=$I9),12+$J9, IF(AND(LT$1=$G9,LT$1=$H9,LT$1=$I9,$F9<=0.5),3+$J9,13+$J9))))))))))) -> 0 | LU9: 0 | LV9: 0 | LW9: 0 | LX9: 0 | LY9: 0 | LZ9: 0 | MA9: 0 | MB9: 0 | MC9: 0 | MD9: 0 | ME9: 0 | MF9: 0 | MG9: 0 | MH9: 0 | MI9: 0 | MJ9: 0 | MK9: 0 | ML9: 0 | MM9: 0 | MN9: 0 | MO9: 0 | MP9: 0 | MQ9: 0 | MR9: 0 | MS9: 0 | MT9: 0 | MU9: 0 | MV9: 0 | MW9: 0 | MX9: 0 | MY9: 0 | MZ9: 0 | NA9: 0 | NB9: 0 | NC9: 0 | ND9: 0 | NE9: 0 | NF9: 0 | NG9: 0 | NH9: 0 | NI9: 0 | NJ9: 0 | NK9: 0 | NL9: 0 | NM9: 0 | NN9: 0 | NO9: 0 | NP9: 0 | NQ9: 0 | NR9: 0 | NS9: 0 | NT9: 0 | NU9: 0 | NV9: 0 | NW9: 0 | NX9: 0 | NY9: 0 | NZ9: 0 | OA9: 0 | OB9: 0 | OC9: 0 | OD9: 0 | OE9: 0 | OF9: =IF(OF$1>$I9,0, IF(OF$1<$G9,0, IF(AND(OF$1>$G9,OF$1<$H9),14+$J9, IF(AND(OF$1>$H9,OF$1<$I9),4+$J9, IF(AND(OF$1=$G9,OF$1<>$H9,OF$1<>$I9),11+$J9, IF(AND(OF$1<>$G9,OF$1=$H9,OF$1<>$I9),12+$J9, IF(AND(OF$1<>$G9,OF$1<>$H9,OF$1=$I9),2+$J9, IF(AND(OF$1=$G9,OF$1=$H9,OF$1<>$I9,$F9<>0),13+$J9, IF(AND(OF$1=$G9,OF$1=$H9,OF$1<>$I9,$F9=0),1+$J9, IF(AND(OF$1<>$G9,OF$1=$H9,OF$1=$I9),12+$J9, IF(AND(OF$1=$G9,OF$1=$H9,OF$1=$I9,$F9<=0.5),3+$J9,13+$J9))))))))))) -> 0 | OG9: 0 | OH9: 0 | OI9: 0 | OJ9: 0 | OK9: 0 | OL9: 0 | OM9: 0 | ON9: 0 | OO9: 0 | OP9: 0 | OQ9: 0 | OR9: 0 | OS9: 0 | OT9: 0 | OU9: 0 | OV9: 0 | OW9: 0 | OX9: 0 | OY9: 0 | OZ9: 0 | PA9: 0 | PB9: 0 | PC9: 0 | PD9: 0 | PE9: 0 | PF9: 0 | PG9: 0 | PH9: 0 | PI9: 0 | PJ9: 0 | PK9: 0 | PL9: 0 | PM9: 0 | PN9: 0 | PO9: 0 | PP9: 0 | PQ9: 0 | PR9: 0 | PS9: 0 | PT9: 0 | PU9: 0 | PV9: 0 | PW9: 0 | PX9: 0 | PY9: 0 | PZ9: 0 | QA9: 0 | QB9: 0 | QC9: 0 | QD9: 0 | QE9: 0 | QF9: 0 | QG9: 0 | QH9: 0 | QI9: 0 | QJ9: 0 | QK9: 0 | QL9: 0 | QM9: 0 | QN9: 0 | QO9: 0 | QP9: 0 | QQ9: 0 | QR9: =IF(QR$1>$I9,0, IF(QR$1<$G9,0, IF(AND(QR$1>$G9,QR$1<$H9),14+$J9, IF(AND(QR$1>$H9,QR$1<$I9),4+$J9, IF(AND(QR$1=$G9,QR$1<>$H9,QR$1<>$I9),11+$J9, IF(AND(QR$1<>$G9,QR$1=$H9,QR$1<>$I9),12+$J9, IF(AND(QR$1<>$G9,QR$1<>$H9,QR$1=$I9),2+$J9, IF(AND(QR$1=$G9,QR$1=$H9,QR$1<>$I9,$F9<>0),13+$J9, IF(AND(QR$1=$G9,QR$1=$H9,QR$1<>$I9,$F9=0),1+$J9, IF(AND(QR$1<>$G9,QR$1=$H9,QR$1=$I9),12+$J9, IF(AND(QR$1=$G9,QR$1=$H9,QR$1=$I9,$F9<=0.5),3+$J9,13+$J9))))))))))) -> 0 | QS9: 0 | QT9: 0 | QU9: 0 | QV9: 0 | QW9: 0 | QX9: 0 | QY9: 0 | QZ9: 0 | RA9: 0 | RB9: 0 | RC9: 0 | RD9: 0 | RE9: 0 | RF9: 0 | RG9: 0 | RH9: 0 | RI9: 0 | RJ9: 0 | RK9: 0 | RL9: 0 | RM9: 0 | RN9: 0 | RO9: 0 | RP9: 0 | RQ9: 0 | RR9: 0 | RS9: 0 | RT9: 0 | RU9: 0 | RV9: 0 | RW9: 0 | RX9: 0 | RY9: 0 | RZ9: 0 | SA9: 0 | SB9: 0 | SC9: 0 | SD9: 0 | SE9: 0 | SF9: 0 | SG9: 0 | SH9: 0 | SI9: 0 | SJ9: 0 | SK9: 0 | SL9: 0 | SM9: 0 | SN9: 0 | SO9: 0 | SP9: 0 | SQ9: 0 | SS9: =IF(gIsItPlan,IF(AND(System!Z5,System!AA5),1,0),IF(AND(System!Z5,System!AB5),1,0)) -> 1
B10: =IF($SS10,IF(E10=1,System!B6," "&System!B6),"") -> Определение источника финансирования | C10: =IF($SS10,IF(gIsItPlan,System!F6,System!I6),"") -> 2014-03-04 | D10: =IF($SS10,IF(gIsItPlan,System!G6,System!J6),"") -> 2014-03-05 | E10: =System!C6 -> 2 | F10: =System!L6 -> 1 | G10: 12 | H10: 13 | I10: 13 | J10: 20 | L10: 0 | M10: 31 | N10: 32 | O10: 0 | P10: 0 | Q10: 0 | R10: 0 | S10: 0 | T10: 0 | U10: 0 | V10: 0 | W10: 0 | X10: 0 | Y10: 0 | Z10: 0 | AA10: 0 | AB10: 0 | AC10: 0 | AD10: 0 | AE10: 0 | AF10: 0 | AG10: 0 | AH10: 0 | AI10: 0 | AJ10: 0 | AK10: 0 | AL10: 0 | AM10: 0 | AN10: 0 | AO10: 0 | AP10: 0 | AQ10: 0 | AR10: 0 | AS10: 0 | AT10: 0 | AU10: 0 | AV10: 0 | AW10: 0 | AX10: 0 | AY10: 0 | AZ10: 0 | BA10: 0 | BB10: 0 | BC10: 0 | BD10: 0 | BE10: 0 | BF10: 0 | BG10: 0 | BH10: 0 | BI10: 0 | BJ10: 0 | BK10: 0 | BL10: 0 | BM10: 0 | BN10: 0 | BO10: 0 | BP10: 0 | BQ10: 0 | BR10: 0 | BS10: 0 | BT10: 0 | BU10: 0 | BV10: 0 | BW10: 0 | BX10: 0 | BY10: 0 | BZ10: 0 | CA10: 0 | CB10: 0 | CC10: 0 | CD10: 0 | CE10: 0 | CF10: 0 | CG10: 0 | CH10: 0 | CI10: 0 | CJ10: 0 | CK10: 0 | CL10: 0 | CM10: 0 | CN10: 0 | CO10: 0 | CP10: 0 | CQ10: 0 | CR10: 0 | CS10: 0 | CT10: 0 | CU10: 0 | CV10: 0 | CW10: 0 | CX10: 0 | CY10: 0 | CZ10: 0 | DA10: 0 | DB10: 0 | DC10: 0 | DD10: 0 | DE10: 0 | DF10: 0 | DG10: 0 | DH10: 0 | DI10: 0 | DJ10: 0 | DK10: 0 | DL10: 0 | DM10: 0 | DN10: 0 | DO10: 0 | DP10: 0 | DQ10: 0 | DR10: 0 | DS10: 0 | DT10: 0 | DU10: 0 | DV10: 0 | DW10: 0 | DX10: 0 | DY10: 0 | DZ10: 0 | EA10: 0 | EB10: 0 | EC10: 0 | ED10: 0 | EE10: 0 | EF10: 0 | EG10: 0 | EH10: 0 | EI10: 0 | EJ10: 0 | EK10: 0 | EL10: 0 | EM10: 0 | EN10: 0 | EO10: 0 | EP10: 0 | EQ10: 0 | ER10: 0 | ES10: 0 | ET10: 0 | EU10: 0 | EV10: 0 | EW10: 0 | EX10: 0 | EY10: 0 | EZ10: 0 | FA10: 0 | FB10: 0 | FC10: 0 | FD10: 0 | FE10: 0 | FF10: 0 | FG10: 0 | FH10: 0 | FI10: 0 | FJ10: 0 | FK10: 0 | FL10: 0 | FM10: 0 | FN10: 0 | FO10: 0 | FP10: 0 | FQ10: 0 | FR10: 0 | FS10: 0 | FT10: 0 | FU10: 0 | FV10: 0 | FW10: 0 | FX10: 0 | FY10: 0 | FZ10: 0 | GA10: 0 | GB10: 0 | GC10: 0 | GD10: 0 | GE10: 0 | GF10: 0 | GG10: 0 | GH10: 0 | GI10: 0 | GJ10: 0 | GK10: 0 | GL10: 0 | GM10: 0 | GN10: 0 | GO10: 0 | GP10: 0 | GQ10: 0 | GR10: 0 | GS10: 0 | GT10: 0 | GU10: 0 | GV10: 0 | GW10: 0 | GX10: 0 | GY10: 0 | GZ10: 0 | HA10: 0 | HB10: 0 | HC10: 0 | HD10: 0 | HE10: 0 | HF10: 0 | HG10: 0 | HH10: 0 | HI10: 0 | HJ10: 0 | HK10: 0 | HL10: 0 | HM10: 0 | HN10: 0 | HO10: 0 | HP10: 0 | HQ10: 0 | HR10: 0 | HS10: 0 | HT10: 0 | HU10: 0 | HV10: 0 | HW10: 0 | HX10: 0 | HY10: 0 | HZ10: 0 | IA10: 0 | IB10: 0 | IC10: 0 | ID10: 0 | IE10: 0 | IF10: 0 | IG10: 0 | IH10: 0 | II10: 0 | IJ10: 0 | IK10: 0 | IL10: 0 | IM10: 0 | IN10: 0 | IO10: 0 | IP10: 0 | IQ10: 0 | IR10: 0 | IS10: 0 | IT10: 0 | IU10: 0 | IV10: 0 | IW10: 0 | IX10: 0 | IY10: 0 | IZ10: 0 | JA10: 0 | JB10: 0 | JC10: 0 | JD10: 0 | JE10: 0 | JF10: 0 | JG10: 0 | JH10: 0 | JI10: 0 | JJ10: 0 | JK10: 0 | JL10: 0 | JM10: 0 | JN10: 0 | JO10: 0 | JP10: 0 | JQ10: 0 | JR10: 0 | JS10: 0 | JT10: 0 | JU10: 0 | JV10: 0 | JW10: 0 | JX10: 0 | JY10: 0 | JZ10: 0 | KA10: 0 | KB10: 0 | KC10: 0 | KD10: 0 | KE10: 0 | KF10: 0 | KG10: 0 | KH10: 0 | KI10: 0 | KJ10: 0 | KK10: 0 | KL10: 0 | KM10: 0 | KN10: 0 | KO10: 0 | KP10: 0 | KQ10: 0 | KR10: 0 | KS10: 0 | KT10: 0 | KU10: 0 | KV10: 0 | KW10: 0 | KX10: 0 | KY10: 0 | KZ10: 0 | LA10: 0 | LB10: 0 | LC10: 0 | LD10: 0 | LE10: 0 | LF10: 0 | LG10: 0 | LH10: 0 | LI10: 0 | LJ10: 0 | LK10: 0 | LL10: 0 | LM10: 0 | LN10: 0 | LO10: 0 | LP10: 0 | LQ10: 0 | LR10: 0 | LS10: 0 | LT10: 0 | LU10: 0 | LV10: 0 | LW10: 0 | LX10: 0 | LY10: 0 | LZ10: 0 | MA10: 0 | MB10: 0 | MC10: 0 | MD10: 0 | ME10: 0 | MF10: 0 | MG10: 0 | MH10: 0 | MI10: 0 | MJ10: 0 | MK10: 0 | ML10: 0 | MM10: 0 | MN10: 0 | MO10: 0 | MP10: 0 | MQ10: 0 | MR10: 0 | MS10: 0 | MT10: 0 | MU10: 0 | MV10: 0 | MW10: 0 | MX10: 0 | MY10: 0 | MZ10: 0 | NA10: 0 | NB10: 0 | NC10: 0 | ND10: 0 | NE10: 0 | NF10: 0 | NG10: 0 | NH10: 0 | NI10: 0 | NJ10: 0 | NK10: 0 | NL10: 0 | NM10: 0 | NN10: 0 | NO10: 0 | NP10: 0 | NQ10: 0 | NR10: 0 | NS10: 0 | NT10: 0 | NU10: 0 | NV10: 0 | NW10: 0 | NX10: 0 | NY10: 0 | NZ10: 0 | OA10: 0 | OB10: 0 | OC10: 0 | OD10: 0 | OE10: 0 | OF10: 0 | OG10: 0 | OH10: 0 | OI10: 0 | OJ10: 0 | OK10: 0 | OL10: 0 | OM10: 0 | ON10: 0 | OO10: 0 | OP10: 0 | OQ10: 0 | OR10: 0 | OS10: 0 | OT10: 0 | OU10: 0 | OV10: 0 | OW10: 0 | OX10: 0 | OY10: 0 | OZ10: 0 | PA10: 0 | PB10: 0 | PC10: 0 | PD10: 0 | PE10: 0 | PF10: 0 | PG10: 0 | PH10: 0 | PI10: 0 | PJ10: 0 | PK10: 0 | PL10: 0 | PM10: 0 | PN10: 0 | PO10: 0 | PP10: 0 | PQ10: 0 | PR10: 0 | PS10: 0 | PT10: 0 | PU10: 0 | PV10: 0 | PW10: 0 | PX10: 0 | PY10: 0 | PZ10: 0 | QA10: 0 | QB10: 0 | QC10: 0 | QD10: 0 | QE10: 0 | QF10: 0 | QG10: 0 | QH10: 0 | QI10: 0 | QJ10: 0 | QK10: 0 | QL10: 0 | QM10: 0 | QN10: 0 | QO10: 0 | QP10: 0 | QQ10: 0 | QR10: 0 | QS10: 0 | QT10: 0 | QU10: 0 | QV10: 0 | QW10: 0 | QX10: 0 | QY10: 0 | QZ10: 0 | RA10: 0 | RB10: 0 | RC10: 0 | RD10: 0 | RE10: 0 | RF10: 0 | RG10: 0 | RH10: 0 | RI10: 0 | RJ10: 0 | RK10: 0 | RL10: 0 | RM10: 0 | RN10: 0 | RO10: 0 | RP10: 0 | RQ10: 0 | RR10: 0 | RS10: 0 | RT10: 0 | RU10: 0 | RV10: 0 | RW10: 0 | RX10: 0 | RY10: 0 | RZ10: 0 | SA10: 0 | SB10: 0 | SC10: 0 | SD10: 0 | SE10: 0 | SF10: 0 | SG10: 0 | SH10: 0 | SI10: 0 | SJ10: 0 | SK10: 0 | SL10: 0 | SM10: 0 | SN10: 0 | SO10: 0 | SP10: 0 | SQ10: 0 | SS10: =IF(gIsItPlan,IF(AND(System!Z6,System!AA6),1,0),IF(AND(System!Z6,System!AB6),1,0)) -> 1
B11: =IF($SS11,IF(E11=1,System!B7," "&System!B7),"") -> Изучение рынка материалов | C11: =IF($SS11,IF(gIsItPlan,System!F7,System!I7),"") -> 2014-03-06 | D11: =IF($SS11,IF(gIsItPlan,System!G7,System!J7),"") -> 2014-03-19 | E11: =System!C7 -> 2 | F11: =System!L7 -> 0.9 | G11: 13 | H11: 19 | I11: 20 | J11: 20 | L11: 0 | M11: 0 | N11: 31 | O11: 34 | P11: 34 | Q11: 34 | R11: 34 | S11: 34 | T11: 32 | U11: 22 | V11: 0 | W11: 0 | X11: 0 | Y11: 0 | Z11: 0 | AA11: 0 | AB11: 0 | AC11: 0 | AD11: 0 | AE11: 0 | AF11: 0 | AG11: 0 | AH11: 0 | AI11: 0 | AJ11: 0 | AK11: 0 | AL11: 0 | AM11: 0 | AN11: 0 | AO11: 0 | AP11: 0 | AQ11: 0 | AR11: 0 | AS11: 0 | AT11: 0 | AU11: 0 | AV11: 0 | AW11: 0 | AX11: 0 | AY11: 0 | AZ11: 0 | BA11: 0 | BB11: 0 | BC11: 0 | BD11: 0 | BE11: 0 | BF11: 0 | BG11: 0 | BH11: 0 | BI11: 0 | BJ11: 0 | BK11: 0 | BL11: 0 | BM11: 0 | BN11: 0 | BO11: 0 | BP11: 0 | BQ11: 0 | BR11: 0 | BS11: 0 | BT11: 0 | BU11: 0 | BV11: 0 | BW11: 0 | BX11: 0 | BY11: 0 | BZ11: 0 | CA11: 0 | CB11: 0 | CC11: 0 | CD11: 0 | CE11: 0 | CF11: 0 | CG11: 0 | CH11: 0 | CI11: 0 | CJ11: 0 | CK11: 0 | CL11: 0 | CM11: 0 | CN11: 0 | CO11: 0 | CP11: 0 | CQ11: 0 | CR11: 0 | CS11: 0 | CT11: 0 | CU11: 0 | CV11: 0 | CW11: 0 | CX11: 0 | CY11: 0 | CZ11: 0 | DA11: 0 | DB11: 0 | DC11: 0 | DD11: 0 | DE11: 0 | DF11: 0 | DG11: 0 | DH11: 0 | DI11: 0 | DJ11: 0 | DK11: 0 | DL11: 0 | DM11: 0 | DN11: 0 | DO11: 0 | DP11: 0 | DQ11: 0 | DR11: 0 | DS11: 0 | DT11: 0 | DU11: 0 | DV11: 0 | DW11: 0 | DX11: 0 | DY11: 0 | DZ11: 0 | EA11: 0 | EB11: 0 | EC11: 0 | ED11: 0 | EE11: 0 | EF11: 0 | EG11: 0 | EH11: 0 | EI11: 0 | EJ11: 0 | EK11: 0 | EL11: 0 | EM11: 0 | EN11: 0 | EO11: 0 | EP11: 0 | EQ11: 0 | ER11: 0 | ES11: 0 | ET11: 0 | EU11: 0 | EV11: 0 | EW11: 0 | EX11: 0 | EY11: 0 | EZ11: 0 | FA11: 0 | FB11: 0 | FC11: 0 | FD11: 0 | FE11: 0 | FF11: 0 | FG11: 0 | FH11: 0 | FI11: 0 | FJ11: 0 | FK11: 0 | FL11: 0 | FM11: 0 | FN11: 0 | FO11: 0 | FP11: 0 | FQ11: 0 | FR11: 0 | FS11: 0 | FT11: 0 | FU11: 0 | FV11: 0 | FW11: 0 | FX11: 0 | FY11: 0 | FZ11: 0 | GA11: 0 | GB11: 0 | GC11: 0 | GD11: 0 | GE11: 0 | GF11: 0 | GG11: 0 | GH11: 0 | GI11: 0 | GJ11: 0 | GK11: 0 | GL11: 0 | GM11: 0 | GN11: 0 | GO11: 0 | GP11: 0 | GQ11: 0 | GR11: 0 | GS11: 0 | GT11: 0 | GU11: 0 | GV11: 0 | GW11: 0 | GX11: 0 | GY11: 0 | GZ11: 0 | HA11: 0 | HB11: 0 | HC11: 0 | HD11: 0 | HE11: 0 | HF11: 0 | HG11: 0 | HH11: 0 | HI11: 0 | HJ11: 0 | HK11: 0 | HL11: 0 | HM11: 0 | HN11: 0 | HO11: 0 | HP11: 0 | HQ11: 0 | HR11: 0 | HS11: 0 | HT11: 0 | HU11: 0 | HV11: 0 | HW11: 0 | HX11: 0 | HY11: 0 | HZ11: 0 | IA11: 0 | IB11: 0 | IC11: 0 | ID11: 0 | IE11: 0 | IF11: 0 | IG11: 0 | IH11: 0 | II11: 0 | IJ11: 0 | IK11: 0 | IL11: 0 | IM11: 0 | IN11: 0 | IO11: 0 | IP11: 0 | IQ11: 0 | IR11: 0 | IS11: 0 | IT11: 0 | IU11: 0 | IV11: 0 | IW11: 0 | IX11: 0 | IY11: 0 | IZ11: 0 | JA11: 0 | JB11: 0 | JC11: 0 | JD11: 0 | JE11: 0 | JF11: 0 | JG11: 0 | JH11: 0 | JI11: 0 | JJ11: 0 | JK11: 0 | JL11: 0 | JM11: 0 | JN11: 0 | JO11: 0 | JP11: 0 | JQ11: 0 | JR11: 0 | JS11: 0 | JT11: 0 | JU11: 0 | JV11: 0 | JW11: 0 | JX11: 0 | JY11: 0 | JZ11: 0 | KA11: 0 | KB11: 0 | KC11: 0 | KD11: 0 | KE11: 0 | KF11: 0 | KG11: 0 | KH11: 0 | KI11: 0 | KJ11: 0 | KK11: 0 | KL11: 0 | KM11: 0 | KN11: 0 | KO11: 0 | KP11: 0 | KQ11: 0 | KR11: 0 | KS11: 0 | KT11: 0 | KU11: 0 | KV11: 0 | KW11: 0 | KX11: 0 | KY11: 0 | KZ11: 0 | LA11: 0 | LB11: 0 | LC11: 0 | LD11: 0 | LE11: 0 | LF11: 0 | LG11: 0 | LH11: 0 | LI11: 0 | LJ11: 0 | LK11: 0 | LL11: 0 | LM11: 0 | LN11: 0 | LO11: 0 | LP11: 0 | LQ11: 0 | LR11: 0 | LS11: 0 | LT11: 0 | LU11: 0 | LV11: 0 | LW11: 0 | LX11: 0 | LY11: 0 | LZ11: 0 | MA11: 0 | MB11: 0 | MC11: 0 | MD11: 0 | ME11: 0 | MF11: 0 | MG11: 0 | MH11: 0 | MI11: 0 | MJ11: 0 | MK11: 0 | ML11: 0 | MM11: 0 | MN11: 0 | MO11: 0 | MP11: 0 | MQ11: 0 | MR11: 0 | MS11: 0 | MT11: 0 | MU11: 0 | MV11: 0 | MW11: 0 | MX11: 0 | MY11: 0 | MZ11: 0 | NA11: 0 | NB11: 0 | NC11: 0 | ND11: 0 | NE11: 0 | NF11: 0 | NG11: 0 | NH11: 0 | NI11: 0 | NJ11: 0 | NK11: 0 | NL11: 0 | NM11: 0 | NN11: 0 | NO11: 0 | NP11: 0 | NQ11: 0 | NR11: 0 | NS11: 0 | NT11: 0 | NU11: 0 | NV11: 0 | NW11: 0 | NX11: 0 | NY11: 0 | NZ11: 0 | OA11: 0 | OB11: 0 | OC11: 0 | OD11: 0 | OE11: 0 | OF11: 0 | OG11: 0 | OH11: 0 | OI11: 0 | OJ11: 0 | OK11: 0 | OL11: 0 | OM11: 0 | ON11: 0 | OO11: 0 | OP11: 0 | OQ11: 0 | OR11: 0 | OS11: 0 | OT11: 0 | OU11: 0 | OV11: 0 | OW11: 0 | OX11: 0 | OY11: 0 | OZ11: 0 | PA11: 0 | PB11: 0 | PC11: 0 | PD11: 0 | PE11: 0 | PF11: 0 | PG11: 0 | PH11: 0 | PI11: 0 | PJ11: 0 | PK11: 0 | PL11: 0 | PM11: 0 | PN11: 0 | PO11: 0 | PP11: 0 | PQ11: 0 | PR11: 0 | PS11: 0 | PT11: 0 | PU11: 0 | PV11: 0 | PW11: 0 | PX11: 0 | PY11: 0 | PZ11: 0 | QA11: 0 | QB11: 0 | QC11: 0 | QD11: 0 | QE11: 0 | QF11: 0 | QG11: 0 | QH11: 0 | QI11: 0 | QJ11: 0 | QK11: 0 | QL11: 0 | QM11: 0 | QN11: 0 | QO11: 0 | QP11: 0 | QQ11: 0 | QR11: 0 | QS11: =IF(QS$1>$I11,0, IF(QS$1<$G11,0, IF(AND(QS$1>$G11,QS$1<$H11),14+$J11, IF(AND(QS$1>$H11,QS$1<$I11),4+$J11, IF(AND(QS$1=$G11,QS$1<>$H11,QS$1<>$I11),11+$J11, IF(AND(QS$1<>$G11,QS$1=$H11,QS$1<>$I11),12+$J11, IF(AND(QS$1<>$G11,QS$1<>$H11,QS$1=$I11),2+$J11, IF(AND(QS$1=$G11,QS$1=$H11,QS$1<>$I11,$F11<>0),13+$J11, IF(AND(QS$1=$G11,QS$1=$H11,QS$1<>$I11,$F11=0),1+$J11, IF(AND(QS$1<>$G11,QS$1=$H11,QS$1=$I11),12+$J11, IF(AND(QS$1=$G11,QS$1=$H11,QS$1=$I11,$F11<=0.5),3+$J11,13+$J11))))))))))) -> 0 | QT11: 0 | QU11: 0 | QV11: 0 | QW11: 0 | QX11: 0 | QY11: 0 | QZ11: 0 | RA11: 0 | RB11: 0 | RC11: 0 | RD11: 0 | RE11: 0 | RF11: 0 | RG11: 0 | RH11: 0 | RI11: =IF(RI$1>$I11,0, IF(RI$1<$G11,0, IF(AND(RI$1>$G11,RI$1<$H11),14+$J11, IF(AND(RI$1>$H11,RI$1<$I11),4+$J11, IF(AND(RI$1=$G11,RI$1<>$H11,RI$1<>$I11),11+$J11, IF(AND(RI$1<>$G11,RI$1=$H11,RI$1<>$I11),12+$J11, IF(AND(RI$1<>$G11,RI$1<>$H11,RI$1=$I11),2+$J11, IF(AND(RI$1=$G11,RI$1=$H11,RI$1<>$I11,$F11<>0),13+$J11, IF(AND(RI$1=$G11,RI$1=$H11,RI$1<>$I11,$F11=0),1+$J11, IF(AND(RI$1<>$G11,RI$1=$H11,RI$1=$I11),12+$J11, IF(AND(RI$1=$G11,RI$1=$H11,RI$1=$I11,$F11<=0.5),3+$J11,13+$J11))))))))))) -> 0 | RJ11: 0 | RK11: 0 | RL11: 0 | RM11: 0 | RN11: 0 | RO11: 0 | RP11: 0 | RQ11: 0 | RR11: 0 | RS11: 0 | RT11: 0 | RU11: 0 | RV11: 0 | RW11: 0 | RX11: 0 | RY11: =IF(RY$1>$I11,0, IF(RY$1<$G11,0, IF(AND(RY$1>$G11,RY$1<$H11),14+$J11, IF(AND(RY$1>$H11,RY$1<$I11),4+$J11, IF(AND(RY$1=$G11,RY$1<>$H11,RY$1<>$I11),11+$J11, IF(AND(RY$1<>$G11,RY$1=$H11,RY$1<>$I11),12+$J11, IF(AND(RY$1<>$G11,RY$1<>$H11,RY$1=$I11),2+$J11, IF(AND(RY$1=$G11,RY$1=$H11,RY$1<>$I11,$F11<>0),13+$J11, IF(AND(RY$1=$G11,RY$1=$H11,RY$1<>$I11,$F11=0),1+$J11, IF(AND(RY$1<>$G11,RY$1=$H11,RY$1=$I11),12+$J11, IF(AND(RY$1=$G11,RY$1=$H11,RY$1=$I11,$F11<=0.5),3+$J11,13+$J11))))))))))) -> 0 | RZ11: 0 | SA11: 0 | SB11: 0 | SC11: 0 | SD11: 0 | SE11: 0 | SF11: 0 | SG11: 0 | SH11: 0 | SI11: 0 | SJ11: 0 | SK11: 0 | SL11: 0 | SM11: 0 | SN11: 0 | SO11: =IF(SO$1>$I11,0, IF(SO$1<$G11,0, IF(AND(SO$1>$G11,SO$1<$H11),14+$J11, IF(AND(SO$1>$H11,SO$1<$I11),4+$J11, IF(AND(SO$1=$G11,SO$1<>$H11,SO$1<>$I11),11+$J11, IF(AND(SO$1<>$G11,SO$1=$H11,SO$1<>$I11),12+$J11, IF(AND(SO$1<>$G11,SO$1<>$H11,SO$1=$I11),2+$J11, IF(AND(SO$1=$G11,SO$1=$H11,SO$1<>$I11,$F11<>0),13+$J11, IF(AND(SO$1=$G11,SO$1=$H11,SO$1<>$I11,$F11=0),1+$J11, IF(AND(SO$1<>$G11,SO$1=$H11,SO$1=$I11),12+$J11, IF(AND(SO$1=$G11,SO$1=$H11,SO$1=$I11,$F11<=0.5),3+$J11,13+$J11))))))))))) -> 0 | SP11: 0 | SQ11: 0 | SS11: =IF(gIsItPlan,IF(AND(System!Z7,System!AA7),1,0),IF(AND(System!Z7,System!AB7),1,0)) -> 1
B12: =IF($SS12,IF(E12=1,System!B8," "&System!B8),"") -> Изучение рынка услуг | C12: =IF($SS12,IF(gIsItPlan,System!F8,System!I8),"") -> 2014-03-20 | D12: =IF($SS12,IF(gIsItPlan,System!G8,System!J8),"") -> 2014-04-02 | E12: =System!C8 -> 2 | F12: =System!L8 -> 1 | G12: 20 | H12: 27 | I12: 27 | J12: 20 | L12: 0 | M12: 0 | N12: 0 | O12: 0 | P12: 0 | Q12: 0 | R12: 0 | S12: 0 | T12: 0 | U12: 31 | V12: 34 | W12: 34 | X12: 34 | Y12: 34 | Z12: 34 | AA12: 34 | AB12: 32 | AC12: 0 | AD12: 0 | AE12: 0 | AF12: 0 | AG12: 0 | AH12: 0 | AI12: 0 | AJ12: 0 | AK12: 0 | AL12: 0 | AM12: 0 | AN12: 0 | AO12: 0 | AP12: 0 | AQ12: 0 | AR12: 0 | AS12: 0 | AT12: 0 | AU12: 0 | AV12: 0 | AW12: 0 | AX12: 0 | AY12: 0 | AZ12: 0 | BA12: 0 | BB12: 0 | BC12: 0 | BD12: 0 | BE12: 0 | BF12: 0 | BG12: 0 | BH12: 0 | BI12: 0 | BJ12: 0 | BK12: 0 | BL12: 0 | BM12: 0 | BN12: 0 | BO12: 0 | BP12: 0 | BQ12: 0 | BR12: 0 | BS12: 0 | BT12: 0 | BU12: 0 | BV12: 0 | BW12: 0 | BX12: 0 | BY12: 0 | BZ12: 0 | CA12: 0 | CB12: 0 | CC12: 0 | CD12: 0 | CE12: 0 | CF12: 0 | CG12: 0 | CH12: 0 | CI12: 0 | CJ12: 0 | CK12: 0 | CL12: 0 | CM12: 0 | CN12: 0 | CO12: 0 | CP12: 0 | CQ12: 0 | CR12: 0 | CS12: 0 | CT12: 0 | CU12: 0 | CV12: 0 | CW12: 0 | CX12: 0 | CY12: 0 | CZ12: 0 | DA12: 0 | DB12: 0 | DC12: 0 | DD12: 0 | DE12: 0 | DF12: 0 | DG12: 0 | DH12: 0 | DI12: 0 | DJ12: 0 | DK12: 0 | DL12: 0 | DM12: 0 | DN12: 0 | DO12: 0 | DP12: 0 | DQ12: 0 | DR12: 0 | DS12: 0 | DT12: 0 | DU12: 0 | DV12: 0 | DW12: 0 | DX12: 0 | DY12: 0 | DZ12: 0 | EA12: 0 | EB12: 0 | EC12: 0 | ED12: 0 | EE12: 0 | EF12: 0 | EG12: 0 | EH12: 0 | EI12: 0 | EJ12: 0 | EK12: 0 | EL12: 0 | EM12: 0 | EN12: 0 | EO12: 0 | EP12: 0 | EQ12: 0 | ER12: 0 | ES12: 0 | ET12: 0 | EU12: 0 | EV12: 0 | EW12: 0 | EX12: 0 | EY12: 0 | EZ12: 0 | FA12: 0 | FB12: 0 | FC12: 0 | FD12: 0 | FE12: 0 | FF12: 0 | FG12: 0 | FH12: 0 | FI12: 0 | FJ12: 0 | FK12: 0 | FL12: 0 | FM12: 0 | FN12: 0 | FO12: 0 | FP12: 0 | FQ12: 0 | FR12: 0 | FS12: 0 | FT12: 0 | FU12: 0 | FV12: 0 | FW12: 0 | FX12: 0 | FY12: 0 | FZ12: 0 | GA12: 0 | GB12: 0 | GC12: 0 | GD12: 0 | GE12: 0 | GF12: 0 | GG12: 0 | GH12: 0 | GI12: 0 | GJ12: 0 | GK12: 0 | GL12: 0 | GM12: 0 | GN12: 0 | GO12: 0 | GP12: 0 | GQ12: 0 | GR12: 0 | GS12: 0 | GT12: 0 | GU12: 0 | GV12: 0 | GW12: 0 | GX12: 0 | GY12: 0 | GZ12: 0 | HA12: 0 | HB12: 0 | HC12: 0 | HD12: 0 | HE12: 0 | HF12: 0 | HG12: 0 | HH12: 0 | HI12: 0 | HJ12: 0 | HK12: 0 | HL12: 0 | HM12: 0 | HN12: 0 | HO12: 0 | HP12: 0 | HQ12: 0 | HR12: 0 | HS12: 0 | HT12: 0 | HU12: 0 | HV12: 0 | HW12: 0 | HX12: 0 | HY12: 0 | HZ12: 0 | IA12: 0 | IB12: 0 | IC12: 0 | ID12: 0 | IE12: 0 | IF12: 0 | IG12: 0 | IH12: 0 | II12: 0 | IJ12: 0 | IK12: 0 | IL12: 0 | IM12: 0 | IN12: 0 | IO12: 0 | IP12: 0 | IQ12: 0 | IR12: 0 | IS12: 0 | IT12: 0 | IU12: 0 | IV12: 0 | IW12: 0 | IX12: 0 | IY12: 0 | IZ12: 0 | JA12: 0 | JB12: 0 | JC12: 0 | JD12: 0 | JE12: 0 | JF12: 0 | JG12: 0 | JH12: 0 | JI12: 0 | JJ12: 0 | JK12: 0 | JL12: 0 | JM12: 0 | JN12: 0 | JO12: 0 | JP12: 0 | JQ12: 0 | JR12: 0 | JS12: 0 | JT12: 0 | JU12: 0 | JV12: 0 | JW12: 0 | JX12: 0 | JY12: 0 | JZ12: 0 | KA12: 0 | KB12: 0 | KC12: 0 | KD12: 0 | KE12: 0 | KF12: 0 | KG12: 0 | KH12: 0 | KI12: 0 | KJ12: 0 | KK12: 0 | KL12: 0 | KM12: 0 | KN12: 0 | KO12: 0 | KP12: 0 | KQ12: 0 | KR12: 0 | KS12: 0 | KT12: 0 | KU12: 0 | KV12: 0 | KW12: 0 | KX12: 0 | KY12: 0 | KZ12: 0 | LA12: 0 | LB12: 0 | LC12: 0 | LD12: 0 | LE12: 0 | LF12: 0 | LG12: 0 | LH12: 0 | LI12: 0 | LJ12: 0 | LK12: 0 | LL12: 0 | LM12: 0 | LN12: 0 | LO12: 0 | LP12: 0 | LQ12: 0 | LR12: 0 | LS12: 0 | LT12: 0 | LU12: 0 | LV12: 0 | LW12: 0 | LX12: 0 | LY12: 0 | LZ12: 0 | MA12: 0 | MB12: 0 | MC12: 0 | MD12: 0 | ME12: 0 | MF12: 0 | MG12: 0 | MH12: 0 | MI12: 0 | MJ12: 0 | MK12: 0 | ML12: 0 | MM12: 0 | MN12: 0 | MO12: 0 | MP12: 0 | MQ12: 0 | MR12: 0 | MS12: 0 | MT12: 0 | MU12: 0 | MV12: 0 | MW12: 0 | MX12: 0 | MY12: 0 | MZ12: 0 | NA12: 0 | NB12: 0 | NC12: 0 | ND12: 0 | NE12: 0 | NF12: 0 | NG12: 0 | NH12: 0 | NI12: 0 | NJ12: 0 | NK12: 0 | NL12: 0 | NM12: 0 | NN12: 0 | NO12: 0 | NP12: 0 | NQ12: 0 | NR12: 0 | NS12: 0 | NT12: 0 | NU12: 0 | NV12: 0 | NW12: 0 | NX12: 0 | NY12: 0 | NZ12: 0 | OA12: 0 | OB12: 0 | OC12: 0 | OD12: 0 | OE12: 0 | OF12: 0 | OG12: 0 | OH12: 0 | OI12: 0 | OJ12: 0 | OK12: 0 | OL12: 0 | OM12: 0 | ON12: 0 | OO12: 0 | OP12: 0 | OQ12: 0 | OR12: 0 | OS12: 0 | OT12: 0 | OU12: 0 | OV12: 0 | OW12: 0 | OX12: 0 | OY12: 0 | OZ12: 0 | PA12: 0 | PB12: 0 | PC12: 0 | PD12: 0 | PE12: 0 | PF12: 0 | PG12: 0 | PH12: 0 | PI12: 0 | PJ12: 0 | PK12: 0 | PL12: 0 | PM12: 0 | PN12: 0 | PO12: 0 | PP12: 0 | PQ12: 0 | PR12: 0 | PS12: 0 | PT12: 0 | PU12: 0 | PV12: 0 | PW12: 0 | PX12: 0 | PY12: 0 | PZ12: 0 | QA12: 0 | QB12: 0 | QC12: 0 | QD12: 0 | QE12: 0 | QF12: 0 | QG12: 0 | QH12: 0 | QI12: 0 | QJ12: 0 | QK12: 0 | QL12: 0 | QM12: 0 | QN12: 0 | QO12: 0 | QP12: 0 | QQ12: 0 | QR12: 0 | QS12: 0 | QT12: 0 | QU12: 0 | QV12: 0 | QW12: 0 | QX12: 0 | QY12: 0 | QZ12: 0 | RA12: 0 | RB12: 0 | RC12: 0 | RD12: 0 | RE12: 0 | RF12: 0 | RG12: 0 | RH12: 0 | RI12: 0 | RJ12: 0 | RK12: 0 | RL12: 0 | RM12: 0 | RN12: 0 | RO12: 0 | RP12: 0 | RQ12: 0 | RR12: 0 | RS12: 0 | RT12: 0 | RU12: 0 | RV12: 0 | RW12: 0 | RX12: 0 | RY12: 0 | RZ12: 0 | SA12: 0 | SB12: 0 | SC12: 0 | SD12: 0 | SE12: 0 | SF12: 0 | SG12: 0 | SH12: 0 | SI12: 0 | SJ12: 0 | SK12: 0 | SL12: 0 | SM12: 0 | SN12: 0 | SO12: 0 | SP12: 0 | SQ12: 0 | SS12: =IF(gIsItPlan,IF(AND(System!Z8,System!AA8),1,0),IF(AND(System!Z8,System!AB8),1,0)) -> 1
B13: =IF($SS13,IF(E13=1,System!B9," "&System!B9),"") -> Разработка дизайн-проекта | C13: =IF($SS13,IF(gIsItPlan,System!F9,System!I9),"") -> 2014-04-03 | D13: =IF($SS13,IF(gIsItPlan,System!G9,System!J9),"") -> 2014-04-12 | E13: =System!C9 -> 2 | F13: =System!L9 -> 1 | G13: 27 | H13: 32 | I13: 32 | J13: 20 | L13: 0 | M13: 0 | N13: 0 | O13: 0 | P13: 0 | Q13: 0 | R13: 0 | S13: 0 | T13: 0 | U13: 0 | V13: 0 | W13: 0 | X13: 0 | Y13: 0 | Z13: 0 | AA13: 0 | AB13: 31 | AC13: 34 | AD13: 34 | AE13: 34 | AF13: 34 | AG13: 32 | AH13: 0 | AI13: 0 | AJ13: 0 | AK13: 0 | AL13: 0 | AM13: 0 | AN13: 0 | AO13: 0 | AP13: 0 | AQ13: 0 | AR13: 0 | AS13: 0 | AT13: 0 | AU13: 0 | AV13: 0 | AW13: 0 | AX13: 0 | AY13: 0 | AZ13: 0 | BA13: 0 | BB13: 0 | BC13: 0 | BD13: 0 | BE13: 0 | BF13: 0 | BG13: 0 | BH13: 0 | BI13: 0 | BJ13: 0 | BK13: 0 | BL13: 0 | BM13: 0 | BN13: 0 | BO13: 0 | BP13: 0 | BQ13: 0 | BR13: 0 | BS13: 0 | BT13: 0 | BU13: 0 | BV13: 0 | BW13: =IF(BW$1>$I13,0, IF(BW$1<$G13,0, IF(AND(BW$1>$G13,BW$1<$H13),14+$J13, IF(AND(BW$1>$H13,BW$1<$I13),4+$J13, IF(AND(BW$1=$G13,BW$1<>$H13,BW$1<>$I13),11+$J13, IF(AND(BW$1<>$G13,BW$1=$H13,BW$1<>$I13),12+$J13, IF(AND(BW$1<>$G13,BW$1<>$H13,BW$1=$I13),2+$J13, IF(AND(BW$1=$G13,BW$1=$H13,BW$1<>$I13,$F13<>0),13+$J13, IF(AND(BW$1=$G13,BW$1=$H13,BW$1<>$I13,$F13=0),1+$J13, IF(AND(BW$1<>$G13,BW$1=$H13,BW$1=$I13),12+$J13, IF(AND(BW$1=$G13,BW$1=$H13,BW$1=$I13,$F13<=0.5),3+$J13,13+$J13))))))))))) -> 0 | BX13: 0 | BY13: 0 | BZ13: 0 | CA13: 0 | CB13: 0 | CC13: 0 | CD13: 0 | CE13: 0 | CF13: 0 | CG13: 0 | CH13: 0 | CI13: 0 | CJ13: 0 | CK13: 0 | CL13: 0 | CM13: 0 | CN13: 0 | CO13: 0 | CP13: 0 | CQ13: 0 | CR13: 0 | CS13: 0 | CT13: 0 | CU13: 0 | CV13: 0 | CW13: 0 | CX13: 0 | CY13: 0 | CZ13: 0 | DA13: 0 | DB13: 0 | DC13: 0 | DD13: 0 | DE13: 0 | DF13: 0 | DG13: 0 | DH13: 0 | DI13: 0 | DJ13: 0 | DK13: 0 | DL13: 0 | DM13: 0 | DN13: 0 | DO13: 0 | DP13: 0 | DQ13: 0 | DR13: 0 | DS13: 0 | DT13: 0 | DU13: 0 | DV13: 0 | DW13: 0 | DX13: 0 | DY13: 0 | DZ13: 0 | EA13: 0 | EB13: 0 | EC13: 0 | ED13: 0 | EE13: 0 | EF13: 0 | EG13: 0 | EH13: 0 | EI13: =IF(EI$1>$I13,0, IF(EI$1<$G13,0, IF(AND(EI$1>$G13,EI$1<$H13),14+$J13, IF(AND(EI$1>$H13,EI$1<$I13),4+$J13, IF(AND(EI$1=$G13,EI$1<>$H13,EI$1<>$I13),11+$J13, IF(AND(EI$1<>$G13,EI$1=$H13,EI$1<>$I13),12+$J13, IF(AND(EI$1<>$G13,EI$1<>$H13,EI$1=$I13),2+$J13, IF(AND(EI$1=$G13,EI$1=$H13,EI$1<>$I13,$F13<>0),13+$J13, IF(AND(EI$1=$G13,EI$1=$H13,EI$1<>$I13,$F13=0),1+$J13, IF(AND(EI$1<>$G13,EI$1=$H13,EI$1=$I13),12+$J13, IF(AND(EI$1=$G13,EI$1=$H13,EI$1=$I13,$F13<=0.5),3+$J13,13+$J13))))))))))) -> 0 | EJ13: 0 | EK13: 0 | EL13: 0 | EM13: 0 | EN13: 0 | EO13: 0 | EP13: 0 | EQ13: 0 | ER13: 0 | ES13: 0 | ET13: 0 | EU13: 0 | EV13: 0 | EW13: 0 | EX13: 0 | EY13: 0 | EZ13: 0 | FA13: 0 | FB13: 0 | FC13: 0 | FD13: 0 | FE13: 0 | FF13: 0 | FG13: 0 | FH13: 0 | FI13: 0 | FJ13: 0 | FK13: 0 | FL13: 0 | FM13: 0 | FN13: 0 | FO13: 0 | FP13: 0 | FQ13: 0 | FR13: 0 | FS13: 0 | FT13: 0 | FU13: 0 | FV13: 0 | FW13: 0 | FX13: 0 | FY13: 0 | FZ13: 0 | GA13: 0 | GB13: 0 | GC13: 0 | GD13: 0 | GE13: 0 | GF13: 0 | GG13: 0 | GH13: 0 | GI13: 0 | GJ13: 0 | GK13: 0 | GL13: 0 | GM13: 0 | GN13: 0 | GO13: 0 | GP13: 0 | GQ13: 0 | GR13: 0 | GS13: 0 | GT13: 0 | GU13: =IF(GU$1>$I13,0, IF(GU$1<$G13,0, IF(AND(GU$1>$G13,GU$1<$H13),14+$J13, IF(AND(GU$1>$H13,GU$1<$I13),4+$J13, IF(AND(GU$1=$G13,GU$1<>$H13,GU$1<>$I13),11+$J13, IF(AND(GU$1<>$G13,GU$1=$H13,GU$1<>$I13),12+$J13, IF(AND(GU$1<>$G13,GU$1<>$H13,GU$1=$I13),2+$J13, IF(AND(GU$1=$G13,GU$1=$H13,GU$1<>$I13,$F13<>0),13+$J13, IF(AND(GU$1=$G13,GU$1=$H13,GU$1<>$I13,$F13=0),1+$J13, IF(AND(GU$1<>$G13,GU$1=$H13,GU$1=$I13),12+$J13, IF(AND(GU$1=$G13,GU$1=$H13,GU$1=$I13,$F13<=0.5),3+$J13,13+$J13))))))))))) -> 0 | GV13: 0 | GW13: 0 | GX13: 0 | GY13: 0 | GZ13: 0 | HA13: 0 | HB13: 0 | HC13: 0 | HD13: 0 | HE13: 0 | HF13: 0 | HG13: 0 | HH13: 0 | HI13: 0 | HJ13: 0 | HK13: 0 | HL13: 0 | HM13: 0 | HN13: 0 | HO13: 0 | HP13: 0 | HQ13: 0 | HR13: 0 | HS13: 0 | HT13: 0 | HU13: 0 | HV13: 0 | HW13: 0 | HX13: 0 | HY13: 0 | HZ13: 0 | IA13: 0 | IB13: 0 | IC13: 0 | ID13: 0 | IE13: 0 | IF13: 0 | IG13: 0 | IH13: 0 | II13: 0 | IJ13: 0 | IK13: 0 | IL13: 0 | IM13: 0 | IN13: 0 | IO13: 0 | IP13: 0 | IQ13: 0 | IR13: 0 | IS13: 0 | IT13: 0 | IU13: 0 | IV13: 0 | IW13: 0 | IX13: 0 | IY13: 0 | IZ13: 0 | JA13: 0 | JB13: 0 | JC13: 0 | JD13: 0 | JE13: 0 | JF13: 0 | JG13: =IF(JG$1>$I13,0, IF(JG$1<$G13,0, IF(AND(JG$1>$G13,JG$1<$H13),14+$J13, IF(AND(JG$1>$H13,JG$1<$I13),4+$J13, IF(AND(JG$1=$G13,JG$1<>$H13,JG$1<>$I13),11+$J13, IF(AND(JG$1<>$G13,JG$1=$H13,JG$1<>$I13),12+$J13, IF(AND(JG$1<>$G13,JG$1<>$H13,JG$1=$I13),2+$J13, IF(AND(JG$1=$G13,JG$1=$H13,JG$1<>$I13,$F13<>0),13+$J13, IF(AND(JG$1=$G13,JG$1=$H13,JG$1<>$I13,$F13=0),1+$J13, IF(AND(JG$1<>$G13,JG$1=$H13,JG$1=$I13),12+$J13, IF(AND(JG$1=$G13,JG$1=$H13,JG$1=$I13,$F13<=0.5),3+$J13,13+$J13))))))))))) -> 0 | JH13: 0 | JI13: 0 | JJ13: 0 | JK13: 0 | JL13: 0 | JM13: 0 | JN13: 0 | JO13: 0 | JP13: 0 | JQ13: 0 | JR13: 0 | JS13: 0 | JT13: 0 | JU13: 0 | JV13: 0 | JW13: 0 | JX13: 0 | JY13: 0 | JZ13: 0 | KA13: 0 | KB13: 0 | KC13: 0 | KD13: 0 | KE13: 0 | KF13: 0 | KG13: 0 | KH13: 0 | KI13: 0 | KJ13: 0 | KK13: 0 | KL13: 0 | KM13: 0 | KN13: 0 | KO13: 0 | KP13: 0 | KQ13: 0 | KR13: 0 | KS13: 0 | KT13: 0 | KU13: 0 | KV13: 0 | KW13: 0 | KX13: 0 | KY13: 0 | KZ13: 0 | LA13: 0 | LB13: 0 | LC13: 0 | LD13: 0 | LE13: 0 | LF13: 0 | LG13: 0 | LH13: 0 | LI13: 0 | LJ13: 0 | LK13: 0 | LL13: 0 | LM13: 0 | LN13: 0 | LO13: 0 | LP13: 0 | LQ13: 0 | LR13: 0 | LS13: =IF(LS$1>$I13,0, IF(LS$1<$G13,0, IF(AND(LS$1>$G13,LS$1<$H13),14+$J13, IF(AND(LS$1>$H13,LS$1<$I13),4+$J13, IF(AND(LS$1=$G13,LS$1<>$H13,LS$1<>$I13),11+$J13, IF(AND(LS$1<>$G13,LS$1=$H13,LS$1<>$I13),12+$J13, IF(AND(LS$1<>$G13,LS$1<>$H13,LS$1=$I13),2+$J13, IF(AND(LS$1=$G13,LS$1=$H13,LS$1<>$I13,$F13<>0),13+$J13, IF(AND(LS$1=$G13,LS$1=$H13,LS$1<>$I13,$F13=0),1+$J13, IF(AND(LS$1<>$G13,LS$1=$H13,LS$1=$I13),12+$J13, IF(AND(LS$1=$G13,LS$1=$H13,LS$1=$I13,$F13<=0.5),3+$J13,13+$J13))))))))))) -> 0 | LT13: 0 | LU13: 0 | LV13: 0 | LW13: 0 | LX13: 0 | LY13: 0 | LZ13: 0 | MA13: 0 | MB13: 0 | MC13: 0 | MD13: 0 | ME13: 0 | MF13: 0 | MG13: 0 | MH13: 0 | MI13: 0 | MJ13: 0 | MK13: 0 | ML13: 0 | MM13: 0 | MN13: 0 | MO13: 0 | MP13: 0 | MQ13: 0 | MR13: 0 | MS13: 0 | MT13: 0 | MU13: 0 | MV13: 0 | MW13: 0 | MX13: 0 | MY13: 0 | MZ13: 0 | NA13: 0 | NB13: 0 | NC13: 0 | ND13: 0 | NE13: 0 | NF13: 0 | NG13: 0 | NH13: 0 | NI13: 0 | NJ13: 0 | NK13: 0 | NL13: 0 | NM13: 0 | NN13: 0 | NO13: 0 | NP13: 0 | NQ13: 0 | NR13: 0 | NS13: 0 | NT13: 0 | NU13: 0 | NV13: 0 | NW13: 0 | NX13: 0 | NY13: 0 | NZ13: 0 | OA13: 0 | OB13: 0 | OC13: 0 | OD13: 0 | OE13: =IF(OE$1>$I13,0, IF(OE$1<$G13,0, IF(AND(OE$1>$G13,OE$1<$H13),14+$J13, IF(AND(OE$1>$H13,OE$1<$I13),4+$J13, IF(AND(OE$1=$G13,OE$1<>$H13,OE$1<>$I13),11+$J13, IF(AND(OE$1<>$G13,OE$1=$H13,OE$1<>$I13),12+$J13, IF(AND(OE$1<>$G13,OE$1<>$H13,OE$1=$I13),2+$J13, IF(AND(OE$1=$G13,OE$1=$H13,OE$1<>$I13,$F13<>0),13+$J13, IF(AND(OE$1=$G13,OE$1=$H13,OE$1<>$I13,$F13=0),1+$J13, IF(AND(OE$1<>$G13,OE$1=$H13,OE$1=$I13),12+$J13, IF(AND(OE$1=$G13,OE$1=$H13,OE$1=$I13,$F13<=0.5),3+$J13,13+$J13))))))))))) -> 0 | OF13: 0 | OG13: 0 | OH13: 0 | OI13: 0 | OJ13: 0 | OK13: 0 | OL13: 0 | OM13: 0 | ON13: 0 | OO13: 0 | OP13: 0 | OQ13: 0 | OR13: 0 | OS13: 0 | OT13: 0 | OU13: 0 | OV13: 0 | OW13: 0 | OX13: 0 | OY13: 0 | OZ13: 0 | PA13: 0 | PB13: 0 | PC13: 0 | PD13: 0 | PE13: 0 | PF13: 0 | PG13: 0 | PH13: 0 | PI13: 0 | PJ13: 0 | PK13: 0 | PL13: 0 | PM13: 0 | PN13: 0 | PO13: 0 | PP13: 0 | PQ13: 0 | PR13: 0 | PS13: 0 | PT13: 0 | PU13: 0 | PV13: 0 | PW13: 0 | PX13: 0 | PY13: 0 | PZ13: 0 | QA13: 0 | QB13: 0 | QC13: 0 | QD13: 0 | QE13: 0 | QF13: 0 | QG13: 0 | QH13: 0 | QI13: 0 | QJ13: 0 | QK13: 0 | QL13: 0 | QM13: 0 | QN13: 0 | QO13: 0 | QP13: 0 | QQ13: =IF(QQ$1>$I13,0, IF(QQ$1<$G13,0, IF(AND(QQ$1>$G13,QQ$1<$H13),14+$J13, IF(AND(QQ$1>$H13,QQ$1<$I13),4+$J13, IF(AND(QQ$1=$G13,QQ$1<>$H13,QQ$1<>$I13),11+$J13, IF(AND(QQ$1<>$G13,QQ$1=$H13,QQ$1<>$I13),12+$J13, IF(AND(QQ$1<>$G13,QQ$1<>$H13,QQ$1=$I13),2+$J13, IF(AND(QQ$1=$G13,QQ$1=$H13,QQ$1<>$I13,$F13<>0),13+$J13, IF(AND(QQ$1=$G13,QQ$1=$H13,QQ$1<>$I13,$F13=0),1+$J13, IF(AND(QQ$1<>$G13,QQ$1=$H13,QQ$1=$I13),12+$J13, IF(AND(QQ$1=$G13,QQ$1=$H13,QQ$1=$I13,$F13<=0.5),3+$J13,13+$J13))))))))))) -> 0 | QR13: 0 | QS13: 0 | QT13: 0 | QU13: 0 | QV13: 0 | QW13: 0 | QX13: 0 | QY13: 0 | QZ13: 0 | RA13: 0 | RB13: 0 | RC13: 0 | RD13: 0 | RE13: 0 | RF13: 0 | RG13: 0 | RH13: 0 | RI13: 0 | RJ13: 0 | RK13: 0 | RL13: 0 | RM13: 0 | RN13: 0 | RO13: 0 | RP13: 0 | RQ13: 0 | RR13: 0 | RS13: 0 | RT13: 0 | RU13: 0 | RV13: 0 | RW13: 0 | RX13: 0 | RY13: 0 | RZ13: 0 | SA13: 0 | SB13: 0 | SC13: 0 | SD13: 0 | SE13: 0 | SF13: 0 | SG13: 0 | SH13: 0 | SI13: 0 | SJ13: 0 | SK13: 0 | SL13: 0 | SM13: 0 | SN13: 0 | SO13: 0 | SP13: 0 | SQ13: 0 | SS13: =IF(gIsItPlan,IF(AND(System!Z9,System!AA9),1,0),IF(AND(System!Z9,System!AB9),1,0)) -> 1
B14: =IF($SS14,IF(E14=1,System!B10," "&System!B10),"") -> Разработка сметы проекта | C14: =IF($SS14,IF(gIsItPlan,System!F10,System!I10),"") -> 2014-04-13 | D14: =IF($SS14,IF(gIsItPlan,System!G10,System!J10),"") -> 2014-04-22 | E14: =System!C10 -> 2 | F14: =System!L10 -> 1 | G14: 32 | H14: 37 | I14: 37 | J14: 20 | L14: 0 | M14: 0 | N14: 0 | O14: 0 | P14: 0 | Q14: 0 | R14: 0 | S14: 0 | T14: 0 | U14: 0 | V14: 0 | W14: 0 | X14: 0 | Y14: 0 | Z14: 0 | AA14: 0 | AB14: =IF(AB$1>$I14,0, IF(AB$1<$G14,0, IF(AND(AB$1>$G14,AB$1<$H14),14+$J14, IF(AND(AB$1>$H14,AB$1<$I14),4+$J14, IF(AND(AB$1=$G14,AB$1<>$H14,AB$1<>$I14),11+$J14, IF(AND(AB$1<>$G14,AB$1=$H14,AB$1<>$I14),12+$J14, IF(AND(AB$1<>$G14,AB$1<>$H14,AB$1=$I14),2+$J14, IF(AND(AB$1=$G14,AB$1=$H14,AB$1<>$I14,$F14<>0),13+$J14, IF(AND(AB$1=$G14,AB$1=$H14,AB$1<>$I14,$F14=0),1+$J14, IF(AND(AB$1<>$G14,AB$1=$H14,AB$1=$I14),12+$J14, IF(AND(AB$1=$G14,AB$1=$H14,AB$1=$I14,$F14<=0.5),3+$J14,13+$J14))))))))))) -> 0 | AC14: 0 | AD14: 0 | AE14: 0 | AF14: 0 | AG14: 31 | AH14: 34 | AI14: 34 | AJ14: 34 | AK14: 34 | AL14: 32 | AM14: 0 | AN14: 0 | AO14: 0 | AP14: 0 | AQ14: 0 | AR14: =IF(AR$1>$I14,0, IF(AR$1<$G14,0, IF(AND(AR$1>$G14,AR$1<$H14),14+$J14, IF(AND(AR$1>$H14,AR$1<$I14),4+$J14, IF(AND(AR$1=$G14,AR$1<>$H14,AR$1<>$I14),11+$J14, IF(AND(AR$1<>$G14,AR$1=$H14,AR$1<>$I14),12+$J14, IF(AND(AR$1<>$G14,AR$1<>$H14,AR$1=$I14),2+$J14, IF(AND(AR$1=$G14,AR$1=$H14,AR$1<>$I14,$F14<>0),13+$J14, IF(AND(AR$1=$G14,AR$1=$H14,AR$1<>$I14,$F14=0),1+$J14, IF(AND(AR$1<>$G14,AR$1=$H14,AR$1=$I14),12+$J14, IF(AND(AR$1=$G14,AR$1=$H14,AR$1=$I14,$F14<=0.5),3+$J14,13+$J14))))))))))) -> 0 | AS14: 0 | AT14: 0 | AU14: 0 | AV14: 0 | AW14: 0 | AX14: 0 | AY14: 0 | AZ14: 0 | BA14: 0 | BB14: 0 | BC14: 0 | BD14: 0 | BE14: 0 | BF14: 0 | BG14: 0 | BH14: =IF(BH$1>$I14,0, IF(BH$1<$G14,0, IF(AND(BH$1>$G14,BH$1<$H14),14+$J14, IF(AND(BH$1>$H14,BH$1<$I14),4+$J14, IF(AND(BH$1=$G14,BH$1<>$H14,BH$1<>$I14),11+$J14, IF(AND(BH$1<>$G14,BH$1=$H14,BH$1<>$I14),12+$J14, IF(AND(BH$1<>$G14,BH$1<>$H14,BH$1=$I14),2+$J14, IF(AND(BH$1=$G14,BH$1=$H14,BH$1<>$I14,$F14<>0),13+$J14, IF(AND(BH$1=$G14,BH$1=$H14,BH$1<>$I14,$F14=0),1+$J14, IF(AND(BH$1<>$G14,BH$1=$H14,BH$1=$I14),12+$J14, IF(AND(BH$1=$G14,BH$1=$H14,BH$1=$I14,$F14<=0.5),3+$J14,13+$J14))))))))))) -> 0 | BI14: 0 | BJ14: 0 | BK14: 0 | BL14: 0 | BM14: 0 | BN14: 0 | BO14: 0 | BP14: 0 | BQ14: 0 | BR14: 0 | BS14: 0 | BT14: 0 | BU14: 0 | BV14: 0 | BW14: 0 | BX14: 0 | BY14: 0 | BZ14: 0 | CA14: 0 | CB14: 0 | CC14: 0 | CD14: 0 | CE14: 0 | CF14: 0 | CG14: 0 | CH14: 0 | CI14: 0 | CJ14: 0 | CK14: 0 | CL14: 0 | CM14: =IF(CM$1>$I14,0, IF(CM$1<$G14,0, IF(AND(CM$1>$G14,CM$1<$H14),14+$J14, IF(AND(CM$1>$H14,CM$1<$I14),4+$J14, IF(AND(CM$1=$G14,CM$1<>$H14,CM$1<>$I14),11+$J14, IF(AND(CM$1<>$G14,CM$1=$H14,CM$1<>$I14),12+$J14, IF(AND(CM$1<>$G14,CM$1<>$H14,CM$1=$I14),2+$J14, IF(AND(CM$1=$G14,CM$1=$H14,CM$1<>$I14,$F14<>0),13+$J14, IF(AND(CM$1=$G14,CM$1=$H14,CM$1<>$I14,$F14=0),1+$J14, IF(AND(CM$1<>$G14,CM$1=$H14,CM$1=$I14),12+$J14, IF(AND(CM$1=$G14,CM$1=$H14,CM$1=$I14,$F14<=0.5),3+$J14,13+$J14))))))))))) -> 0 | CN14: 0 | CO14: 0 | CP14: 0 | CQ14: 0 | CR14: 0 | CS14: 0 | CT14: 0 | CU14: 0 | CV14: 0 | CW14: 0 | CX14: 0 | CY14: 0 | CZ14: 0 | DA14: 0 | DB14: 0 | DC14: =IF(DC$1>$I14,0, IF(DC$1<$G14,0, IF(AND(DC$1>$G14,DC$1<$H14),14+$J14, IF(AND(DC$1>$H14,DC$1<$I14),4+$J14, IF(AND(DC$1=$G14,DC$1<>$H14,DC$1<>$I14),11+$J14, IF(AND(DC$1<>$G14,DC$1=$H14,DC$1<>$I14),12+$J14, IF(AND(DC$1<>$G14,DC$1<>$H14,DC$1=$I14),2+$J14, IF(AND(DC$1=$G14,DC$1=$H14,DC$1<>$I14,$F14<>0),13+$J14, IF(AND(DC$1=$G14,DC$1=$H14,DC$1<>$I14,$F14=0),1+$J14, IF(AND(DC$1<>$G14,DC$1=$H14,DC$1=$I14),12+$J14, IF(AND(DC$1=$G14,DC$1=$H14,DC$1=$I14,$F14<=0.5),3+$J14,13+$J14))))))))))) -> 0 | DD14: 0 | DE14: 0 | DF14: 0 | DG14: 0 | DH14: 0 | DI14: 0 | DJ14: 0 | DK14: 0 | DL14: 0 | DM14: 0 | DN14: 0 | DO14: 0 | DP14: 0 | DQ14: 0 | DR14: 0 | DS14: =IF(DS$1>$I14,0, IF(DS$1<$G14,0, IF(AND(DS$1>$G14,DS$1<$H14),14+$J14, IF(AND(DS$1>$H14,DS$1<$I14),4+$J14, IF(AND(DS$1=$G14,DS$1<>$H14,DS$1<>$I14),11+$J14, IF(AND(DS$1<>$G14,DS$1=$H14,DS$1<>$I14),12+$J14, IF(AND(DS$1<>$G14,DS$1<>$H14,DS$1=$I14),2+$J14, IF(AND(DS$1=$G14,DS$1=$H14,DS$1<>$I14,$F14<>0),13+$J14, IF(AND(DS$1=$G14,DS$1=$H14,DS$1<>$I14,$F14=0),1+$J14, IF(AND(DS$1<>$G14,DS$1=$H14,DS$1=$I14),12+$J14, IF(AND(DS$1=$G14,DS$1=$H14,DS$1=$I14,$F14<=0.5),3+$J14,13+$J14))))))))))) -> 0 | DT14: 0 | DU14: 0 | DV14: 0 | DW14: 0 | DX14: 0 | DY14: 0 | DZ14: 0 | EA14: 0 | EB14: 0 | EC14: 0 | ED14: 0 | EE14: 0 | EF14: 0 | EG14: 0 | EH14: 0 | EI14: 0 | EJ14: 0 | EK14: 0 | EL14: 0 | EM14: 0 | EN14: 0 | EO14: 0 | EP14: 0 | EQ14: 0 | ER14: 0 | ES14: 0 | ET14: 0 | EU14: 0 | EV14: 0 | EW14: 0 | EX14: 0 | EY14: =IF(EY$1>$I14,0, IF(EY$1<$G14,0, IF(AND(EY$1>$G14,EY$1<$H14),14+$J14, IF(AND(EY$1>$H14,EY$1<$I14),4+$J14, IF(AND(EY$1=$G14,EY$1<>$H14,EY$1<>$I14),11+$J14, IF(AND(EY$1<>$G14,EY$1=$H14,EY$1<>$I14),12+$J14, IF(AND(EY$1<>$G14,EY$1<>$H14,EY$1=$I14),2+$J14, IF(AND(EY$1=$G14,EY$1=$H14,EY$1<>$I14,$F14<>0),13+$J14, IF(AND(EY$1=$G14,EY$1=$H14,EY$1<>$I14,$F14=0),1+$J14, IF(AND(EY$1<>$G14,EY$1=$H14,EY$1=$I14),12+$J14, IF(AND(EY$1=$G14,EY$1=$H14,EY$1=$I14,$F14<=0.5),3+$J14,13+$J14))))))))))) -> 0 | EZ14: 0 | FA14: 0 | FB14: 0 | FC14: 0 | FD14: 0 | FE14: 0 | FF14: 0 | FG14: 0 | FH14: 0 | FI14: 0 | FJ14: 0 | FK14: 0 | FL14: 0 | FM14: 0 | FN14: 0 | FO14: =IF(FO$1>$I14,0, IF(FO$1<$G14,0, IF(AND(FO$1>$G14,FO$1<$H14),14+$J14, IF(AND(FO$1>$H14,FO$1<$I14),4+$J14, IF(AND(FO$1=$G14,FO$1<>$H14,FO$1<>$I14),11+$J14, IF(AND(FO$1<>$G14,FO$1=$H14,FO$1<>$I14),12+$J14, IF(AND(FO$1<>$G14,FO$1<>$H14,FO$1=$I14),2+$J14, IF(AND(FO$1=$G14,FO$1=$H14,FO$1<>$I14,$F14<>0),13+$J14, IF(AND(FO$1=$G14,FO$1=$H14,FO$1<>$I14,$F14=0),1+$J14, IF(AND(FO$1<>$G14,FO$1=$H14,FO$1=$I14),12+$J14, IF(AND(FO$1=$G14,FO$1=$H14,FO$1=$I14,$F14<=0.5),3+$J14,13+$J14))))))))))) -> 0 | FP14: 0 | FQ14: 0 | FR14: 0 | FS14: 0 | FT14: 0 | FU14: 0 | FV14: 0 | FW14: 0 | FX14: 0 | FY14: 0 | FZ14: 0 | GA14: 0 | GB14: 0 | GC14: 0 | GD14: 0 | GE14: =IF(GE$1>$I14,0, IF(GE$1<$G14,0, IF(AND(GE$1>$G14,GE$1<$H14),14+$J14, IF(AND(GE$1>$H14,GE$1<$I14),4+$J14, IF(AND(GE$1=$G14,GE$1<>$H14,GE$1<>$I14),11+$J14, IF(AND(GE$1<>$G14,GE$1=$H14,GE$1<>$I14),12+$J14, IF(AND(GE$1<>$G14,GE$1<>$H14,GE$1=$I14),2+$J14, IF(AND(GE$1=$G14,GE$1=$H14,GE$1<>$I14,$F14<>0),13+$J14, IF(AND(GE$1=$G14,GE$1=$H14,GE$1<>$I14,$F14=0),1+$J14, IF(AND(GE$1<>$G14,GE$1=$H14,GE$1=$I14),12+$J14, IF(AND(GE$1=$G14,GE$1=$H14,GE$1=$I14,$F14<=0.5),3+$J14,13+$J14))))))))))) -> 0 | GF14: 0 | GG14: 0 | GH14: 0 | GI14: 0 | GJ14: 0 | GK14: 0 | GL14: 0 | GM14: 0 | GN14: 0 | GO14: 0 | GP14: 0 | GQ14: 0 | GR14: 0 | GS14: 0 | GT14: 0 | GU14: 0 | GV14: 0 | GW14: 0 | GX14: 0 | GY14: 0 | GZ14: 0 | HA14: 0 | HB14: 0 | HC14: 0 | HD14: 0 | HE14: 0 | HF14: 0 | HG14: 0 | HH14: 0 | HI14: 0 | HJ14: 0 | HK14: =IF(HK$1>$I14,0, IF(HK$1<$G14,0, IF(AND(HK$1>$G14,HK$1<$H14),14+$J14, IF(AND(HK$1>$H14,HK$1<$I14),4+$J14, IF(AND(HK$1=$G14,HK$1<>$H14,HK$1<>$I14),11+$J14, IF(AND(HK$1<>$G14,HK$1=$H14,HK$1<>$I14),12+$J14, IF(AND(HK$1<>$G14,HK$1<>$H14,HK$1=$I14),2+$J14, IF(AND(HK$1=$G14,HK$1=$H14,HK$1<>$I14,$F14<>0),13+$J14, IF(AND(HK$1=$G14,HK$1=$H14,HK$1<>$I14,$F14=0),1+$J14, IF(AND(HK$1<>$G14,HK$1=$H14,HK$1=$I14),12+$J14, IF(AND(HK$1=$G14,HK$1=$H14,HK$1=$I14,$F14<=0.5),3+$J14,13+$J14))))))))))) -> 0 | HL14: 0 | HM14: 0 | HN14: 0 | HO14: 0 | HP14: 0 | HQ14: 0 | HR14: 0 | HS14: 0 | HT14: 0 | HU14: 0 | HV14: 0 | HW14: 0 | HX14: 0 | HY14: 0 | HZ14: 0 | IA14: =IF(IA$1>$I14,0, IF(IA$1<$G14,0, IF(AND(IA$1>$G14,IA$1<$H14),14+$J14, IF(AND(IA$1>$H14,IA$1<$I14),4+$J14, IF(AND(IA$1=$G14,IA$1<>$H14,IA$1<>$I14),11+$J14, IF(AND(IA$1<>$G14,IA$1=$H14,IA$1<>$I14),12+$J14, IF(AND(IA$1<>$G14,IA$1<>$H14,IA$1=$I14),2+$J14, IF(AND(IA$1=$G14,IA$1=$H14,IA$1<>$I14,$F14<>0),13+$J14, IF(AND(IA$1=$G14,IA$1=$H14,IA$1<>$I14,$F14=0),1+$J14, IF(AND(IA$1<>$G14,IA$1=$H14,IA$1=$I14),12+$J14, IF(AND(IA$1=$G14,IA$1=$H14,IA$1=$I14,$F14<=0.5),3+$J14,13+$J14))))))))))) -> 0 | IB14: 0 | IC14: 0 | ID14: 0 | IE14: 0 | IF14: 0 | IG14: 0 | IH14: 0 | II14: 0 | IJ14: 0 | IK14: 0 | IL14: 0 | IM14: 0 | IN14: 0 | IO14: 0 | IP14: 0 | IQ14: =IF(IQ$1>$I14,0, IF(IQ$1<$G14,0, IF(AND(IQ$1>$G14,IQ$1<$H14),14+$J14, IF(AND(IQ$1>$H14,IQ$1<$I14),4+$J14, IF(AND(IQ$1=$G14,IQ$1<>$H14,IQ$1<>$I14),11+$J14, IF(AND(IQ$1<>$G14,IQ$1=$H14,IQ$1<>$I14),12+$J14, IF(AND(IQ$1<>$G14,IQ$1<>$H14,IQ$1=$I14),2+$J14, IF(AND(IQ$1=$G14,IQ$1=$H14,IQ$1<>$I14,$F14<>0),13+$J14, IF(AND(IQ$1=$G14,IQ$1=$H14,IQ$1<>$I14,$F14=0),1+$J14, IF(AND(IQ$1<>$G14,IQ$1=$H14,IQ$1=$I14),12+$J14, IF(AND(IQ$1=$G14,IQ$1=$H14,IQ$1=$I14,$F14<=0.5),3+$J14,13+$J14))))))))))) -> 0 | IR14: 0 | IS14: 0 | IT14: 0 | IU14: 0 | IV14: 0 | IW14: 0 | IX14: 0 | IY14: 0 | IZ14: 0 | JA14: 0 | JB14: 0 | JC14: 0 | JD14: 0 | JE14: 0 | JF14: 0 | JG14: 0 | JH14: 0 | JI14: 0 | JJ14: 0 | JK14: 0 | JL14: 0 | JM14: 0 | JN14: 0 | JO14: 0 | JP14: 0 | JQ14: 0 | JR14: 0 | JS14: 0 | JT14: 0 | JU14: 0 | JV14: 0 | JW14: =IF(JW$1>$I14,0, IF(JW$1<$G14,0, IF(AND(JW$1>$G14,JW$1<$H14),14+$J14, IF(AND(JW$1>$H14,JW$1<$I14),4+$J14, IF(AND(JW$1=$G14,JW$1<>$H14,JW$1<>$I14),11+$J14, IF(AND(JW$1<>$G14,JW$1=$H14,JW$1<>$I14),12+$J14, IF(AND(JW$1<>$G14,JW$1<>$H14,JW$1=$I14),2+$J14, IF(AND(JW$1=$G14,JW$1=$H14,JW$1<>$I14,$F14<>0),13+$J14, IF(AND(JW$1=$G14,JW$1=$H14,JW$1<>$I14,$F14=0),1+$J14, IF(AND(JW$1<>$G14,JW$1=$H14,JW$1=$I14),12+$J14, IF(AND(JW$1=$G14,JW$1=$H14,JW$1=$I14,$F14<=0.5),3+$J14,13+$J14))))))))))) -> 0 | JX14: 0 | JY14: 0 | JZ14: 0 | KA14: 0 | KB14: 0 | KC14: 0 | KD14: 0 | KE14: 0 | KF14: 0 | KG14: 0 | KH14: 0 | KI14: 0 | KJ14: 0 | KK14: 0 | KL14: 0 | KM14: =IF(KM$1>$I14,0, IF(KM$1<$G14,0, IF(AND(KM$1>$G14,KM$1<$H14),14+$J14, IF(AND(KM$1>$H14,KM$1<$I14),4+$J14, IF(AND(KM$1=$G14,KM$1<>$H14,KM$1<>$I14),11+$J14, IF(AND(KM$1<>$G14,KM$1=$H14,KM$1<>$I14),12+$J14, IF(AND(KM$1<>$G14,KM$1<>$H14,KM$1=$I14),2+$J14, IF(AND(KM$1=$G14,KM$1=$H14,KM$1<>$I14,$F14<>0),13+$J14, IF(AND(KM$1=$G14,KM$1=$H14,KM$1<>$I14,$F14=0),1+$J14, IF(AND(KM$1<>$G14,KM$1=$H14,KM$1=$I14),12+$J14, IF(AND(KM$1=$G14,KM$1=$H14,KM$1=$I14,$F14<=0.5),3+$J14,13+$J14))))))))))) -> 0 | KN14: 0 | KO14: 0 | KP14: 0 | KQ14: 0 | KR14: 0 | KS14: 0 | KT14: 0 | KU14: 0 | KV14: 0 | KW14: 0 | KX14: 0 | KY14: 0 | KZ14: 0 | LA14: 0 | LB14: 0 | LC14: =IF(LC$1>$I14,0, IF(LC$1<$G14,0, IF(AND(LC$1>$G14,LC$1<$H14),14+$J14, IF(AND(LC$1>$H14,LC$1<$I14),4+$J14, IF(AND(LC$1=$G14,LC$1<>$H14,LC$1<>$I14),11+$J14, IF(AND(LC$1<>$G14,LC$1=$H14,LC$1<>$I14),12+$J14, IF(AND(LC$1<>$G14,LC$1<>$H14,LC$1=$I14),2+$J14, IF(AND(LC$1=$G14,LC$1=$H14,LC$1<>$I14,$F14<>0),13+$J14, IF(AND(LC$1=$G14,LC$1=$H14,LC$1<>$I14,$F14=0),1+$J14, IF(AND(LC$1<>$G14,LC$1=$H14,LC$1=$I14),12+$J14, IF(AND(LC$1=$G14,LC$1=$H14,LC$1=$I14,$F14<=0.5),3+$J14,13+$J14))))))))))) -> 0 | LD14: 0 | LE14: 0 | LF14: 0 | LG14: 0 | LH14: 0 | LI14: 0 | LJ14: 0 | LK14: 0 | LL14: 0 | LM14: 0 | LN14: 0 | LO14: 0 | LP14: 0 | LQ14: 0 | LR14: 0 | LS14: 0 | LT14: 0 | LU14: 0 | LV14: 0 | LW14: 0 | LX14: 0 | LY14: 0 | LZ14: 0 | MA14: 0 | MB14: 0 | MC14: 0 | MD14: 0 | ME14: 0 | MF14: 0 | MG14: 0 | MH14: 0 | MI14: =IF(MI$1>$I14,0, IF(MI$1<$G14,0, IF(AND(MI$1>$G14,MI$1<$H14),14+$J14, IF(AND(MI$1>$H14,MI$1<$I14),4+$J14, IF(AND(MI$1=$G14,MI$1<>$H14,MI$1<>$I14),11+$J14, IF(AND(MI$1<>$G14,MI$1=$H14,MI$1<>$I14),12+$J14, IF(AND(MI$1<>$G14,MI$1<>$H14,MI$1=$I14),2+$J14, IF(AND(MI$1=$G14,MI$1=$H14,MI$1<>$I14,$F14<>0),13+$J14, IF(AND(MI$1=$G14,MI$1=$H14,MI$1<>$I14,$F14=0),1+$J14, IF(AND(MI$1<>$G14,MI$1=$H14,MI$1=$I14),12+$J14, IF(AND(MI$1=$G14,MI$1=$H14,MI$1=$I14,$F14<=0.5),3+$J14,13+$J14))))))))))) -> 0 | MJ14: 0 | MK14: 0 | ML14: 0 | MM14: 0 | MN14: 0 | MO14: 0 | MP14: 0 | MQ14: 0 | MR14: 0 | MS14: 0 | MT14: 0 | MU14: 0 | MV14: 0 | MW14: 0 | MX14: 0 | MY14: =IF(MY$1>$I14,0, IF(MY$1<$G14,0, IF(AND(MY$1>$G14,MY$1<$H14),14+$J14, IF(AND(MY$1>$H14,MY$1<$I14),4+$J14, IF(AND(MY$1=$G14,MY$1<>$H14,MY$1<>$I14),11+$J14, IF(AND(MY$1<>$G14,MY$1=$H14,MY$1<>$I14),12+$J14, IF(AND(MY$1<>$G14,MY$1<>$H14,MY$1=$I14),2+$J14, IF(AND(MY$1=$G14,MY$1=$H14,MY$1<>$I14,$F14<>0),13+$J14, IF(AND(MY$1=$G14,MY$1=$H14,MY$1<>$I14,$F14=0),1+$J14, IF(AND(MY$1<>$G14,MY$1=$H14,MY$1=$I14),12+$J14, IF(AND(MY$1=$G14,MY$1=$H14,MY$1=$I14,$F14<=0.5),3+$J14,13+$J14))))))))))) -> 0 | MZ14: 0 | NA14: 0 | NB14: 0 | NC14: 0 | ND14: 0 | NE14: 0 | NF14: 0 | NG14: 0 | NH14: 0 | NI14: 0 | NJ14: 0 | NK14: 0 | NL14: 0 | NM14: 0 | NN14: 0 | NO14: =IF(NO$1>$I14,0, IF(NO$1<$G14,0, IF(AND(NO$1>$G14,NO$1<$H14),14+$J14, IF(AND(NO$1>$H14,NO$1<$I14),4+$J14, IF(AND(NO$1=$G14,NO$1<>$H14,NO$1<>$I14),11+$J14, IF(AND(NO$1<>$G14,NO$1=$H14,NO$1<>$I14),12+$J14, IF(AND(NO$1<>$G14,NO$1<>$H14,NO$1=$I14),2+$J14, IF(AND(NO$1=$G14,NO$1=$H14,NO$1<>$I14,$F14<>0),13+$J14, IF(AND(NO$1=$G14,NO$1=$H14,NO$1<>$I14,$F14=0),1+$J14, IF(AND(NO$1<>$G14,NO$1=$H14,NO$1=$I14),12+$J14, IF(AND(NO$1=$G14,NO$1=$H14,NO$1=$I14,$F14<=0.5),3+$J14,13+$J14))))))))))) -> 0 | NP14: 0 | NQ14: 0 | NR14: 0 | NS14: 0 | NT14: 0 | NU14: 0 | NV14: 0 | NW14: 0 | NX14: 0 | NY14: 0 | NZ14: 0 | OA14: 0 | OB14: 0 | OC14: 0 | OD14: 0 | OE14: 0 | OF14: 0 | OG14: 0 | OH14: 0 | OI14: 0 | OJ14: 0 | OK14: 0 | OL14: 0 | OM14: 0 | ON14: 0 | OO14: 0 | OP14: 0 | OQ14: 0 | OR14: 0 | OS14: 0 | OT14: 0 | OU14: =IF(OU$1>$I14,0, IF(OU$1<$G14,0, IF(AND(OU$1>$G14,OU$1<$H14),14+$J14, IF(AND(OU$1>$H14,OU$1<$I14),4+$J14, IF(AND(OU$1=$G14,OU$1<>$H14,OU$1<>$I14),11+$J14, IF(AND(OU$1<>$G14,OU$1=$H14,OU$1<>$I14),12+$J14, IF(AND(OU$1<>$G14,OU$1<>$H14,OU$1=$I14),2+$J14, IF(AND(OU$1=$G14,OU$1=$H14,OU$1<>$I14,$F14<>0),13+$J14, IF(AND(OU$1=$G14,OU$1=$H14,OU$1<>$I14,$F14=0),1+$J14, IF(AND(OU$1<>$G14,OU$1=$H14,OU$1=$I14),12+$J14, IF(AND(OU$1=$G14,OU$1=$H14,OU$1=$I14,$F14<=0.5),3+$J14,13+$J14))))))))))) -> 0 | OV14: 0 | OW14: 0 | OX14: 0 | OY14: 0 | OZ14: 0 | PA14: 0 | PB14: 0 | PC14: 0 | PD14: 0 | PE14: 0 | PF14: 0 | PG14: 0 | PH14: 0 | PI14: 0 | PJ14: 0 | PK14: =IF(PK$1>$I14,0, IF(PK$1<$G14,0, IF(AND(PK$1>$G14,PK$1<$H14),14+$J14, IF(AND(PK$1>$H14,PK$1<$I14),4+$J14, IF(AND(PK$1=$G14,PK$1<>$H14,PK$1<>$I14),11+$J14, IF(AND(PK$1<>$G14,PK$1=$H14,PK$1<>$I14),12+$J14, IF(AND(PK$1<>$G14,PK$1<>$H14,PK$1=$I14),2+$J14, IF(AND(PK$1=$G14,PK$1=$H14,PK$1<>$I14,$F14<>0),13+$J14, IF(AND(PK$1=$G14,PK$1=$H14,PK$1<>$I14,$F14=0),1+$J14, IF(AND(PK$1<>$G14,PK$1=$H14,PK$1=$I14),12+$J14, IF(AND(PK$1=$G14,PK$1=$H14,PK$1=$I14,$F14<=0.5),3+$J14,13+$J14))))))))))) -> 0 | PL14: 0 | PM14: 0 | PN14: 0 | PO14: 0 | PP14: 0 | PQ14: 0 | PR14: 0 | PS14: 0 | PT14: 0 | PU14: 0 | PV14: 0 | PW14: 0 | PX14: 0 | PY14: 0 | PZ14: 0 | QA14: =IF(QA$1>$I14,0, IF(QA$1<$G14,0, IF(AND(QA$1>$G14,QA$1<$H14),14+$J14, IF(AND(QA$1>$H14,QA$1<$I14),4+$J14, IF(AND(QA$1=$G14,QA$1<>$H14,QA$1<>$I14),11+$J14, IF(AND(QA$1<>$G14,QA$1=$H14,QA$1<>$I14),12+$J14, IF(AND(QA$1<>$G14,QA$1<>$H14,QA$1=$I14),2+$J14, IF(AND(QA$1=$G14,QA$1=$H14,QA$1<>$I14,$F14<>0),13+$J14, IF(AND(QA$1=$G14,QA$1=$H14,QA$1<>$I14,$F14=0),1+$J14, IF(AND(QA$1<>$G14,QA$1=$H14,QA$1=$I14),12+$J14, IF(AND(QA$1=$G14,QA$1=$H14,QA$1=$I14,$F14<=0.5),3+$J14,13+$J14))))))))))) -> 0 | QB14: 0 | QC14: 0 | QD14: 0 | QE14: 0 | QF14: 0 | QG14: 0 | QH14: 0 | QI14: 0 | QJ14: 0 | QK14: 0 | QL14: 0 | QM14: 0 | QN14: 0 | QO14: 0 | QP14: 0 | QQ14: 0 | QR14: 0 | QS14: 0 | QT14: 0 | QU14: 0 | QV14: 0 | QW14: 0 | QX14: 0 | QY14: 0 | QZ14: 0 | RA14: 0 | RB14: 0 | RC14: 0 | RD14: 0 | RE14: 0 | RF14: 0 | RG14: 0 | RH14: 0 | RI14: 0 | RJ14: 0 | RK14: 0 | RL14: 0 | RM14: 0 | RN14: 0 | RO14: 0 | RP14: 0 | RQ14: 0 | RR14: 0 | RS14: 0 | RT14: 0 | RU14: 0 | RV14: 0 | RW14: 0 | RX14: 0 | RY14: 0 | RZ14: 0 | SA14: 0 | SB14: 0 | SC14: 0 | SD14: 0 | SE14: 0 | SF14: 0 | SG14: 0 | SH14: 0 | SI14: 0 | SJ14: 0 | SK14: 0 | SL14: 0 | SM14: 0 | SN14: 0 | SO14: 0 | SP14: 0 | SQ14: 0 | SS14: =IF(gIsItPlan,IF(AND(System!Z10,System!AA10),1,0),IF(AND(System!Z10,System!AB10),1,0)) -> 1
B15: =IF($SS15,IF(E15=1,System!B11," "&System!B11),"") -> Поиск подрядчика | C15: =IF($SS15,IF(gIsItPlan,System!F11,System!I11),"") -> 2014-04-23 | D15: =IF($SS15,IF(gIsItPlan,System!G11,System!J11),"") -> 2014-05-06 | E15: =System!C11 -> 2 | F15: =System!L11 -> 1 | G15: 37 | H15: 44 | I15: 44 | J15: 20 | L15: 0 | M15: 0 | N15: 0 | O15: 0 | P15: 0 | Q15: 0 | R15: 0 | S15: 0 | T15: 0 | U15: 0 | V15: 0 | W15: 0 | X15: 0 | Y15: 0 | Z15: 0 | AA15: 0 | AB15: 0 | AC15: 0 | AD15: 0 | AE15: 0 | AF15: 0 | AG15: 0 | AH15: 0 | AI15: 0 | AJ15: 0 | AK15: 0 | AL15: 31 | AM15: 34 | AN15: 34 | AO15: 34 | AP15: 34 | AQ15: 34 | AR15: 34 | AS15: 32 | AT15: 0 | AU15: 0 | AV15: 0 | AW15: 0 | AX15: 0 | AY15: 0 | AZ15: 0 | BA15: 0 | BB15: 0 | BC15: 0 | BD15: 0 | BE15: 0 | BF15: 0 | BG15: 0 | BH15: 0 | BI15: 0 | BJ15: 0 | BK15: 0 | BL15: 0 | BM15: 0 | BN15: 0 | BO15: 0 | BP15: 0 | BQ15: 0 | BR15: 0 | BS15: 0 | BT15: 0 | BU15: 0 | BV15: 0 | BW15: 0 | BX15: 0 | BY15: 0 | BZ15: 0 | CA15: 0 | CB15: 0 | CC15: 0 | CD15: 0 | CE15: 0 | CF15: 0 | CG15: 0 | CH15: 0 | CI15: 0 | CJ15: 0 | CK15: 0 | CL15: 0 | CM15: 0 | CN15: 0 | CO15: 0 | CP15: 0 | CQ15: 0 | CR15: 0 | CS15: 0 | CT15: 0 | CU15: 0 | CV15: 0 | CW15: 0 | CX15: 0 | CY15: 0 | CZ15: 0 | DA15: 0 | DB15: 0 | DC15: 0 | DD15: 0 | DE15: 0 | DF15: 0 | DG15: 0 | DH15: 0 | DI15: 0 | DJ15: 0 | DK15: 0 | DL15: 0 | DM15: 0 | DN15: 0 | DO15: 0 | DP15: 0 | DQ15: 0 | DR15: 0 | DS15: 0 | DT15: 0 | DU15: 0 | DV15: 0 | DW15: 0 | DX15: 0 | DY15: 0 | DZ15: 0 | EA15: 0 | EB15: 0 | EC15: 0 | ED15: 0 | EE15: 0 | EF15: 0 | EG15: 0 | EH15: 0 | EI15: 0 | EJ15: 0 | EK15: 0 | EL15: 0 | EM15: 0 | EN15: 0 | EO15: 0 | EP15: 0 | EQ15: 0 | ER15: 0 | ES15: 0 | ET15: 0 | EU15: 0 | EV15: 0 | EW15: 0 | EX15: 0 | EY15: 0 | EZ15: 0 | FA15: 0 | FB15: 0 | FC15: 0 | FD15: 0 | FE15: 0 | FF15: 0 | FG15: 0 | FH15: 0 | FI15: 0 | FJ15: 0 | FK15: 0 | FL15: 0 | FM15: 0 | FN15: 0 | FO15: 0 | FP15: 0 | FQ15: 0 | FR15: 0 | FS15: 0 | FT15: 0 | FU15: 0 | FV15: 0 | FW15: 0 | FX15: 0 | FY15: 0 | FZ15: 0 | GA15: 0 | GB15: 0 | GC15: 0 | GD15: 0 | GE15: 0 | GF15: 0 | GG15: 0 | GH15: 0 | GI15: 0 | GJ15: 0 | GK15: 0 | GL15: 0 | GM15: 0 | GN15: 0 | GO15: 0 | GP15: 0 | GQ15: 0 | GR15: 0 | GS15: 0 | GT15: 0 | GU15: 0 | GV15: 0 | GW15: 0 | GX15: 0 | GY15: 0 | GZ15: 0 | HA15: 0 | HB15: 0 | HC15: 0 | HD15: 0 | HE15: 0 | HF15: 0 | HG15: 0 | HH15: 0 | HI15: 0 | HJ15: 0 | HK15: 0 | HL15: 0 | HM15: 0 | HN15: 0 | HO15: 0 | HP15: 0 | HQ15: 0 | HR15: 0 | HS15: 0 | HT15: 0 | HU15: 0 | HV15: 0 | HW15: 0 | HX15: 0 | HY15: 0 | HZ15: 0 | IA15: 0 | IB15: 0 | IC15: 0 | ID15: 0 | IE15: 0 | IF15: 0 | IG15: 0 | IH15: 0 | II15: 0 | IJ15: 0 | IK15: 0 | IL15: 0 | IM15: 0 | IN15: 0 | IO15: 0 | IP15: 0 | IQ15: 0 | IR15: 0 | IS15: 0 | IT15: 0 | IU15: 0 | IV15: 0 | IW15: 0 | IX15: 0 | IY15: 0 | IZ15: 0 | JA15: 0 | JB15: 0 | JC15: 0 | JD15: 0 | JE15: 0 | JF15: 0 | JG15: 0 | JH15: 0 | JI15: 0 | JJ15: 0 | JK15: 0 | JL15: 0 | JM15: 0 | JN15: 0 | JO15: 0 | JP15: 0 | JQ15: 0 | JR15: 0 | JS15: 0 | JT15: 0 | JU15: 0 | JV15: 0 | JW15: 0 | JX15: 0 | JY15: 0 | JZ15: 0 | KA15: 0 | KB15: 0 | KC15: 0 | KD15: 0 | KE15: 0 | KF15: 0 | KG15: 0 | KH15: 0 | KI15: 0 | KJ15: 0 | KK15: 0 | KL15: 0 | KM15: 0 | KN15: 0 | KO15: 0 | KP15: 0 | KQ15: 0 | KR15: 0 | KS15: 0 | KT15: 0 | KU15: 0 | KV15: 0 | KW15: 0 | KX15: 0 | KY15: 0 | KZ15: 0 | LA15: 0 | LB15: 0 | LC15: 0 | LD15: 0 | LE15: 0 | LF15: 0 | LG15: 0 | LH15: 0 | LI15: 0 | LJ15: 0 | LK15: 0 | LL15: 0 | LM15: 0 | LN15: 0 | LO15: 0 | LP15: 0 | LQ15: 0 | LR15: 0 | LS15: 0 | LT15: 0 | LU15: 0 | LV15: 0 | LW15: 0 | LX15: 0 | LY15: 0 | LZ15: 0 | MA15: 0 | MB15: 0 | MC15: 0 | MD15: 0 | ME15: 0 | MF15: 0 | MG15: 0 | MH15: 0 | MI15: 0 | MJ15: 0 | MK15: 0 | ML15: 0 | MM15: 0 | MN15: 0 | MO15: 0 | MP15: 0 | MQ15: 0 | MR15: 0 | MS15: 0 | MT15: 0 | MU15: 0 | MV15: 0 | MW15: 0 | MX15: 0 | MY15: 0 | MZ15: 0 | NA15: 0 | NB15: 0 | NC15: 0 | ND15: 0 | NE15: 0 | NF15: 0 | NG15: 0 | NH15: 0 | NI15: 0 | NJ15: 0 | NK15: 0 | NL15: 0 | NM15: 0 | NN15: 0 | NO15: 0 | NP15: 0 | NQ15: 0 | NR15: 0 | NS15: 0 | NT15: 0 | NU15: 0 | NV15: 0 | NW15: 0 | NX15: 0 | NY15: 0 | NZ15: 0 | OA15: 0 | OB15: 0 | OC15: 0 | OD15: 0 | OE15: 0 | OF15: 0 | OG15: 0 | OH15: 0 | OI15: 0 | OJ15: 0 | OK15: 0 | OL15: 0 | OM15: 0 | ON15: 0 | OO15: 0 | OP15: 0 | OQ15: 0 | OR15: 0 | OS15: 0 | OT15: 0 | OU15: 0 | OV15: 0 | OW15: 0 | OX15: 0 | OY15: 0 | OZ15: 0 | PA15: 0 | PB15: 0 | PC15: 0 | PD15: 0 | PE15: 0 | PF15: 0 | PG15: 0 | PH15: 0 | PI15: 0 | PJ15: 0 | PK15: 0 | PL15: 0 | PM15: 0 | PN15: 0 | PO15: 0 | PP15: 0 | PQ15: 0 | PR15: 0 | PS15: 0 | PT15: 0 | PU15: 0 | PV15: 0 | PW15: 0 | PX15: 0 | PY15: 0 | PZ15: 0 | QA15: 0 | QB15: 0 | QC15: 0 | QD15: 0 | QE15: 0 | QF15: 0 | QG15: 0 | QH15: 0 | QI15: 0 | QJ15: 0 | QK15: 0 | QL15: 0 | QM15: 0 | QN15: 0 | QO15: 0 | QP15: 0 | QQ15: 0 | QR15: 0 | QS15: 0 | QT15: 0 | QU15: 0 | QV15: 0 | QW15: 0 | QX15: 0 | QY15: 0 | QZ15: 0 | RA15: 0 | RB15: 0 | RC15: 0 | RD15: 0 | RE15: 0 | RF15: 0 | RG15: 0 | RH15: 0 | RI15: 0 | RJ15: 0 | RK15: 0 | RL15: 0 | RM15: 0 | RN15: 0 | RO15: 0 | RP15: 0 | RQ15: 0 | RR15: 0 | RS15: 0 | RT15: 0 | RU15: 0 | RV15: 0 | RW15: 0 | RX15: 0 | RY15: 0 | RZ15: 0 | SA15: 0 | SB15: 0 | SC15: 0 | SD15: 0 | SE15: 0 | SF15: 0 | SG15: 0 | SH15: 0 | SI15: 0 | SJ15: 0 | SK15: 0 | SL15: 0 | SM15: 0 | SN15: 0 | SO15: 0 | SP15: 0 | SQ15: 0 | SS15: =IF(gIsItPlan,IF(AND(System!Z11,System!AA11),1,0),IF(AND(System!Z11,System!AB11),1,0)) -> 1
B16: =IF($SS16,IF(E16=1,System!B12," "&System!B12),"") -> Заключение договора с подрядчиком | C16: =IF($SS16,IF(gIsItPlan,System!F12,System!I12),"") -> 2014-05-07 | D16: =IF($SS16,IF(gIsItPlan,System!G12,System!J12),"") -> 2014-05-13 | E16: =System!C12 -> 2 | F16: =System!L12 -> 1 | G16: 44 | H16: 47 | I16: 47 | J16: 20 | L16: 0 | M16: 0 | N16: 0 | O16: 0 | P16: 0 | Q16: 0 | R16: 0 | S16: 0 | T16: 0 | U16: 0 | V16: 0 | W16: 0 | X16: 0 | Y16: 0 | Z16: 0 | AA16: 0 | AB16: 0 | AC16: 0 | AD16: 0 | AE16: 0 | AF16: 0 | AG16: 0 | AH16: 0 | AI16: 0 | AJ16: 0 | AK16: 0 | AL16: 0 | AM16: 0 | AN16: 0 | AO16: 0 | AP16: 0 | AQ16: 0 | AR16: 0 | AS16: 31 | AT16: 34 | AU16: 34 | AV16: 32 | AW16: 0 | AX16: 0 | AY16: 0 | AZ16: 0 | BA16: 0 | BB16: 0 | BC16: 0 | BD16: 0 | BE16: 0 | BF16: 0 | BG16: 0 | BH16: 0 | BI16: 0 | BJ16: 0 | BK16: 0 | BL16: 0 | BM16: 0 | BN16: 0 | BO16: 0 | BP16: 0 | BQ16: 0 | BR16: 0 | BS16: 0 | BT16: 0 | BU16: 0 | BV16: 0 | BW16: 0 | BX16: 0 | BY16: 0 | BZ16: 0 | CA16: 0 | CB16: 0 | CC16: 0 | CD16: 0 | CE16: 0 | CF16: 0 | CG16: 0 | CH16: 0 | CI16: 0 | CJ16: 0 | CK16: 0 | CL16: 0 | CM16: 0 | CN16: 0 | CO16: 0 | CP16: 0 | CQ16: 0 | CR16: 0 | CS16: 0 | CT16: 0 | CU16: 0 | CV16: 0 | CW16: 0 | CX16: 0 | CY16: 0 | CZ16: 0 | DA16: 0 | DB16: 0 | DC16: 0 | DD16: 0 | DE16: 0 | DF16: 0 | DG16: 0 | DH16: 0 | DI16: 0 | DJ16: 0 | DK16: 0 | DL16: 0 | DM16: 0 | DN16: 0 | DO16: 0 | DP16: 0 | DQ16: 0 | DR16: 0 | DS16: 0 | DT16: 0 | DU16: 0 | DV16: 0 | DW16: 0 | DX16: 0 | DY16: 0 | DZ16: 0 | EA16: 0 | EB16: 0 | EC16: 0 | ED16: 0 | EE16: 0 | EF16: 0 | EG16: 0 | EH16: 0 | EI16: 0 | EJ16: 0 | EK16: 0 | EL16: 0 | EM16: 0 | EN16: 0 | EO16: 0 | EP16: 0 | EQ16: 0 | ER16: 0 | ES16: 0 | ET16: 0 | EU16: 0 | EV16: 0 | EW16: 0 | EX16: 0 | EY16: 0 | EZ16: 0 | FA16: 0 | FB16: 0 | FC16: 0 | FD16: 0 | FE16: 0 | FF16: 0 | FG16: 0 | FH16: 0 | FI16: 0 | FJ16: 0 | FK16: 0 | FL16: 0 | FM16: 0 | FN16: 0 | FO16: 0 | FP16: 0 | FQ16: 0 | FR16: 0 | FS16: 0 | FT16: 0 | FU16: 0 | FV16: 0 | FW16: 0 | FX16: 0 | FY16: 0 | FZ16: 0 | GA16: 0 | GB16: 0 | GC16: 0 | GD16: 0 | GE16: 0 | GF16: 0 | GG16: 0 | GH16: 0 | GI16: 0 | GJ16: 0 | GK16: 0 | GL16: 0 | GM16: 0 | GN16: 0 | GO16: 0 | GP16: 0 | GQ16: 0 | GR16: 0 | GS16: 0 | GT16: 0 | GU16: 0 | GV16: 0 | GW16: 0 | GX16: 0 | GY16: 0 | GZ16: 0 | HA16: 0 | HB16: 0 | HC16: 0 | HD16: 0 | HE16: 0 | HF16: 0 | HG16: 0 | HH16: 0 | HI16: 0 | HJ16: 0 | HK16: 0 | HL16: 0 | HM16: 0 | HN16: 0 | HO16: 0 | HP16: 0 | HQ16: 0 | HR16: 0 | HS16: 0 | HT16: 0 | HU16: 0 | HV16: 0 | HW16: 0 | HX16: 0 | HY16: 0 | HZ16: 0 | IA16: 0 | IB16: 0 | IC16: 0 | ID16: 0 | IE16: 0 | IF16: 0 | IG16: 0 | IH16: 0 | II16: 0 | IJ16: 0 | IK16: 0 | IL16: 0 | IM16: 0 | IN16: 0 | IO16: 0 | IP16: 0 | IQ16: 0 | IR16: 0 | IS16: 0 | IT16: 0 | IU16: 0 | IV16: 0 | IW16: 0 | IX16: 0 | IY16: 0 | IZ16: 0 | JA16: 0 | JB16: 0 | JC16: 0 | JD16: 0 | JE16: 0 | JF16: 0 | JG16: 0 | JH16: 0 | JI16: 0 | JJ16: 0 | JK16: 0 | JL16: 0 | JM16: 0 | JN16: 0 | JO16: 0 | JP16: 0 | JQ16: 0 | JR16: 0 | JS16: 0 | JT16: 0 | JU16: 0 | JV16: 0 | JW16: 0 | JX16: 0 | JY16: 0 | JZ16: 0 | KA16: 0 | KB16: 0 | KC16: 0 | KD16: 0 | KE16: 0 | KF16: 0 | KG16: 0 | KH16: 0 | KI16: 0 | KJ16: 0 | KK16: 0 | KL16: 0 | KM16: 0 | KN16: 0 | KO16: 0 | KP16: 0 | KQ16: 0 | KR16: 0 | KS16: 0 | KT16: 0 | KU16: 0 | KV16: 0 | KW16: 0 | KX16: 0 | KY16: 0 | KZ16: 0 | LA16: 0 | LB16: 0 | LC16: 0 | LD16: 0 | LE16: 0 | LF16: 0 | LG16: 0 | LH16: 0 | LI16: 0 | LJ16: 0 | LK16: 0 | LL16: 0 | LM16: 0 | LN16: 0 | LO16: 0 | LP16: 0 | LQ16: 0 | LR16: 0 | LS16: 0 | LT16: 0 | LU16: 0 | LV16: 0 | LW16: 0 | LX16: 0 | LY16: 0 | LZ16: 0 | MA16: 0 | MB16: 0 | MC16: 0 | MD16: 0 | ME16: 0 | MF16: 0 | MG16: 0 | MH16: 0 | MI16: 0 | MJ16: 0 | MK16: 0 | ML16: 0 | MM16: 0 | MN16: 0 | MO16: 0 | MP16: 0 | MQ16: 0 | MR16: 0 | MS16: 0 | MT16: 0 | MU16: 0 | MV16: 0 | MW16: 0 | MX16: 0 | MY16: 0 | MZ16: 0 | NA16: 0 | NB16: 0 | NC16: 0 | ND16: 0 | NE16: 0 | NF16: 0 | NG16: 0 | NH16: 0 | NI16: 0 | NJ16: 0 | NK16: 0 | NL16: 0 | NM16: 0 | NN16: 0 | NO16: 0 | NP16: 0 | NQ16: 0 | NR16: 0 | NS16: 0 | NT16: 0 | NU16: 0 | NV16: 0 | NW16: 0 | NX16: 0 | NY16: 0 | NZ16: 0 | OA16: 0 | OB16: 0 | OC16: 0 | OD16: 0 | OE16: 0 | OF16: 0 | OG16: 0 | OH16: 0 | OI16: 0 | OJ16: 0 | OK16: 0 | OL16: 0 | OM16: 0 | ON16: 0 | OO16: 0 | OP16: 0 | OQ16: 0 | OR16: 0 | OS16: 0 | OT16: 0 | OU16: 0 | OV16: 0 | OW16: 0 | OX16: 0 | OY16: 0 | OZ16: 0 | PA16: 0 | PB16: 0 | PC16: 0 | PD16: 0 | PE16: 0 | PF16: 0 | PG16: 0 | PH16: 0 | PI16: 0 | PJ16: 0 | PK16: 0 | PL16: 0 | PM16: 0 | PN16: 0 | PO16: 0 | PP16: 0 | PQ16: 0 | PR16: 0 | PS16: 0 | PT16: 0 | PU16: 0 | PV16: 0 | PW16: 0 | PX16: 0 | PY16: 0 | PZ16: 0 | QA16: 0 | QB16: 0 | QC16: 0 | QD16: 0 | QE16: 0 | QF16: 0 | QG16: 0 | QH16: 0 | QI16: 0 | QJ16: 0 | QK16: 0 | QL16: 0 | QM16: 0 | QN16: 0 | QO16: 0 | QP16: 0 | QQ16: 0 | QR16: 0 | QS16: 0 | QT16: 0 | QU16: 0 | QV16: 0 | QW16: 0 | QX16: 0 | QY16: 0 | QZ16: 0 | RA16: 0 | RB16: 0 | RC16: 0 | RD16: 0 | RE16: 0 | RF16: 0 | RG16: 0 | RH16: 0 | RI16: 0 | RJ16: 0 | RK16: 0 | RL16: 0 | RM16: 0 | RN16: 0 | RO16: 0 | RP16: 0 | RQ16: 0 | RR16: 0 | RS16: 0 | RT16: 0 | RU16: 0 | RV16: 0 | RW16: 0 | RX16: 0 | RY16: 0 | RZ16: 0 | SA16: 0 | SB16: 0 | SC16: 0 | SD16: 0 | SE16: 0 | SF16: 0 | SG16: 0 | SH16: 0 | SI16: 0 | SJ16: 0 | SK16: 0 | SL16: 0 | SM16: 0 | SN16: 0 | SO16: 0 | SP16: 0 | SQ16: 0 | SS16: =IF(gIsItPlan,IF(AND(System!Z12,System!AA12),1,0),IF(AND(System!Z12,System!AB12),1,0)) -> 1
B17: =IF($SS17,IF(E17=1,System!B13," "&System!B13),"") -> Реализация | C17: =IF($SS17,IF(gIsItPlan,System!F13,System!I13),"") -> 2014-05-14 | D17: =IF($SS17,IF(gIsItPlan,System!G13,System!J13),"") -> 2014-08-06 | E17: =System!C13 -> 1 | F17: =System!L13 -> 0.779787234 | G17: 48 | H17: 81 | I17: 90 | J17: 0 | L17: 0 | M17: 0 | N17: 0 | O17: 0 | P17: 0 | Q17: 0 | R17: 0 | S17: 0 | T17: 0 | U17: 0 | V17: 0 | W17: 0 | X17: 0 | Y17: 0 | Z17: 0 | AA17: 0 | AB17: 0 | AC17: 0 | AD17: 0 | AE17: 0 | AF17: 0 | AG17: 0 | AH17: 0 | AI17: 0 | AJ17: 0 | AK17: 0 | AL17: 0 | AM17: 0 | AN17: 0 | AO17: 0 | AP17: 0 | AQ17: 0 | AR17: 0 | AS17: 0 | AT17: 0 | AU17: 0 | AV17: 0 | AW17: 11 | AX17: 14 | AY17: 14 | AZ17: 14 | BA17: 14 | BB17: 14 | BC17: 14 | BD17: 14 | BE17: 14 | BF17: 14 | BG17: 14 | BH17: 14 | BI17: 14 | BJ17: 14 | BK17: 14 | BL17: 14 | BM17: 14 | BN17: 14 | BO17: 14 | BP17: 14 | BQ17: 14 | BR17: 14 | BS17: 14 | BT17: 14 | BU17: 14 | BV17: 14 | BW17: 14 | BX17: 14 | BY17: 14 | BZ17: 14 | CA17: 14 | CB17: 14 | CC17: 14 | CD17: 12 | CE17: 4 | CF17: 4 | CG17: 4 | CH17: 4 | CI17: 4 | CJ17: 4 | CK17: 4 | CL17: 4 | CM17: 2 | CN17: 0 | CO17: 0 | CP17: 0 | CQ17: 0 | CR17: 0 | CS17: 0 | CT17: 0 | CU17: 0 | CV17: 0 | CW17: 0 | CX17: 0 | CY17: 0 | CZ17: 0 | DA17: 0 | DB17: 0 | DC17: 0 | DD17: 0 | DE17: 0 | DF17: 0 | DG17: 0 | DH17: 0 | DI17: 0 | DJ17: 0 | DK17: 0 | DL17: 0 | DM17: 0 | DN17: 0 | DO17: 0 | DP17: 0 | DQ17: 0 | DR17: 0 | DS17: 0 | DT17: 0 | DU17: 0 | DV17: 0 | DW17: 0 | DX17: 0 | DY17: 0 | DZ17: 0 | EA17: 0 | EB17: 0 | EC17: 0 | ED17: 0 | EE17: 0 | EF17: 0 | EG17: 0 | EH17: 0 | EI17: 0 | EJ17: 0 | EK17: 0 | EL17: 0 | EM17: 0 | EN17: 0 | EO17: 0 | EP17: 0 | EQ17: 0 | ER17: 0 | ES17: 0 | ET17: 0 | EU17: 0 | EV17: 0 | EW17: 0 | EX17: 0 | EY17: 0 | EZ17: 0 | FA17: 0 | FB17: 0 | FC17: 0 | FD17: 0 | FE17: 0 | FF17: 0 | FG17: 0 | FH17: 0 | FI17: 0 | FJ17: 0 | FK17: 0 | FL17: 0 | FM17: 0 | FN17: 0 | FO17: 0 | FP17: 0 | FQ17: 0 | FR17: 0 | FS17: 0 | FT17: 0 | FU17: 0 | FV17: 0 | FW17: 0 | FX17: 0 | FY17: 0 | FZ17: 0 | GA17: 0 | GB17: 0 | GC17: 0 | GD17: 0 | GE17: 0 | GF17: 0 | GG17: 0 | GH17: 0 | GI17: 0 | GJ17: 0 | GK17: 0 | GL17: 0 | GM17: 0 | GN17: 0 | GO17: 0 | GP17: 0 | GQ17: 0 | GR17: 0 | GS17: 0 | GT17: 0 | GU17: 0 | GV17: 0 | GW17: 0 | GX17: 0 | GY17: 0 | GZ17: 0 | HA17: 0 | HB17: 0 | HC17: 0 | HD17: 0 | HE17: 0 | HF17: 0 | HG17: 0 | HH17: 0 | HI17: 0 | HJ17: 0 | HK17: 0 | HL17: 0 | HM17: 0 | HN17: 0 | HO17: 0 | HP17: 0 | HQ17: 0 | HR17: 0 | HS17: 0 | HT17: 0 | HU17: 0 | HV17: 0 | HW17: 0 | HX17: 0 | HY17: 0 | HZ17: 0 | IA17: 0 | IB17: 0 | IC17: 0 | ID17: 0 | IE17: 0 | IF17: 0 | IG17: 0 | IH17: 0 | II17: 0 | IJ17: 0 | IK17: 0 | IL17: 0 | IM17: 0 | IN17: 0 | IO17: 0 | IP17: 0 | IQ17: 0 | IR17: 0 | IS17: 0 | IT17: 0 | IU17: 0 | IV17: 0 | IW17: 0 | IX17: 0 | IY17: 0 | IZ17: 0 | JA17: 0 | JB17: 0 | JC17: 0 | JD17: 0 | JE17: 0 | JF17: 0 | JG17: 0 | JH17: 0 | JI17: 0 | JJ17: 0 | JK17: 0 | JL17: 0 | JM17: 0 | JN17: 0 | JO17: 0 | JP17: 0 | JQ17: 0 | JR17: 0 | JS17: 0 | JT17: 0 | JU17: 0 | JV17: 0 | JW17: 0 | JX17: 0 | JY17: 0 | JZ17: 0 | KA17: 0 | KB17: 0 | KC17: 0 | KD17: 0 | KE17: 0 | KF17: 0 | KG17: 0 | KH17: 0 | KI17: 0 | KJ17: 0 | KK17: 0 | KL17: 0 | KM17: 0 | KN17: 0 | KO17: 0 | KP17: 0 | KQ17: 0 | KR17: 0 | KS17: 0 | KT17: 0 | KU17: 0 | KV17: 0 | KW17: 0 | KX17: 0 | KY17: 0 | KZ17: 0 | LA17: 0 | LB17: 0 | LC17: 0 | LD17: 0 | LE17: 0 | LF17: 0 | LG17: 0 | LH17: 0 | LI17: 0 | LJ17: 0 | LK17: 0 | LL17: 0 | LM17: 0 | LN17: 0 | LO17: 0 | LP17: 0 | LQ17: 0 | LR17: 0 | LS17: 0 | LT17: 0 | LU17: 0 | LV17: 0 | LW17: 0 | LX17: 0 | LY17: 0 | LZ17: 0 | MA17: 0 | MB17: 0 | MC17: 0 | MD17: 0 | ME17: 0 | MF17: 0 | MG17: 0 | MH17: 0 | MI17: 0 | MJ17: 0 | MK17: 0 | ML17: 0 | MM17: 0 | MN17: 0 | MO17: 0 | MP17: 0 | MQ17: 0 | MR17: 0 | MS17: 0 | MT17: 0 | MU17: 0 | MV17: 0 | MW17: 0 | MX17: 0 | MY17: 0 | MZ17: 0 | NA17: 0 | NB17: 0 | NC17: 0 | ND17: 0 | NE17: 0 | NF17: 0 | NG17: 0 | NH17: 0 | NI17: 0 | NJ17: 0 | NK17: 0 | NL17: 0 | NM17: 0 | NN17: 0 | NO17: 0 | NP17: 0 | NQ17: 0 | NR17: 0 | NS17: 0 | NT17: 0 | NU17: 0 | NV17: 0 | NW17: 0 | NX17: 0 | NY17: 0 | NZ17: 0 | OA17: 0 | OB17: 0 | OC17: 0 | OD17: 0 | OE17: 0 | OF17: 0 | OG17: 0 | OH17: 0 | OI17: 0 | OJ17: 0 | OK17: 0 | OL17: 0 | OM17: 0 | ON17: 0 | OO17: 0 | OP17: 0 | OQ17: 0 | OR17: 0 | OS17: 0 | OT17: 0 | OU17: 0 | OV17: 0 | OW17: 0 | OX17: 0 | OY17: 0 | OZ17: 0 | PA17: 0 | PB17: 0 | PC17: 0 | PD17: 0 | PE17: 0 | PF17: 0 | PG17: 0 | PH17: 0 | PI17: 0 | PJ17: 0 | PK17: 0 | PL17: 0 | PM17: 0 | PN17: 0 | PO17: 0 | PP17: 0 | PQ17: 0 | PR17: 0 | PS17: 0 | PT17: 0 | PU17: 0 | PV17: 0 | PW17: 0 | PX17: 0 | PY17: 0 | PZ17: 0 | QA17: 0 | QB17: 0 | QC17: 0 | QD17: 0 | QE17: 0 | QF17: 0 | QG17: 0 | QH17: 0 | QI17: 0 | QJ17: 0 | QK17: 0 | QL17: 0 | QM17: 0 | QN17: 0 | QO17: 0 | QP17: 0 | QQ17: 0 | QR17: 0 | QS17: 0 | QT17: 0 | QU17: 0 | QV17: 0 | QW17: 0 | QX17: 0 | QY17: 0 | QZ17: 0 | RA17: 0 | RB17: 0 | RC17: 0 | RD17: 0 | RE17: 0 | RF17: 0 | RG17: 0 | RH17: 0 | RI17: 0 | RJ17: 0 | RK17: 0 | RL17: 0 | RM17: 0 | RN17: 0 | RO17: 0 | RP17: 0 | RQ17: 0 | RR17: 0 | RS17: 0 | RT17: 0 | RU17: 0 | RV17: 0 | RW17: 0 | RX17: 0 | RY17: 0 | RZ17: 0 | SA17: 0 | SB17: 0 | SC17: 0 | SD17: 0 | SE17: 0 | SF17: 0 | SG17: 0 | SH17: 0 | SI17: 0 | SJ17: 0 | SK17: 0 | SL17: 0 | SM17: 0 | SN17: 0 | SO17: 0 | SP17: 0 | SQ17: 0 | SS17: =IF(gIsItPlan,IF(AND(System!Z13,System!AA13),1,0),IF(AND(System!Z13,System!AB13),1,0)) -> 1
B18: =IF($SS18,IF(E18=1,System!B14," "&System!B14),"") -> Подготовка помещений | C18: =IF($SS18,IF(gIsItPlan,System!F14,System!I14),"") -> 2014-05-14 | D18: =IF($SS18,IF(gIsItPlan,System!G14,System!J14),"") -> 2014-05-15 | E18: =System!C14 -> 2 | F18: =System!L14 -> 1 | G18: 48 | H18: 48 | I18: 48 | J18: 20 | L18: 0 | M18: 0 | N18: 0 | O18: 0 | P18: 0 | Q18: 0 | R18: 0 | S18: 0 | T18: 0 | U18: 0 | V18: 0 | W18: 0 | X18: 0 | Y18: 0 | Z18: 0 | AA18: 0 | AB18: 0 | AC18: 0 | AD18: 0 | AE18: 0 | AF18: 0 | AG18: 0 | AH18: 0 | AI18: 0 | AJ18: 0 | AK18: 0 | AL18: 0 | AM18: 0 | AN18: 0 | AO18: 0 | AP18: 0 | AQ18: 0 | AR18: 0 | AS18: 0 | AT18: 0 | AU18: 0 | AV18: 0 | AW18: 33 | AX18: 0 | AY18: 0 | AZ18: 0 | BA18: 0 | BB18: 0 | BC18: 0 | BD18: 0 | BE18: 0 | BF18: 0 | BG18: 0 | BH18: 0 | BI18: 0 | BJ18: 0 | BK18: 0 | BL18: 0 | BM18: 0 | BN18: 0 | BO18: 0 | BP18: 0 | BQ18: 0 | BR18: 0 | BS18: 0 | BT18: 0 | BU18: 0 | BV18: 0 | BW18: 0 | BX18: 0 | BY18: 0 | BZ18: 0 | CA18: 0 | CB18: 0 | CC18: 0 | CD18: 0 | CE18: 0 | CF18: 0 | CG18: 0 | CH18: 0 | CI18: 0 | CJ18: 0 | CK18: 0 | CL18: 0 | CM18: 0 | CN18: 0 | CO18: 0 | CP18: 0 | CQ18: 0 | CR18: 0 | CS18: 0 | CT18: 0 | CU18: 0 | CV18: 0 | CW18: 0 | CX18: 0 | CY18: 0 | CZ18: 0 | DA18: 0 | DB18: 0 | DC18: 0 | DD18: 0 | DE18: 0 | DF18: 0 | DG18: 0 | DH18: 0 | DI18: 0 | DJ18: 0 | DK18: 0 | DL18: 0 | DM18: 0 | DN18: 0 | DO18: 0 | DP18: 0 | DQ18: 0 | DR18: 0 | DS18: 0 | DT18: 0 | DU18: 0 | DV18: 0 | DW18: 0 | DX18: 0 | DY18: 0 | DZ18: 0 | EA18: 0 | EB18: 0 | EC18: 0 | ED18: 0 | EE18: 0 | EF18: 0 | EG18: 0 | EH18: 0 | EI18: 0 | EJ18: 0 | EK18: 0 | EL18: 0 | EM18: 0 | EN18: 0 | EO18: 0 | EP18: 0 | EQ18: 0 | ER18: 0 | ES18: 0 | ET18: 0 | EU18: 0 | EV18: 0 | EW18: 0 | EX18: 0 | EY18: 0 | EZ18: 0 | FA18: 0 | FB18: 0 | FC18: 0 | FD18: 0 | FE18: 0 | FF18: 0 | FG18: 0 | FH18: 0 | FI18: 0 | FJ18: 0 | FK18: 0 | FL18: 0 | FM18: 0 | FN18: 0 | FO18: 0 | FP18: 0 | FQ18: 0 | FR18: 0 | FS18: 0 | FT18: 0 | FU18: 0 | FV18: 0 | FW18: 0 | FX18: 0 | FY18: 0 | FZ18: 0 | GA18: 0 | GB18: 0 | GC18: 0 | GD18: 0 | GE18: 0 | GF18: 0 | GG18: 0 | GH18: 0 | GI18: 0 | GJ18: 0 | GK18: 0 | GL18: 0 | GM18: 0 | GN18: 0 | GO18: 0 | GP18: 0 | GQ18: 0 | GR18: 0 | GS18: 0 | GT18: 0 | GU18: 0 | GV18: 0 | GW18: 0 | GX18: 0 | GY18: 0 | GZ18: 0 | HA18: 0 | HB18: 0 | HC18: 0 | HD18: 0 | HE18: 0 | HF18: 0 | HG18: 0 | HH18: 0 | HI18: 0 | HJ18: 0 | HK18: 0 | HL18: 0 | HM18: 0 | HN18: 0 | HO18: 0 | HP18: 0 | HQ18: 0 | HR18: 0 | HS18: 0 | HT18: 0 | HU18: 0 | HV18: 0 | HW18: 0 | HX18: 0 | HY18: 0 | HZ18: 0 | IA18: 0 | IB18: 0 | IC18: 0 | ID18: 0 | IE18: 0 | IF18: 0 | IG18: 0 | IH18: 0 | II18: 0 | IJ18: 0 | IK18: 0 | IL18: 0 | IM18: 0 | IN18: 0 | IO18: 0 | IP18: 0 | IQ18: 0 | IR18: 0 | IS18: 0 | IT18: 0 | IU18: 0 | IV18: 0 | IW18: 0 | IX18: 0 | IY18: 0 | IZ18: 0 | JA18: 0 | JB18: 0 | JC18: 0 | JD18: 0 | JE18: 0 | JF18: 0 | JG18: 0 | JH18: 0 | JI18: 0 | JJ18: 0 | JK18: 0 | JL18: 0 | JM18: 0 | JN18: 0 | JO18: 0 | JP18: 0 | JQ18: 0 | JR18: 0 | JS18: 0 | JT18: 0 | JU18: 0 | JV18: 0 | JW18: 0 | JX18: 0 | JY18: 0 | JZ18: 0 | KA18: 0 | KB18: 0 | KC18: 0 | KD18: 0 | KE18: 0 | KF18: 0 | KG18: 0 | KH18: 0 | KI18: 0 | KJ18: 0 | KK18: 0 | KL18: 0 | KM18: 0 | KN18: 0 | KO18: 0 | KP18: 0 | KQ18: 0 | KR18: 0 | KS18: 0 | KT18: 0 | KU18: 0 | KV18: 0 | KW18: 0 | KX18: 0 | KY18: 0 | KZ18: 0 | LA18: 0 | LB18: 0 | LC18: 0 | LD18: 0 | LE18: 0 | LF18: 0 | LG18: 0 | LH18: 0 | LI18: 0 | LJ18: 0 | LK18: 0 | LL18: 0 | LM18: 0 | LN18: 0 | LO18: 0 | LP18: 0 | LQ18: 0 | LR18: 0 | LS18: 0 | LT18: 0 | LU18: 0 | LV18: 0 | LW18: 0 | LX18: 0 | LY18: 0 | LZ18: 0 | MA18: 0 | MB18: 0 | MC18: 0 | MD18: 0 | ME18: 0 | MF18: 0 | MG18: 0 | MH18: 0 | MI18: 0 | MJ18: 0 | MK18: 0 | ML18: 0 | MM18: 0 | MN18: 0 | MO18: 0 | MP18: 0 | MQ18: 0 | MR18: 0 | MS18: 0 | MT18: 0 | MU18: 0 | MV18: 0 | MW18: 0 | MX18: 0 | MY18: 0 | MZ18: 0 | NA18: 0 | NB18: 0 | NC18: 0 | ND18: 0 | NE18: 0 | NF18: 0 | NG18: 0 | NH18: 0 | NI18: 0 | NJ18: 0 | NK18: 0 | NL18: 0 | NM18: 0 | NN18: 0 | NO18: 0 | NP18: 0 | NQ18: 0 | NR18: 0 | NS18: 0 | NT18: 0 | NU18: 0 | NV18: 0 | NW18: 0 | NX18: 0 | NY18: 0 | NZ18: 0 | OA18: 0 | OB18: 0 | OC18: 0 | OD18: 0 | OE18: 0 | OF18: 0 | OG18: 0 | OH18: 0 | OI18: 0 | OJ18: 0 | OK18: 0 | OL18: 0 | OM18: 0 | ON18: 0 | OO18: 0 | OP18: 0 | OQ18: 0 | OR18: 0 | OS18: 0 | OT18: 0 | OU18: 0 | OV18: 0 | OW18: 0 | OX18: 0 | OY18: 0 | OZ18: 0 | PA18: 0 | PB18: 0 | PC18: 0 | PD18: 0 | PE18: 0 | PF18: 0 | PG18: 0 | PH18: 0 | PI18: 0 | PJ18: 0 | PK18: 0 | PL18: 0 | PM18: 0 | PN18: 0 | PO18: 0 | PP18: 0 | PQ18: 0 | PR18: 0 | PS18: 0 | PT18: 0 | PU18: 0 | PV18: 0 | PW18: 0 | PX18: 0 | PY18: 0 | PZ18: 0 | QA18: 0 | QB18: 0 | QC18: 0 | QD18: 0 | QE18: 0 | QF18: 0 | QG18: 0 | QH18: 0 | QI18: 0 | QJ18: 0 | QK18: 0 | QL18: 0 | QM18: 0 | QN18: 0 | QO18: 0 | QP18: 0 | QQ18: 0 | QR18: 0 | QS18: 0 | QT18: 0 | QU18: 0 | QV18: 0 | QW18: 0 | QX18: 0 | QY18: 0 | QZ18: 0 | RA18: 0 | RB18: 0 | RC18: 0 | RD18: 0 | RE18: 0 | RF18: 0 | RG18: 0 | RH18: 0 | RI18: 0 | RJ18: 0 | RK18: 0 | RL18: 0 | RM18: 0 | RN18: 0 | RO18: 0 | RP18: 0 | RQ18: 0 | RR18: 0 | RS18: 0 | RT18: 0 | RU18: 0 | RV18: 0 | RW18: 0 | RX18: 0 | RY18: 0 | RZ18: 0 | SA18: 0 | SB18: 0 | SC18: 0 | SD18: 0 | SE18: 0 | SF18: 0 | SG18: 0 | SH18: 0 | SI18: 0 | SJ18: 0 | SK18: 0 | SL18: 0 | SM18: 0 | SN18: 0 | SO18: 0 | SP18: 0 | SQ18: 0 | SS18: =IF(gIsItPlan,IF(AND(System!Z14,System!AA14),1,0),IF(AND(System!Z14,System!AB14),1,0)) -> 1
B19: =IF($SS19,IF(E19=1,System!B15," "&System!B15),"") -> Снос стен | C19: =IF($SS19,IF(gIsItPlan,System!F15,System!I15),"") -> 2014-05-16 | D19: =IF($SS19,IF(gIsItPlan,System!G15,System!J15),"") -> 2014-05-22 | E19: =System!C15 -> 2 | F19: =System!L15 -> 1 | G19: 49 | H19: 52 | I19: 52 | J19: 20 | L19: 0 | M19: 0 | N19: 0 | O19: 0 | P19: 0 | Q19: 0 | R19: 0 | S19: 0 | T19: 0 | U19: 0 | V19: 0 | W19: 0 | X19: 0 | Y19: 0 | Z19: 0 | AA19: 0 | AB19: 0 | AC19: 0 | AD19: 0 | AE19: 0 | AF19: 0 | AG19: 0 | AH19: 0 | AI19: 0 | AJ19: 0 | AK19: 0 | AL19: 0 | AM19: 0 | AN19: 0 | AO19: 0 | AP19: 0 | AQ19: 0 | AR19: 0 | AS19: 0 | AT19: 0 | AU19: 0 | AV19: 0 | AW19: 0 | AX19: 31 | AY19: 34 | AZ19: 34 | BA19: 32 | BB19: 0 | BC19: 0 | BD19: 0 | BE19: 0 | BF19: 0 | BG19: 0 | BH19: 0 | BI19: 0 | BJ19: 0 | BK19: 0 | BL19: 0 | BM19: 0 | BN19: 0 | BO19: 0 | BP19: 0 | BQ19: 0 | BR19: 0 | BS19: 0 | BT19: 0 | BU19: 0 | BV19: 0 | BW19: 0 | BX19: 0 | BY19: 0 | BZ19: 0 | CA19: 0 | CB19: 0 | CC19: 0 | CD19: 0 | CE19: 0 | CF19: 0 | CG19: 0 | CH19: 0 | CI19: 0 | CJ19: 0 | CK19: 0 | CL19: 0 | CM19: 0 | CN19: 0 | CO19: 0 | CP19: 0 | CQ19: 0 | CR19: 0 | CS19: 0 | CT19: 0 | CU19: 0 | CV19: 0 | CW19: 0 | CX19: 0 | CY19: 0 | CZ19: 0 | DA19: 0 | DB19: 0 | DC19: 0 | DD19: 0 | DE19: 0 | DF19: 0 | DG19: 0 | DH19: 0 | DI19: 0 | DJ19: 0 | DK19: 0 | DL19: 0 | DM19: 0 | DN19: 0 | DO19: 0 | DP19: 0 | DQ19: 0 | DR19: 0 | DS19: 0 | DT19: 0 | DU19: 0 | DV19: 0 | DW19: 0 | DX19: 0 | DY19: 0 | DZ19: 0 | EA19: 0 | EB19: 0 | EC19: 0 | ED19: 0 | EE19: 0 | EF19: 0 | EG19: 0 | EH19: 0 | EI19: 0 | EJ19: 0 | EK19: 0 | EL19: 0 | EM19: 0 | EN19: 0 | EO19: 0 | EP19: 0 | EQ19: 0 | ER19: 0 | ES19: 0 | ET19: 0 | EU19: 0 | EV19: 0 | EW19: 0 | EX19: 0 | EY19: 0 | EZ19: 0 | FA19: 0 | FB19: 0 | FC19: 0 | FD19: 0 | FE19: 0 | FF19: 0 | FG19: 0 | FH19: 0 | FI19: 0 | FJ19: 0 | FK19: 0 | FL19: 0 | FM19: 0 | FN19: 0 | FO19: 0 | FP19: 0 | FQ19: 0 | FR19: 0 | FS19: 0 | FT19: 0 | FU19: 0 | FV19: 0 | FW19: 0 | FX19: 0 | FY19: 0 | FZ19: 0 | GA19: 0 | GB19: 0 | GC19: 0 | GD19: 0 | GE19: 0 | GF19: 0 | GG19: 0 | GH19: 0 | GI19: 0 | GJ19: 0 | GK19: 0 | GL19: 0 | GM19: 0 | GN19: 0 | GO19: 0 | GP19: 0 | GQ19: 0 | GR19: 0 | GS19: 0 | GT19: 0 | GU19: 0 | GV19: 0 | GW19: 0 | GX19: 0 | GY19: 0 | GZ19: 0 | HA19: 0 | HB19: 0 | HC19: 0 | HD19: 0 | HE19: 0 | HF19: 0 | HG19: 0 | HH19: 0 | HI19: 0 | HJ19: 0 | HK19: 0 | HL19: 0 | HM19: 0 | HN19: 0 | HO19: 0 | HP19: 0 | HQ19: 0 | HR19: 0 | HS19: 0 | HT19: 0 | HU19: 0 | HV19: 0 | HW19: 0 | HX19: 0 | HY19: 0 | HZ19: 0 | IA19: 0 | IB19: 0 | IC19: 0 | ID19: 0 | IE19: 0 | IF19: 0 | IG19: 0 | IH19: 0 | II19: 0 | IJ19: 0 | IK19: 0 | IL19: 0 | IM19: 0 | IN19: 0 | IO19: 0 | IP19: 0 | IQ19: 0 | IR19: 0 | IS19: 0 | IT19: 0 | IU19: 0 | IV19: 0 | IW19: 0 | IX19: 0 | IY19: 0 | IZ19: 0 | JA19: 0 | JB19: 0 | JC19: 0 | JD19: 0 | JE19: 0 | JF19: 0 | JG19: 0 | JH19: 0 | JI19: 0 | JJ19: 0 | JK19: 0 | JL19: 0 | JM19: 0 | JN19: 0 | JO19: 0 | JP19: 0 | JQ19: 0 | JR19: 0 | JS19: 0 | JT19: 0 | JU19: 0 | JV19: 0 | JW19: 0 | JX19: 0 | JY19: 0 | JZ19: 0 | KA19: 0 | KB19: 0 | KC19: 0 | KD19: 0 | KE19: 0 | KF19: 0 | KG19: 0 | KH19: 0 | KI19: 0 | KJ19: 0 | KK19: 0 | KL19: 0 | KM19: 0 | KN19: 0 | KO19: 0 | KP19: 0 | KQ19: 0 | KR19: 0 | KS19: 0 | KT19: 0 | KU19: 0 | KV19: 0 | KW19: 0 | KX19: 0 | KY19: 0 | KZ19: 0 | LA19: 0 | LB19: 0 | LC19: 0 | LD19: 0 | LE19: 0 | LF19: 0 | LG19: 0 | LH19: 0 | LI19: 0 | LJ19: 0 | LK19: 0 | LL19: 0 | LM19: 0 | LN19: 0 | LO19: 0 | LP19: 0 | LQ19: 0 | LR19: 0 | LS19: 0 | LT19: 0 | LU19: 0 | LV19: 0 | LW19: 0 | LX19: 0 | LY19: 0 | LZ19: 0 | MA19: 0 | MB19: 0 | MC19: 0 | MD19: 0 | ME19: 0 | MF19: 0 | MG19: 0 | MH19: 0 | MI19: 0 | MJ19: 0 | MK19: 0 | ML19: 0 | MM19: 0 | MN19: 0 | MO19: 0 | MP19: 0 | MQ19: 0 | MR19: 0 | MS19: 0 | MT19: 0 | MU19: 0 | MV19: 0 | MW19: 0 | MX19: 0 | MY19: 0 | MZ19: 0 | NA19: 0 | NB19: 0 | NC19: 0 | ND19: 0 | NE19: 0 | NF19: 0 | NG19: 0 | NH19: 0 | NI19: 0 | NJ19: 0 | NK19: 0 | NL19: 0 | NM19: 0 | NN19: 0 | NO19: 0 | NP19: 0 | NQ19: 0 | NR19: 0 | NS19: 0 | NT19: 0 | NU19: 0 | NV19: 0 | NW19: 0 | NX19: 0 | NY19: 0 | NZ19: 0 | OA19: 0 | OB19: 0 | OC19: 0 | OD19: 0 | OE19: 0 | OF19: 0 | OG19: 0 | OH19: 0 | OI19: 0 | OJ19: 0 | OK19: 0 | OL19: 0 | OM19: 0 | ON19: 0 | OO19: 0 | OP19: 0 | OQ19: 0 | OR19: 0 | OS19: 0 | OT19: 0 | OU19: 0 | OV19: 0 | OW19: 0 | OX19: 0 | OY19: 0 | OZ19: 0 | PA19: 0 | PB19: 0 | PC19: 0 | PD19: 0 | PE19: 0 | PF19: 0 | PG19: 0 | PH19: 0 | PI19: 0 | PJ19: 0 | PK19: 0 | PL19: 0 | PM19: 0 | PN19: 0 | PO19: 0 | PP19: 0 | PQ19: 0 | PR19: 0 | PS19: 0 | PT19: 0 | PU19: 0 | PV19: 0 | PW19: 0 | PX19: 0 | PY19: 0 | PZ19: 0 | QA19: 0 | QB19: 0 | QC19: 0 | QD19: 0 | QE19: 0 | QF19: 0 | QG19: 0 | QH19: 0 | QI19: 0 | QJ19: 0 | QK19: 0 | QL19: 0 | QM19: 0 | QN19: 0 | QO19: 0 | QP19: 0 | QQ19: 0 | QR19: 0 | QS19: 0 | QT19: 0 | QU19: 0 | QV19: 0 | QW19: 0 | QX19: 0 | QY19: 0 | QZ19: 0 | RA19: 0 | RB19: 0 | RC19: 0 | RD19: 0 | RE19: 0 | RF19: 0 | RG19: 0 | RH19: 0 | RI19: 0 | RJ19: 0 | RK19: 0 | RL19: 0 | RM19: 0 | RN19: 0 | RO19: 0 | RP19: 0 | RQ19: 0 | RR19: 0 | RS19: 0 | RT19: 0 | RU19: 0 | RV19: 0 | RW19: 0 | RX19: 0 | RY19: 0 | RZ19: 0 | SA19: 0 | SB19: 0 | SC19: 0 | SD19: 0 | SE19: 0 | SF19: 0 | SG19: 0 | SH19: 0 | SI19: 0 | SJ19: 0 | SK19: 0 | SL19: 0 | SM19: 0 | SN19: 0 | SO19: 0 | SP19: 0 | SQ19: 0 | SS19: =IF(gIsItPlan,IF(AND(System!Z15,System!AA15),1,0),IF(AND(System!Z15,System!AB15),1,0)) -> 1
B20: =IF($SS20,IF(E20=1,System!B16," "&System!B16),"") -> Закупка материалов | C20: =IF($SS20,IF(gIsItPlan,System!F16,System!I16),"") -> 2014-05-23 | D20: =IF($SS20,IF(gIsItPlan,System!G16,System!J16),"") -> 2014-06-01 | E20: =System!C16 -> 2 | F20: =System!L16 -> 1 | G20: 52 | H20: 57 | I20: 57 | J20: 20 | L20: 0 | M20: 0 | N20: 0 | O20: 0 | P20: 0 | Q20: 0 | R20: 0 | S20: 0 | T20: 0 | U20: 0 | V20: 0 | W20: 0 | X20: 0 | Y20: 0 | Z20: 0 | AA20: 0 | AB20: 0 | AC20: 0 | AD20: 0 | AE20: 0 | AF20: 0 | AG20: 0 | AH20: 0 | AI20: 0 | AJ20: 0 | AK20: 0 | AL20: 0 | AM20: 0 | AN20: 0 | AO20: 0 | AP20: 0 | AQ20: 0 | AR20: 0 | AS20: 0 | AT20: 0 | AU20: 0 | AV20: 0 | AW20: 0 | AX20: 0 | AY20: 0 | AZ20: 0 | BA20: 31 | BB20: 34 | BC20: 34 | BD20: 34 | BE20: 34 | BF20: 32 | BG20: 0 | BH20: 0 | BI20: 0 | BJ20: 0 | BK20: 0 | BL20: 0 | BM20: 0 | BN20: 0 | BO20: 0 | BP20: 0 | BQ20: 0 | BR20: 0 | BS20: 0 | BT20: 0 | BU20: 0 | BV20: 0 | BW20: 0 | BX20: 0 | BY20: 0 | BZ20: 0 | CA20: 0 | CB20: 0 | CC20: 0 | CD20: 0 | CE20: 0 | CF20: 0 | CG20: 0 | CH20: 0 | CI20: 0 | CJ20: 0 | CK20: 0 | CL20: 0 | CM20: 0 | CN20: 0 | CO20: 0 | CP20: 0 | CQ20: 0 | CR20: 0 | CS20: 0 | CT20: 0 | CU20: 0 | CV20: 0 | CW20: 0 | CX20: 0 | CY20: 0 | CZ20: 0 | DA20: 0 | DB20: 0 | DC20: 0 | DD20: 0 | DE20: 0 | DF20: 0 | DG20: 0 | DH20: 0 | DI20: 0 | DJ20: 0 | DK20: 0 | DL20: 0 | DM20: 0 | DN20: 0 | DO20: 0 | DP20: 0 | DQ20: 0 | DR20: 0 | DS20: 0 | DT20: 0 | DU20: 0 | DV20: 0 | DW20: 0 | DX20: 0 | DY20: 0 | DZ20: 0 | EA20: 0 | EB20: 0 | EC20: 0 | ED20: 0 | EE20: 0 | EF20: 0 | EG20: 0 | EH20: 0 | EI20: 0 | EJ20: 0 | EK20: 0 | EL20: 0 | EM20: 0 | EN20: 0 | EO20: 0 | EP20: 0 | EQ20: 0 | ER20: 0 | ES20: 0 | ET20: 0 | EU20: 0 | EV20: 0 | EW20: 0 | EX20: 0 | EY20: 0 | EZ20: 0 | FA20: 0 | FB20: 0 | FC20: 0 | FD20: 0 | FE20: 0 | FF20: 0 | FG20: 0 | FH20: 0 | FI20: 0 | FJ20: 0 | FK20: 0 | FL20: 0 | FM20: 0 | FN20: 0 | FO20: 0 | FP20: 0 | FQ20: 0 | FR20: 0 | FS20: 0 | FT20: 0 | FU20: 0 | FV20: 0 | FW20: 0 | FX20: 0 | FY20: 0 | FZ20: 0 | GA20: 0 | GB20: 0 | GC20: 0 | GD20: 0 | GE20: 0 | GF20: 0 | GG20: 0 | GH20: 0 | GI20: 0 | GJ20: 0 | GK20: 0 | GL20: 0 | GM20: 0 | GN20: 0 | GO20: 0 | GP20: 0 | GQ20: 0 | GR20: 0 | GS20: 0 | GT20: 0 | GU20: 0 | GV20: 0 | GW20: 0 | GX20: 0 | GY20: 0 | GZ20: 0 | HA20: 0 | HB20: 0 | HC20: 0 | HD20: 0 | HE20: 0 | HF20: 0 | HG20: 0 | HH20: 0 | HI20: 0 | HJ20: 0 | HK20: 0 | HL20: 0 | HM20: 0 | HN20: 0 | HO20: 0 | HP20: 0 | HQ20: 0 | HR20: 0 | HS20: 0 | HT20: 0 | HU20: 0 | HV20: 0 | HW20: 0 | HX20: 0 | HY20: 0 | HZ20: 0 | IA20: 0 | IB20: 0 | IC20: 0 | ID20: 0 | IE20: 0 | IF20: 0 | IG20: 0 | IH20: 0 | II20: 0 | IJ20: 0 | IK20: 0 | IL20: 0 | IM20: 0 | IN20: 0 | IO20: 0 | IP20: 0 | IQ20: 0 | IR20: 0 | IS20: 0 | IT20: 0 | IU20: 0 | IV20: 0 | IW20: 0 | IX20: 0 | IY20: 0 | IZ20: 0 | JA20: 0 | JB20: 0 | JC20: 0 | JD20: 0 | JE20: 0 | JF20: 0 | JG20: 0 | JH20: 0 | JI20: 0 | JJ20: 0 | JK20: 0 | JL20: 0 | JM20: 0 | JN20: 0 | JO20: 0 | JP20: 0 | JQ20: 0 | JR20: 0 | JS20: 0 | JT20: 0 | JU20: 0 | JV20: 0 | JW20: 0 | JX20: 0 | JY20: 0 | JZ20: 0 | KA20: 0 | KB20: 0 | KC20: 0 | KD20: 0 | KE20: 0 | KF20: 0 | KG20: 0 | KH20: 0 | KI20: 0 | KJ20: 0 | KK20: 0 | KL20: 0 | KM20: 0 | KN20: 0 | KO20: 0 | KP20: 0 | KQ20: 0 | KR20: 0 | KS20: 0 | KT20: 0 | KU20: 0 | KV20: 0 | KW20: 0 | KX20: 0 | KY20: 0 | KZ20: 0 | LA20: 0 | LB20: 0 | LC20: 0 | LD20: 0 | LE20: 0 | LF20: 0 | LG20: 0 | LH20: 0 | LI20: 0 | LJ20: 0 | LK20: 0 | LL20: 0 | LM20: 0 | LN20: 0 | LO20: 0 | LP20: 0 | LQ20: 0 | LR20: 0 | LS20: 0 | LT20: 0 | LU20: 0 | LV20: 0 | LW20: 0 | LX20: 0 | LY20: 0 | LZ20: 0 | MA20: 0 | MB20: 0 | MC20: 0 | MD20: 0 | ME20: 0 | MF20: 0 | MG20: 0 | MH20: 0 | MI20: 0 | MJ20: 0 | MK20: 0 | ML20: 0 | MM20: 0 | MN20: 0 | MO20: 0 | MP20: 0 | MQ20: 0 | MR20: 0 | MS20: 0 | MT20: 0 | MU20: 0 | MV20: 0 | MW20: 0 | MX20: 0 | MY20: 0 | MZ20: 0 | NA20: 0 | NB20: 0 | NC20: 0 | ND20: 0 | NE20: 0 | NF20: 0 | NG20: 0 | NH20: 0 | NI20: 0 | NJ20: 0 | NK20: 0 | NL20: 0 | NM20: 0 | NN20: 0 | NO20: 0 | NP20: 0 | NQ20: 0 | NR20: 0 | NS20: 0 | NT20: 0 | NU20: 0 | NV20: 0 | NW20: 0 | NX20: 0 | NY20: 0 | NZ20: 0 | OA20: 0 | OB20: 0 | OC20: 0 | OD20: 0 | OE20: 0 | OF20: 0 | OG20: 0 | OH20: 0 | OI20: 0 | OJ20: 0 | OK20: 0 | OL20: 0 | OM20: 0 | ON20: 0 | OO20: 0 | OP20: 0 | OQ20: 0 | OR20: 0 | OS20: 0 | OT20: 0 | OU20: 0 | OV20: 0 | OW20: 0 | OX20: 0 | OY20: 0 | OZ20: 0 | PA20: 0 | PB20: 0 | PC20: 0 | PD20: 0 | PE20: 0 | PF20: 0 | PG20: 0 | PH20: 0 | PI20: 0 | PJ20: 0 | PK20: 0 | PL20: 0 | PM20: 0 | PN20: 0 | PO20: 0 | PP20: 0 | PQ20: 0 | PR20: 0 | PS20: 0 | PT20: 0 | PU20: 0 | PV20: 0 | PW20: 0 | PX20: 0 | PY20: 0 | PZ20: 0 | QA20: 0 | QB20: 0 | QC20: 0 | QD20: 0 | QE20: 0 | QF20: 0 | QG20: 0 | QH20: 0 | QI20: 0 | QJ20: 0 | QK20: 0 | QL20: 0 | QM20: 0 | QN20: 0 | QO20: 0 | QP20: 0 | QQ20: 0 | QR20: 0 | QS20: 0 | QT20: 0 | QU20: 0 | QV20: 0 | QW20: 0 | QX20: 0 | QY20: 0 | QZ20: 0 | RA20: 0 | RB20: 0 | RC20: 0 | RD20: 0 | RE20: 0 | RF20: 0 | RG20: 0 | RH20: 0 | RI20: 0 | RJ20: 0 | RK20: 0 | RL20: 0 | RM20: 0 | RN20: 0 | RO20: 0 | RP20: 0 | RQ20: 0 | RR20: 0 | RS20: 0 | RT20: 0 | RU20: 0 | RV20: 0 | RW20: 0 | RX20: 0 | RY20: 0 | RZ20: 0 | SA20: 0 | SB20: 0 | SC20: 0 | SD20: 0 | SE20: 0 | SF20: 0 | SG20: 0 | SH20: 0 | SI20: 0 | SJ20: 0 | SK20: 0 | SL20: 0 | SM20: 0 | SN20: 0 | SO20: 0 | SP20: 0 | SQ20: 0 | SS20: =IF(gIsItPlan,IF(AND(System!Z16,System!AA16),1,0),IF(AND(System!Z16,System!AB16),1,0)) -> 1
B21: =IF($SS21,IF(E21=1,System!B17," "&System!B17),"") -> Доставка материалов | C21: =IF($SS21,IF(gIsItPlan,System!F17,System!I17),"") -> 2014-06-02 | D21: =IF($SS21,IF(gIsItPlan,System!G17,System!J17),"") -> 2014-06-03 | E21: =System!C17 -> 2 | F21: =System!L17 -> 1 | G21: 57 | H21: 58 | I21: 58 | J21: 20 | L21: 0 | M21: 0 | N21: 0 | O21: 0 | P21: 0 | Q21: 0 | R21: 0 | S21: 0 | T21: 0 | U21: 0 | V21: 0 | W21: 0 | X21: 0 | Y21: 0 | Z21: 0 | AA21: 0 | AB21: 0 | AC21: 0 | AD21: 0 | AE21: 0 | AF21: 0 | AG21: 0 | AH21: 0 | AI21: 0 | AJ21: 0 | AK21: 0 | AL21: 0 | AM21: 0 | AN21: 0 | AO21: 0 | AP21: 0 | AQ21: 0 | AR21: 0 | AS21: 0 | AT21: 0 | AU21: 0 | AV21: 0 | AW21: 0 | AX21: 0 | AY21: 0 | AZ21: 0 | BA21: 0 | BB21: 0 | BC21: 0 | BD21: 0 | BE21: 0 | BF21: 31 | BG21: 32 | BH21: 0 | BI21: 0 | BJ21: 0 | BK21: 0 | BL21: 0 | BM21: 0 | BN21: 0 | BO21: 0 | BP21: 0 | BQ21: 0 | BR21: 0 | BS21: 0 | BT21: 0 | BU21: 0 | BV21: 0 | BW21: 0 | BX21: 0 | BY21: 0 | BZ21: 0 | CA21: 0 | CB21: 0 | CC21: 0 | CD21: 0 | CE21: 0 | CF21: 0 | CG21: 0 | CH21: 0 | CI21: 0 | CJ21: 0 | CK21: 0 | CL21: 0 | CM21: 0 | CN21: 0 | CO21: 0 | CP21: 0 | CQ21: 0 | CR21: 0 | CS21: 0 | CT21: 0 | CU21: 0 | CV21: 0 | CW21: 0 | CX21: 0 | CY21: 0 | CZ21: 0 | DA21: 0 | DB21: 0 | DC21: 0 | DD21: 0 | DE21: 0 | DF21: 0 | DG21: 0 | DH21: 0 | DI21: 0 | DJ21: 0 | DK21: 0 | DL21: 0 | DM21: 0 | DN21: 0 | DO21: 0 | DP21: 0 | DQ21: 0 | DR21: 0 | DS21: 0 | DT21: 0 | DU21: 0 | DV21: 0 | DW21: 0 | DX21: 0 | DY21: 0 | DZ21: 0 | EA21: 0 | EB21: 0 | EC21: 0 | ED21: 0 | EE21: 0 | EF21: 0 | EG21: 0 | EH21: 0 | EI21: 0 | EJ21: 0 | EK21: 0 | EL21: 0 | EM21: 0 | EN21: 0 | EO21: 0 | EP21: 0 | EQ21: 0 | ER21: 0 | ES21: 0 | ET21: 0 | EU21: 0 | EV21: 0 | EW21: 0 | EX21: 0 | EY21: 0 | EZ21: 0 | FA21: 0 | FB21: 0 | FC21: 0 | FD21: 0 | FE21: 0 | FF21: 0 | FG21: 0 | FH21: 0 | FI21: 0 | FJ21: 0 | FK21: 0 | FL21: 0 | FM21: 0 | FN21: 0 | FO21: 0 | FP21: 0 | FQ21: 0 | FR21: 0 | FS21: 0 | FT21: 0 | FU21: 0 | FV21: 0 | FW21: 0 | FX21: 0 | FY21: 0 | FZ21: 0 | GA21: 0 | GB21: 0 | GC21: 0 | GD21: 0 | GE21: 0 | GF21: 0 | GG21: 0 | GH21: 0 | GI21: 0 | GJ21: 0 | GK21: 0 | GL21: 0 | GM21: 0 | GN21: 0 | GO21: 0 | GP21: 0 | GQ21: 0 | GR21: 0 | GS21: 0 | GT21: 0 | GU21: 0 | GV21: 0 | GW21: 0 | GX21: 0 | GY21: 0 | GZ21: 0 | HA21: 0 | HB21: 0 | HC21: 0 | HD21: 0 | HE21: 0 | HF21: 0 | HG21: 0 | HH21: 0 | HI21: 0 | HJ21: 0 | HK21: 0 | HL21: 0 | HM21: 0 | HN21: 0 | HO21: 0 | HP21: 0 | HQ21: 0 | HR21: 0 | HS21: 0 | HT21: 0 | HU21: 0 | HV21: 0 | HW21: 0 | HX21: 0 | HY21: 0 | HZ21: 0 | IA21: 0 | IB21: 0 | IC21: 0 | ID21: 0 | IE21: 0 | IF21: 0 | IG21: 0 | IH21: 0 | II21: 0 | IJ21: 0 | IK21: 0 | IL21: 0 | IM21: 0 | IN21: 0 | IO21: 0 | IP21: 0 | IQ21: 0 | IR21: 0 | IS21: 0 | IT21: 0 | IU21: 0 | IV21: 0 | IW21: 0 | IX21: 0 | IY21: 0 | IZ21: 0 | JA21: 0 | JB21: 0 | JC21: 0 | JD21: 0 | JE21: 0 | JF21: 0 | JG21: 0 | JH21: 0 | JI21: 0 | JJ21: 0 | JK21: 0 | JL21: 0 | JM21: 0 | JN21: 0 | JO21: 0 | JP21: 0 | JQ21: 0 | JR21: 0 | JS21: 0 | JT21: 0 | JU21: 0 | JV21: 0 | JW21: 0 | JX21: 0 | JY21: 0 | JZ21: 0 | KA21: 0 | KB21: 0 | KC21: 0 | KD21: 0 | KE21: 0 | KF21: 0 | KG21: 0 | KH21: 0 | KI21: 0 | KJ21: 0 | KK21: 0 | KL21: 0 | KM21: 0 | KN21: 0 | KO21: 0 | KP21: 0 | KQ21: 0 | KR21: 0 | KS21: 0 | KT21: 0 | KU21: 0 | KV21: 0 | KW21: 0 | KX21: 0 | KY21: 0 | KZ21: 0 | LA21: 0 | LB21: 0 | LC21: 0 | LD21: 0 | LE21: 0 | LF21: 0 | LG21: 0 | LH21: 0 | LI21: 0 | LJ21: 0 | LK21: 0 | LL21: 0 | LM21: 0 | LN21: 0 | LO21: 0 | LP21: 0 | LQ21: 0 | LR21: 0 | LS21: 0 | LT21: 0 | LU21: 0 | LV21: 0 | LW21: 0 | LX21: 0 | LY21: 0 | LZ21: 0 | MA21: 0 | MB21: 0 | MC21: 0 | MD21: 0 | ME21: 0 | MF21: 0 | MG21: 0 | MH21: 0 | MI21: 0 | MJ21: 0 | MK21: 0 | ML21: 0 | MM21: 0 | MN21: 0 | MO21: 0 | MP21: 0 | MQ21: 0 | MR21: 0 | MS21: 0 | MT21: 0 | MU21: 0 | MV21: 0 | MW21: 0 | MX21: 0 | MY21: 0 | MZ21: 0 | NA21: 0 | NB21: 0 | NC21: 0 | ND21: 0 | NE21: 0 | NF21: 0 | NG21: 0 | NH21: 0 | NI21: 0 | NJ21: 0 | NK21: 0 | NL21: 0 | NM21: 0 | NN21: 0 | NO21: 0 | NP21: 0 | NQ21: 0 | NR21: 0 | NS21: 0 | NT21: 0 | NU21: 0 | NV21: 0 | NW21: 0 | NX21: 0 | NY21: 0 | NZ21: 0 | OA21: 0 | OB21: 0 | OC21: 0 | OD21: 0 | OE21: 0 | OF21: 0 | OG21: 0 | OH21: 0 | OI21: 0 | OJ21: 0 | OK21: 0 | OL21: 0 | OM21: 0 | ON21: 0 | OO21: 0 | OP21: 0 | OQ21: 0 | OR21: 0 | OS21: 0 | OT21: 0 | OU21: 0 | OV21: 0 | OW21: 0 | OX21: 0 | OY21: 0 | OZ21: 0 | PA21: 0 | PB21: 0 | PC21: 0 | PD21: 0 | PE21: 0 | PF21: 0 | PG21: 0 | PH21: 0 | PI21: 0 | PJ21: 0 | PK21: 0 | PL21: 0 | PM21: 0 | PN21: 0 | PO21: 0 | PP21: 0 | PQ21: 0 | PR21: 0 | PS21: 0 | PT21: 0 | PU21: 0 | PV21: 0 | PW21: 0 | PX21: 0 | PY21: 0 | PZ21: 0 | QA21: 0 | QB21: 0 | QC21: 0 | QD21: 0 | QE21: 0 | QF21: 0 | QG21: 0 | QH21: 0 | QI21: 0 | QJ21: 0 | QK21: 0 | QL21: 0 | QM21: 0 | QN21: 0 | QO21: 0 | QP21: 0 | QQ21: 0 | QR21: 0 | QS21: 0 | QT21: 0 | QU21: 0 | QV21: 0 | QW21: 0 | QX21: 0 | QY21: 0 | QZ21: 0 | RA21: 0 | RB21: 0 | RC21: 0 | RD21: 0 | RE21: 0 | RF21: 0 | RG21: 0 | RH21: 0 | RI21: 0 | RJ21: 0 | RK21: 0 | RL21: 0 | RM21: 0 | RN21: 0 | RO21: 0 | RP21: 0 | RQ21: 0 | RR21: 0 | RS21: 0 | RT21: 0 | RU21: 0 | RV21: 0 | RW21: 0 | RX21: 0 | RY21: 0 | RZ21: 0 | SA21: 0 | SB21: 0 | SC21: 0 | SD21: 0 | SE21: 0 | SF21: 0 | SG21: 0 | SH21: 0 | SI21: 0 | SJ21: 0 | SK21: 0 | SL21: 0 | SM21: 0 | SN21: 0 | SO21: 0 | SP21: 0 | SQ21: 0 | SS21: =IF(gIsItPlan,IF(AND(System!Z17,System!AA17),1,0),IF(AND(System!Z17,System!AB17),1,0)) -> 1
B22: =IF($SS22,IF(E22=1,System!B18," "&System!B18),"") -> Подготовка потолков | C22: =IF($SS22,IF(gIsItPlan,System!F18,System!I18),"") -> 2014-06-04 | D22: =IF($SS22,IF(gIsItPlan,System!G18,System!J18),"") -> 2014-06-10 | E22: =System!C18 -> 2 | F22: =System!L18 -> 1 | G22: 58 | H22: 61 | I22: 61 | J22: 20 | L22: 0 | M22: 0 | N22: 0 | O22: 0 | P22: 0 | Q22: 0 | R22: 0 | S22: 0 | T22: 0 | U22: 0 | V22: 0 | W22: 0 | X22: 0 | Y22: 0 | Z22: 0 | AA22: 0 | AB22: 0 | AC22: 0 | AD22: 0 | AE22: 0 | AF22: 0 | AG22: 0 | AH22: 0 | AI22: 0 | AJ22: 0 | AK22: 0 | AL22: 0 | AM22: 0 | AN22: 0 | AO22: 0 | AP22: 0 | AQ22: 0 | AR22: 0 | AS22: 0 | AT22: 0 | AU22: 0 | AV22: 0 | AW22: 0 | AX22: 0 | AY22: 0 | AZ22: 0 | BA22: 0 | BB22: 0 | BC22: 0 | BD22: 0 | BE22: 0 | BF22: 0 | BG22: 31 | BH22: 34 | BI22: 34 | BJ22: 32 | BK22: 0 | BL22: 0 | BM22: 0 | BN22: 0 | BO22: 0 | BP22: 0 | BQ22: 0 | BR22: 0 | BS22: 0 | BT22: 0 | BU22: 0 | BV22: 0 | BW22: 0 | BX22: 0 | BY22: 0 | BZ22: 0 | CA22: 0 | CB22: 0 | CC22: 0 | CD22: 0 | CE22: 0 | CF22: 0 | CG22: 0 | CH22: 0 | CI22: 0 | CJ22: 0 | CK22: 0 | CL22: 0 | CM22: 0 | CN22: 0 | CO22: 0 | CP22: 0 | CQ22: 0 | CR22: 0 | CS22: 0 | CT22: 0 | CU22: 0 | CV22: 0 | CW22: 0 | CX22: 0 | CY22: 0 | CZ22: 0 | DA22: 0 | DB22: 0 | DC22: 0 | DD22: 0 | DE22: 0 | DF22: 0 | DG22: 0 | DH22: 0 | DI22: 0 | DJ22: 0 | DK22: 0 | DL22: 0 | DM22: 0 | DN22: 0 | DO22: 0 | DP22: 0 | DQ22: 0 | DR22: 0 | DS22: 0 | DT22: 0 | DU22: 0 | DV22: 0 | DW22: 0 | DX22: 0 | DY22: 0 | DZ22: 0 | EA22: 0 | EB22: 0 | EC22: 0 | ED22: 0 | EE22: 0 | EF22: 0 | EG22: 0 | EH22: 0 | EI22: 0 | EJ22: 0 | EK22: 0 | EL22: 0 | EM22: 0 | EN22: 0 | EO22: 0 | EP22: 0 | EQ22: 0 | ER22: 0 | ES22: 0 | ET22: 0 | EU22: 0 | EV22: 0 | EW22: 0 | EX22: 0 | EY22: 0 | EZ22: 0 | FA22: 0 | FB22: 0 | FC22: 0 | FD22: 0 | FE22: 0 | FF22: 0 | FG22: 0 | FH22: 0 | FI22: 0 | FJ22: 0 | FK22: 0 | FL22: 0 | FM22: 0 | FN22: 0 | FO22: 0 | FP22: 0 | FQ22: 0 | FR22: 0 | FS22: 0 | FT22: 0 | FU22: 0 | FV22: 0 | FW22: 0 | FX22: 0 | FY22: 0 | FZ22: 0 | GA22: 0 | GB22: 0 | GC22: 0 | GD22: 0 | GE22: 0 | GF22: 0 | GG22: 0 | GH22: 0 | GI22: 0 | GJ22: 0 | GK22: 0 | GL22: 0 | GM22: 0 | GN22: 0 | GO22: 0 | GP22: 0 | GQ22: 0 | GR22: 0 | GS22: 0 | GT22: 0 | GU22: 0 | GV22: 0 | GW22: 0 | GX22: 0 | GY22: 0 | GZ22: 0 | HA22: 0 | HB22: 0 | HC22: 0 | HD22: 0 | HE22: 0 | HF22: 0 | HG22: 0 | HH22: 0 | HI22: 0 | HJ22: 0 | HK22: 0 | HL22: 0 | HM22: 0 | HN22: 0 | HO22: 0 | HP22: 0 | HQ22: 0 | HR22: 0 | HS22: 0 | HT22: 0 | HU22: 0 | HV22: 0 | HW22: 0 | HX22: 0 | HY22: 0 | HZ22: 0 | IA22: 0 | IB22: 0 | IC22: 0 | ID22: 0 | IE22: 0 | IF22: 0 | IG22: 0 | IH22: 0 | II22: 0 | IJ22: 0 | IK22: 0 | IL22: 0 | IM22: 0 | IN22: 0 | IO22: 0 | IP22: 0 | IQ22: 0 | IR22: 0 | IS22: 0 | IT22: 0 | IU22: 0 | IV22: 0 | IW22: 0 | IX22: 0 | IY22: 0 | IZ22: 0 | JA22: 0 | JB22: 0 | JC22: 0 | JD22: 0 | JE22: 0 | JF22: 0 | JG22: 0 | JH22: 0 | JI22: 0 | JJ22: 0 | JK22: 0 | JL22: 0 | JM22: 0 | JN22: 0 | JO22: 0 | JP22: 0 | JQ22: 0 | JR22: 0 | JS22: 0 | JT22: 0 | JU22: 0 | JV22: 0 | JW22: 0 | JX22: 0 | JY22: 0 | JZ22: 0 | KA22: 0 | KB22: 0 | KC22: 0 | KD22: 0 | KE22: 0 | KF22: 0 | KG22: 0 | KH22: 0 | KI22: 0 | KJ22: 0 | KK22: 0 | KL22: 0 | KM22: 0 | KN22: 0 | KO22: 0 | KP22: 0 | KQ22: 0 | KR22: 0 | KS22: 0 | KT22: 0 | KU22: 0 | KV22: 0 | KW22: 0 | KX22: 0 | KY22: 0 | KZ22: 0 | LA22: 0 | LB22: 0 | LC22: 0 | LD22: 0 | LE22: 0 | LF22: 0 | LG22: 0 | LH22: 0 | LI22: 0 | LJ22: 0 | LK22: 0 | LL22: 0 | LM22: 0 | LN22: 0 | LO22: 0 | LP22: 0 | LQ22: 0 | LR22: 0 | LS22: 0 | LT22: 0 | LU22: 0 | LV22: 0 | LW22: 0 | LX22: 0 | LY22: 0 | LZ22: 0 | MA22: 0 | MB22: 0 | MC22: 0 | MD22: 0 | ME22: 0 | MF22: 0 | MG22: 0 | MH22: 0 | MI22: 0 | MJ22: 0 | MK22: 0 | ML22: 0 | MM22: 0 | MN22: 0 | MO22: 0 | MP22: 0 | MQ22: 0 | MR22: 0 | MS22: 0 | MT22: 0 | MU22: 0 | MV22: 0 | MW22: 0 | MX22: 0 | MY22: 0 | MZ22: 0 | NA22: 0 | NB22: 0 | NC22: 0 | ND22: 0 | NE22: 0 | NF22: 0 | NG22: 0 | NH22: 0 | NI22: 0 | NJ22: 0 | NK22: 0 | NL22: 0 | NM22: 0 | NN22: 0 | NO22: 0 | NP22: 0 | NQ22: 0 | NR22: 0 | NS22: 0 | NT22: 0 | NU22: 0 | NV22: 0 | NW22: 0 | NX22: 0 | NY22: 0 | NZ22: 0 | OA22: 0 | OB22: 0 | OC22: 0 | OD22: 0 | OE22: 0 | OF22: 0 | OG22: 0 | OH22: 0 | OI22: 0 | OJ22: 0 | OK22: 0 | OL22: 0 | OM22: 0 | ON22: 0 | OO22: 0 | OP22: 0 | OQ22: 0 | OR22: 0 | OS22: 0 | OT22: 0 | OU22: 0 | OV22: 0 | OW22: 0 | OX22: 0 | OY22: 0 | OZ22: 0 | PA22: 0 | PB22: 0 | PC22: 0 | PD22: 0 | PE22: 0 | PF22: 0 | PG22: 0 | PH22: 0 | PI22: 0 | PJ22: 0 | PK22: 0 | PL22: 0 | PM22: 0 | PN22: 0 | PO22: 0 | PP22: 0 | PQ22: 0 | PR22: 0 | PS22: 0 | PT22: 0 | PU22: 0 | PV22: 0 | PW22: 0 | PX22: 0 | PY22: 0 | PZ22: 0 | QA22: 0 | QB22: 0 | QC22: 0 | QD22: 0 | QE22: 0 | QF22: 0 | QG22: 0 | QH22: 0 | QI22: 0 | QJ22: 0 | QK22: 0 | QL22: 0 | QM22: 0 | QN22: 0 | QO22: 0 | QP22: 0 | QQ22: 0 | QR22: 0 | QS22: 0 | QT22: 0 | QU22: 0 | QV22: 0 | QW22: 0 | QX22: 0 | QY22: 0 | QZ22: 0 | RA22: 0 | RB22: 0 | RC22: 0 | RD22: 0 | RE22: 0 | RF22: 0 | RG22: 0 | RH22: 0 | RI22: 0 | RJ22: 0 | RK22: 0 | RL22: 0 | RM22: 0 | RN22: 0 | RO22: 0 | RP22: 0 | RQ22: 0 | RR22: 0 | RS22: 0 | RT22: 0 | RU22: 0 | RV22: 0 | RW22: 0 | RX22: 0 | RY22: 0 | RZ22: 0 | SA22: 0 | SB22: 0 | SC22: 0 | SD22: 0 | SE22: 0 | SF22: 0 | SG22: 0 | SH22: 0 | SI22: 0 | SJ22: 0 | SK22: 0 | SL22: 0 | SM22: 0 | SN22: 0 | SO22: 0 | SP22: 0 | SQ22: 0 | SS22: =IF(gIsItPlan,IF(AND(System!Z18,System!AA18),1,0),IF(AND(System!Z18,System!AB18),1,0)) -> 1
B23: =IF($SS23,IF(E23=1,System!B19," "&System!B19),"") -> Подготовка стен | C23: =IF($SS23,IF(gIsItPlan,System!F19,System!I19),"") -> 2014-06-11 | D23: =IF($SS23,IF(gIsItPlan,System!G19,System!J19),"") -> 2014-06-20 | E23: =System!C19 -> 2 | F23: =System!L19 -> 1 | G23: 62 | H23: 66 | I23: 66 | J23: 20 | L23: 0 | M23: 0 | N23: 0 | O23: 0 | P23: 0 | Q23: 0 | R23: 0 | S23: 0 | T23: 0 | U23: 0 | V23: 0 | W23: 0 | X23: 0 | Y23: 0 | Z23: 0 | AA23: 0 | AB23: 0 | AC23: 0 | AD23: 0 | AE23: 0 | AF23: 0 | AG23: 0 | AH23: 0 | AI23: 0 | AJ23: 0 | AK23: 0 | AL23: 0 | AM23: 0 | AN23: 0 | AO23: 0 | AP23: 0 | AQ23: 0 | AR23: 0 | AS23: 0 | AT23: 0 | AU23: 0 | AV23: 0 | AW23: 0 | AX23: 0 | AY23: 0 | AZ23: 0 | BA23: 0 | BB23: 0 | BC23: 0 | BD23: 0 | BE23: 0 | BF23: 0 | BG23: 0 | BH23: 0 | BI23: 0 | BJ23: 0 | BK23: 31 | BL23: 34 | BM23: 34 | BN23: 34 | BO23: 32 | BP23: 0 | BQ23: 0 | BR23: 0 | BS23: 0 | BT23: 0 | BU23: 0 | BV23: 0 | BW23: 0 | BX23: 0 | BY23: 0 | BZ23: 0 | CA23: 0 | CB23: 0 | CC23: 0 | CD23: 0 | CE23: 0 | CF23: 0 | CG23: 0 | CH23: 0 | CI23: 0 | CJ23: 0 | CK23: 0 | CL23: 0 | CM23: 0 | CN23: 0 | CO23: 0 | CP23: 0 | CQ23: 0 | CR23: 0 | CS23: 0 | CT23: 0 | CU23: 0 | CV23: 0 | CW23: 0 | CX23: 0 | CY23: 0 | CZ23: 0 | DA23: 0 | DB23: 0 | DC23: 0 | DD23: 0 | DE23: 0 | DF23: 0 | DG23: 0 | DH23: 0 | DI23: 0 | DJ23: 0 | DK23: 0 | DL23: 0 | DM23: 0 | DN23: 0 | DO23: 0 | DP23: 0 | DQ23: 0 | DR23: 0 | DS23: 0 | DT23: 0 | DU23: 0 | DV23: 0 | DW23: 0 | DX23: 0 | DY23: 0 | DZ23: 0 | EA23: 0 | EB23: 0 | EC23: 0 | ED23: 0 | EE23: 0 | EF23: 0 | EG23: 0 | EH23: 0 | EI23: 0 | EJ23: 0 | EK23: 0 | EL23: 0 | EM23: 0 | EN23: 0 | EO23: 0 | EP23: 0 | EQ23: 0 | ER23: 0 | ES23: 0 | ET23: 0 | EU23: 0 | EV23: 0 | EW23: 0 | EX23: 0 | EY23: 0 | EZ23: 0 | FA23: 0 | FB23: 0 | FC23: 0 | FD23: 0 | FE23: 0 | FF23: 0 | FG23: 0 | FH23: 0 | FI23: 0 | FJ23: 0 | FK23: 0 | FL23: 0 | FM23: 0 | FN23: 0 | FO23: 0 | FP23: 0 | FQ23: 0 | FR23: 0 | FS23: 0 | FT23: 0 | FU23: 0 | FV23: 0 | FW23: 0 | FX23: 0 | FY23: 0 | FZ23: 0 | GA23: 0 | GB23: 0 | GC23: 0 | GD23: 0 | GE23: 0 | GF23: 0 | GG23: 0 | GH23: 0 | GI23: 0 | GJ23: 0 | GK23: 0 | GL23: 0 | GM23: 0 | GN23: 0 | GO23: 0 | GP23: 0 | GQ23: 0 | GR23: 0 | GS23: 0 | GT23: 0 | GU23: 0 | GV23: 0 | GW23: 0 | GX23: 0 | GY23: 0 | GZ23: 0 | HA23: 0 | HB23: 0 | HC23: 0 | HD23: 0 | HE23: 0 | HF23: 0 | HG23: 0 | HH23: 0 | HI23: 0 | HJ23: 0 | HK23: 0 | HL23: 0 | HM23: 0 | HN23: 0 | HO23: 0 | HP23: 0 | HQ23: 0 | HR23: 0 | HS23: 0 | HT23: 0 | HU23: 0 | HV23: 0 | HW23: 0 | HX23: 0 | HY23: 0 | HZ23: 0 | IA23: 0 | IB23: 0 | IC23: 0 | ID23: 0 | IE23: 0 | IF23: 0 | IG23: 0 | IH23: 0 | II23: 0 | IJ23: 0 | IK23: 0 | IL23: 0 | IM23: 0 | IN23: 0 | IO23: 0 | IP23: 0 | IQ23: 0 | IR23: 0 | IS23: 0 | IT23: 0 | IU23: 0 | IV23: 0 | IW23: 0 | IX23: 0 | IY23: 0 | IZ23: 0 | JA23: 0 | JB23: 0 | JC23: 0 | JD23: 0 | JE23: 0 | JF23: 0 | JG23: 0 | JH23: 0 | JI23: 0 | JJ23: 0 | JK23: 0 | JL23: 0 | JM23: 0 | JN23: 0 | JO23: 0 | JP23: 0 | JQ23: 0 | JR23: 0 | JS23: 0 | JT23: 0 | JU23: 0 | JV23: 0 | JW23: 0 | JX23: 0 | JY23: 0 | JZ23: 0 | KA23: 0 | KB23: 0 | KC23: 0 | KD23: 0 | KE23: 0 | KF23: 0 | KG23: 0 | KH23: 0 | KI23: 0 | KJ23: 0 | KK23: 0 | KL23: 0 | KM23: 0 | KN23: 0 | KO23: 0 | KP23: 0 | KQ23: 0 | KR23: 0 | KS23: 0 | KT23: 0 | KU23: 0 | KV23: 0 | KW23: 0 | KX23: 0 | KY23: 0 | KZ23: 0 | LA23: 0 | LB23: 0 | LC23: 0 | LD23: 0 | LE23: 0 | LF23: 0 | LG23: 0 | LH23: 0 | LI23: 0 | LJ23: 0 | LK23: 0 | LL23: 0 | LM23: 0 | LN23: 0 | LO23: 0 | LP23: 0 | LQ23: 0 | LR23: 0 | LS23: 0 | LT23: 0 | LU23: 0 | LV23: 0 | LW23: 0 | LX23: 0 | LY23: 0 | LZ23: 0 | MA23: 0 | MB23: 0 | MC23: 0 | MD23: 0 | ME23: 0 | MF23: 0 | MG23: 0 | MH23: 0 | MI23: 0 | MJ23: 0 | MK23: 0 | ML23: 0 | MM23: 0 | MN23: 0 | MO23: 0 | MP23: 0 | MQ23: 0 | MR23: 0 | MS23: 0 | MT23: 0 | MU23: 0 | MV23: 0 | MW23: 0 | MX23: 0 | MY23: 0 | MZ23: 0 | NA23: 0 | NB23: 0 | NC23: 0 | ND23: 0 | NE23: 0 | NF23: 0 | NG23: 0 | NH23: 0 | NI23: 0 | NJ23: 0 | NK23: 0 | NL23: 0 | NM23: 0 | NN23: 0 | NO23: 0 | NP23: 0 | NQ23: 0 | NR23: 0 | NS23: 0 | NT23: 0 | NU23: 0 | NV23: 0 | NW23: 0 | NX23: 0 | NY23: 0 | NZ23: 0 | OA23: 0 | OB23: 0 | OC23: 0 | OD23: 0 | OE23: 0 | OF23: 0 | OG23: 0 | OH23: 0 | OI23: 0 | OJ23: 0 | OK23: 0 | OL23: 0 | OM23: 0 | ON23: 0 | OO23: 0 | OP23: 0 | OQ23: 0 | OR23: 0 | OS23: 0 | OT23: 0 | OU23: 0 | OV23: 0 | OW23: 0 | OX23: 0 | OY23: 0 | OZ23: 0 | PA23: 0 | PB23: 0 | PC23: 0 | PD23: 0 | PE23: 0 | PF23: 0 | PG23: 0 | PH23: 0 | PI23: 0 | PJ23: 0 | PK23: 0 | PL23: 0 | PM23: 0 | PN23: 0 | PO23: 0 | PP23: 0 | PQ23: 0 | PR23: 0 | PS23: 0 | PT23: 0 | PU23: 0 | PV23: 0 | PW23: 0 | PX23: 0 | PY23: 0 | PZ23: 0 | QA23: 0 | QB23: 0 | QC23: 0 | QD23: 0 | QE23: 0 | QF23: 0 | QG23: 0 | QH23: 0 | QI23: 0 | QJ23: 0 | QK23: 0 | QL23: 0 | QM23: 0 | QN23: 0 | QO23: 0 | QP23: 0 | QQ23: 0 | QR23: 0 | QS23: 0 | QT23: 0 | QU23: 0 | QV23: 0 | QW23: 0 | QX23: 0 | QY23: 0 | QZ23: 0 | RA23: 0 | RB23: 0 | RC23: 0 | RD23: 0 | RE23: 0 | RF23: 0 | RG23: 0 | RH23: 0 | RI23: 0 | RJ23: 0 | RK23: 0 | RL23: 0 | RM23: 0 | RN23: 0 | RO23: 0 | RP23: 0 | RQ23: 0 | RR23: 0 | RS23: 0 | RT23: 0 | RU23: 0 | RV23: 0 | RW23: 0 | RX23: 0 | RY23: 0 | RZ23: 0 | SA23: 0 | SB23: 0 | SC23: 0 | SD23: 0 | SE23: 0 | SF23: 0 | SG23: 0 | SH23: 0 | SI23: 0 | SJ23: 0 | SK23: 0 | SL23: 0 | SM23: 0 | SN23: 0 | SO23: 0 | SP23: 0 | SQ23: 0 | SS23: =IF(gIsItPlan,IF(AND(System!Z19,System!AA19),1,0),IF(AND(System!Z19,System!AB19),1,0)) -> 1
B24: =IF($SS24,IF(E24=1,System!B20," "&System!B20),"") -> Монтаж окон | C24: =IF($SS24,IF(gIsItPlan,System!F20,System!I20),"") -> 2014-06-21 | D24: =IF($SS24,IF(gIsItPlan,System!G20,System!J20),"") -> 2014-06-22 | E24: =System!C20 -> 2 | F24: =System!L20 -> 1 | G24: 67 | H24: 67 | I24: 67 | J24: 20 | L24: 0 | M24: 0 | N24: 0 | O24: 0 | P24: 0 | Q24: 0 | R24: 0 | S24: 0 | T24: 0 | U24: 0 | V24: 0 | W24: 0 | X24: 0 | Y24: 0 | Z24: 0 | AA24: 0 | AB24: 0 | AC24: 0 | AD24: 0 | AE24: 0 | AF24: 0 | AG24: 0 | AH24: 0 | AI24: 0 | AJ24: 0 | AK24: 0 | AL24: 0 | AM24: 0 | AN24: 0 | AO24: 0 | AP24: 0 | AQ24: 0 | AR24: 0 | AS24: 0 | AT24: 0 | AU24: 0 | AV24: 0 | AW24: 0 | AX24: 0 | AY24: 0 | AZ24: 0 | BA24: 0 | BB24: 0 | BC24: 0 | BD24: 0 | BE24: 0 | BF24: 0 | BG24: 0 | BH24: 0 | BI24: 0 | BJ24: 0 | BK24: 0 | BL24: 0 | BM24: 0 | BN24: 0 | BO24: 0 | BP24: 33 | BQ24: 0 | BR24: 0 | BS24: 0 | BT24: 0 | BU24: 0 | BV24: 0 | BW24: 0 | BX24: 0 | BY24: 0 | BZ24: 0 | CA24: 0 | CB24: 0 | CC24: 0 | CD24: 0 | CE24: 0 | CF24: 0 | CG24: 0 | CH24: 0 | CI24: 0 | CJ24: 0 | CK24: 0 | CL24: 0 | CM24: 0 | CN24: 0 | CO24: 0 | CP24: 0 | CQ24: 0 | CR24: 0 | CS24: 0 | CT24: 0 | CU24: 0 | CV24: 0 | CW24: 0 | CX24: 0 | CY24: 0 | CZ24: 0 | DA24: 0 | DB24: 0 | DC24: 0 | DD24: 0 | DE24: 0 | DF24: 0 | DG24: 0 | DH24: 0 | DI24: 0 | DJ24: 0 | DK24: 0 | DL24: 0 | DM24: 0 | DN24: 0 | DO24: 0 | DP24: 0 | DQ24: 0 | DR24: 0 | DS24: 0 | DT24: 0 | DU24: 0 | DV24: 0 | DW24: 0 | DX24: 0 | DY24: 0 | DZ24: 0 | EA24: 0 | EB24: 0 | EC24: 0 | ED24: 0 | EE24: 0 | EF24: 0 | EG24: 0 | EH24: 0 | EI24: 0 | EJ24: 0 | EK24: 0 | EL24: 0 | EM24: 0 | EN24: 0 | EO24: 0 | EP24: 0 | EQ24: 0 | ER24: 0 | ES24: 0 | ET24: 0 | EU24: 0 | EV24: 0 | EW24: 0 | EX24: 0 | EY24: 0 | EZ24: 0 | FA24: 0 | FB24: 0 | FC24: 0 | FD24: 0 | FE24: 0 | FF24: 0 | FG24: 0 | FH24: 0 | FI24: 0 | FJ24: 0 | FK24: 0 | FL24: 0 | FM24: 0 | FN24: 0 | FO24: 0 | FP24: 0 | FQ24: 0 | FR24: 0 | FS24: 0 | FT24: 0 | FU24: 0 | FV24: 0 | FW24: 0 | FX24: 0 | FY24: 0 | FZ24: 0 | GA24: 0 | GB24: 0 | GC24: 0 | GD24: 0 | GE24: 0 | GF24: 0 | GG24: 0 | GH24: 0 | GI24: 0 | GJ24: 0 | GK24: 0 | GL24: 0 | GM24: 0 | GN24: 0 | GO24: 0 | GP24: 0 | GQ24: 0 | GR24: 0 | GS24: 0 | GT24: 0 | GU24: 0 | GV24: 0 | GW24: 0 | GX24: 0 | GY24: 0 | GZ24: 0 | HA24: 0 | HB24: 0 | HC24: 0 | HD24: 0 | HE24: 0 | HF24: 0 | HG24: 0 | HH24: 0 | HI24: 0 | HJ24: 0 | HK24: 0 | HL24: 0 | HM24: 0 | HN24: 0 | HO24: 0 | HP24: 0 | HQ24: 0 | HR24: 0 | HS24: 0 | HT24: 0 | HU24: 0 | HV24: 0 | HW24: 0 | HX24: 0 | HY24: 0 | HZ24: 0 | IA24: 0 | IB24: 0 | IC24: 0 | ID24: 0 | IE24: 0 | IF24: 0 | IG24: 0 | IH24: 0 | II24: 0 | IJ24: 0 | IK24: 0 | IL24: 0 | IM24: 0 | IN24: 0 | IO24: 0 | IP24: 0 | IQ24: 0 | IR24: 0 | IS24: 0 | IT24: 0 | IU24: 0 | IV24: 0 | IW24: 0 | IX24: 0 | IY24: 0 | IZ24: 0 | JA24: 0 | JB24: 0 | JC24: 0 | JD24: 0 | JE24: 0 | JF24: 0 | JG24: 0 | JH24: 0 | JI24: 0 | JJ24: 0 | JK24: 0 | JL24: 0 | JM24: 0 | JN24: 0 | JO24: 0 | JP24: 0 | JQ24: 0 | JR24: 0 | JS24: 0 | JT24: 0 | JU24: 0 | JV24: 0 | JW24: 0 | JX24: 0 | JY24: 0 | JZ24: 0 | KA24: 0 | KB24: 0 | KC24: 0 | KD24: 0 | KE24: 0 | KF24: 0 | KG24: 0 | KH24: 0 | KI24: 0 | KJ24: 0 | KK24: 0 | KL24: 0 | KM24: 0 | KN24: 0 | KO24: 0 | KP24: 0 | KQ24: 0 | KR24: 0 | KS24: 0 | KT24: 0 | KU24: 0 | KV24: 0 | KW24: 0 | KX24: 0 | KY24: 0 | KZ24: 0 | LA24: 0 | LB24: 0 | LC24: 0 | LD24: 0 | LE24: 0 | LF24: 0 | LG24: 0 | LH24: 0 | LI24: 0 | LJ24: 0 | LK24: 0 | LL24: 0 | LM24: 0 | LN24: 0 | LO24: 0 | LP24: 0 | LQ24: 0 | LR24: 0 | LS24: 0 | LT24: 0 | LU24: 0 | LV24: 0 | LW24: 0 | LX24: 0 | LY24: 0 | LZ24: 0 | MA24: 0 | MB24: 0 | MC24: 0 | MD24: 0 | ME24: 0 | MF24: 0 | MG24: 0 | MH24: 0 | MI24: 0 | MJ24: 0 | MK24: 0 | ML24: 0 | MM24: 0 | MN24: 0 | MO24: 0 | MP24: 0 | MQ24: 0 | MR24: 0 | MS24: 0 | MT24: 0 | MU24: 0 | MV24: 0 | MW24: 0 | MX24: 0 | MY24: 0 | MZ24: 0 | NA24: 0 | NB24: 0 | NC24: 0 | ND24: 0 | NE24: 0 | NF24: 0 | NG24: 0 | NH24: 0 | NI24: 0 | NJ24: 0 | NK24: 0 | NL24: 0 | NM24: 0 | NN24: 0 | NO24: 0 | NP24: 0 | NQ24: 0 | NR24: 0 | NS24: 0 | NT24: 0 | NU24: 0 | NV24: 0 | NW24: 0 | NX24: 0 | NY24: 0 | NZ24: 0 | OA24: 0 | OB24: 0 | OC24: 0 | OD24: 0 | OE24: 0 | OF24: 0 | OG24: 0 | OH24: 0 | OI24: 0 | OJ24: 0 | OK24: 0 | OL24: 0 | OM24: 0 | ON24: 0 | OO24: 0 | OP24: 0 | OQ24: 0 | OR24: 0 | OS24: 0 | OT24: 0 | OU24: 0 | OV24: 0 | OW24: 0 | OX24: 0 | OY24: 0 | OZ24: 0 | PA24: 0 | PB24: 0 | PC24: 0 | PD24: 0 | PE24: 0 | PF24: 0 | PG24: 0 | PH24: 0 | PI24: 0 | PJ24: 0 | PK24: 0 | PL24: 0 | PM24: 0 | PN24: 0 | PO24: 0 | PP24: 0 | PQ24: 0 | PR24: 0 | PS24: 0 | PT24: 0 | PU24: 0 | PV24: 0 | PW24: 0 | PX24: 0 | PY24: 0 | PZ24: 0 | QA24: 0 | QB24: 0 | QC24: 0 | QD24: 0 | QE24: 0 | QF24: 0 | QG24: 0 | QH24: 0 | QI24: 0 | QJ24: 0 | QK24: 0 | QL24: 0 | QM24: 0 | QN24: 0 | QO24: 0 | QP24: 0 | QQ24: 0 | QR24: 0 | QS24: 0 | QT24: 0 | QU24: 0 | QV24: 0 | QW24: 0 | QX24: 0 | QY24: 0 | QZ24: 0 | RA24: 0 | RB24: 0 | RC24: 0 | RD24: 0 | RE24: 0 | RF24: 0 | RG24: 0 | RH24: 0 | RI24: 0 | RJ24: 0 | RK24: 0 | RL24: 0 | RM24: 0 | RN24: 0 | RO24: 0 | RP24: 0 | RQ24: 0 | RR24: 0 | RS24: 0 | RT24: 0 | RU24: 0 | RV24: 0 | RW24: 0 | RX24: 0 | RY24: 0 | RZ24: 0 | SA24: 0 | SB24: 0 | SC24: 0 | SD24: 0 | SE24: 0 | SF24: 0 | SG24: 0 | SH24: 0 | SI24: 0 | SJ24: 0 | SK24: 0 | SL24: 0 | SM24: 0 | SN24: 0 | SO24: 0 | SP24: 0 | SQ24: 0 | SS24: =IF(gIsItPlan,IF(AND(System!Z20,System!AA20),1,0),IF(AND(System!Z20,System!AB20),1,0)) -> 1
B25: =IF($SS25,IF(E25=1,System!B21," "&System!B21),"") -> Монтаж дверей | C25: =IF($SS25,IF(gIsItPlan,System!F21,System!I21),"") -> 2014-06-22 | D25: =IF($SS25,IF(gIsItPlan,System!G21,System!J21),"") -> 2014-06-23 | E25: =System!C21 -> 2 | F25: =System!L21 -> 1 | G25: 67 | H25: 68 | I25: 68 | J25: 20 | L25: 0 | M25: 0 | N25: 0 | O25: 0 | P25: 0 | Q25: 0 | R25: 0 | S25: 0 | T25: 0 | U25: 0 | V25: 0 | W25: 0 | X25: 0 | Y25: 0 | Z25: 0 | AA25: 0 | AB25: 0 | AC25: 0 | AD25: 0 | AE25: 0 | AF25: 0 | AG25: 0 | AH25: 0 | AI25: 0 | AJ25: 0 | AK25: 0 | AL25: 0 | AM25: 0 | AN25: 0 | AO25: 0 | AP25: 0 | AQ25: 0 | AR25: 0 | AS25: 0 | AT25: 0 | AU25: 0 | AV25: 0 | AW25: 0 | AX25: 0 | AY25: 0 | AZ25: 0 | BA25: 0 | BB25: 0 | BC25: 0 | BD25: 0 | BE25: 0 | BF25: 0 | BG25: 0 | BH25: 0 | BI25: 0 | BJ25: 0 | BK25: 0 | BL25: 0 | BM25: 0 | BN25: 0 | BO25: 0 | BP25: 31 | BQ25: 32 | BR25: 0 | BS25: 0 | BT25: 0 | BU25: 0 | BV25: 0 | BW25: 0 | BX25: 0 | BY25: 0 | BZ25: 0 | CA25: 0 | CB25: 0 | CC25: 0 | CD25: 0 | CE25: 0 | CF25: 0 | CG25: 0 | CH25: 0 | CI25: 0 | CJ25: 0 | CK25: 0 | CL25: 0 | CM25: 0 | CN25: 0 | CO25: 0 | CP25: 0 | CQ25: 0 | CR25: 0 | CS25: 0 | CT25: 0 | CU25: 0 | CV25: 0 | CW25: 0 | CX25: 0 | CY25: 0 | CZ25: 0 | DA25: 0 | DB25: 0 | DC25: 0 | DD25: 0 | DE25: 0 | DF25: 0 | DG25: 0 | DH25: 0 | DI25: 0 | DJ25: 0 | DK25: 0 | DL25: 0 | DM25: 0 | DN25: 0 | DO25: 0 | DP25: 0 | DQ25: 0 | DR25: 0 | DS25: 0 | DT25: 0 | DU25: 0 | DV25: 0 | DW25: 0 | DX25: 0 | DY25: 0 | DZ25: 0 | EA25: 0 | EB25: 0 | EC25: 0 | ED25: 0 | EE25: 0 | EF25: 0 | EG25: 0 | EH25: 0 | EI25: 0 | EJ25: 0 | EK25: 0 | EL25: 0 | EM25: 0 | EN25: 0 | EO25: 0 | EP25: 0 | EQ25: 0 | ER25: 0 | ES25: 0 | ET25: 0 | EU25: 0 | EV25: 0 | EW25: 0 | EX25: 0 | EY25: 0 | EZ25: 0 | FA25: 0 | FB25: 0 | FC25: 0 | FD25: 0 | FE25: 0 | FF25: 0 | FG25: 0 | FH25: 0 | FI25: 0 | FJ25: 0 | FK25: 0 | FL25: 0 | FM25: 0 | FN25: 0 | FO25: 0 | FP25: 0 | FQ25: 0 | FR25: 0 | FS25: 0 | FT25: 0 | FU25: 0 | FV25: 0 | FW25: 0 | FX25: 0 | FY25: 0 | FZ25: 0 | GA25: 0 | GB25: 0 | GC25: 0 | GD25: 0 | GE25: 0 | GF25: 0 | GG25: 0 | GH25: 0 | GI25: 0 | GJ25: 0 | GK25: 0 | GL25: 0 | GM25: 0 | GN25: 0 | GO25: 0 | GP25: 0 | GQ25: 0 | GR25: 0 | GS25: 0 | GT25: 0 | GU25: 0 | GV25: 0 | GW25: 0 | GX25: 0 | GY25: 0 | GZ25: 0 | HA25: 0 | HB25: 0 | HC25: 0 | HD25: 0 | HE25: 0 | HF25: 0 | HG25: 0 | HH25: 0 | HI25: 0 | HJ25: 0 | HK25: 0 | HL25: 0 | HM25: 0 | HN25: 0 | HO25: 0 | HP25: 0 | HQ25: 0 | HR25: 0 | HS25: 0 | HT25: 0 | HU25: 0 | HV25: 0 | HW25: 0 | HX25: 0 | HY25: 0 | HZ25: 0 | IA25: 0 | IB25: 0 | IC25: 0 | ID25: 0 | IE25: 0 | IF25: 0 | IG25: 0 | IH25: 0 | II25: 0 | IJ25: 0 | IK25: 0 | IL25: 0 | IM25: 0 | IN25: 0 | IO25: 0 | IP25: 0 | IQ25: 0 | IR25: 0 | IS25: 0 | IT25: 0 | IU25: 0 | IV25: 0 | IW25: 0 | IX25: 0 | IY25: 0 | IZ25: 0 | JA25: 0 | JB25: 0 | JC25: 0 | JD25: 0 | JE25: 0 | JF25: 0 | JG25: 0 | JH25: 0 | JI25: 0 | JJ25: 0 | JK25: 0 | JL25: 0 | JM25: 0 | JN25: 0 | JO25: 0 | JP25: 0 | JQ25: 0 | JR25: 0 | JS25: 0 | JT25: 0 | JU25: 0 | JV25: 0 | JW25: 0 | JX25: 0 | JY25: 0 | JZ25: 0 | KA25: 0 | KB25: 0 | KC25: 0 | KD25: 0 | KE25: 0 | KF25: 0 | KG25: 0 | KH25: 0 | KI25: 0 | KJ25: 0 | KK25: 0 | KL25: 0 | KM25: 0 | KN25: 0 | KO25: 0 | KP25: 0 | KQ25: 0 | KR25: 0 | KS25: 0 | KT25: 0 | KU25: 0 | KV25: 0 | KW25: 0 | KX25: 0 | KY25: 0 | KZ25: 0 | LA25: 0 | LB25: 0 | LC25: 0 | LD25: 0 | LE25: 0 | LF25: 0 | LG25: 0 | LH25: 0 | LI25: 0 | LJ25: 0 | LK25: 0 | LL25: 0 | LM25: 0 | LN25: 0 | LO25: 0 | LP25: 0 | LQ25: 0 | LR25: 0 | LS25: 0 | LT25: 0 | LU25: 0 | LV25: 0 | LW25: 0 | LX25: 0 | LY25: 0 | LZ25: 0 | MA25: 0 | MB25: 0 | MC25: 0 | MD25: 0 | ME25: 0 | MF25: 0 | MG25: 0 | MH25: 0 | MI25: 0 | MJ25: 0 | MK25: 0 | ML25: 0 | MM25: 0 | MN25: 0 | MO25: 0 | MP25: 0 | MQ25: 0 | MR25: 0 | MS25: 0 | MT25: 0 | MU25: 0 | MV25: 0 | MW25: 0 | MX25: 0 | MY25: 0 | MZ25: 0 | NA25: 0 | NB25: 0 | NC25: 0 | ND25: 0 | NE25: 0 | NF25: 0 | NG25: 0 | NH25: 0 | NI25: 0 | NJ25: 0 | NK25: 0 | NL25: 0 | NM25: 0 | NN25: 0 | NO25: 0 | NP25: 0 | NQ25: 0 | NR25: 0 | NS25: 0 | NT25: 0 | NU25: 0 | NV25: 0 | NW25: 0 | NX25: 0 | NY25: 0 | NZ25: 0 | OA25: 0 | OB25: 0 | OC25: 0 | OD25: 0 | OE25: 0 | OF25: 0 | OG25: 0 | OH25: 0 | OI25: 0 | OJ25: 0 | OK25: 0 | OL25: 0 | OM25: 0 | ON25: 0 | OO25: 0 | OP25: 0 | OQ25: 0 | OR25: 0 | OS25: 0 | OT25: 0 | OU25: 0 | OV25: 0 | OW25: 0 | OX25: 0 | OY25: 0 | OZ25: 0 | PA25: 0 | PB25: 0 | PC25: 0 | PD25: 0 | PE25: 0 | PF25: 0 | PG25: 0 | PH25: 0 | PI25: 0 | PJ25: 0 | PK25: 0 | PL25: 0 | PM25: 0 | PN25: 0 | PO25: 0 | PP25: 0 | PQ25: 0 | PR25: 0 | PS25: 0 | PT25: 0 | PU25: 0 | PV25: 0 | PW25: 0 | PX25: 0 | PY25: 0 | PZ25: 0 | QA25: 0 | QB25: 0 | QC25: 0 | QD25: 0 | QE25: 0 | QF25: 0 | QG25: 0 | QH25: 0 | QI25: 0 | QJ25: 0 | QK25: 0 | QL25: 0 | QM25: 0 | QN25: 0 | QO25: 0 | QP25: 0 | QQ25: 0 | QR25: 0 | QS25: 0 | QT25: 0 | QU25: 0 | QV25: 0 | QW25: 0 | QX25: 0 | QY25: 0 | QZ25: 0 | RA25: 0 | RB25: 0 | RC25: 0 | RD25: 0 | RE25: 0 | RF25: 0 | RG25: 0 | RH25: 0 | RI25: 0 | RJ25: 0 | RK25: 0 | RL25: 0 | RM25: 0 | RN25: 0 | RO25: 0 | RP25: 0 | RQ25: 0 | RR25: 0 | RS25: 0 | RT25: 0 | RU25: 0 | RV25: 0 | RW25: 0 | RX25: 0 | RY25: 0 | RZ25: 0 | SA25: 0 | SB25: 0 | SC25: 0 | SD25: 0 | SE25: 0 | SF25: 0 | SG25: 0 | SH25: 0 | SI25: 0 | SJ25: 0 | SK25: 0 | SL25: 0 | SM25: 0 | SN25: 0 | SO25: 0 | SP25: 0 | SQ25: 0 | SS25: =IF(gIsItPlan,IF(AND(System!Z21,System!AA21),1,0),IF(AND(System!Z21,System!AB21),1,0)) -> 1
B26: =IF($SS26,IF(E26=1,System!B22," "&System!B22),"") -> Подготовка пола | C26: =IF($SS26,IF(gIsItPlan,System!F22,System!I22),"") -> 2014-06-22 | D26: =IF($SS26,IF(gIsItPlan,System!G22,System!J22),"") -> 2014-07-05 | E26: =System!C22 -> 2 | F26: =System!L22 -> 1 | G26: 67 | H26: 74 | I26: 74 | J26: 20 | L26: 0 | M26: 0 | N26: 0 | O26: 0 | P26: 0 | Q26: 0 | R26: 0 | S26: 0 | T26: 0 | U26: 0 | V26: 0 | W26: 0 | X26: 0 | Y26: 0 | Z26: 0 | AA26: 0 | AB26: 0 | AC26: 0 | AD26: 0 | AE26: 0 | AF26: 0 | AG26: 0 | AH26: 0 | AI26: 0 | AJ26: 0 | AK26: 0 | AL26: 0 | AM26: 0 | AN26: 0 | AO26: 0 | AP26: 0 | AQ26: 0 | AR26: 0 | AS26: 0 | AT26: 0 | AU26: 0 | AV26: 0 | AW26: 0 | AX26: 0 | AY26: 0 | AZ26: 0 | BA26: 0 | BB26: 0 | BC26: 0 | BD26: 0 | BE26: 0 | BF26: 0 | BG26: 0 | BH26: 0 | BI26: 0 | BJ26: 0 | BK26: 0 | BL26: 0 | BM26: 0 | BN26: 0 | BO26: 0 | BP26: 31 | BQ26: 34 | BR26: 34 | BS26: 34 | BT26: 34 | BU26: 34 | BV26: 34 | BW26: 32 | BX26: 0 | BY26: 0 | BZ26: 0 | CA26: 0 | CB26: 0 | CC26: 0 | CD26: 0 | CE26: 0 | CF26: 0 | CG26: 0 | CH26: 0 | CI26: 0 | CJ26: 0 | CK26: 0 | CL26: 0 | CM26: 0 | CN26: 0 | CO26: 0 | CP26: 0 | CQ26: 0 | CR26: 0 | CS26: 0 | CT26: 0 | CU26: 0 | CV26: 0 | CW26: 0 | CX26: 0 | CY26: 0 | CZ26: 0 | DA26: 0 | DB26: 0 | DC26: 0 | DD26: 0 | DE26: 0 | DF26: 0 | DG26: 0 | DH26: 0 | DI26: 0 | DJ26: 0 | DK26: 0 | DL26: 0 | DM26: 0 | DN26: 0 | DO26: 0 | DP26: 0 | DQ26: 0 | DR26: 0 | DS26: 0 | DT26: 0 | DU26: 0 | DV26: 0 | DW26: 0 | DX26: 0 | DY26: 0 | DZ26: 0 | EA26: 0 | EB26: 0 | EC26: 0 | ED26: 0 | EE26: 0 | EF26: 0 | EG26: 0 | EH26: 0 | EI26: 0 | EJ26: 0 | EK26: 0 | EL26: 0 | EM26: 0 | EN26: 0 | EO26: 0 | EP26: 0 | EQ26: 0 | ER26: 0 | ES26: 0 | ET26: 0 | EU26: 0 | EV26: 0 | EW26: 0 | EX26: 0 | EY26: 0 | EZ26: 0 | FA26: 0 | FB26: 0 | FC26: 0 | FD26: 0 | FE26: 0 | FF26: 0 | FG26: 0 | FH26: 0 | FI26: 0 | FJ26: 0 | FK26: 0 | FL26: 0 | FM26: 0 | FN26: 0 | FO26: 0 | FP26: 0 | FQ26: 0 | FR26: 0 | FS26: 0 | FT26: 0 | FU26: 0 | FV26: 0 | FW26: 0 | FX26: 0 | FY26: 0 | FZ26: 0 | GA26: 0 | GB26: 0 | GC26: 0 | GD26: 0 | GE26: 0 | GF26: 0 | GG26: 0 | GH26: 0 | GI26: 0 | GJ26: 0 | GK26: 0 | GL26: 0 | GM26: 0 | GN26: 0 | GO26: 0 | GP26: 0 | GQ26: 0 | GR26: 0 | GS26: 0 | GT26: 0 | GU26: 0 | GV26: 0 | GW26: 0 | GX26: 0 | GY26: 0 | GZ26: 0 | HA26: 0 | HB26: 0 | HC26: 0 | HD26: 0 | HE26: 0 | HF26: 0 | HG26: 0 | HH26: 0 | HI26: 0 | HJ26: 0 | HK26: 0 | HL26: 0 | HM26: 0 | HN26: 0 | HO26: 0 | HP26: 0 | HQ26: 0 | HR26: 0 | HS26: 0 | HT26: 0 | HU26: 0 | HV26: 0 | HW26: 0 | HX26: 0 | HY26: 0 | HZ26: 0 | IA26: 0 | IB26: 0 | IC26: 0 | ID26: 0 | IE26: 0 | IF26: 0 | IG26: 0 | IH26: 0 | II26: 0 | IJ26: 0 | IK26: 0 | IL26: 0 | IM26: 0 | IN26: 0 | IO26: 0 | IP26: 0 | IQ26: 0 | IR26: 0 | IS26: 0 | IT26: 0 | IU26: 0 | IV26: 0 | IW26: 0 | IX26: 0 | IY26: 0 | IZ26: 0 | JA26: 0 | JB26: 0 | JC26: 0 | JD26: 0 | JE26: 0 | JF26: 0 | JG26: 0 | JH26: 0 | JI26: 0 | JJ26: 0 | JK26: 0 | JL26: 0 | JM26: 0 | JN26: 0 | JO26: 0 | JP26: 0 | JQ26: 0 | JR26: 0 | JS26: 0 | JT26: 0 | JU26: 0 | JV26: 0 | JW26: 0 | JX26: 0 | JY26: 0 | JZ26: 0 | KA26: 0 | KB26: 0 | KC26: 0 | KD26: 0 | KE26: 0 | KF26: 0 | KG26: 0 | KH26: 0 | KI26: 0 | KJ26: 0 | KK26: 0 | KL26: 0 | KM26: 0 | KN26: 0 | KO26: 0 | KP26: 0 | KQ26: 0 | KR26: 0 | KS26: 0 | KT26: 0 | KU26: 0 | KV26: 0 | KW26: 0 | KX26: 0 | KY26: 0 | KZ26: 0 | LA26: 0 | LB26: 0 | LC26: 0 | LD26: 0 | LE26: 0 | LF26: 0 | LG26: 0 | LH26: 0 | LI26: 0 | LJ26: 0 | LK26: 0 | LL26: 0 | LM26: 0 | LN26: 0 | LO26: 0 | LP26: 0 | LQ26: 0 | LR26: 0 | LS26: 0 | LT26: 0 | LU26: 0 | LV26: 0 | LW26: 0 | LX26: 0 | LY26: 0 | LZ26: 0 | MA26: 0 | MB26: 0 | MC26: 0 | MD26: 0 | ME26: 0 | MF26: 0 | MG26: 0 | MH26: 0 | MI26: 0 | MJ26: 0 | MK26: 0 | ML26: 0 | MM26: 0 | MN26: 0 | MO26: 0 | MP26: 0 | MQ26: 0 | MR26: 0 | MS26: 0 | MT26: 0 | MU26: 0 | MV26: 0 | MW26: 0 | MX26: 0 | MY26: 0 | MZ26: 0 | NA26: 0 | NB26: 0 | NC26: 0 | ND26: 0 | NE26: 0 | NF26: 0 | NG26: 0 | NH26: 0 | NI26: 0 | NJ26: 0 | NK26: 0 | NL26: 0 | NM26: 0 | NN26: 0 | NO26: 0 | NP26: 0 | NQ26: 0 | NR26: 0 | NS26: 0 | NT26: 0 | NU26: 0 | NV26: 0 | NW26: 0 | NX26: 0 | NY26: 0 | NZ26: 0 | OA26: 0 | OB26: 0 | OC26: 0 | OD26: 0 | OE26: 0 | OF26: 0 | OG26: 0 | OH26: 0 | OI26: 0 | OJ26: 0 | OK26: 0 | OL26: 0 | OM26: 0 | ON26: 0 | OO26: 0 | OP26: 0 | OQ26: 0 | OR26: 0 | OS26: 0 | OT26: 0 | OU26: 0 | OV26: 0 | OW26: 0 | OX26: 0 | OY26: 0 | OZ26: 0 | PA26: 0 | PB26: 0 | PC26: 0 | PD26: 0 | PE26: 0 | PF26: 0 | PG26: 0 | PH26: 0 | PI26: 0 | PJ26: 0 | PK26: 0 | PL26: 0 | PM26: 0 | PN26: 0 | PO26: 0 | PP26: 0 | PQ26: 0 | PR26: 0 | PS26: 0 | PT26: 0 | PU26: 0 | PV26: 0 | PW26: 0 | PX26: 0 | PY26: 0 | PZ26: 0 | QA26: 0 | QB26: 0 | QC26: 0 | QD26: 0 | QE26: 0 | QF26: 0 | QG26: 0 | QH26: 0 | QI26: 0 | QJ26: 0 | QK26: 0 | QL26: 0 | QM26: 0 | QN26: 0 | QO26: 0 | QP26: 0 | QQ26: 0 | QR26: 0 | QS26: 0 | QT26: 0 | QU26: 0 | QV26: 0 | QW26: 0 | QX26: 0 | QY26: 0 | QZ26: 0 | RA26: 0 | RB26: 0 | RC26: 0 | RD26: 0 | RE26: 0 | RF26: 0 | RG26: 0 | RH26: =IF(RH$1>$I26,0, IF(RH$1<$G26,0, IF(AND(RH$1>$G26,RH$1<$H26),14+$J26, IF(AND(RH$1>$H26,RH$1<$I26),4+$J26, IF(AND(RH$1=$G26,RH$1<>$H26,RH$1<>$I26),11+$J26, IF(AND(RH$1<>$G26,RH$1=$H26,RH$1<>$I26),12+$J26, IF(AND(RH$1<>$G26,RH$1<>$H26,RH$1=$I26),2+$J26, IF(AND(RH$1=$G26,RH$1=$H26,RH$1<>$I26,$F26<>0),13+$J26, IF(AND(RH$1=$G26,RH$1=$H26,RH$1<>$I26,$F26=0),1+$J26, IF(AND(RH$1<>$G26,RH$1=$H26,RH$1=$I26),12+$J26, IF(AND(RH$1=$G26,RH$1=$H26,RH$1=$I26,$F26<=0.5),3+$J26,13+$J26))))))))))) -> 0 | RI26: 0 | RJ26: 0 | RK26: 0 | RL26: 0 | RM26: 0 | RN26: 0 | RO26: 0 | RP26: 0 | RQ26: 0 | RR26: 0 | RS26: 0 | RT26: 0 | RU26: 0 | RV26: 0 | RW26: 0 | RX26: 0 | RY26: 0 | RZ26: 0 | SA26: 0 | SB26: 0 | SC26: 0 | SD26: 0 | SE26: 0 | SF26: 0 | SG26: 0 | SH26: 0 | SI26: 0 | SJ26: 0 | SK26: 0 | SL26: 0 | SM26: 0 | SN26: =IF(SN$1>$I26,0, IF(SN$1<$G26,0, IF(AND(SN$1>$G26,SN$1<$H26),14+$J26, IF(AND(SN$1>$H26,SN$1<$I26),4+$J26, IF(AND(SN$1=$G26,SN$1<>$H26,SN$1<>$I26),11+$J26, IF(AND(SN$1<>$G26,SN$1=$H26,SN$1<>$I26),12+$J26, IF(AND(SN$1<>$G26,SN$1<>$H26,SN$1=$I26),2+$J26, IF(AND(SN$1=$G26,SN$1=$H26,SN$1<>$I26,$F26<>0),13+$J26, IF(AND(SN$1=$G26,SN$1=$H26,SN$1<>$I26,$F26=0),1+$J26, IF(AND(SN$1<>$G26,SN$1=$H26,SN$1=$I26),12+$J26, IF(AND(SN$1=$G26,SN$1=$H26,SN$1=$I26,$F26<=0.5),3+$J26,13+$J26))))))))))) -> 0 | SO26: 0 | SP26: 0 | SQ26: 0 | SS26: =IF(gIsItPlan,IF(AND(System!Z22,System!AA22),1,0),IF(AND(System!Z22,System!AB22),1,0)) -> 1
B27: =IF($SS27,IF(E27=1,System!B23," "&System!B23),"") -> Контроль качества | C27: =IF($SS27,IF(gIsItPlan,System!F23,System!I23),"") -> 2014-07-06 | D27: =IF($SS27,IF(gIsItPlan,System!G23,System!J23),"") -> 2014-07-06 | E27: =System!C23 -> 2 | F27: =System!L23 -> 1 | G27: 74 | H27: 74 | I27: 74 | J27: 20 | L27: 0 | M27: 0 | N27: 0 | O27: 0 | P27: 0 | Q27: 0 | R27: 0 | S27: 0 | T27: 0 | U27: 0 | V27: 0 | W27: 0 | X27: 0 | Y27: 0 | Z27: 0 | AA27: 0 | AB27: 0 | AC27: 0 | AD27: 0 | AE27: 0 | AF27: 0 | AG27: 0 | AH27: 0 | AI27: 0 | AJ27: 0 | AK27: 0 | AL27: 0 | AM27: 0 | AN27: 0 | AO27: 0 | AP27: 0 | AQ27: 0 | AR27: 0 | AS27: 0 | AT27: 0 | AU27: 0 | AV27: 0 | AW27: 0 | AX27: 0 | AY27: 0 | AZ27: 0 | BA27: 0 | BB27: 0 | BC27: 0 | BD27: 0 | BE27: 0 | BF27: 0 | BG27: 0 | BH27: 0 | BI27: 0 | BJ27: 0 | BK27: 0 | BL27: 0 | BM27: 0 | BN27: 0 | BO27: 0 | BP27: 0 | BQ27: 0 | BR27: 0 | BS27: 0 | BT27: 0 | BU27: 0 | BV27: 0 | BW27: 33 | BX27: 0 | BY27: 0 | BZ27: 0 | CA27: 0 | CB27: 0 | CC27: 0 | CD27: 0 | CE27: 0 | CF27: 0 | CG27: 0 | CH27: 0 | CI27: 0 | CJ27: 0 | CK27: 0 | CL27: 0 | CM27: 0 | CN27: 0 | CO27: 0 | CP27: 0 | CQ27: 0 | CR27: 0 | CS27: 0 | CT27: 0 | CU27: 0 | CV27: 0 | CW27: 0 | CX27: 0 | CY27: 0 | CZ27: 0 | DA27: 0 | DB27: 0 | DC27: 0 | DD27: 0 | DE27: 0 | DF27: 0 | DG27: 0 | DH27: 0 | DI27: 0 | DJ27: 0 | DK27: 0 | DL27: 0 | DM27: 0 | DN27: 0 | DO27: 0 | DP27: 0 | DQ27: 0 | DR27: 0 | DS27: 0 | DT27: 0 | DU27: 0 | DV27: 0 | DW27: 0 | DX27: 0 | DY27: 0 | DZ27: 0 | EA27: 0 | EB27: 0 | EC27: 0 | ED27: 0 | EE27: 0 | EF27: 0 | EG27: 0 | EH27: 0 | EI27: 0 | EJ27: 0 | EK27: 0 | EL27: 0 | EM27: 0 | EN27: 0 | EO27: 0 | EP27: 0 | EQ27: 0 | ER27: 0 | ES27: 0 | ET27: 0 | EU27: 0 | EV27: 0 | EW27: 0 | EX27: 0 | EY27: 0 | EZ27: 0 | FA27: 0 | FB27: 0 | FC27: 0 | FD27: 0 | FE27: 0 | FF27: 0 | FG27: 0 | FH27: 0 | FI27: 0 | FJ27: 0 | FK27: 0 | FL27: 0 | FM27: 0 | FN27: 0 | FO27: 0 | FP27: 0 | FQ27: 0 | FR27: 0 | FS27: 0 | FT27: 0 | FU27: 0 | FV27: 0 | FW27: 0 | FX27: 0 | FY27: 0 | FZ27: 0 | GA27: 0 | GB27: 0 | GC27: 0 | GD27: 0 | GE27: 0 | GF27: 0 | GG27: 0 | GH27: 0 | GI27: 0 | GJ27: 0 | GK27: 0 | GL27: 0 | GM27: 0 | GN27: 0 | GO27: 0 | GP27: 0 | GQ27: 0 | GR27: 0 | GS27: 0 | GT27: 0 | GU27: 0 | GV27: 0 | GW27: 0 | GX27: 0 | GY27: 0 | GZ27: 0 | HA27: 0 | HB27: 0 | HC27: 0 | HD27: 0 | HE27: 0 | HF27: 0 | HG27: 0 | HH27: 0 | HI27: 0 | HJ27: 0 | HK27: 0 | HL27: 0 | HM27: 0 | HN27: 0 | HO27: 0 | HP27: 0 | HQ27: 0 | HR27: 0 | HS27: 0 | HT27: 0 | HU27: 0 | HV27: 0 | HW27: 0 | HX27: 0 | HY27: 0 | HZ27: 0 | IA27: 0 | IB27: 0 | IC27: 0 | ID27: 0 | IE27: 0 | IF27: 0 | IG27: 0 | IH27: 0 | II27: 0 | IJ27: 0 | IK27: 0 | IL27: 0 | IM27: 0 | IN27: 0 | IO27: 0 | IP27: 0 | IQ27: 0 | IR27: 0 | IS27: 0 | IT27: 0 | IU27: 0 | IV27: 0 | IW27: 0 | IX27: 0 | IY27: 0 | IZ27: 0 | JA27: 0 | JB27: 0 | JC27: 0 | JD27: 0 | JE27: 0 | JF27: 0 | JG27: 0 | JH27: 0 | JI27: 0 | JJ27: 0 | JK27: 0 | JL27: 0 | JM27: 0 | JN27: 0 | JO27: 0 | JP27: 0 | JQ27: 0 | JR27: 0 | JS27: 0 | JT27: 0 | JU27: 0 | JV27: 0 | JW27: 0 | JX27: 0 | JY27: 0 | JZ27: 0 | KA27: 0 | KB27: 0 | KC27: 0 | KD27: 0 | KE27: 0 | KF27: 0 | KG27: 0 | KH27: 0 | KI27: 0 | KJ27: 0 | KK27: 0 | KL27: 0 | KM27: 0 | KN27: 0 | KO27: 0 | KP27: 0 | KQ27: 0 | KR27: 0 | KS27: 0 | KT27: 0 | KU27: 0 | KV27: 0 | KW27: 0 | KX27: 0 | KY27: 0 | KZ27: 0 | LA27: 0 | LB27: 0 | LC27: 0 | LD27: 0 | LE27: 0 | LF27: 0 | LG27: 0 | LH27: 0 | LI27: 0 | LJ27: 0 | LK27: 0 | LL27: 0 | LM27: 0 | LN27: 0 | LO27: 0 | LP27: 0 | LQ27: 0 | LR27: 0 | LS27: 0 | LT27: 0 | LU27: 0 | LV27: 0 | LW27: 0 | LX27: 0 | LY27: 0 | LZ27: 0 | MA27: 0 | MB27: 0 | MC27: 0 | MD27: 0 | ME27: 0 | MF27: 0 | MG27: 0 | MH27: 0 | MI27: 0 | MJ27: 0 | MK27: 0 | ML27: 0 | MM27: 0 | MN27: 0 | MO27: 0 | MP27: 0 | MQ27: 0 | MR27: 0 | MS27: 0 | MT27: 0 | MU27: 0 | MV27: 0 | MW27: 0 | MX27: 0 | MY27: 0 | MZ27: 0 | NA27: 0 | NB27: 0 | NC27: 0 | ND27: 0 | NE27: 0 | NF27: 0 | NG27: 0 | NH27: 0 | NI27: 0 | NJ27: 0 | NK27: 0 | NL27: 0 | NM27: 0 | NN27: 0 | NO27: 0 | NP27: 0 | NQ27: 0 | NR27: 0 | NS27: 0 | NT27: 0 | NU27: 0 | NV27: 0 | NW27: 0 | NX27: 0 | NY27: 0 | NZ27: 0 | OA27: 0 | OB27: 0 | OC27: 0 | OD27: 0 | OE27: 0 | OF27: 0 | OG27: 0 | OH27: 0 | OI27: 0 | OJ27: 0 | OK27: 0 | OL27: 0 | OM27: 0 | ON27: 0 | OO27: 0 | OP27: 0 | OQ27: 0 | OR27: 0 | OS27: 0 | OT27: 0 | OU27: 0 | OV27: 0 | OW27: 0 | OX27: 0 | OY27: 0 | OZ27: 0 | PA27: 0 | PB27: 0 | PC27: 0 | PD27: 0 | PE27: 0 | PF27: 0 | PG27: 0 | PH27: 0 | PI27: 0 | PJ27: 0 | PK27: 0 | PL27: 0 | PM27: 0 | PN27: 0 | PO27: 0 | PP27: 0 | PQ27: 0 | PR27: 0 | PS27: 0 | PT27: 0 | PU27: 0 | PV27: 0 | PW27: 0 | PX27: 0 | PY27: 0 | PZ27: 0 | QA27: 0 | QB27: 0 | QC27: 0 | QD27: 0 | QE27: 0 | QF27: 0 | QG27: 0 | QH27: 0 | QI27: 0 | QJ27: 0 | QK27: 0 | QL27: 0 | QM27: 0 | QN27: 0 | QO27: 0 | QP27: 0 | QQ27: 0 | QR27: 0 | QS27: 0 | QT27: 0 | QU27: 0 | QV27: 0 | QW27: 0 | QX27: 0 | QY27: 0 | QZ27: 0 | RA27: 0 | RB27: 0 | RC27: 0 | RD27: 0 | RE27: 0 | RF27: 0 | RG27: =IF(RG$1>$I27,0, IF(RG$1<$G27,0, IF(AND(RG$1>$G27,RG$1<$H27),14+$J27, IF(AND(RG$1>$H27,RG$1<$I27),4+$J27, IF(AND(RG$1=$G27,RG$1<>$H27,RG$1<>$I27),11+$J27, IF(AND(RG$1<>$G27,RG$1=$H27,RG$1<>$I27),12+$J27, IF(AND(RG$1<>$G27,RG$1<>$H27,RG$1=$I27),2+$J27, IF(AND(RG$1=$G27,RG$1=$H27,RG$1<>$I27,$F27<>0),13+$J27, IF(AND(RG$1=$G27,RG$1=$H27,RG$1<>$I27,$F27=0),1+$J27, IF(AND(RG$1<>$G27,RG$1=$H27,RG$1=$I27),12+$J27, IF(AND(RG$1=$G27,RG$1=$H27,RG$1=$I27,$F27<=0.5),3+$J27,13+$J27))))))))))) -> 0 | RH27: 0 | RI27: 0 | RJ27: 0 | RK27: 0 | RL27: 0 | RM27: 0 | RN27: 0 | RO27: 0 | RP27: 0 | RQ27: 0 | RR27: 0 | RS27: 0 | RT27: 0 | RU27: 0 | RV27: 0 | RW27: 0 | RX27: 0 | RY27: =IF(RY$1>$I27,0, IF(RY$1<$G27,0, IF(AND(RY$1>$G27,RY$1<$H27),14+$J27, IF(AND(RY$1>$H27,RY$1<$I27),4+$J27, IF(AND(RY$1=$G27,RY$1<>$H27,RY$1<>$I27),11+$J27, IF(AND(RY$1<>$G27,RY$1=$H27,RY$1<>$I27),12+$J27, IF(AND(RY$1<>$G27,RY$1<>$H27,RY$1=$I27),2+$J27, IF(AND(RY$1=$G27,RY$1=$H27,RY$1<>$I27,$F27<>0),13+$J27, IF(AND(RY$1=$G27,RY$1=$H27,RY$1<>$I27,$F27=0),1+$J27, IF(AND(RY$1<>$G27,RY$1=$H27,RY$1=$I27),12+$J27, IF(AND(RY$1=$G27,RY$1=$H27,RY$1=$I27,$F27<=0.5),3+$J27,13+$J27))))))))))) -> 0 | RZ27: 0 | SA27: 0 | SB27: 0 | SC27: 0 | SD27: 0 | SE27: 0 | SF27: 0 | SG27: 0 | SH27: 0 | SI27: 0 | SJ27: 0 | SK27: 0 | SL27: 0 | SM27: 0 | SN27: 0 | SO27: 0 | SP27: 0 | SQ27: 0 | SS27: =IF(gIsItPlan,IF(AND(System!Z23,System!AA23),1,0),IF(AND(System!Z23,System!AB23),1,0)) -> 1
B28: =IF($SS28,IF(E28=1,System!B24," "&System!B24),"") -> Потолочные конструкции | C28: =IF($SS28,IF(gIsItPlan,System!F24,System!I24),"") -> 2014-07-07 | D28: =IF($SS28,IF(gIsItPlan,System!G24,System!J24),"") -> 2014-07-11 | E28: =System!C24 -> 2 | F28: =System!L24 -> 0.8 | G28: 75 | H28: 77 | I28: 77 | J28: 20 | L28: 0 | M28: 0 | N28: 0 | O28: 0 | P28: 0 | Q28: 0 | R28: 0 | S28: 0 | T28: 0 | U28: 0 | V28: 0 | W28: 0 | X28: 0 | Y28: 0 | Z28: 0 | AA28: 0 | AB28: 0 | AC28: 0 | AD28: 0 | AE28: 0 | AF28: 0 | AG28: 0 | AH28: 0 | AI28: 0 | AJ28: 0 | AK28: 0 | AL28: 0 | AM28: 0 | AN28: 0 | AO28: 0 | AP28: 0 | AQ28: 0 | AR28: 0 | AS28: 0 | AT28: 0 | AU28: 0 | AV28: 0 | AW28: 0 | AX28: 0 | AY28: 0 | AZ28: 0 | BA28: 0 | BB28: 0 | BC28: 0 | BD28: 0 | BE28: 0 | BF28: 0 | BG28: 0 | BH28: 0 | BI28: 0 | BJ28: 0 | BK28: 0 | BL28: 0 | BM28: 0 | BN28: 0 | BO28: 0 | BP28: 0 | BQ28: 0 | BR28: 0 | BS28: 0 | BT28: 0 | BU28: 0 | BV28: 0 | BW28: 0 | BX28: 31 | BY28: 34 | BZ28: 32 | CA28: 0 | CB28: 0 | CC28: 0 | CD28: 0 | CE28: 0 | CF28: 0 | CG28: 0 | CH28: 0 | CI28: 0 | CJ28: 0 | CK28: 0 | CL28: 0 | CM28: 0 | CN28: 0 | CO28: 0 | CP28: 0 | CQ28: 0 | CR28: 0 | CS28: 0 | CT28: 0 | CU28: 0 | CV28: 0 | CW28: 0 | CX28: 0 | CY28: 0 | CZ28: 0 | DA28: 0 | DB28: 0 | DC28: 0 | DD28: 0 | DE28: 0 | DF28: 0 | DG28: 0 | DH28: 0 | DI28: 0 | DJ28: 0 | DK28: 0 | DL28: 0 | DM28: 0 | DN28: 0 | DO28: 0 | DP28: 0 | DQ28: 0 | DR28: 0 | DS28: 0 | DT28: 0 | DU28: 0 | DV28: 0 | DW28: 0 | DX28: 0 | DY28: 0 | DZ28: 0 | EA28: 0 | EB28: 0 | EC28: 0 | ED28: 0 | EE28: 0 | EF28: 0 | EG28: 0 | EH28: 0 | EI28: 0 | EJ28: 0 | EK28: 0 | EL28: 0 | EM28: 0 | EN28: 0 | EO28: 0 | EP28: 0 | EQ28: 0 | ER28: 0 | ES28: 0 | ET28: 0 | EU28: 0 | EV28: 0 | EW28: 0 | EX28: 0 | EY28: 0 | EZ28: 0 | FA28: 0 | FB28: 0 | FC28: 0 | FD28: 0 | FE28: 0 | FF28: 0 | FG28: 0 | FH28: 0 | FI28: 0 | FJ28: 0 | FK28: 0 | FL28: 0 | FM28: 0 | FN28: 0 | FO28: 0 | FP28: 0 | FQ28: 0 | FR28: 0 | FS28: 0 | FT28: 0 | FU28: 0 | FV28: 0 | FW28: 0 | FX28: 0 | FY28: 0 | FZ28: 0 | GA28: 0 | GB28: 0 | GC28: 0 | GD28: 0 | GE28: 0 | GF28: 0 | GG28: 0 | GH28: 0 | GI28: 0 | GJ28: 0 | GK28: 0 | GL28: 0 | GM28: 0 | GN28: 0 | GO28: 0 | GP28: 0 | GQ28: 0 | GR28: 0 | GS28: 0 | GT28: 0 | GU28: 0 | GV28: 0 | GW28: 0 | GX28: 0 | GY28: 0 | GZ28: 0 | HA28: 0 | HB28: 0 | HC28: 0 | HD28: 0 | HE28: 0 | HF28: 0 | HG28: 0 | HH28: 0 | HI28: 0 | HJ28: 0 | HK28: 0 | HL28: 0 | HM28: 0 | HN28: 0 | HO28: 0 | HP28: 0 | HQ28: 0 | HR28: 0 | HS28: 0 | HT28: 0 | HU28: 0 | HV28: 0 | HW28: 0 | HX28: 0 | HY28: 0 | HZ28: 0 | IA28: 0 | IB28: 0 | IC28: 0 | ID28: 0 | IE28: 0 | IF28: 0 | IG28: 0 | IH28: 0 | II28: 0 | IJ28: 0 | IK28: 0 | IL28: 0 | IM28: 0 | IN28: 0 | IO28: 0 | IP28: 0 | IQ28: 0 | IR28: 0 | IS28: 0 | IT28: 0 | IU28: 0 | IV28: 0 | IW28: 0 | IX28: 0 | IY28: 0 | IZ28: 0 | JA28: 0 | JB28: 0 | JC28: 0 | JD28: 0 | JE28: 0 | JF28: 0 | JG28: 0 | JH28: 0 | JI28: 0 | JJ28: 0 | JK28: 0 | JL28: 0 | JM28: 0 | JN28: 0 | JO28: 0 | JP28: 0 | JQ28: 0 | JR28: 0 | JS28: 0 | JT28: 0 | JU28: 0 | JV28: 0 | JW28: 0 | JX28: 0 | JY28: 0 | JZ28: 0 | KA28: 0 | KB28: 0 | KC28: 0 | KD28: 0 | KE28: 0 | KF28: 0 | KG28: 0 | KH28: 0 | KI28: 0 | KJ28: 0 | KK28: 0 | KL28: 0 | KM28: 0 | KN28: 0 | KO28: 0 | KP28: 0 | KQ28: 0 | KR28: 0 | KS28: 0 | KT28: 0 | KU28: 0 | KV28: 0 | KW28: 0 | KX28: 0 | KY28: 0 | KZ28: 0 | LA28: 0 | LB28: 0 | LC28: 0 | LD28: 0 | LE28: 0 | LF28: 0 | LG28: 0 | LH28: 0 | LI28: 0 | LJ28: 0 | LK28: 0 | LL28: 0 | LM28: 0 | LN28: 0 | LO28: 0 | LP28: 0 | LQ28: 0 | LR28: 0 | LS28: 0 | LT28: 0 | LU28: 0 | LV28: 0 | LW28: 0 | LX28: 0 | LY28: 0 | LZ28: 0 | MA28: 0 | MB28: 0 | MC28: 0 | MD28: 0 | ME28: 0 | MF28: 0 | MG28: 0 | MH28: 0 | MI28: 0 | MJ28: 0 | MK28: 0 | ML28: 0 | MM28: 0 | MN28: 0 | MO28: 0 | MP28: 0 | MQ28: 0 | MR28: 0 | MS28: 0 | MT28: 0 | MU28: 0 | MV28: 0 | MW28: 0 | MX28: 0 | MY28: 0 | MZ28: 0 | NA28: 0 | NB28: 0 | NC28: 0 | ND28: 0 | NE28: 0 | NF28: 0 | NG28: 0 | NH28: 0 | NI28: 0 | NJ28: 0 | NK28: 0 | NL28: 0 | NM28: 0 | NN28: 0 | NO28: 0 | NP28: 0 | NQ28: 0 | NR28: 0 | NS28: 0 | NT28: 0 | NU28: 0 | NV28: 0 | NW28: 0 | NX28: 0 | NY28: 0 | NZ28: 0 | OA28: 0 | OB28: 0 | OC28: 0 | OD28: 0 | OE28: 0 | OF28: 0 | OG28: 0 | OH28: 0 | OI28: 0 | OJ28: 0 | OK28: 0 | OL28: 0 | OM28: 0 | ON28: 0 | OO28: 0 | OP28: 0 | OQ28: 0 | OR28: 0 | OS28: 0 | OT28: 0 | OU28: 0 | OV28: 0 | OW28: 0 | OX28: 0 | OY28: 0 | OZ28: 0 | PA28: 0 | PB28: 0 | PC28: 0 | PD28: 0 | PE28: 0 | PF28: 0 | PG28: 0 | PH28: 0 | PI28: 0 | PJ28: 0 | PK28: 0 | PL28: 0 | PM28: 0 | PN28: 0 | PO28: 0 | PP28: 0 | PQ28: 0 | PR28: 0 | PS28: 0 | PT28: 0 | PU28: 0 | PV28: 0 | PW28: 0 | PX28: 0 | PY28: 0 | PZ28: 0 | QA28: 0 | QB28: 0 | QC28: 0 | QD28: 0 | QE28: 0 | QF28: 0 | QG28: 0 | QH28: 0 | QI28: 0 | QJ28: 0 | QK28: 0 | QL28: 0 | QM28: 0 | QN28: 0 | QO28: 0 | QP28: 0 | QQ28: 0 | QR28: 0 | QS28: 0 | QT28: 0 | QU28: 0 | QV28: 0 | QW28: 0 | QX28: 0 | QY28: 0 | QZ28: 0 | RA28: 0 | RB28: 0 | RC28: 0 | RD28: 0 | RE28: 0 | RF28: 0 | RG28: 0 | RH28: 0 | RI28: 0 | RJ28: 0 | RK28: 0 | RL28: 0 | RM28: 0 | RN28: 0 | RO28: 0 | RP28: 0 | RQ28: 0 | RR28: 0 | RS28: 0 | RT28: 0 | RU28: 0 | RV28: 0 | RW28: 0 | RX28: 0 | RY28: 0 | RZ28: 0 | SA28: 0 | SB28: 0 | SC28: 0 | SD28: 0 | SE28: 0 | SF28: 0 | SG28: 0 | SH28: 0 | SI28: 0 | SJ28: 0 | SK28: 0 | SL28: 0 | SM28: 0 | SN28: 0 | SO28: 0 | SP28: 0 | SQ28: 0 | SS28: =IF(gIsItPlan,IF(AND(System!Z24,System!AA24),1,0),IF(AND(System!Z24,System!AB24),1,0)) -> 1
B29: =IF($SS29,IF(E29=1,System!B25," "&System!B25),"") -> Стеновые конструкции | C29: =IF($SS29,IF(gIsItPlan,System!F25,System!I25),"") -> 2014-07-12 | D29: =IF($SS29,IF(gIsItPlan,System!G25,System!J25),"") -> 2014-07-18 | E29: =System!C25 -> 2 | F29: =System!L25 -> 0.5 | G29: 77 | H29: 78 | I29: 80 | J29: 20 | L29: 0 | M29: 0 | N29: 0 | O29: 0 | P29: 0 | Q29: 0 | R29: 0 | S29: 0 | T29: =IF(T$1>$I29,0, IF(T$1<$G29,0, IF(AND(T$1>$G29,T$1<$H29),14+$J29, IF(AND(T$1>$H29,T$1<$I29),4+$J29, IF(AND(T$1=$G29,T$1<>$H29,T$1<>$I29),11+$J29, IF(AND(T$1<>$G29,T$1=$H29,T$1<>$I29),12+$J29, IF(AND(T$1<>$G29,T$1<>$H29,T$1=$I29),2+$J29, IF(AND(T$1=$G29,T$1=$H29,T$1<>$I29,$F29<>0),13+$J29, IF(AND(T$1=$G29,T$1=$H29,T$1<>$I29,$F29=0),1+$J29, IF(AND(T$1<>$G29,T$1=$H29,T$1=$I29),12+$J29, IF(AND(T$1=$G29,T$1=$H29,T$1=$I29,$F29<=0.5),3+$J29,13+$J29))))))))))) -> 0 | U29: 0 | V29: 0 | W29: 0 | X29: 0 | Y29: 0 | Z29: 0 | AA29: 0 | AB29: 0 | AC29: 0 | AD29: 0 | AE29: 0 | AF29: 0 | AG29: 0 | AH29: 0 | AI29: 0 | AJ29: 0 | AK29: 0 | AL29: 0 | AM29: 0 | AN29: 0 | AO29: 0 | AP29: 0 | AQ29: 0 | AR29: 0 | AS29: 0 | AT29: 0 | AU29: 0 | AV29: 0 | AW29: 0 | AX29: 0 | AY29: 0 | AZ29: 0 | BA29: 0 | BB29: 0 | BC29: 0 | BD29: 0 | BE29: 0 | BF29: 0 | BG29: =IF(BG$1>$I29,0, IF(BG$1<$G29,0, IF(AND(BG$1>$G29,BG$1<$H29),14+$J29, IF(AND(BG$1>$H29,BG$1<$I29),4+$J29, IF(AND(BG$1=$G29,BG$1<>$H29,BG$1<>$I29),11+$J29, IF(AND(BG$1<>$G29,BG$1=$H29,BG$1<>$I29),12+$J29, IF(AND(BG$1<>$G29,BG$1<>$H29,BG$1=$I29),2+$J29, IF(AND(BG$1=$G29,BG$1=$H29,BG$1<>$I29,$F29<>0),13+$J29, IF(AND(BG$1=$G29,BG$1=$H29,BG$1<>$I29,$F29=0),1+$J29, IF(AND(BG$1<>$G29,BG$1=$H29,BG$1=$I29),12+$J29, IF(AND(BG$1=$G29,BG$1=$H29,BG$1=$I29,$F29<=0.5),3+$J29,13+$J29))))))))))) -> 0 | BH29: 0 | BI29: 0 | BJ29: 0 | BK29: 0 | BL29: 0 | BM29: 0 | BN29: 0 | BO29: 0 | BP29: 0 | BQ29: 0 | BR29: 0 | BS29: 0 | BT29: 0 | BU29: 0 | BV29: 0 | BW29: 0 | BX29: 0 | BY29: 0 | BZ29: 31 | CA29: 32 | CB29: 24 | CC29: 22 | CD29: 0 | CE29: 0 | CF29: 0 | CG29: 0 | CH29: 0 | CI29: 0 | CJ29: 0 | CK29: 0 | CL29: 0 | CM29: 0 | CN29: 0 | CO29: 0 | CP29: 0 | CQ29: 0 | CR29: 0 | CS29: 0 | CT29: 0 | CU29: 0 | CV29: 0 | CW29: 0 | CX29: 0 | CY29: 0 | CZ29: 0 | DA29: 0 | DB29: =IF(DB$1>$I29,0, IF(DB$1<$G29,0, IF(AND(DB$1>$G29,DB$1<$H29),14+$J29, IF(AND(DB$1>$H29,DB$1<$I29),4+$J29, IF(AND(DB$1=$G29,DB$1<>$H29,DB$1<>$I29),11+$J29, IF(AND(DB$1<>$G29,DB$1=$H29,DB$1<>$I29),12+$J29, IF(AND(DB$1<>$G29,DB$1<>$H29,DB$1=$I29),2+$J29, IF(AND(DB$1=$G29,DB$1=$H29,DB$1<>$I29,$F29<>0),13+$J29, IF(AND(DB$1=$G29,DB$1=$H29,DB$1<>$I29,$F29=0),1+$J29, IF(AND(DB$1<>$G29,DB$1=$H29,DB$1=$I29),12+$J29, IF(AND(DB$1=$G29,DB$1=$H29,DB$1=$I29,$F29<=0.5),3+$J29,13+$J29))))))))))) -> 0 | DC29: 0 | DD29: 0 | DE29: 0 | DF29: 0 | DG29: 0 | DH29: 0 | DI29: 0 | DJ29: 0 | DK29: 0 | DL29: 0 | DM29: 0 | DN29: 0 | DO29: 0 | DP29: 0 | DQ29: 0 | DR29: 0 | DS29: 0 | DT29: 0 | DU29: 0 | DV29: 0 | DW29: 0 | DX29: 0 | DY29: 0 | DZ29: 0 | EA29: 0 | EB29: 0 | EC29: 0 | ED29: 0 | EE29: 0 | EF29: 0 | EG29: 0 | EH29: =IF(EH$1>$I29,0, IF(EH$1<$G29,0, IF(AND(EH$1>$G29,EH$1<$H29),14+$J29, IF(AND(EH$1>$H29,EH$1<$I29),4+$J29, IF(AND(EH$1=$G29,EH$1<>$H29,EH$1<>$I29),11+$J29, IF(AND(EH$1<>$G29,EH$1=$H29,EH$1<>$I29),12+$J29, IF(AND(EH$1<>$G29,EH$1<>$H29,EH$1=$I29),2+$J29, IF(AND(EH$1=$G29,EH$1=$H29,EH$1<>$I29,$F29<>0),13+$J29, IF(AND(EH$1=$G29,EH$1=$H29,EH$1<>$I29,$F29=0),1+$J29, IF(AND(EH$1<>$G29,EH$1=$H29,EH$1=$I29),12+$J29, IF(AND(EH$1=$G29,EH$1=$H29,EH$1=$I29,$F29<=0.5),3+$J29,13+$J29))))))))))) -> 0 | EI29: 0 | EJ29: 0 | EK29: 0 | EL29: 0 | EM29: 0 | EN29: 0 | EO29: 0 | EP29: 0 | EQ29: 0 | ER29: 0 | ES29: 0 | ET29: 0 | EU29: 0 | EV29: 0 | EW29: 0 | EX29: =IF(EX$1>$I29,0, IF(EX$1<$G29,0, IF(AND(EX$1>$G29,EX$1<$H29),14+$J29, IF(AND(EX$1>$H29,EX$1<$I29),4+$J29, IF(AND(EX$1=$G29,EX$1<>$H29,EX$1<>$I29),11+$J29, IF(AND(EX$1<>$G29,EX$1=$H29,EX$1<>$I29),12+$J29, IF(AND(EX$1<>$G29,EX$1<>$H29,EX$1=$I29),2+$J29, IF(AND(EX$1=$G29,EX$1=$H29,EX$1<>$I29,$F29<>0),13+$J29, IF(AND(EX$1=$G29,EX$1=$H29,EX$1<>$I29,$F29=0),1+$J29, IF(AND(EX$1<>$G29,EX$1=$H29,EX$1=$I29),12+$J29, IF(AND(EX$1=$G29,EX$1=$H29,EX$1=$I29,$F29<=0.5),3+$J29,13+$J29))))))))))) -> 0 | EY29: 0 | EZ29: 0 | FA29: 0 | FB29: 0 | FC29: 0 | FD29: 0 | FE29: 0 | FF29: 0 | FG29: 0 | FH29: 0 | FI29: 0 | FJ29: 0 | FK29: 0 | FL29: 0 | FM29: 0 | FN29: 0 | FO29: 0 | FP29: 0 | FQ29: 0 | FR29: 0 | FS29: 0 | FT29: 0 | FU29: 0 | FV29: 0 | FW29: 0 | FX29: 0 | FY29: 0 | FZ29: 0 | GA29: 0 | GB29: 0 | GC29: 0 | GD29: =IF(GD$1>$I29,0, IF(GD$1<$G29,0, IF(AND(GD$1>$G29,GD$1<$H29),14+$J29, IF(AND(GD$1>$H29,GD$1<$I29),4+$J29, IF(AND(GD$1=$G29,GD$1<>$H29,GD$1<>$I29),11+$J29, IF(AND(GD$1<>$G29,GD$1=$H29,GD$1<>$I29),12+$J29, IF(AND(GD$1<>$G29,GD$1<>$H29,GD$1=$I29),2+$J29, IF(AND(GD$1=$G29,GD$1=$H29,GD$1<>$I29,$F29<>0),13+$J29, IF(AND(GD$1=$G29,GD$1=$H29,GD$1<>$I29,$F29=0),1+$J29, IF(AND(GD$1<>$G29,GD$1=$H29,GD$1=$I29),12+$J29, IF(AND(GD$1=$G29,GD$1=$H29,GD$1=$I29,$F29<=0.5),3+$J29,13+$J29))))))))))) -> 0 | GE29: 0 | GF29: 0 | GG29: 0 | GH29: 0 | GI29: 0 | GJ29: 0 | GK29: 0 | GL29: 0 | GM29: 0 | GN29: 0 | GO29: 0 | GP29: 0 | GQ29: 0 | GR29: 0 | GS29: 0 | GT29: 0 | GU29: 0 | GV29: 0 | GW29: 0 | GX29: 0 | GY29: 0 | GZ29: 0 | HA29: 0 | HB29: 0 | HC29: 0 | HD29: 0 | HE29: 0 | HF29: 0 | HG29: 0 | HH29: =IF(HH$1>$I29,0, IF(HH$1<$G29,0, IF(AND(HH$1>$G29,HH$1<$H29),14+$J29, IF(AND(HH$1>$H29,HH$1<$I29),4+$J29, IF(AND(HH$1=$G29,HH$1<>$H29,HH$1<>$I29),11+$J29, IF(AND(HH$1<>$G29,HH$1=$H29,HH$1<>$I29),12+$J29, IF(AND(HH$1<>$G29,HH$1<>$H29,HH$1=$I29),2+$J29, IF(AND(HH$1=$G29,HH$1=$H29,HH$1<>$I29,$F29<>0),13+$J29, IF(AND(HH$1=$G29,HH$1=$H29,HH$1<>$I29,$F29=0),1+$J29, IF(AND(HH$1<>$G29,HH$1=$H29,HH$1=$I29),12+$J29, IF(AND(HH$1=$G29,HH$1=$H29,HH$1=$I29,$F29<=0.5),3+$J29,13+$J29))))))))))) -> 0 | HI29: 0 | HJ29: 0 | HK29: 0 | HL29: 0 | HM29: 0 | HN29: 0 | HO29: 0 | HP29: 0 | HQ29: 0 | HR29: 0 | HS29: 0 | HT29: 0 | HU29: 0 | HV29: 0 | HW29: 0 | HX29: 0 | HY29: 0 | HZ29: 0 | IA29: 0 | IB29: 0 | IC29: 0 | ID29: 0 | IE29: 0 | IF29: 0 | IG29: 0 | IH29: 0 | II29: 0 | IJ29: 0 | IK29: 0 | IL29: 0 | IM29: 0 | IN29: 0 | IO29: 0 | IP29: =IF(IP$1>$I29,0, IF(IP$1<$G29,0, IF(AND(IP$1>$G29,IP$1<$H29),14+$J29, IF(AND(IP$1>$H29,IP$1<$I29),4+$J29, IF(AND(IP$1=$G29,IP$1<>$H29,IP$1<>$I29),11+$J29, IF(AND(IP$1<>$G29,IP$1=$H29,IP$1<>$I29),12+$J29, IF(AND(IP$1<>$G29,IP$1<>$H29,IP$1=$I29),2+$J29, IF(AND(IP$1=$G29,IP$1=$H29,IP$1<>$I29,$F29<>0),13+$J29, IF(AND(IP$1=$G29,IP$1=$H29,IP$1<>$I29,$F29=0),1+$J29, IF(AND(IP$1<>$G29,IP$1=$H29,IP$1=$I29),12+$J29, IF(AND(IP$1=$G29,IP$1=$H29,IP$1=$I29,$F29<=0.5),3+$J29,13+$J29))))))))))) -> 0 | IQ29: 0 | IR29: 0 | IS29: 0 | IT29: 0 | IU29: 0 | IV29: 0 | IW29: 0 | IX29: 0 | IY29: 0 | IZ29: 0 | JA29: 0 | JB29: 0 | JC29: 0 | JD29: 0 | JE29: 0 | JF29: 0 | JG29: 0 | JH29: 0 | JI29: 0 | JJ29: 0 | JK29: 0 | JL29: 0 | JM29: 0 | JN29: 0 | JO29: 0 | JP29: 0 | JQ29: 0 | JR29: 0 | JS29: 0 | JT29: =IF(JT$1>$I29,0, IF(JT$1<$G29,0, IF(AND(JT$1>$G29,JT$1<$H29),14+$J29, IF(AND(JT$1>$H29,JT$1<$I29),4+$J29, IF(AND(JT$1=$G29,JT$1<>$H29,JT$1<>$I29),11+$J29, IF(AND(JT$1<>$G29,JT$1=$H29,JT$1<>$I29),12+$J29, IF(AND(JT$1<>$G29,JT$1<>$H29,JT$1=$I29),2+$J29, IF(AND(JT$1=$G29,JT$1=$H29,JT$1<>$I29,$F29<>0),13+$J29, IF(AND(JT$1=$G29,JT$1=$H29,JT$1<>$I29,$F29=0),1+$J29, IF(AND(JT$1<>$G29,JT$1=$H29,JT$1=$I29),12+$J29, IF(AND(JT$1=$G29,JT$1=$H29,JT$1=$I29,$F29<=0.5),3+$J29,13+$J29))))))))))) -> 0 | JU29: 0 | JV29: 0 | JW29: 0 | JX29: 0 | JY29: 0 | JZ29: 0 | KA29: 0 | KB29: 0 | KC29: 0 | KD29: 0 | KE29: 0 | KF29: 0 | KG29: 0 | KH29: 0 | KI29: 0 | KJ29: 0 | KK29: 0 | KL29: 0 | KM29: 0 | KN29: 0 | KO29: 0 | KP29: 0 | KQ29: 0 | KR29: 0 | KS29: 0 | KT29: 0 | KU29: 0 | KV29: 0 | KW29: 0 | KX29: 0 | KY29: 0 | KZ29: 0 | LA29: 0 | LB29: =IF(LB$1>$I29,0, IF(LB$1<$G29,0, IF(AND(LB$1>$G29,LB$1<$H29),14+$J29, IF(AND(LB$1>$H29,LB$1<$I29),4+$J29, IF(AND(LB$1=$G29,LB$1<>$H29,LB$1<>$I29),11+$J29, IF(AND(LB$1<>$G29,LB$1=$H29,LB$1<>$I29),12+$J29, IF(AND(LB$1<>$G29,LB$1<>$H29,LB$1=$I29),2+$J29, IF(AND(LB$1=$G29,LB$1=$H29,LB$1<>$I29,$F29<>0),13+$J29, IF(AND(LB$1=$G29,LB$1=$H29,LB$1<>$I29,$F29=0),1+$J29, IF(AND(LB$1<>$G29,LB$1=$H29,LB$1=$I29),12+$J29, IF(AND(LB$1=$G29,LB$1=$H29,LB$1=$I29,$F29<=0.5),3+$J29,13+$J29))))))))))) -> 0 | LC29: 0 | LD29: 0 | LE29: 0 | LF29: 0 | LG29: 0 | LH29: 0 | LI29: 0 | LJ29: 0 | LK29: 0 | LL29: 0 | LM29: 0 | LN29: 0 | LO29: 0 | LP29: 0 | LQ29: 0 | LR29: 0 | LS29: 0 | LT29: 0 | LU29: 0 | LV29: 0 | LW29: 0 | LX29: 0 | LY29: 0 | LZ29: 0 | MA29: 0 | MB29: 0 | MC29: 0 | MD29: 0 | ME29: 0 | MF29: =IF(MF$1>$I29,0, IF(MF$1<$G29,0, IF(AND(MF$1>$G29,MF$1<$H29),14+$J29, IF(AND(MF$1>$H29,MF$1<$I29),4+$J29, IF(AND(MF$1=$G29,MF$1<>$H29,MF$1<>$I29),11+$J29, IF(AND(MF$1<>$G29,MF$1=$H29,MF$1<>$I29),12+$J29, IF(AND(MF$1<>$G29,MF$1<>$H29,MF$1=$I29),2+$J29, IF(AND(MF$1=$G29,MF$1=$H29,MF$1<>$I29,$F29<>0),13+$J29, IF(AND(MF$1=$G29,MF$1=$H29,MF$1<>$I29,$F29=0),1+$J29, IF(AND(MF$1<>$G29,MF$1=$H29,MF$1=$I29),12+$J29, IF(AND(MF$1=$G29,MF$1=$H29,MF$1=$I29,$F29<=0.5),3+$J29,13+$J29))))))))))) -> 0 | MG29: 0 | MH29: 0 | MI29: 0 | MJ29: 0 | MK29: 0 | ML29: 0 | MM29: 0 | MN29: 0 | MO29: 0 | MP29: 0 | MQ29: 0 | MR29: 0 | MS29: 0 | MT29: 0 | MU29: 0 | MV29: 0 | MW29: 0 | MX29: 0 | MY29: 0 | MZ29: 0 | NA29: 0 | NB29: 0 | NC29: 0 | ND29: 0 | NE29: 0 | NF29: 0 | NG29: 0 | NH29: 0 | NI29: 0 | NJ29: 0 | NK29: 0 | NL29: 0 | NM29: 0 | NN29: =IF(NN$1>$I29,0, IF(NN$1<$G29,0, IF(AND(NN$1>$G29,NN$1<$H29),14+$J29, IF(AND(NN$1>$H29,NN$1<$I29),4+$J29, IF(AND(NN$1=$G29,NN$1<>$H29,NN$1<>$I29),11+$J29, IF(AND(NN$1<>$G29,NN$1=$H29,NN$1<>$I29),12+$J29, IF(AND(NN$1<>$G29,NN$1<>$H29,NN$1=$I29),2+$J29, IF(AND(NN$1=$G29,NN$1=$H29,NN$1<>$I29,$F29<>0),13+$J29, IF(AND(NN$1=$G29,NN$1=$H29,NN$1<>$I29,$F29=0),1+$J29, IF(AND(NN$1<>$G29,NN$1=$H29,NN$1=$I29),12+$J29, IF(AND(NN$1=$G29,NN$1=$H29,NN$1=$I29,$F29<=0.5),3+$J29,13+$J29))))))))))) -> 0 | NO29: 0 | NP29: 0 | NQ29: 0 | NR29: 0 | NS29: 0 | NT29: 0 | NU29: 0 | NV29: 0 | NW29: 0 | NX29: 0 | NY29: 0 | NZ29: 0 | OA29: 0 | OB29: 0 | OC29: 0 | OD29: 0 | OE29: 0 | OF29: 0 | OG29: 0 | OH29: 0 | OI29: 0 | OJ29: 0 | OK29: 0 | OL29: 0 | OM29: 0 | ON29: 0 | OO29: 0 | OP29: 0 | OQ29: 0 | OR29: =IF(OR$1>$I29,0, IF(OR$1<$G29,0, IF(AND(OR$1>$G29,OR$1<$H29),14+$J29, IF(AND(OR$1>$H29,OR$1<$I29),4+$J29, IF(AND(OR$1=$G29,OR$1<>$H29,OR$1<>$I29),11+$J29, IF(AND(OR$1<>$G29,OR$1=$H29,OR$1<>$I29),12+$J29, IF(AND(OR$1<>$G29,OR$1<>$H29,OR$1=$I29),2+$J29, IF(AND(OR$1=$G29,OR$1=$H29,OR$1<>$I29,$F29<>0),13+$J29, IF(AND(OR$1=$G29,OR$1=$H29,OR$1<>$I29,$F29=0),1+$J29, IF(AND(OR$1<>$G29,OR$1=$H29,OR$1=$I29),12+$J29, IF(AND(OR$1=$G29,OR$1=$H29,OR$1=$I29,$F29<=0.5),3+$J29,13+$J29))))))))))) -> 0 | OS29: 0 | OT29: 0 | OU29: 0 | OV29: 0 | OW29: 0 | OX29: 0 | OY29: 0 | OZ29: 0 | PA29: 0 | PB29: 0 | PC29: 0 | PD29: 0 | PE29: 0 | PF29: 0 | PG29: 0 | PH29: 0 | PI29: 0 | PJ29: 0 | PK29: 0 | PL29: 0 | PM29: 0 | PN29: 0 | PO29: 0 | PP29: 0 | PQ29: 0 | PR29: 0 | PS29: 0 | PT29: 0 | PU29: 0 | PV29: 0 | PW29: 0 | PX29: 0 | PY29: 0 | PZ29: =IF(PZ$1>$I29,0, IF(PZ$1<$G29,0, IF(AND(PZ$1>$G29,PZ$1<$H29),14+$J29, IF(AND(PZ$1>$H29,PZ$1<$I29),4+$J29, IF(AND(PZ$1=$G29,PZ$1<>$H29,PZ$1<>$I29),11+$J29, IF(AND(PZ$1<>$G29,PZ$1=$H29,PZ$1<>$I29),12+$J29, IF(AND(PZ$1<>$G29,PZ$1<>$H29,PZ$1=$I29),2+$J29, IF(AND(PZ$1=$G29,PZ$1=$H29,PZ$1<>$I29,$F29<>0),13+$J29, IF(AND(PZ$1=$G29,PZ$1=$H29,PZ$1<>$I29,$F29=0),1+$J29, IF(AND(PZ$1<>$G29,PZ$1=$H29,PZ$1=$I29),12+$J29, IF(AND(PZ$1=$G29,PZ$1=$H29,PZ$1=$I29,$F29<=0.5),3+$J29,13+$J29))))))))))) -> 0 | QA29: 0 | QB29: 0 | QC29: 0 | QD29: 0 | QE29: 0 | QF29: 0 | QG29: 0 | QH29: 0 | QI29: 0 | QJ29: 0 | QK29: 0 | QL29: 0 | QM29: 0 | QN29: 0 | QO29: 0 | QP29: 0 | QQ29: 0 | QR29: 0 | QS29: 0 | QT29: 0 | QU29: 0 | QV29: 0 | QW29: 0 | QX29: 0 | QY29: 0 | QZ29: 0 | RA29: 0 | RB29: 0 | RC29: 0 | RD29: 0 | RE29: 0 | RF29: 0 | RG29: 0 | RH29: 0 | RI29: 0 | RJ29: 0 | RK29: 0 | RL29: 0 | RM29: 0 | RN29: 0 | RO29: 0 | RP29: 0 | RQ29: 0 | RR29: 0 | RS29: 0 | RT29: 0 | RU29: 0 | RV29: 0 | RW29: 0 | RX29: 0 | RY29: 0 | RZ29: 0 | SA29: 0 | SB29: 0 | SC29: 0 | SD29: 0 | SE29: 0 | SF29: 0 | SG29: 0 | SH29: 0 | SI29: 0 | SJ29: 0 | SK29: 0 | SL29: 0 | SM29: 0 | SN29: 0 | SO29: 0 | SP29: 0 | SQ29: 0 | SS29: =IF(gIsItPlan,IF(AND(System!Z25,System!AA25),1,0),IF(AND(System!Z25,System!AB25),1,0)) -> 1
B30: =IF($SS30,IF(E30=1,System!B26," "&System!B26),"") -> Покраска | C30: =IF($SS30,IF(gIsItPlan,System!F26,System!I26),"") -> 2014-07-19 | D30: =IF($SS30,IF(gIsItPlan,System!G26,System!J26),"") -> 2014-07-22 | E30: =System!C26 -> 2 | F30: =System!L26 -> 0 | G30: 81 | H30: 81 | I30: 82 | J30: 20 | L30: =IF(L$1>$I30,0, IF(L$1<$G30,0, IF(AND(L$1>$G30,L$1<$H30),14+$J30, IF(AND(L$1>$H30,L$1<$I30),4+$J30, IF(AND(L$1=$G30,L$1<>$H30,L$1<>$I30),11+$J30, IF(AND(L$1<>$G30,L$1=$H30,L$1<>$I30),12+$J30, IF(AND(L$1<>$G30,L$1<>$H30,L$1=$I30),2+$J30, IF(AND(L$1=$G30,L$1=$H30,L$1<>$I30,$F30<>0),13+$J30, IF(AND(L$1=$G30,L$1=$H30,L$1<>$I30,$F30=0),1+$J30, IF(AND(L$1<>$G30,L$1=$H30,L$1=$I30),12+$J30, IF(AND(L$1=$G30,L$1=$H30,L$1=$I30,$F30<=0.5),3+$J30,13+$J30))))))))))) -> 0 | M30: 0 | N30: 0 | O30: 0 | P30: 0 | Q30: 0 | R30: 0 | S30: 0 | T30: 0 | U30: 0 | V30: 0 | W30: 0 | X30: 0 | Y30: 0 | Z30: 0 | AA30: 0 | AB30: 0 | AC30: 0 | AD30: 0 | AE30: 0 | AF30: 0 | AG30: 0 | AH30: 0 | AI30: 0 | AJ30: 0 | AK30: 0 | AL30: 0 | AM30: 0 | AN30: 0 | AO30: 0 | AP30: 0 | AQ30: =IF(AQ$1>$I30,0, IF(AQ$1<$G30,0, IF(AND(AQ$1>$G30,AQ$1<$H30),14+$J30, IF(AND(AQ$1>$H30,AQ$1<$I30),4+$J30, IF(AND(AQ$1=$G30,AQ$1<>$H30,AQ$1<>$I30),11+$J30, IF(AND(AQ$1<>$G30,AQ$1=$H30,AQ$1<>$I30),12+$J30, IF(AND(AQ$1<>$G30,AQ$1<>$H30,AQ$1=$I30),2+$J30, IF(AND(AQ$1=$G30,AQ$1=$H30,AQ$1<>$I30,$F30<>0),13+$J30, IF(AND(AQ$1=$G30,AQ$1=$H30,AQ$1<>$I30,$F30=0),1+$J30, IF(AND(AQ$1<>$G30,AQ$1=$H30,AQ$1=$I30),12+$J30, IF(AND(AQ$1=$G30,AQ$1=$H30,AQ$1=$I30,$F30<=0.5),3+$J30,13+$J30))))))))))) -> 0 | AR30: 0 | AS30: 0 | AT30: 0 | AU30: 0 | AV30: 0 | AW30: 0 | AX30: 0 | AY30: 0 | AZ30: 0 | BA30: 0 | BB30: 0 | BC30: 0 | BD30: 0 | BE30: 0 | BF30: 0 | BG30: 0 | BH30: 0 | BI30: 0 | BJ30: 0 | BK30: 0 | BL30: 0 | BM30: 0 | BN30: 0 | BO30: 0 | BP30: 0 | BQ30: 0 | BR30: 0 | BS30: 0 | BT30: 0 | BU30: 0 | BV30: 0 | BW30: 0 | BX30: 0 | BY30: 0 | BZ30: 0 | CA30: 0 | CB30: 0 | CC30: 0 | CD30: 21 | CE30: 22 | CF30: 0 | CG30: 0 | CH30: 0 | CI30: 0 | CJ30: 0 | CK30: =IF(CK$1>$I30,0, IF(CK$1<$G30,0, IF(AND(CK$1>$G30,CK$1<$H30),14+$J30, IF(AND(CK$1>$H30,CK$1<$I30),4+$J30, IF(AND(CK$1=$G30,CK$1<>$H30,CK$1<>$I30),11+$J30, IF(AND(CK$1<>$G30,CK$1=$H30,CK$1<>$I30),12+$J30, IF(AND(CK$1<>$G30,CK$1<>$H30,CK$1=$I30),2+$J30, IF(AND(CK$1=$G30,CK$1=$H30,CK$1<>$I30,$F30<>0),13+$J30, IF(AND(CK$1=$G30,CK$1=$H30,CK$1<>$I30,$F30=0),1+$J30, IF(AND(CK$1<>$G30,CK$1=$H30,CK$1=$I30),12+$J30, IF(AND(CK$1=$G30,CK$1=$H30,CK$1=$I30,$F30<=0.5),3+$J30,13+$J30))))))))))) -> 0 | CL30: 0 | CM30: 0 | CN30: 0 | CO30: 0 | CP30: 0 | CQ30: 0 | CR30: 0 | CS30: 0 | CT30: 0 | CU30: 0 | CV30: 0 | CW30: 0 | CX30: 0 | CY30: 0 | CZ30: 0 | DA30: =IF(DA$1>$I30,0, IF(DA$1<$G30,0, IF(AND(DA$1>$G30,DA$1<$H30),14+$J30, IF(AND(DA$1>$H30,DA$1<$I30),4+$J30, IF(AND(DA$1=$G30,DA$1<>$H30,DA$1<>$I30),11+$J30, IF(AND(DA$1<>$G30,DA$1=$H30,DA$1<>$I30),12+$J30, IF(AND(DA$1<>$G30,DA$1<>$H30,DA$1=$I30),2+$J30, IF(AND(DA$1=$G30,DA$1=$H30,DA$1<>$I30,$F30<>0),13+$J30, IF(AND(DA$1=$G30,DA$1=$H30,DA$1<>$I30,$F30=0),1+$J30, IF(AND(DA$1<>$G30,DA$1=$H30,DA$1=$I30),12+$J30, IF(AND(DA$1=$G30,DA$1=$H30,DA$1=$I30,$F30<=0.5),3+$J30,13+$J30))))))))))) -> 0 | DB30: 0 | DC30: 0 | DD30: 0 | DE30: 0 | DF30: 0 | DG30: 0 | DH30: 0 | DI30: 0 | DJ30: 0 | DK30: 0 | DL30: 0 | DM30: 0 | DN30: 0 | DO30: 0 | DP30: 0 | DQ30: 0 | DR30: 0 | DS30: =IF(DS$1>$I30,0, IF(DS$1<$G30,0, IF(AND(DS$1>$G30,DS$1<$H30),14+$J30, IF(AND(DS$1>$H30,DS$1<$I30),4+$J30, IF(AND(DS$1=$G30,DS$1<>$H30,DS$1<>$I30),11+$J30, IF(AND(DS$1<>$G30,DS$1=$H30,DS$1<>$I30),12+$J30, IF(AND(DS$1<>$G30,DS$1<>$H30,DS$1=$I30),2+$J30, IF(AND(DS$1=$G30,DS$1=$H30,DS$1<>$I30,$F30<>0),13+$J30, IF(AND(DS$1=$G30,DS$1=$H30,DS$1<>$I30,$F30=0),1+$J30, IF(AND(DS$1<>$G30,DS$1=$H30,DS$1=$I30),12+$J30, IF(AND(DS$1=$G30,DS$1=$H30,DS$1=$I30,$F30<=0.5),3+$J30,13+$J30))))))))))) -> 0 | DT30: 0 | DU30: 0 | DV30: 0 | DW30: 0 | DX30: 0 | DY30: 0 | DZ30: 0 | EA30: 0 | EB30: 0 | EC30: 0 | ED30: 0 | EE30: 0 | EF30: 0 | EG30: 0 | EH30: 0 | EI30: 0 | EJ30: 0 | EK30: 0 | EL30: 0 | EM30: 0 | EN30: 0 | EO30: 0 | EP30: 0 | EQ30: 0 | ER30: 0 | ES30: 0 | ET30: 0 | EU30: 0 | EV30: 0 | EW30: 0 | EX30: 0 | EY30: 0 | EZ30: 0 | FA30: 0 | FB30: 0 | FC30: 0 | FD30: 0 | FE30: 0 | FF30: 0 | FG30: 0 | FH30: 0 | FI30: 0 | FJ30: 0 | FK30: 0 | FL30: 0 | FM30: 0 | FN30: 0 | FO30: =IF(FO$1>$I30,0, IF(FO$1<$G30,0, IF(AND(FO$1>$G30,FO$1<$H30),14+$J30, IF(AND(FO$1>$H30,FO$1<$I30),4+$J30, IF(AND(FO$1=$G30,FO$1<>$H30,FO$1<>$I30),11+$J30, IF(AND(FO$1<>$G30,FO$1=$H30,FO$1<>$I30),12+$J30, IF(AND(FO$1<>$G30,FO$1<>$H30,FO$1=$I30),2+$J30, IF(AND(FO$1=$G30,FO$1=$H30,FO$1<>$I30,$F30<>0),13+$J30, IF(AND(FO$1=$G30,FO$1=$H30,FO$1<>$I30,$F30=0),1+$J30, IF(AND(FO$1<>$G30,FO$1=$H30,FO$1=$I30),12+$J30, IF(AND(FO$1=$G30,FO$1=$H30,FO$1=$I30,$F30<=0.5),3+$J30,13+$J30))))))))))) -> 0 | FP30: 0 | FQ30: 0 | FR30: 0 | FS30: 0 | FT30: 0 | FU30: 0 | FV30: 0 | FW30: 0 | FX30: 0 | FY30: 0 | FZ30: 0 | GA30: 0 | GB30: 0 | GC30: 0 | GD30: 0 | GE30: 0 | GF30: 0 | GG30: 0 | GH30: 0 | GI30: 0 | GJ30: 0 | GK30: 0 | GL30: 0 | GM30: 0 | GN30: 0 | GO30: 0 | GP30: 0 | GQ30: 0 | GR30: 0 | GS30: 0 | GT30: 0 | GU30: =IF(GU$1>$I30,0, IF(GU$1<$G30,0, IF(AND(GU$1>$G30,GU$1<$H30),14+$J30, IF(AND(GU$1>$H30,GU$1<$I30),4+$J30, IF(AND(GU$1=$G30,GU$1<>$H30,GU$1<>$I30),11+$J30, IF(AND(GU$1<>$G30,GU$1=$H30,GU$1<>$I30),12+$J30, IF(AND(GU$1<>$G30,GU$1<>$H30,GU$1=$I30),2+$J30, IF(AND(GU$1=$G30,GU$1=$H30,GU$1<>$I30,$F30<>0),13+$J30, IF(AND(GU$1=$G30,GU$1=$H30,GU$1<>$I30,$F30=0),1+$J30, IF(AND(GU$1<>$G30,GU$1=$H30,GU$1=$I30),12+$J30, IF(AND(GU$1=$G30,GU$1=$H30,GU$1=$I30,$F30<=0.5),3+$J30,13+$J30))))))))))) -> 0 | GV30: 0 | GW30: 0 | GX30: 0 | GY30: 0 | GZ30: 0 | HA30: 0 | HB30: 0 | HC30: 0 | HD30: 0 | HE30: 0 | HF30: 0 | HG30: 0 | HH30: 0 | HI30: 0 | HJ30: 0 | HK30: 0 | HL30: 0 | HM30: 0 | HN30: 0 | HO30: 0 | HP30: 0 | HQ30: 0 | HR30: 0 | HS30: 0 | HT30: 0 | HU30: 0 | HV30: 0 | HW30: 0 | HX30: 0 | HY30: 0 | HZ30: 0 | IA30: =IF(IA$1>$I30,0, IF(IA$1<$G30,0, IF(AND(IA$1>$G30,IA$1<$H30),14+$J30, IF(AND(IA$1>$H30,IA$1<$I30),4+$J30, IF(AND(IA$1=$G30,IA$1<>$H30,IA$1<>$I30),11+$J30, IF(AND(IA$1<>$G30,IA$1=$H30,IA$1<>$I30),12+$J30, IF(AND(IA$1<>$G30,IA$1<>$H30,IA$1=$I30),2+$J30, IF(AND(IA$1=$G30,IA$1=$H30,IA$1<>$I30,$F30<>0),13+$J30, IF(AND(IA$1=$G30,IA$1=$H30,IA$1<>$I30,$F30=0),1+$J30, IF(AND(IA$1<>$G30,IA$1=$H30,IA$1=$I30),12+$J30, IF(AND(IA$1=$G30,IA$1=$H30,IA$1=$I30,$F30<=0.5),3+$J30,13+$J30))))))))))) -> 0 | IB30: 0 | IC30: 0 | ID30: 0 | IE30: 0 | IF30: 0 | IG30: 0 | IH30: 0 | II30: 0 | IJ30: 0 | IK30: 0 | IL30: 0 | IM30: 0 | IN30: 0 | IO30: 0 | IP30: 0 | IQ30: 0 | IR30: 0 | IS30: 0 | IT30: 0 | IU30: 0 | IV30: 0 | IW30: 0 | IX30: 0 | IY30: 0 | IZ30: 0 | JA30: 0 | JB30: 0 | JC30: 0 | JD30: 0 | JE30: 0 | JF30: 0 | JG30: =IF(JG$1>$I30,0, IF(JG$1<$G30,0, IF(AND(JG$1>$G30,JG$1<$H30),14+$J30, IF(AND(JG$1>$H30,JG$1<$I30),4+$J30, IF(AND(JG$1=$G30,JG$1<>$H30,JG$1<>$I30),11+$J30, IF(AND(JG$1<>$G30,JG$1=$H30,JG$1<>$I30),12+$J30, IF(AND(JG$1<>$G30,JG$1<>$H30,JG$1=$I30),2+$J30, IF(AND(JG$1=$G30,JG$1=$H30,JG$1<>$I30,$F30<>0),13+$J30, IF(AND(JG$1=$G30,JG$1=$H30,JG$1<>$I30,$F30=0),1+$J30, IF(AND(JG$1<>$G30,JG$1=$H30,JG$1=$I30),12+$J30, IF(AND(JG$1=$G30,JG$1=$H30,JG$1=$I30,$F30<=0.5),3+$J30,13+$J30))))))))))) -> 0 | JH30: 0 | JI30: 0 | JJ30: 0 | JK30: 0 | JL30: 0 | JM30: 0 | JN30: 0 | JO30: 0 | JP30: 0 | JQ30: 0 | JR30: 0 | JS30: 0 | JT30: 0 | JU30: 0 | JV30: 0 | JW30: 0 | JX30: 0 | JY30: 0 | JZ30: 0 | KA30: 0 | KB30: 0 | KC30: 0 | KD30: 0 | KE30: 0 | KF30: 0 | KG30: 0 | KH30: 0 | KI30: 0 | KJ30: 0 | KK30: 0 | KL30: 0 | KM30: =IF(KM$1>$I30,0, IF(KM$1<$G30,0, IF(AND(KM$1>$G30,KM$1<$H30),14+$J30, IF(AND(KM$1>$H30,KM$1<$I30),4+$J30, IF(AND(KM$1=$G30,KM$1<>$H30,KM$1<>$I30),11+$J30, IF(AND(KM$1<>$G30,KM$1=$H30,KM$1<>$I30),12+$J30, IF(AND(KM$1<>$G30,KM$1<>$H30,KM$1=$I30),2+$J30, IF(AND(KM$1=$G30,KM$1=$H30,KM$1<>$I30,$F30<>0),13+$J30, IF(AND(KM$1=$G30,KM$1=$H30,KM$1<>$I30,$F30=0),1+$J30, IF(AND(KM$1<>$G30,KM$1=$H30,KM$1=$I30),12+$J30, IF(AND(KM$1=$G30,KM$1=$H30,KM$1=$I30,$F30<=0.5),3+$J30,13+$J30))))))))))) -> 0 | KN30: 0 | KO30: 0 | KP30: 0 | KQ30: 0 | KR30: 0 | KS30: 0 | KT30: 0 | KU30: 0 | KV30: 0 | KW30: 0 | KX30: 0 | KY30: 0 | KZ30: 0 | LA30: 0 | LB30: 0 | LC30: 0 | LD30: 0 | LE30: 0 | LF30: 0 | LG30: 0 | LH30: 0 | LI30: 0 | LJ30: 0 | LK30: 0 | LL30: 0 | LM30: 0 | LN30: 0 | LO30: 0 | LP30: 0 | LQ30: 0 | LR30: 0 | LS30: =IF(LS$1>$I30,0, IF(LS$1<$G30,0, IF(AND(LS$1>$G30,LS$1<$H30),14+$J30, IF(AND(LS$1>$H30,LS$1<$I30),4+$J30, IF(AND(LS$1=$G30,LS$1<>$H30,LS$1<>$I30),11+$J30, IF(AND(LS$1<>$G30,LS$1=$H30,LS$1<>$I30),12+$J30, IF(AND(LS$1<>$G30,LS$1<>$H30,LS$1=$I30),2+$J30, IF(AND(LS$1=$G30,LS$1=$H30,LS$1<>$I30,$F30<>0),13+$J30, IF(AND(LS$1=$G30,LS$1=$H30,LS$1<>$I30,$F30=0),1+$J30, IF(AND(LS$1<>$G30,LS$1=$H30,LS$1=$I30),12+$J30, IF(AND(LS$1=$G30,LS$1=$H30,LS$1=$I30,$F30<=0.5),3+$J30,13+$J30))))))))))) -> 0 | LT30: 0 | LU30: 0 | LV30: 0 | LW30: 0 | LX30: 0 | LY30: 0 | LZ30: 0 | MA30: 0 | MB30: 0 | MC30: 0 | MD30: 0 | ME30: 0 | MF30: 0 | MG30: 0 | MH30: 0 | MI30: 0 | MJ30: 0 | MK30: 0 | ML30: 0 | MM30: 0 | MN30: 0 | MO30: 0 | MP30: 0 | MQ30: 0 | MR30: 0 | MS30: 0 | MT30: 0 | MU30: 0 | MV30: 0 | MW30: 0 | MX30: 0 | MY30: =IF(MY$1>$I30,0, IF(MY$1<$G30,0, IF(AND(MY$1>$G30,MY$1<$H30),14+$J30, IF(AND(MY$1>$H30,MY$1<$I30),4+$J30, IF(AND(MY$1=$G30,MY$1<>$H30,MY$1<>$I30),11+$J30, IF(AND(MY$1<>$G30,MY$1=$H30,MY$1<>$I30),12+$J30, IF(AND(MY$1<>$G30,MY$1<>$H30,MY$1=$I30),2+$J30, IF(AND(MY$1=$G30,MY$1=$H30,MY$1<>$I30,$F30<>0),13+$J30, IF(AND(MY$1=$G30,MY$1=$H30,MY$1<>$I30,$F30=0),1+$J30, IF(AND(MY$1<>$G30,MY$1=$H30,MY$1=$I30),12+$J30, IF(AND(MY$1=$G30,MY$1=$H30,MY$1=$I30,$F30<=0.5),3+$J30,13+$J30))))))))))) -> 0 | MZ30: 0 | NA30: 0 | NB30: 0 | NC30: 0 | ND30: 0 | NE30: 0 | NF30: 0 | NG30: 0 | NH30: 0 | NI30: 0 | NJ30: 0 | NK30: 0 | NL30: 0 | NM30: 0 | NN30: 0 | NO30: 0 | NP30: 0 | NQ30: 0 | NR30: 0 | NS30: 0 | NT30: 0 | NU30: 0 | NV30: 0 | NW30: 0 | NX30: 0 | NY30: 0 | NZ30: 0 | OA30: 0 | OB30: 0 | OC30: 0 | OD30: 0 | OE30: =IF(OE$1>$I30,0, IF(OE$1<$G30,0, IF(AND(OE$1>$G30,OE$1<$H30),14+$J30, IF(AND(OE$1>$H30,OE$1<$I30),4+$J30, IF(AND(OE$1=$G30,OE$1<>$H30,OE$1<>$I30),11+$J30, IF(AND(OE$1<>$G30,OE$1=$H30,OE$1<>$I30),12+$J30, IF(AND(OE$1<>$G30,OE$1<>$H30,OE$1=$I30),2+$J30, IF(AND(OE$1=$G30,OE$1=$H30,OE$1<>$I30,$F30<>0),13+$J30, IF(AND(OE$1=$G30,OE$1=$H30,OE$1<>$I30,$F30=0),1+$J30, IF(AND(OE$1<>$G30,OE$1=$H30,OE$1=$I30),12+$J30, IF(AND(OE$1=$G30,OE$1=$H30,OE$1=$I30,$F30<=0.5),3+$J30,13+$J30))))))))))) -> 0 | OF30: 0 | OG30: 0 | OH30: 0 | OI30: 0 | OJ30: 0 | OK30: 0 | OL30: 0 | OM30: 0 | ON30: 0 | OO30: 0 | OP30: 0 | OQ30: 0 | OR30: 0 | OS30: 0 | OT30: 0 | OU30: 0 | OV30: 0 | OW30: 0 | OX30: 0 | OY30: 0 | OZ30: 0 | PA30: 0 | PB30: 0 | PC30: 0 | PD30: 0 | PE30: 0 | PF30: 0 | PG30: 0 | PH30: 0 | PI30: 0 | PJ30: 0 | PK30: =IF(PK$1>$I30,0, IF(PK$1<$G30,0, IF(AND(PK$1>$G30,PK$1<$H30),14+$J30, IF(AND(PK$1>$H30,PK$1<$I30),4+$J30, IF(AND(PK$1=$G30,PK$1<>$H30,PK$1<>$I30),11+$J30, IF(AND(PK$1<>$G30,PK$1=$H30,PK$1<>$I30),12+$J30, IF(AND(PK$1<>$G30,PK$1<>$H30,PK$1=$I30),2+$J30, IF(AND(PK$1=$G30,PK$1=$H30,PK$1<>$I30,$F30<>0),13+$J30, IF(AND(PK$1=$G30,PK$1=$H30,PK$1<>$I30,$F30=0),1+$J30, IF(AND(PK$1<>$G30,PK$1=$H30,PK$1=$I30),12+$J30, IF(AND(PK$1=$G30,PK$1=$H30,PK$1=$I30,$F30<=0.5),3+$J30,13+$J30))))))))))) -> 0 | PL30: 0 | PM30: 0 | PN30: 0 | PO30: 0 | PP30: 0 | PQ30: 0 | PR30: 0 | PS30: 0 | PT30: 0 | PU30: 0 | PV30: 0 | PW30: 0 | PX30: 0 | PY30: 0 | PZ30: 0 | QA30: 0 | QB30: 0 | QC30: 0 | QD30: 0 | QE30: 0 | QF30: 0 | QG30: 0 | QH30: 0 | QI30: 0 | QJ30: 0 | QK30: 0 | QL30: 0 | QM30: 0 | QN30: 0 | QO30: 0 | QP30: 0 | QQ30: 0 | QR30: 0 | QS30: 0 | QT30: 0 | QU30: 0 | QV30: 0 | QW30: 0 | QX30: 0 | QY30: 0 | QZ30: 0 | RA30: 0 | RB30: 0 | RC30: 0 | RD30: 0 | RE30: 0 | RF30: 0 | RG30: 0 | RH30: 0 | RI30: 0 | RJ30: 0 | RK30: 0 | RL30: 0 | RM30: 0 | RN30: 0 | RO30: 0 | RP30: 0 | RQ30: 0 | RR30: 0 | RS30: 0 | RT30: 0 | RU30: 0 | RV30: 0 | RW30: 0 | RX30: 0 | RY30: 0 | RZ30: 0 | SA30: 0 | SB30: 0 | SC30: 0 | SD30: 0 | SE30: 0 | SF30: 0 | SG30: 0 | SH30: 0 | SI30: 0 | SJ30: 0 | SK30: 0 | SL30: 0 | SM30: 0 | SN30: 0 | SO30: 0 | SP30: 0 | SQ30: 0 | SS30: =IF(gIsItPlan,IF(AND(System!Z26,System!AA26),1,0),IF(AND(System!Z26,System!AB26),1,0)) -> 1
B31: =IF($SS31,IF(E31=1,System!B27," "&System!B27),"") -> Монтаж полового покрытия | C31: =IF($SS31,IF(gIsItPlan,System!F27,System!I27),"") -> 2014-07-23 | D31: =IF($SS31,IF(gIsItPlan,System!G27,System!J27),"") -> 2014-07-27 | E31: =System!C27 -> 2 | F31: =System!L27 -> 0 | G31: 83 | H31: 83 | I31: 85 | J31: 20 | L31: 0 | M31: 0 | N31: 0 | O31: 0 | P31: 0 | Q31: 0 | R31: 0 | S31: 0 | T31: 0 | U31: 0 | V31: 0 | W31: 0 | X31: 0 | Y31: 0 | Z31: 0 | AA31: 0 | AB31: 0 | AC31: 0 | AD31: 0 | AE31: 0 | AF31: 0 | AG31: 0 | AH31: 0 | AI31: 0 | AJ31: =IF(AJ$1>$I31,0, IF(AJ$1<$G31,0, IF(AND(AJ$1>$G31,AJ$1<$H31),14+$J31, IF(AND(AJ$1>$H31,AJ$1<$I31),4+$J31, IF(AND(AJ$1=$G31,AJ$1<>$H31,AJ$1<>$I31),11+$J31, IF(AND(AJ$1<>$G31,AJ$1=$H31,AJ$1<>$I31),12+$J31, IF(AND(AJ$1<>$G31,AJ$1<>$H31,AJ$1=$I31),2+$J31, IF(AND(AJ$1=$G31,AJ$1=$H31,AJ$1<>$I31,$F31<>0),13+$J31, IF(AND(AJ$1=$G31,AJ$1=$H31,AJ$1<>$I31,$F31=0),1+$J31, IF(AND(AJ$1<>$G31,AJ$1=$H31,AJ$1=$I31),12+$J31, IF(AND(AJ$1=$G31,AJ$1=$H31,AJ$1=$I31,$F31<=0.5),3+$J31,13+$J31))))))))))) -> 0 | AK31: 0 | AL31: 0 | AM31: 0 | AN31: 0 | AO31: 0 | AP31: 0 | AQ31: 0 | AR31: 0 | AS31: 0 | AT31: 0 | AU31: 0 | AV31: 0 | AW31: 0 | AX31: 0 | AY31: 0 | AZ31: 0 | BA31: 0 | BB31: 0 | BC31: 0 | BD31: 0 | BE31: 0 | BF31: 0 | BG31: 0 | BH31: 0 | BI31: 0 | BJ31: 0 | BK31: 0 | BL31: 0 | BM31: 0 | BN31: 0 | BO31: 0 | BP31: 0 | BQ31: 0 | BR31: 0 | BS31: 0 | BT31: 0 | BU31: 0 | BV31: 0 | BW31: 0 | BX31: =IF(BX$1>$I31,0, IF(BX$1<$G31,0, IF(AND(BX$1>$G31,BX$1<$H31),14+$J31, IF(AND(BX$1>$H31,BX$1<$I31),4+$J31, IF(AND(BX$1=$G31,BX$1<>$H31,BX$1<>$I31),11+$J31, IF(AND(BX$1<>$G31,BX$1=$H31,BX$1<>$I31),12+$J31, IF(AND(BX$1<>$G31,BX$1<>$H31,BX$1=$I31),2+$J31, IF(AND(BX$1=$G31,BX$1=$H31,BX$1<>$I31,$F31<>0),13+$J31, IF(AND(BX$1=$G31,BX$1=$H31,BX$1<>$I31,$F31=0),1+$J31, IF(AND(BX$1<>$G31,BX$1=$H31,BX$1=$I31),12+$J31, IF(AND(BX$1=$G31,BX$1=$H31,BX$1=$I31,$F31<=0.5),3+$J31,13+$J31))))))))))) -> 0 | BY31: 0 | BZ31: 0 | CA31: 0 | CB31: 0 | CC31: 0 | CD31: 0 | CE31: 0 | CF31: 21 | CG31: 24 | CH31: 22 | CI31: 0 | CJ31: 0 | CK31: 0 | CL31: 0 | CM31: 0 | CN31: 0 | CO31: 0 | CP31: 0 | CQ31: 0 | CR31: 0 | CS31: 0 | CT31: 0 | CU31: 0 | CV31: 0 | CW31: 0 | CX31: 0 | CY31: 0 | CZ31: 0 | DA31: 0 | DB31: 0 | DC31: 0 | DD31: 0 | DE31: 0 | DF31: 0 | DG31: 0 | DH31: 0 | DI31: 0 | DJ31: 0 | DK31: 0 | DL31: 0 | DM31: 0 | DN31: 0 | DO31: 0 | DP31: 0 | DQ31: 0 | DR31: 0 | DS31: 0 | DT31: 0 | DU31: 0 | DV31: 0 | DW31: 0 | DX31: 0 | DY31: 0 | DZ31: 0 | EA31: 0 | EB31: 0 | EC31: 0 | ED31: 0 | EE31: 0 | EF31: 0 | EG31: 0 | EH31: 0 | EI31: 0 | EJ31: 0 | EK31: 0 | EL31: 0 | EM31: 0 | EN31: 0 | EO31: 0 | EP31: 0 | EQ31: 0 | ER31: 0 | ES31: 0 | ET31: 0 | EU31: 0 | EV31: 0 | EW31: 0 | EX31: 0 | EY31: 0 | EZ31: 0 | FA31: 0 | FB31: 0 | FC31: 0 | FD31: 0 | FE31: 0 | FF31: 0 | FG31: 0 | FH31: 0 | FI31: 0 | FJ31: 0 | FK31: 0 | FL31: 0 | FM31: 0 | FN31: 0 | FO31: 0 | FP31: 0 | FQ31: 0 | FR31: 0 | FS31: 0 | FT31: 0 | FU31: 0 | FV31: 0 | FW31: 0 | FX31: 0 | FY31: 0 | FZ31: 0 | GA31: 0 | GB31: 0 | GC31: 0 | GD31: 0 | GE31: 0 | GF31: 0 | GG31: 0 | GH31: 0 | GI31: 0 | GJ31: 0 | GK31: 0 | GL31: 0 | GM31: 0 | GN31: 0 | GO31: 0 | GP31: 0 | GQ31: 0 | GR31: 0 | GS31: 0 | GT31: 0 | GU31: 0 | GV31: 0 | GW31: 0 | GX31: 0 | GY31: 0 | GZ31: 0 | HA31: 0 | HB31: 0 | HC31: 0 | HD31: 0 | HE31: 0 | HF31: 0 | HG31: 0 | HH31: 0 | HI31: 0 | HJ31: 0 | HK31: 0 | HL31: 0 | HM31: 0 | HN31: 0 | HO31: 0 | HP31: 0 | HQ31: 0 | HR31: 0 | HS31: 0 | HT31: 0 | HU31: 0 | HV31: 0 | HW31: 0 | HX31: 0 | HY31: 0 | HZ31: 0 | IA31: 0 | IB31: 0 | IC31: 0 | ID31: 0 | IE31: 0 | IF31: 0 | IG31: 0 | IH31: 0 | II31: 0 | IJ31: 0 | IK31: 0 | IL31: 0 | IM31: 0 | IN31: 0 | IO31: 0 | IP31: 0 | IQ31: 0 | IR31: 0 | IS31: 0 | IT31: 0 | IU31: 0 | IV31: 0 | IW31: 0 | IX31: 0 | IY31: 0 | IZ31: 0 | JA31: 0 | JB31: 0 | JC31: 0 | JD31: 0 | JE31: 0 | JF31: 0 | JG31: 0 | JH31: 0 | JI31: 0 | JJ31: 0 | JK31: 0 | JL31: 0 | JM31: 0 | JN31: 0 | JO31: 0 | JP31: 0 | JQ31: 0 | JR31: 0 | JS31: 0 | JT31: 0 | JU31: 0 | JV31: 0 | JW31: 0 | JX31: 0 | JY31: 0 | JZ31: 0 | KA31: 0 | KB31: 0 | KC31: 0 | KD31: 0 | KE31: 0 | KF31: 0 | KG31: 0 | KH31: 0 | KI31: 0 | KJ31: 0 | KK31: 0 | KL31: 0 | KM31: 0 | KN31: 0 | KO31: 0 | KP31: 0 | KQ31: 0 | KR31: 0 | KS31: 0 | KT31: 0 | KU31: 0 | KV31: 0 | KW31: 0 | KX31: 0 | KY31: 0 | KZ31: 0 | LA31: 0 | LB31: 0 | LC31: 0 | LD31: 0 | LE31: 0 | LF31: 0 | LG31: 0 | LH31: 0 | LI31: 0 | LJ31: 0 | LK31: 0 | LL31: 0 | LM31: 0 | LN31: 0 | LO31: 0 | LP31: 0 | LQ31: 0 | LR31: 0 | LS31: 0 | LT31: 0 | LU31: 0 | LV31: 0 | LW31: 0 | LX31: 0 | LY31: 0 | LZ31: 0 | MA31: 0 | MB31: 0 | MC31: 0 | MD31: 0 | ME31: 0 | MF31: 0 | MG31: 0 | MH31: 0 | MI31: 0 | MJ31: 0 | MK31: 0 | ML31: 0 | MM31: 0 | MN31: 0 | MO31: 0 | MP31: 0 | MQ31: 0 | MR31: 0 | MS31: 0 | MT31: 0 | MU31: 0 | MV31: 0 | MW31: 0 | MX31: 0 | MY31: 0 | MZ31: 0 | NA31: 0 | NB31: 0 | NC31: 0 | ND31: 0 | NE31: 0 | NF31: 0 | NG31: 0 | NH31: 0 | NI31: 0 | NJ31: 0 | NK31: 0 | NL31: 0 | NM31: 0 | NN31: 0 | NO31: 0 | NP31: 0 | NQ31: 0 | NR31: 0 | NS31: 0 | NT31: 0 | NU31: 0 | NV31: 0 | NW31: 0 | NX31: 0 | NY31: 0 | NZ31: 0 | OA31: 0 | OB31: 0 | OC31: 0 | OD31: 0 | OE31: 0 | OF31: 0 | OG31: 0 | OH31: 0 | OI31: 0 | OJ31: 0 | OK31: 0 | OL31: 0 | OM31: 0 | ON31: 0 | OO31: 0 | OP31: 0 | OQ31: 0 | OR31: 0 | OS31: 0 | OT31: 0 | OU31: 0 | OV31: 0 | OW31: 0 | OX31: 0 | OY31: 0 | OZ31: 0 | PA31: 0 | PB31: 0 | PC31: 0 | PD31: 0 | PE31: 0 | PF31: 0 | PG31: 0 | PH31: 0 | PI31: 0 | PJ31: 0 | PK31: 0 | PL31: 0 | PM31: 0 | PN31: 0 | PO31: 0 | PP31: 0 | PQ31: 0 | PR31: 0 | PS31: 0 | PT31: 0 | PU31: 0 | PV31: 0 | PW31: 0 | PX31: 0 | PY31: 0 | PZ31: 0 | QA31: 0 | QB31: 0 | QC31: 0 | QD31: 0 | QE31: 0 | QF31: 0 | QG31: 0 | QH31: 0 | QI31: 0 | QJ31: 0 | QK31: 0 | QL31: 0 | QM31: 0 | QN31: 0 | QO31: 0 | QP31: 0 | QQ31: 0 | QR31: 0 | QS31: 0 | QT31: 0 | QU31: 0 | QV31: 0 | QW31: 0 | QX31: 0 | QY31: 0 | QZ31: 0 | RA31: 0 | RB31: 0 | RC31: 0 | RD31: 0 | RE31: 0 | RF31: 0 | RG31: 0 | RH31: 0 | RI31: 0 | RJ31: 0 | RK31: 0 | RL31: 0 | RM31: 0 | RN31: 0 | RO31: 0 | RP31: 0 | RQ31: 0 | RR31: 0 | RS31: 0 | RT31: 0 | RU31: 0 | RV31: 0 | RW31: 0 | RX31: 0 | RY31: 0 | RZ31: 0 | SA31: 0 | SB31: 0 | SC31: 0 | SD31: 0 | SE31: 0 | SF31: 0 | SG31: 0 | SH31: 0 | SI31: 0 | SJ31: 0 | SK31: 0 | SL31: 0 | SM31: 0 | SN31: 0 | SO31: 0 | SP31: 0 | SQ31: 0 | SS31: =IF(gIsItPlan,IF(AND(System!Z27,System!AA27),1,0),IF(AND(System!Z27,System!AB27),1,0)) -> 1
B32: =IF($SS32,IF(E32=1,System!B28," "&System!B28),"") -> Контроль качества | C32: =IF($SS32,IF(gIsItPlan,System!F28,System!I28),"") -> 2014-07-28 | D32: =IF($SS32,IF(gIsItPlan,System!G28,System!J28),"") -> 2014-07-28 | E32: =System!C28 -> 2 | F32: =System!L28 -> 0 | G32: 85 | H32: 85 | I32: 85 | J32: 20 | L32: 0 | M32: 0 | N32: 0 | O32: 0 | P32: 0 | Q32: 0 | R32: 0 | S32: 0 | T32: 0 | U32: 0 | V32: 0 | W32: 0 | X32: 0 | Y32: 0 | Z32: 0 | AA32: 0 | AB32: 0 | AC32: 0 | AD32: 0 | AE32: 0 | AF32: 0 | AG32: 0 | AH32: 0 | AI32: 0 | AJ32: 0 | AK32: 0 | AL32: 0 | AM32: 0 | AN32: 0 | AO32: 0 | AP32: 0 | AQ32: 0 | AR32: 0 | AS32: 0 | AT32: 0 | AU32: 0 | AV32: 0 | AW32: 0 | AX32: 0 | AY32: 0 | AZ32: 0 | BA32: 0 | BB32: 0 | BC32: 0 | BD32: 0 | BE32: 0 | BF32: 0 | BG32: 0 | BH32: 0 | BI32: 0 | BJ32: 0 | BK32: 0 | BL32: 0 | BM32: 0 | BN32: 0 | BO32: 0 | BP32: 0 | BQ32: 0 | BR32: 0 | BS32: 0 | BT32: 0 | BU32: 0 | BV32: 0 | BW32: 0 | BX32: 0 | BY32: 0 | BZ32: 0 | CA32: 0 | CB32: 0 | CC32: 0 | CD32: 0 | CE32: 0 | CF32: 0 | CG32: 0 | CH32: 23 | CI32: 0 | CJ32: 0 | CK32: 0 | CL32: 0 | CM32: 0 | CN32: 0 | CO32: 0 | CP32: 0 | CQ32: 0 | CR32: 0 | CS32: 0 | CT32: 0 | CU32: 0 | CV32: 0 | CW32: 0 | CX32: 0 | CY32: 0 | CZ32: 0 | DA32: 0 | DB32: 0 | DC32: 0 | DD32: 0 | DE32: 0 | DF32: 0 | DG32: 0 | DH32: 0 | DI32: 0 | DJ32: 0 | DK32: 0 | DL32: 0 | DM32: 0 | DN32: 0 | DO32: 0 | DP32: 0 | DQ32: 0 | DR32: 0 | DS32: 0 | DT32: 0 | DU32: 0 | DV32: 0 | DW32: 0 | DX32: 0 | DY32: 0 | DZ32: 0 | EA32: 0 | EB32: 0 | EC32: 0 | ED32: 0 | EE32: 0 | EF32: 0 | EG32: 0 | EH32: 0 | EI32: 0 | EJ32: 0 | EK32: 0 | EL32: 0 | EM32: 0 | EN32: 0 | EO32: 0 | EP32: 0 | EQ32: 0 | ER32: 0 | ES32: 0 | ET32: 0 | EU32: 0 | EV32: 0 | EW32: 0 | EX32: 0 | EY32: 0 | EZ32: 0 | FA32: 0 | FB32: 0 | FC32: 0 | FD32: 0 | FE32: 0 | FF32: 0 | FG32: 0 | FH32: 0 | FI32: 0 | FJ32: 0 | FK32: 0 | FL32: 0 | FM32: 0 | FN32: 0 | FO32: 0 | FP32: 0 | FQ32: 0 | FR32: 0 | FS32: 0 | FT32: 0 | FU32: 0 | FV32: 0 | FW32: 0 | FX32: 0 | FY32: 0 | FZ32: 0 | GA32: 0 | GB32: 0 | GC32: 0 | GD32: 0 | GE32: 0 | GF32: 0 | GG32: 0 | GH32: 0 | GI32: 0 | GJ32: 0 | GK32: 0 | GL32: 0 | GM32: 0 | GN32: 0 | GO32: 0 | GP32: 0 | GQ32: 0 | GR32: 0 | GS32: 0 | GT32: 0 | GU32: 0 | GV32: 0 | GW32: 0 | GX32: 0 | GY32: 0 | GZ32: 0 | HA32: 0 | HB32: 0 | HC32: 0 | HD32: 0 | HE32: 0 | HF32: 0 | HG32: 0 | HH32: 0 | HI32: 0 | HJ32: 0 | HK32: 0 | HL32: 0 | HM32: 0 | HN32: 0 | HO32: 0 | HP32: 0 | HQ32: 0 | HR32: 0 | HS32: 0 | HT32: 0 | HU32: 0 | HV32: 0 | HW32: 0 | HX32: 0 | HY32: 0 | HZ32: 0 | IA32: 0 | IB32: 0 | IC32: 0 | ID32: 0 | IE32: 0 | IF32: 0 | IG32: 0 | IH32: 0 | II32: 0 | IJ32: 0 | IK32: 0 | IL32: 0 | IM32: 0 | IN32: 0 | IO32: 0 | IP32: 0 | IQ32: 0 | IR32: 0 | IS32: 0 | IT32: 0 | IU32: 0 | IV32: 0 | IW32: 0 | IX32: 0 | IY32: 0 | IZ32: 0 | JA32: 0 | JB32: 0 | JC32: 0 | JD32: 0 | JE32: 0 | JF32: 0 | JG32: 0 | JH32: 0 | JI32: 0 | JJ32: 0 | JK32: 0 | JL32: 0 | JM32: 0 | JN32: 0 | JO32: 0 | JP32: 0 | JQ32: 0 | JR32: 0 | JS32: 0 | JT32: 0 | JU32: 0 | JV32: 0 | JW32: 0 | JX32: 0 | JY32: 0 | JZ32: 0 | KA32: 0 | KB32: 0 | KC32: 0 | KD32: 0 | KE32: 0 | KF32: 0 | KG32: 0 | KH32: 0 | KI32: 0 | KJ32: 0 | KK32: 0 | KL32: 0 | KM32: 0 | KN32: 0 | KO32: 0 | KP32: 0 | KQ32: 0 | KR32: 0 | KS32: 0 | KT32: 0 | KU32: 0 | KV32: 0 | KW32: 0 | KX32: 0 | KY32: 0 | KZ32: 0 | LA32: 0 | LB32: 0 | LC32: 0 | LD32: 0 | LE32: 0 | LF32: 0 | LG32: 0 | LH32: 0 | LI32: 0 | LJ32: 0 | LK32: 0 | LL32: 0 | LM32: 0 | LN32: 0 | LO32: 0 | LP32: 0 | LQ32: 0 | LR32: 0 | LS32: 0 | LT32: 0 | LU32: 0 | LV32: 0 | LW32: 0 | LX32: 0 | LY32: 0 | LZ32: 0 | MA32: 0 | MB32: 0 | MC32: 0 | MD32: 0 | ME32: 0 | MF32: 0 | MG32: 0 | MH32: 0 | MI32: 0 | MJ32: 0 | MK32: 0 | ML32: 0 | MM32: 0 | MN32: 0 | MO32: 0 | MP32: 0 | MQ32: 0 | MR32: 0 | MS32: 0 | MT32: 0 | MU32: 0 | MV32: 0 | MW32: 0 | MX32: 0 | MY32: 0 | MZ32: 0 | NA32: 0 | NB32: 0 | NC32: 0 | ND32: 0 | NE32: 0 | NF32: 0 | NG32: 0 | NH32: 0 | NI32: 0 | NJ32: 0 | NK32: 0 | NL32: 0 | NM32: 0 | NN32: 0 | NO32: 0 | NP32: 0 | NQ32: 0 | NR32: 0 | NS32: 0 | NT32: 0 | NU32: 0 | NV32: 0 | NW32: 0 | NX32: 0 | NY32: 0 | NZ32: 0 | OA32: 0 | OB32: 0 | OC32: 0 | OD32: 0 | OE32: 0 | OF32: 0 | OG32: 0 | OH32: 0 | OI32: 0 | OJ32: 0 | OK32: 0 | OL32: 0 | OM32: 0 | ON32: 0 | OO32: 0 | OP32: 0 | OQ32: 0 | OR32: 0 | OS32: 0 | OT32: 0 | OU32: 0 | OV32: 0 | OW32: 0 | OX32: 0 | OY32: 0 | OZ32: 0 | PA32: 0 | PB32: 0 | PC32: 0 | PD32: 0 | PE32: 0 | PF32: 0 | PG32: 0 | PH32: 0 | PI32: 0 | PJ32: 0 | PK32: 0 | PL32: 0 | PM32: 0 | PN32: 0 | PO32: 0 | PP32: 0 | PQ32: 0 | PR32: 0 | PS32: 0 | PT32: 0 | PU32: 0 | PV32: 0 | PW32: 0 | PX32: 0 | PY32: 0 | PZ32: 0 | QA32: 0 | QB32: 0 | QC32: 0 | QD32: 0 | QE32: 0 | QF32: 0 | QG32: 0 | QH32: 0 | QI32: 0 | QJ32: 0 | QK32: 0 | QL32: 0 | QM32: 0 | QN32: 0 | QO32: 0 | QP32: 0 | QQ32: 0 | QR32: 0 | QS32: 0 | QT32: 0 | QU32: 0 | QV32: 0 | QW32: 0 | QX32: 0 | QY32: 0 | QZ32: 0 | RA32: 0 | RB32: 0 | RC32: 0 | RD32: 0 | RE32: 0 | RF32: 0 | RG32: 0 | RH32: 0 | RI32: 0 | RJ32: 0 | RK32: 0 | RL32: 0 | RM32: 0 | RN32: 0 | RO32: 0 | RP32: 0 | RQ32: 0 | RR32: 0 | RS32: 0 | RT32: 0 | RU32: 0 | RV32: 0 | RW32: 0 | RX32: 0 | RY32: 0 | RZ32: 0 | SA32: 0 | SB32: 0 | SC32: 0 | SD32: 0 | SE32: 0 | SF32: 0 | SG32: 0 | SH32: 0 | SI32: 0 | SJ32: 0 | SK32: 0 | SL32: 0 | SM32: 0 | SN32: 0 | SO32: 0 | SP32: 0 | SQ32: 0 | SS32: =IF(gIsItPlan,IF(AND(System!Z28,System!AA28),1,0),IF(AND(System!Z28,System!AB28),1,0)) -> 1
B33: =IF($SS33,IF(E33=1,System!B29," "&System!B29),"") -> Доставка мебели | C33: =IF($SS33,IF(gIsItPlan,System!F29,System!I29),"") -> 2014-07-29 | D33: =IF($SS33,IF(gIsItPlan,System!G29,System!J29),"") -> 2014-07-30 | E33: =System!C29 -> 2 | F33: =System!L29 -> 0 | G33: 86 | H33: 86 | I33: 86 | J33: 20 | L33: 0 | M33: 0 | N33: 0 | O33: 0 | P33: 0 | Q33: 0 | R33: 0 | S33: 0 | T33: 0 | U33: 0 | V33: 0 | W33: 0 | X33: 0 | Y33: 0 | Z33: 0 | AA33: 0 | AB33: 0 | AC33: 0 | AD33: 0 | AE33: 0 | AF33: 0 | AG33: 0 | AH33: 0 | AI33: 0 | AJ33: 0 | AK33: 0 | AL33: 0 | AM33: 0 | AN33: 0 | AO33: 0 | AP33: 0 | AQ33: 0 | AR33: 0 | AS33: 0 | AT33: 0 | AU33: 0 | AV33: 0 | AW33: 0 | AX33: 0 | AY33: 0 | AZ33: 0 | BA33: 0 | BB33: 0 | BC33: 0 | BD33: 0 | BE33: 0 | BF33: 0 | BG33: 0 | BH33: 0 | BI33: 0 | BJ33: 0 | BK33: 0 | BL33: 0 | BM33: 0 | BN33: 0 | BO33: 0 | BP33: 0 | BQ33: 0 | BR33: 0 | BS33: 0 | BT33: 0 | BU33: 0 | BV33: 0 | BW33: 0 | BX33: 0 | BY33: 0 | BZ33: 0 | CA33: 0 | CB33: 0 | CC33: 0 | CD33: 0 | CE33: 0 | CF33: 0 | CG33: 0 | CH33: 0 | CI33: 23 | CJ33: 0 | CK33: 0 | CL33: 0 | CM33: 0 | CN33: 0 | CO33: 0 | CP33: 0 | CQ33: 0 | CR33: 0 | CS33: 0 | CT33: 0 | CU33: 0 | CV33: 0 | CW33: 0 | CX33: 0 | CY33: 0 | CZ33: 0 | DA33: 0 | DB33: 0 | DC33: 0 | DD33: 0 | DE33: 0 | DF33: 0 | DG33: 0 | DH33: 0 | DI33: 0 | DJ33: 0 | DK33: 0 | DL33: 0 | DM33: 0 | DN33: 0 | DO33: 0 | DP33: 0 | DQ33: 0 | DR33: 0 | DS33: 0 | DT33: 0 | DU33: 0 | DV33: 0 | DW33: 0 | DX33: 0 | DY33: 0 | DZ33: 0 | EA33: 0 | EB33: 0 | EC33: 0 | ED33: 0 | EE33: 0 | EF33: 0 | EG33: 0 | EH33: 0 | EI33: 0 | EJ33: 0 | EK33: 0 | EL33: 0 | EM33: 0 | EN33: 0 | EO33: 0 | EP33: 0 | EQ33: 0 | ER33: 0 | ES33: 0 | ET33: 0 | EU33: 0 | EV33: 0 | EW33: 0 | EX33: 0 | EY33: 0 | EZ33: 0 | FA33: 0 | FB33: 0 | FC33: 0 | FD33: 0 | FE33: 0 | FF33: 0 | FG33: 0 | FH33: 0 | FI33: 0 | FJ33: 0 | FK33: 0 | FL33: 0 | FM33: 0 | FN33: 0 | FO33: 0 | FP33: 0 | FQ33: 0 | FR33: 0 | FS33: 0 | FT33: 0 | FU33: 0 | FV33: 0 | FW33: 0 | FX33: 0 | FY33: 0 | FZ33: 0 | GA33: 0 | GB33: 0 | GC33: 0 | GD33: 0 | GE33: 0 | GF33: 0 | GG33: 0 | GH33: 0 | GI33: 0 | GJ33: 0 | GK33: 0 | GL33: 0 | GM33: 0 | GN33: 0 | GO33: 0 | GP33: 0 | GQ33: 0 | GR33: 0 | GS33: 0 | GT33: 0 | GU33: 0 | GV33: 0 | GW33: 0 | GX33: 0 | GY33: 0 | GZ33: 0 | HA33: 0 | HB33: 0 | HC33: 0 | HD33: 0 | HE33: 0 | HF33: 0 | HG33: 0 | HH33: 0 | HI33: 0 | HJ33: 0 | HK33: 0 | HL33: 0 | HM33: 0 | HN33: 0 | HO33: 0 | HP33: 0 | HQ33: 0 | HR33: 0 | HS33: 0 | HT33: 0 | HU33: 0 | HV33: 0 | HW33: 0 | HX33: 0 | HY33: 0 | HZ33: 0 | IA33: 0 | IB33: 0 | IC33: 0 | ID33: 0 | IE33: 0 | IF33: 0 | IG33: 0 | IH33: 0 | II33: 0 | IJ33: 0 | IK33: 0 | IL33: 0 | IM33: 0 | IN33: 0 | IO33: 0 | IP33: 0 | IQ33: 0 | IR33: 0 | IS33: 0 | IT33: 0 | IU33: 0 | IV33: 0 | IW33: 0 | IX33: 0 | IY33: 0 | IZ33: 0 | JA33: 0 | JB33: 0 | JC33: 0 | JD33: 0 | JE33: 0 | JF33: 0 | JG33: 0 | JH33: 0 | JI33: 0 | JJ33: 0 | JK33: 0 | JL33: 0 | JM33: 0 | JN33: 0 | JO33: 0 | JP33: 0 | JQ33: 0 | JR33: 0 | JS33: 0 | JT33: 0 | JU33: 0 | JV33: 0 | JW33: 0 | JX33: 0 | JY33: 0 | JZ33: 0 | KA33: 0 | KB33: 0 | KC33: 0 | KD33: 0 | KE33: 0 | KF33: 0 | KG33: 0 | KH33: 0 | KI33: 0 | KJ33: 0 | KK33: 0 | KL33: 0 | KM33: 0 | KN33: 0 | KO33: 0 | KP33: 0 | KQ33: 0 | KR33: 0 | KS33: 0 | KT33: 0 | KU33: 0 | KV33: 0 | KW33: 0 | KX33: 0 | KY33: 0 | KZ33: 0 | LA33: 0 | LB33: 0 | LC33: 0 | LD33: 0 | LE33: 0 | LF33: 0 | LG33: 0 | LH33: 0 | LI33: 0 | LJ33: 0 | LK33: 0 | LL33: 0 | LM33: 0 | LN33: 0 | LO33: 0 | LP33: 0 | LQ33: 0 | LR33: 0 | LS33: 0 | LT33: 0 | LU33: 0 | LV33: 0 | LW33: 0 | LX33: 0 | LY33: 0 | LZ33: 0 | MA33: 0 | MB33: 0 | MC33: 0 | MD33: 0 | ME33: 0 | MF33: 0 | MG33: 0 | MH33: 0 | MI33: 0 | MJ33: 0 | MK33: 0 | ML33: 0 | MM33: 0 | MN33: 0 | MO33: 0 | MP33: 0 | MQ33: 0 | MR33: 0 | MS33: 0 | MT33: 0 | MU33: 0 | MV33: 0 | MW33: 0 | MX33: 0 | MY33: 0 | MZ33: 0 | NA33: 0 | NB33: 0 | NC33: 0 | ND33: 0 | NE33: 0 | NF33: 0 | NG33: 0 | NH33: 0 | NI33: 0 | NJ33: 0 | NK33: 0 | NL33: 0 | NM33: 0 | NN33: 0 | NO33: 0 | NP33: 0 | NQ33: 0 | NR33: 0 | NS33: 0 | NT33: 0 | NU33: 0 | NV33: 0 | NW33: 0 | NX33: 0 | NY33: 0 | NZ33: 0 | OA33: 0 | OB33: 0 | OC33: 0 | OD33: 0 | OE33: 0 | OF33: 0 | OG33: 0 | OH33: 0 | OI33: 0 | OJ33: 0 | OK33: 0 | OL33: 0 | OM33: 0 | ON33: 0 | OO33: 0 | OP33: 0 | OQ33: 0 | OR33: 0 | OS33: 0 | OT33: 0 | OU33: 0 | OV33: 0 | OW33: 0 | OX33: 0 | OY33: 0 | OZ33: 0 | PA33: 0 | PB33: 0 | PC33: 0 | PD33: 0 | PE33: 0 | PF33: 0 | PG33: 0 | PH33: 0 | PI33: 0 | PJ33: 0 | PK33: 0 | PL33: 0 | PM33: 0 | PN33: 0 | PO33: 0 | PP33: 0 | PQ33: 0 | PR33: 0 | PS33: 0 | PT33: 0 | PU33: 0 | PV33: 0 | PW33: 0 | PX33: 0 | PY33: 0 | PZ33: 0 | QA33: 0 | QB33: 0 | QC33: 0 | QD33: 0 | QE33: 0 | QF33: 0 | QG33: 0 | QH33: 0 | QI33: 0 | QJ33: 0 | QK33: 0 | QL33: 0 | QM33: 0 | QN33: 0 | QO33: 0 | QP33: 0 | QQ33: 0 | QR33: 0 | QS33: 0 | QT33: 0 | QU33: 0 | QV33: 0 | QW33: 0 | QX33: 0 | QY33: 0 | QZ33: 0 | RA33: 0 | RB33: 0 | RC33: 0 | RD33: 0 | RE33: 0 | RF33: 0 | RG33: 0 | RH33: 0 | RI33: 0 | RJ33: 0 | RK33: 0 | RL33: 0 | RM33: 0 | RN33: 0 | RO33: 0 | RP33: 0 | RQ33: 0 | RR33: 0 | RS33: 0 | RT33: 0 | RU33: 0 | RV33: 0 | RW33: 0 | RX33: 0 | RY33: 0 | RZ33: 0 | SA33: 0 | SB33: 0 | SC33: 0 | SD33: 0 | SE33: 0 | SF33: 0 | SG33: 0 | SH33: 0 | SI33: 0 | SJ33: 0 | SK33: 0 | SL33: 0 | SM33: 0 | SN33: 0 | SO33: 0 | SP33: 0 | SQ33: 0 | SS33: =IF(gIsItPlan,IF(AND(System!Z29,System!AA29),1,0),IF(AND(System!Z29,System!AB29),1,0)) -> 1
B34: =IF($SS34,IF(E34=1,System!B30," "&System!B30),"") -> Сборка мебели | C34: =IF($SS34,IF(gIsItPlan,System!F30,System!I30),"") -> 2014-07-31 | D34: =IF($SS34,IF(gIsItPlan,System!G30,System!J30),"") -> 2014-07-31 | E34: =System!C30 -> 2 | F34: =System!L30 -> 0 | G34: 87 | H34: 87 | I34: 87 | J34: 20 | L34: 0 | M34: 0 | N34: 0 | O34: 0 | P34: 0 | Q34: 0 | R34: 0 | S34: 0 | T34: 0 | U34: 0 | V34: 0 | W34: 0 | X34: 0 | Y34: 0 | Z34: 0 | AA34: 0 | AB34: 0 | AC34: 0 | AD34: 0 | AE34: 0 | AF34: 0 | AG34: 0 | AH34: 0 | AI34: 0 | AJ34: 0 | AK34: 0 | AL34: 0 | AM34: 0 | AN34: 0 | AO34: 0 | AP34: 0 | AQ34: 0 | AR34: 0 | AS34: 0 | AT34: 0 | AU34: 0 | AV34: 0 | AW34: 0 | AX34: 0 | AY34: 0 | AZ34: 0 | BA34: 0 | BB34: 0 | BC34: 0 | BD34: 0 | BE34: 0 | BF34: 0 | BG34: 0 | BH34: 0 | BI34: 0 | BJ34: 0 | BK34: 0 | BL34: 0 | BM34: 0 | BN34: 0 | BO34: 0 | BP34: 0 | BQ34: 0 | BR34: 0 | BS34: 0 | BT34: 0 | BU34: 0 | BV34: 0 | BW34: 0 | BX34: 0 | BY34: 0 | BZ34: 0 | CA34: 0 | CB34: 0 | CC34: 0 | CD34: 0 | CE34: 0 | CF34: 0 | CG34: 0 | CH34: 0 | CI34: 0 | CJ34: 23 | CK34: 0 | CL34: 0 | CM34: 0 | CN34: 0 | CO34: 0 | CP34: 0 | CQ34: 0 | CR34: 0 | CS34: 0 | CT34: 0 | CU34: 0 | CV34: 0 | CW34: 0 | CX34: 0 | CY34: 0 | CZ34: 0 | DA34: 0 | DB34: 0 | DC34: 0 | DD34: 0 | DE34: 0 | DF34: 0 | DG34: 0 | DH34: 0 | DI34: 0 | DJ34: 0 | DK34: 0 | DL34: 0 | DM34: 0 | DN34: 0 | DO34: 0 | DP34: 0 | DQ34: 0 | DR34: 0 | DS34: 0 | DT34: 0 | DU34: 0 | DV34: 0 | DW34: 0 | DX34: 0 | DY34: 0 | DZ34: 0 | EA34: 0 | EB34: 0 | EC34: 0 | ED34: 0 | EE34: 0 | EF34: 0 | EG34: 0 | EH34: 0 | EI34: 0 | EJ34: 0 | EK34: 0 | EL34: 0 | EM34: 0 | EN34: 0 | EO34: 0 | EP34: 0 | EQ34: 0 | ER34: 0 | ES34: 0 | ET34: 0 | EU34: 0 | EV34: 0 | EW34: 0 | EX34: 0 | EY34: 0 | EZ34: 0 | FA34: 0 | FB34: 0 | FC34: 0 | FD34: 0 | FE34: 0 | FF34: 0 | FG34: 0 | FH34: 0 | FI34: 0 | FJ34: 0 | FK34: 0 | FL34: 0 | FM34: 0 | FN34: 0 | FO34: 0 | FP34: 0 | FQ34: 0 | FR34: 0 | FS34: 0 | FT34: 0 | FU34: 0 | FV34: 0 | FW34: 0 | FX34: 0 | FY34: 0 | FZ34: 0 | GA34: 0 | GB34: 0 | GC34: 0 | GD34: 0 | GE34: 0 | GF34: 0 | GG34: 0 | GH34: 0 | GI34: 0 | GJ34: 0 | GK34: 0 | GL34: 0 | GM34: 0 | GN34: 0 | GO34: 0 | GP34: 0 | GQ34: 0 | GR34: 0 | GS34: 0 | GT34: 0 | GU34: 0 | GV34: 0 | GW34: 0 | GX34: 0 | GY34: 0 | GZ34: 0 | HA34: 0 | HB34: 0 | HC34: 0 | HD34: 0 | HE34: 0 | HF34: 0 | HG34: 0 | HH34: 0 | HI34: 0 | HJ34: 0 | HK34: 0 | HL34: 0 | HM34: 0 | HN34: 0 | HO34: 0 | HP34: 0 | HQ34: 0 | HR34: 0 | HS34: 0 | HT34: 0 | HU34: 0 | HV34: 0 | HW34: 0 | HX34: =IF(HX$1>$I34,0, IF(HX$1<$G34,0, IF(AND(HX$1>$G34,HX$1<$H34),14+$J34, IF(AND(HX$1>$H34,HX$1<$I34),4+$J34, IF(AND(HX$1=$G34,HX$1<>$H34,HX$1<>$I34),11+$J34, IF(AND(HX$1<>$G34,HX$1=$H34,HX$1<>$I34),12+$J34, IF(AND(HX$1<>$G34,HX$1<>$H34,HX$1=$I34),2+$J34, IF(AND(HX$1=$G34,HX$1=$H34,HX$1<>$I34,$F34<>0),13+$J34, IF(AND(HX$1=$G34,HX$1=$H34,HX$1<>$I34,$F34=0),1+$J34, IF(AND(HX$1<>$G34,HX$1=$H34,HX$1=$I34),12+$J34, IF(AND(HX$1=$G34,HX$1=$H34,HX$1=$I34,$F34<=0.5),3+$J34,13+$J34))))))))))) -> 0 | HY34: 0 | HZ34: 0 | IA34: 0 | IB34: 0 | IC34: 0 | ID34: 0 | IE34: 0 | IF34: 0 | IG34: 0 | IH34: 0 | II34: 0 | IJ34: 0 | IK34: 0 | IL34: 0 | IM34: 0 | IN34: 0 | IO34: 0 | IP34: 0 | IQ34: 0 | IR34: 0 | IS34: 0 | IT34: 0 | IU34: 0 | IV34: 0 | IW34: 0 | IX34: 0 | IY34: 0 | IZ34: 0 | JA34: 0 | JB34: 0 | JC34: 0 | JD34: 0 | JE34: 0 | JF34: 0 | JG34: 0 | JH34: 0 | JI34: 0 | JJ34: 0 | JK34: 0 | JL34: 0 | JM34: 0 | JN34: 0 | JO34: 0 | JP34: 0 | JQ34: 0 | JR34: 0 | JS34: 0 | JT34: 0 | JU34: 0 | JV34: 0 | JW34: 0 | JX34: 0 | JY34: 0 | JZ34: 0 | KA34: 0 | KB34: 0 | KC34: 0 | KD34: 0 | KE34: 0 | KF34: 0 | KG34: 0 | KH34: 0 | KI34: 0 | KJ34: =IF(KJ$1>$I34,0, IF(KJ$1<$G34,0, IF(AND(KJ$1>$G34,KJ$1<$H34),14+$J34, IF(AND(KJ$1>$H34,KJ$1<$I34),4+$J34, IF(AND(KJ$1=$G34,KJ$1<>$H34,KJ$1<>$I34),11+$J34, IF(AND(KJ$1<>$G34,KJ$1=$H34,KJ$1<>$I34),12+$J34, IF(AND(KJ$1<>$G34,KJ$1<>$H34,KJ$1=$I34),2+$J34, IF(AND(KJ$1=$G34,KJ$1=$H34,KJ$1<>$I34,$F34<>0),13+$J34, IF(AND(KJ$1=$G34,KJ$1=$H34,KJ$1<>$I34,$F34=0),1+$J34, IF(AND(KJ$1<>$G34,KJ$1=$H34,KJ$1=$I34),12+$J34, IF(AND(KJ$1=$G34,KJ$1=$H34,KJ$1=$I34,$F34<=0.5),3+$J34,13+$J34))))))))))) -> 0 | KK34: 0 | KL34: 0 | KM34: 0 | KN34: 0 | KO34: 0 | KP34: 0 | KQ34: 0 | KR34: 0 | KS34: 0 | KT34: 0 | KU34: 0 | KV34: 0 | KW34: 0 | KX34: 0 | KY34: 0 | KZ34: 0 | LA34: 0 | LB34: 0 | LC34: 0 | LD34: 0 | LE34: 0 | LF34: 0 | LG34: 0 | LH34: 0 | LI34: 0 | LJ34: 0 | LK34: 0 | LL34: 0 | LM34: 0 | LN34: 0 | LO34: 0 | LP34: 0 | LQ34: 0 | LR34: 0 | LS34: 0 | LT34: 0 | LU34: 0 | LV34: 0 | LW34: 0 | LX34: 0 | LY34: 0 | LZ34: 0 | MA34: 0 | MB34: 0 | MC34: 0 | MD34: 0 | ME34: 0 | MF34: 0 | MG34: 0 | MH34: 0 | MI34: 0 | MJ34: 0 | MK34: 0 | ML34: 0 | MM34: 0 | MN34: 0 | MO34: 0 | MP34: 0 | MQ34: 0 | MR34: 0 | MS34: 0 | MT34: 0 | MU34: 0 | MV34: =IF(MV$1>$I34,0, IF(MV$1<$G34,0, IF(AND(MV$1>$G34,MV$1<$H34),14+$J34, IF(AND(MV$1>$H34,MV$1<$I34),4+$J34, IF(AND(MV$1=$G34,MV$1<>$H34,MV$1<>$I34),11+$J34, IF(AND(MV$1<>$G34,MV$1=$H34,MV$1<>$I34),12+$J34, IF(AND(MV$1<>$G34,MV$1<>$H34,MV$1=$I34),2+$J34, IF(AND(MV$1=$G34,MV$1=$H34,MV$1<>$I34,$F34<>0),13+$J34, IF(AND(MV$1=$G34,MV$1=$H34,MV$1<>$I34,$F34=0),1+$J34, IF(AND(MV$1<>$G34,MV$1=$H34,MV$1=$I34),12+$J34, IF(AND(MV$1=$G34,MV$1=$H34,MV$1=$I34,$F34<=0.5),3+$J34,13+$J34))))))))))) -> 0 | MW34: 0 | MX34: 0 | MY34: 0 | MZ34: 0 | NA34: 0 | NB34: 0 | NC34: 0 | ND34: 0 | NE34: 0 | NF34: 0 | NG34: 0 | NH34: 0 | NI34: 0 | NJ34: 0 | NK34: 0 | NL34: 0 | NM34: 0 | NN34: 0 | NO34: 0 | NP34: 0 | NQ34: 0 | NR34: 0 | NS34: 0 | NT34: 0 | NU34: 0 | NV34: 0 | NW34: 0 | NX34: 0 | NY34: 0 | NZ34: 0 | OA34: 0 | OB34: 0 | OC34: 0 | OD34: 0 | OE34: 0 | OF34: 0 | OG34: 0 | OH34: 0 | OI34: 0 | OJ34: 0 | OK34: 0 | OL34: 0 | OM34: 0 | ON34: 0 | OO34: 0 | OP34: 0 | OQ34: 0 | OR34: 0 | OS34: 0 | OT34: 0 | OU34: 0 | OV34: 0 | OW34: 0 | OX34: 0 | OY34: 0 | OZ34: 0 | PA34: 0 | PB34: 0 | PC34: 0 | PD34: 0 | PE34: 0 | PF34: 0 | PG34: 0 | PH34: =IF(PH$1>$I34,0, IF(PH$1<$G34,0, IF(AND(PH$1>$G34,PH$1<$H34),14+$J34, IF(AND(PH$1>$H34,PH$1<$I34),4+$J34, IF(AND(PH$1=$G34,PH$1<>$H34,PH$1<>$I34),11+$J34, IF(AND(PH$1<>$G34,PH$1=$H34,PH$1<>$I34),12+$J34, IF(AND(PH$1<>$G34,PH$1<>$H34,PH$1=$I34),2+$J34, IF(AND(PH$1=$G34,PH$1=$H34,PH$1<>$I34,$F34<>0),13+$J34, IF(AND(PH$1=$G34,PH$1=$H34,PH$1<>$I34,$F34=0),1+$J34, IF(AND(PH$1<>$G34,PH$1=$H34,PH$1=$I34),12+$J34, IF(AND(PH$1=$G34,PH$1=$H34,PH$1=$I34,$F34<=0.5),3+$J34,13+$J34))))))))))) -> 0 | PI34: 0 | PJ34: 0 | PK34: 0 | PL34: 0 | PM34: 0 | PN34: 0 | PO34: 0 | PP34: 0 | PQ34: 0 | PR34: 0 | PS34: 0 | PT34: 0 | PU34: 0 | PV34: 0 | PW34: 0 | PX34: 0 | PY34: 0 | PZ34: 0 | QA34: 0 | QB34: 0 | QC34: 0 | QD34: 0 | QE34: 0 | QF34: 0 | QG34: 0 | QH34: 0 | QI34: 0 | QJ34: 0 | QK34: 0 | QL34: 0 | QM34: 0 | QN34: 0 | QO34: 0 | QP34: 0 | QQ34: 0 | QR34: 0 | QS34: 0 | QT34: 0 | QU34: 0 | QV34: 0 | QW34: 0 | QX34: 0 | QY34: 0 | QZ34: 0 | RA34: 0 | RB34: 0 | RC34: 0 | RD34: 0 | RE34: 0 | RF34: 0 | RG34: 0 | RH34: 0 | RI34: 0 | RJ34: 0 | RK34: 0 | RL34: 0 | RM34: 0 | RN34: 0 | RO34: 0 | RP34: 0 | RQ34: 0 | RR34: 0 | RS34: 0 | RT34: 0 | RU34: 0 | RV34: 0 | RW34: 0 | RX34: 0 | RY34: 0 | RZ34: 0 | SA34: 0 | SB34: 0 | SC34: 0 | SD34: 0 | SE34: 0 | SF34: 0 | SG34: 0 | SH34: 0 | SI34: 0 | SJ34: 0 | SK34: 0 | SL34: 0 | SM34: 0 | SN34: 0 | SO34: 0 | SP34: 0 | SQ34: 0 | SS34: =IF(gIsItPlan,IF(AND(System!Z30,System!AA30),1,0),IF(AND(System!Z30,System!AB30),1,0)) -> 1
B35: =IF($SS35,IF(E35=1,System!B31," "&System!B31),"") -> Установка мебели | C35: =IF($SS35,IF(gIsItPlan,System!F31,System!I31),"") -> 2014-08-01 | D35: =IF($SS35,IF(gIsItPlan,System!G31,System!J31),"") -> 2014-08-02 | E35: =System!C31 -> 2 | F35: =System!L31 -> 0 | G35: 87 | H35: 87 | I35: 88 | J35: 20 | L35: 0 | M35: 0 | N35: 0 | O35: 0 | P35: 0 | Q35: 0 | R35: 0 | S35: 0 | T35: 0 | U35: 0 | V35: 0 | W35: 0 | X35: 0 | Y35: 0 | Z35: 0 | AA35: 0 | AB35: 0 | AC35: 0 | AD35: 0 | AE35: 0 | AF35: 0 | AG35: 0 | AH35: 0 | AI35: 0 | AJ35: 0 | AK35: 0 | AL35: 0 | AM35: 0 | AN35: 0 | AO35: 0 | AP35: 0 | AQ35: 0 | AR35: 0 | AS35: 0 | AT35: 0 | AU35: 0 | AV35: 0 | AW35: 0 | AX35: 0 | AY35: 0 | AZ35: 0 | BA35: 0 | BB35: 0 | BC35: 0 | BD35: 0 | BE35: 0 | BF35: 0 | BG35: 0 | BH35: 0 | BI35: 0 | BJ35: 0 | BK35: 0 | BL35: 0 | BM35: 0 | BN35: 0 | BO35: 0 | BP35: 0 | BQ35: 0 | BR35: 0 | BS35: 0 | BT35: 0 | BU35: 0 | BV35: 0 | BW35: 0 | BX35: 0 | BY35: 0 | BZ35: 0 | CA35: 0 | CB35: 0 | CC35: 0 | CD35: 0 | CE35: 0 | CF35: 0 | CG35: 0 | CH35: 0 | CI35: 0 | CJ35: 21 | CK35: 22 | CL35: 0 | CM35: 0 | CN35: 0 | CO35: 0 | CP35: 0 | CQ35: 0 | CR35: 0 | CS35: 0 | CT35: 0 | CU35: 0 | CV35: 0 | CW35: 0 | CX35: 0 | CY35: 0 | CZ35: 0 | DA35: 0 | DB35: 0 | DC35: 0 | DD35: 0 | DE35: 0 | DF35: 0 | DG35: 0 | DH35: 0 | DI35: 0 | DJ35: 0 | DK35: 0 | DL35: 0 | DM35: 0 | DN35: 0 | DO35: 0 | DP35: 0 | DQ35: 0 | DR35: 0 | DS35: 0 | DT35: 0 | DU35: 0 | DV35: 0 | DW35: 0 | DX35: 0 | DY35: 0 | DZ35: 0 | EA35: 0 | EB35: 0 | EC35: 0 | ED35: 0 | EE35: 0 | EF35: 0 | EG35: 0 | EH35: 0 | EI35: 0 | EJ35: 0 | EK35: 0 | EL35: 0 | EM35: 0 | EN35: 0 | EO35: 0 | EP35: 0 | EQ35: 0 | ER35: 0 | ES35: 0 | ET35: 0 | EU35: 0 | EV35: 0 | EW35: 0 | EX35: 0 | EY35: 0 | EZ35: 0 | FA35: 0 | FB35: 0 | FC35: 0 | FD35: 0 | FE35: 0 | FF35: 0 | FG35: 0 | FH35: 0 | FI35: 0 | FJ35: 0 | FK35: 0 | FL35: 0 | FM35: 0 | FN35: 0 | FO35: 0 | FP35: 0 | FQ35: 0 | FR35: 0 | FS35: 0 | FT35: 0 | FU35: 0 | FV35: 0 | FW35: 0 | FX35: 0 | FY35: 0 | FZ35: 0 | GA35: 0 | GB35: 0 | GC35: 0 | GD35: 0 | GE35: 0 | GF35: 0 | GG35: 0 | GH35: 0 | GI35: 0 | GJ35: 0 | GK35: 0 | GL35: 0 | GM35: 0 | GN35: 0 | GO35: 0 | GP35: 0 | GQ35: 0 | GR35: 0 | GS35: 0 | GT35: 0 | GU35: 0 | GV35: 0 | GW35: 0 | GX35: 0 | GY35: 0 | GZ35: 0 | HA35: 0 | HB35: 0 | HC35: 0 | HD35: 0 | HE35: 0 | HF35: 0 | HG35: 0 | HH35: 0 | HI35: 0 | HJ35: 0 | HK35: 0 | HL35: 0 | HM35: 0 | HN35: 0 | HO35: 0 | HP35: 0 | HQ35: 0 | HR35: 0 | HS35: 0 | HT35: 0 | HU35: 0 | HV35: 0 | HW35: 0 | HX35: 0 | HY35: 0 | HZ35: 0 | IA35: 0 | IB35: 0 | IC35: 0 | ID35: 0 | IE35: 0 | IF35: 0 | IG35: 0 | IH35: 0 | II35: 0 | IJ35: 0 | IK35: 0 | IL35: 0 | IM35: 0 | IN35: 0 | IO35: 0 | IP35: 0 | IQ35: 0 | IR35: 0 | IS35: 0 | IT35: 0 | IU35: 0 | IV35: 0 | IW35: 0 | IX35: 0 | IY35: 0 | IZ35: 0 | JA35: 0 | JB35: 0 | JC35: 0 | JD35: 0 | JE35: 0 | JF35: 0 | JG35: 0 | JH35: 0 | JI35: 0 | JJ35: 0 | JK35: 0 | JL35: 0 | JM35: 0 | JN35: 0 | JO35: 0 | JP35: 0 | JQ35: 0 | JR35: 0 | JS35: 0 | JT35: 0 | JU35: 0 | JV35: 0 | JW35: 0 | JX35: 0 | JY35: 0 | JZ35: 0 | KA35: 0 | KB35: 0 | KC35: 0 | KD35: 0 | KE35: 0 | KF35: 0 | KG35: 0 | KH35: 0 | KI35: 0 | KJ35: 0 | KK35: 0 | KL35: 0 | KM35: 0 | KN35: 0 | KO35: 0 | KP35: 0 | KQ35: 0 | KR35: 0 | KS35: 0 | KT35: 0 | KU35: 0 | KV35: 0 | KW35: 0 | KX35: 0 | KY35: 0 | KZ35: 0 | LA35: 0 | LB35: 0 | LC35: 0 | LD35: 0 | LE35: 0 | LF35: 0 | LG35: 0 | LH35: 0 | LI35: 0 | LJ35: 0 | LK35: 0 | LL35: 0 | LM35: 0 | LN35: 0 | LO35: 0 | LP35: 0 | LQ35: 0 | LR35: 0 | LS35: 0 | LT35: 0 | LU35: 0 | LV35: 0 | LW35: 0 | LX35: 0 | LY35: 0 | LZ35: 0 | MA35: 0 | MB35: 0 | MC35: 0 | MD35: 0 | ME35: 0 | MF35: 0 | MG35: 0 | MH35: 0 | MI35: 0 | MJ35: 0 | MK35: 0 | ML35: 0 | MM35: 0 | MN35: 0 | MO35: 0 | MP35: 0 | MQ35: 0 | MR35: 0 | MS35: 0 | MT35: 0 | MU35: 0 | MV35: 0 | MW35: 0 | MX35: 0 | MY35: 0 | MZ35: 0 | NA35: 0 | NB35: 0 | NC35: 0 | ND35: 0 | NE35: 0 | NF35: 0 | NG35: 0 | NH35: 0 | NI35: 0 | NJ35: 0 | NK35: 0 | NL35: 0 | NM35: 0 | NN35: 0 | NO35: 0 | NP35: 0 | NQ35: 0 | NR35: 0 | NS35: 0 | NT35: 0 | NU35: 0 | NV35: 0 | NW35: 0 | NX35: 0 | NY35: 0 | NZ35: 0 | OA35: 0 | OB35: 0 | OC35: 0 | OD35: 0 | OE35: 0 | OF35: 0 | OG35: 0 | OH35: 0 | OI35: 0 | OJ35: 0 | OK35: 0 | OL35: 0 | OM35: 0 | ON35: 0 | OO35: 0 | OP35: 0 | OQ35: 0 | OR35: 0 | OS35: 0 | OT35: 0 | OU35: 0 | OV35: 0 | OW35: 0 | OX35: 0 | OY35: 0 | OZ35: 0 | PA35: 0 | PB35: 0 | PC35: 0 | PD35: 0 | PE35: 0 | PF35: 0 | PG35: 0 | PH35: 0 | PI35: 0 | PJ35: 0 | PK35: 0 | PL35: 0 | PM35: 0 | PN35: 0 | PO35: 0 | PP35: 0 | PQ35: 0 | PR35: 0 | PS35: 0 | PT35: 0 | PU35: 0 | PV35: 0 | PW35: 0 | PX35: 0 | PY35: 0 | PZ35: 0 | QA35: 0 | QB35: 0 | QC35: 0 | QD35: 0 | QE35: 0 | QF35: 0 | QG35: 0 | QH35: 0 | QI35: 0 | QJ35: 0 | QK35: 0 | QL35: 0 | QM35: 0 | QN35: 0 | QO35: 0 | QP35: 0 | QQ35: 0 | QR35: 0 | QS35: 0 | QT35: 0 | QU35: 0 | QV35: 0 | QW35: 0 | QX35: 0 | QY35: 0 | QZ35: 0 | RA35: 0 | RB35: 0 | RC35: 0 | RD35: 0 | RE35: 0 | RF35: 0 | RG35: 0 | RH35: 0 | RI35: 0 | RJ35: 0 | RK35: 0 | RL35: 0 | RM35: 0 | RN35: 0 | RO35: 0 | RP35: 0 | RQ35: 0 | RR35: 0 | RS35: 0 | RT35: 0 | RU35: 0 | RV35: 0 | RW35: 0 | RX35: 0 | RY35: 0 | RZ35: 0 | SA35: 0 | SB35: 0 | SC35: 0 | SD35: 0 | SE35: 0 | SF35: 0 | SG35: 0 | SH35: 0 | SI35: 0 | SJ35: 0 | SK35: 0 | SL35: 0 | SM35: 0 | SN35: 0 | SO35: 0 | SP35: 0 | SQ35: 0 | SS35: =IF(gIsItPlan,IF(AND(System!Z31,System!AA31),1,0),IF(AND(System!Z31,System!AB31),1,0)) -> 1
B36: =IF($SS36,IF(E36=1,System!B32," "&System!B32),"") -> Контроль качества | C36: =IF($SS36,IF(gIsItPlan,System!F32,System!I32),"") -> 2014-08-03 | D36: =IF($SS36,IF(gIsItPlan,System!G32,System!J32),"") -> 2014-08-03 | E36: =System!C32 -> 2 | F36: =System!L32 -> 0 | G36: 88 | H36: 88 | I36: 88 | J36: 20 | L36: 0 | M36: 0 | N36: 0 | O36: 0 | P36: 0 | Q36: 0 | R36: 0 | S36: 0 | T36: 0 | U36: 0 | V36: 0 | W36: 0 | X36: 0 | Y36: 0 | Z36: 0 | AA36: 0 | AB36: 0 | AC36: 0 | AD36: 0 | AE36: 0 | AF36: 0 | AG36: 0 | AH36: 0 | AI36: 0 | AJ36: 0 | AK36: 0 | AL36: 0 | AM36: 0 | AN36: 0 | AO36: 0 | AP36: 0 | AQ36: 0 | AR36: 0 | AS36: 0 | AT36: 0 | AU36: 0 | AV36: 0 | AW36: 0 | AX36: 0 | AY36: 0 | AZ36: 0 | BA36: 0 | BB36: 0 | BC36: 0 | BD36: 0 | BE36: 0 | BF36: 0 | BG36: 0 | BH36: 0 | BI36: 0 | BJ36: 0 | BK36: 0 | BL36: 0 | BM36: 0 | BN36: 0 | BO36: 0 | BP36: 0 | BQ36: 0 | BR36: 0 | BS36: 0 | BT36: 0 | BU36: 0 | BV36: 0 | BW36: 0 | BX36: 0 | BY36: 0 | BZ36: 0 | CA36: 0 | CB36: 0 | CC36: 0 | CD36: 0 | CE36: 0 | CF36: 0 | CG36: 0 | CH36: 0 | CI36: 0 | CJ36: 0 | CK36: 23 | CL36: 0 | CM36: 0 | CN36: 0 | CO36: 0 | CP36: 0 | CQ36: 0 | CR36: 0 | CS36: 0 | CT36: 0 | CU36: 0 | CV36: 0 | CW36: 0 | CX36: 0 | CY36: 0 | CZ36: 0 | DA36: 0 | DB36: 0 | DC36: 0 | DD36: 0 | DE36: 0 | DF36: 0 | DG36: 0 | DH36: 0 | DI36: 0 | DJ36: 0 | DK36: 0 | DL36: 0 | DM36: 0 | DN36: 0 | DO36: 0 | DP36: 0 | DQ36: 0 | DR36: 0 | DS36: 0 | DT36: 0 | DU36: 0 | DV36: 0 | DW36: 0 | DX36: 0 | DY36: 0 | DZ36: 0 | EA36: 0 | EB36: 0 | EC36: 0 | ED36: 0 | EE36: 0 | EF36: 0 | EG36: 0 | EH36: 0 | EI36: 0 | EJ36: 0 | EK36: 0 | EL36: 0 | EM36: 0 | EN36: 0 | EO36: 0 | EP36: 0 | EQ36: 0 | ER36: 0 | ES36: 0 | ET36: 0 | EU36: 0 | EV36: 0 | EW36: 0 | EX36: 0 | EY36: 0 | EZ36: 0 | FA36: 0 | FB36: 0 | FC36: 0 | FD36: 0 | FE36: 0 | FF36: 0 | FG36: 0 | FH36: 0 | FI36: 0 | FJ36: 0 | FK36: 0 | FL36: 0 | FM36: 0 | FN36: 0 | FO36: 0 | FP36: 0 | FQ36: 0 | FR36: 0 | FS36: 0 | FT36: 0 | FU36: 0 | FV36: 0 | FW36: 0 | FX36: 0 | FY36: 0 | FZ36: 0 | GA36: 0 | GB36: 0 | GC36: 0 | GD36: 0 | GE36: 0 | GF36: 0 | GG36: 0 | GH36: 0 | GI36: 0 | GJ36: 0 | GK36: 0 | GL36: 0 | GM36: 0 | GN36: 0 | GO36: 0 | GP36: 0 | GQ36: 0 | GR36: 0 | GS36: 0 | GT36: 0 | GU36: 0 | GV36: 0 | GW36: 0 | GX36: 0 | GY36: 0 | GZ36: 0 | HA36: 0 | HB36: 0 | HC36: 0 | HD36: 0 | HE36: 0 | HF36: 0 | HG36: 0 | HH36: 0 | HI36: 0 | HJ36: 0 | HK36: 0 | HL36: 0 | HM36: 0 | HN36: 0 | HO36: 0 | HP36: 0 | HQ36: 0 | HR36: 0 | HS36: 0 | HT36: 0 | HU36: 0 | HV36: 0 | HW36: 0 | HX36: 0 | HY36: 0 | HZ36: 0 | IA36: 0 | IB36: 0 | IC36: 0 | ID36: 0 | IE36: 0 | IF36: 0 | IG36: 0 | IH36: 0 | II36: 0 | IJ36: 0 | IK36: 0 | IL36: 0 | IM36: 0 | IN36: 0 | IO36: 0 | IP36: 0 | IQ36: 0 | IR36: 0 | IS36: 0 | IT36: 0 | IU36: 0 | IV36: 0 | IW36: 0 | IX36: 0 | IY36: 0 | IZ36: 0 | JA36: 0 | JB36: 0 | JC36: 0 | JD36: 0 | JE36: 0 | JF36: 0 | JG36: 0 | JH36: 0 | JI36: 0 | JJ36: 0 | JK36: 0 | JL36: 0 | JM36: 0 | JN36: 0 | JO36: 0 | JP36: 0 | JQ36: 0 | JR36: 0 | JS36: 0 | JT36: 0 | JU36: 0 | JV36: 0 | JW36: 0 | JX36: 0 | JY36: 0 | JZ36: 0 | KA36: 0 | KB36: 0 | KC36: 0 | KD36: 0 | KE36: 0 | KF36: 0 | KG36: 0 | KH36: 0 | KI36: 0 | KJ36: 0 | KK36: 0 | KL36: 0 | KM36: 0 | KN36: 0 | KO36: 0 | KP36: 0 | KQ36: 0 | KR36: 0 | KS36: 0 | KT36: 0 | KU36: 0 | KV36: 0 | KW36: 0 | KX36: 0 | KY36: 0 | KZ36: 0 | LA36: 0 | LB36: 0 | LC36: 0 | LD36: 0 | LE36: 0 | LF36: 0 | LG36: 0 | LH36: 0 | LI36: 0 | LJ36: 0 | LK36: 0 | LL36: 0 | LM36: 0 | LN36: 0 | LO36: 0 | LP36: 0 | LQ36: 0 | LR36: 0 | LS36: 0 | LT36: 0 | LU36: 0 | LV36: 0 | LW36: 0 | LX36: 0 | LY36: 0 | LZ36: 0 | MA36: 0 | MB36: 0 | MC36: 0 | MD36: 0 | ME36: 0 | MF36: 0 | MG36: 0 | MH36: 0 | MI36: 0 | MJ36: 0 | MK36: 0 | ML36: 0 | MM36: 0 | MN36: 0 | MO36: 0 | MP36: 0 | MQ36: 0 | MR36: 0 | MS36: 0 | MT36: 0 | MU36: 0 | MV36: 0 | MW36: 0 | MX36: 0 | MY36: 0 | MZ36: 0 | NA36: 0 | NB36: 0 | NC36: 0 | ND36: 0 | NE36: 0 | NF36: 0 | NG36: 0 | NH36: 0 | NI36: 0 | NJ36: 0 | NK36: 0 | NL36: 0 | NM36: 0 | NN36: 0 | NO36: 0 | NP36: 0 | NQ36: 0 | NR36: 0 | NS36: 0 | NT36: 0 | NU36: 0 | NV36: 0 | NW36: 0 | NX36: 0 | NY36: 0 | NZ36: 0 | OA36: 0 | OB36: 0 | OC36: 0 | OD36: 0 | OE36: 0 | OF36: 0 | OG36: 0 | OH36: 0 | OI36: 0 | OJ36: 0 | OK36: 0 | OL36: 0 | OM36: 0 | ON36: 0 | OO36: 0 | OP36: 0 | OQ36: 0 | OR36: 0 | OS36: 0 | OT36: 0 | OU36: 0 | OV36: 0 | OW36: 0 | OX36: 0 | OY36: 0 | OZ36: 0 | PA36: 0 | PB36: 0 | PC36: 0 | PD36: 0 | PE36: 0 | PF36: 0 | PG36: 0 | PH36: 0 | PI36: 0 | PJ36: 0 | PK36: 0 | PL36: 0 | PM36: 0 | PN36: 0 | PO36: 0 | PP36: 0 | PQ36: 0 | PR36: 0 | PS36: 0 | PT36: 0 | PU36: 0 | PV36: 0 | PW36: 0 | PX36: 0 | PY36: 0 | PZ36: 0 | QA36: 0 | QB36: 0 | QC36: 0 | QD36: 0 | QE36: 0 | QF36: 0 | QG36: 0 | QH36: 0 | QI36: 0 | QJ36: 0 | QK36: 0 | QL36: 0 | QM36: 0 | QN36: 0 | QO36: 0 | QP36: 0 | QQ36: 0 | QR36: 0 | QS36: 0 | QT36: 0 | QU36: 0 | QV36: 0 | QW36: 0 | QX36: 0 | QY36: 0 | QZ36: 0 | RA36: 0 | RB36: 0 | RC36: 0 | RD36: 0 | RE36: 0 | RF36: 0 | RG36: 0 | RH36: 0 | RI36: 0 | RJ36: 0 | RK36: 0 | RL36: 0 | RM36: 0 | RN36: 0 | RO36: 0 | RP36: 0 | RQ36: 0 | RR36: 0 | RS36: 0 | RT36: 0 | RU36: 0 | RV36: 0 | RW36: 0 | RX36: 0 | RY36: 0 | RZ36: 0 | SA36: 0 | SB36: 0 | SC36: 0 | SD36: 0 | SE36: 0 | SF36: 0 | SG36: 0 | SH36: 0 | SI36: 0 | SJ36: 0 | SK36: 0 | SL36: 0 | SM36: 0 | SN36: 0 | SO36: 0 | SP36: 0 | SQ36: 0 | SS36: =IF(gIsItPlan,IF(AND(System!Z32,System!AA32),1,0),IF(AND(System!Z32,System!AB32),1,0)) -> 1
B37: =IF($SS37,IF(E37=1,System!B33," "&System!B33),"") -> Завершение | C37: =IF($SS37,IF(gIsItPlan,System!F33,System!I33),"") -> 2014-08-04 | D37: =IF($SS37,IF(gIsItPlan,System!G33,System!J33),"") -> 2014-08-09 | E37: =System!C33 -> 1 | F37: =System!L33 -> 0 | G37: 89 | H37: 89 | I37: 91 | J37: 0 | L37: 0 | M37: 0 | N37: 0 | O37: 0 | P37: 0 | Q37: 0 | R37: 0 | S37: 0 | T37: 0 | U37: 0 | V37: 0 | W37: 0 | X37: 0 | Y37: 0 | Z37: 0 | AA37: 0 | AB37: 0 | AC37: 0 | AD37: 0 | AE37: 0 | AF37: 0 | AG37: 0 | AH37: 0 | AI37: 0 | AJ37: 0 | AK37: 0 | AL37: 0 | AM37: 0 | AN37: 0 | AO37: 0 | AP37: 0 | AQ37: 0 | AR37: 0 | AS37: 0 | AT37: 0 | AU37: 0 | AV37: 0 | AW37: 0 | AX37: 0 | AY37: 0 | AZ37: 0 | BA37: 0 | BB37: 0 | BC37: 0 | BD37: 0 | BE37: 0 | BF37: 0 | BG37: 0 | BH37: 0 | BI37: 0 | BJ37: 0 | BK37: 0 | BL37: 0 | BM37: 0 | BN37: 0 | BO37: 0 | BP37: 0 | BQ37: 0 | BR37: 0 | BS37: 0 | BT37: 0 | BU37: 0 | BV37: 0 | BW37: 0 | BX37: 0 | BY37: 0 | BZ37: 0 | CA37: 0 | CB37: 0 | CC37: 0 | CD37: 0 | CE37: 0 | CF37: 0 | CG37: 0 | CH37: 0 | CI37: 0 | CJ37: 0 | CK37: 0 | CL37: 1 | CM37: 4 | CN37: 2 | CO37: 0 | CP37: 0 | CQ37: 0 | CR37: 0 | CS37: 0 | CT37: 0 | CU37: 0 | CV37: 0 | CW37: 0 | CX37: 0 | CY37: 0 | CZ37: 0 | DA37: 0 | DB37: 0 | DC37: 0 | DD37: 0 | DE37: 0 | DF37: 0 | DG37: 0 | DH37: 0 | DI37: 0 | DJ37: 0 | DK37: 0 | DL37: 0 | DM37: 0 | DN37: 0 | DO37: 0 | DP37: 0 | DQ37: 0 | DR37: 0 | DS37: 0 | DT37: 0 | DU37: 0 | DV37: 0 | DW37: 0 | DX37: 0 | DY37: 0 | DZ37: 0 | EA37: 0 | EB37: 0 | EC37: 0 | ED37: 0 | EE37: 0 | EF37: 0 | EG37: 0 | EH37: 0 | EI37: 0 | EJ37: 0 | EK37: 0 | EL37: 0 | EM37: 0 | EN37: 0 | EO37: 0 | EP37: 0 | EQ37: 0 | ER37: 0 | ES37: 0 | ET37: 0 | EU37: 0 | EV37: 0 | EW37: 0 | EX37: 0 | EY37: 0 | EZ37: 0 | FA37: 0 | FB37: 0 | FC37: 0 | FD37: 0 | FE37: 0 | FF37: 0 | FG37: 0 | FH37: 0 | FI37: 0 | FJ37: 0 | FK37: 0 | FL37: 0 | FM37: 0 | FN37: 0 | FO37: 0 | FP37: 0 | FQ37: 0 | FR37: 0 | FS37: 0 | FT37: 0 | FU37: 0 | FV37: 0 | FW37: 0 | FX37: 0 | FY37: 0 | FZ37: 0 | GA37: 0 | GB37: 0 | GC37: 0 | GD37: 0 | GE37: 0 | GF37: 0 | GG37: 0 | GH37: 0 | GI37: 0 | GJ37: 0 | GK37: 0 | GL37: 0 | GM37: 0 | GN37: 0 | GO37: 0 | GP37: 0 | GQ37: 0 | GR37: 0 | GS37: 0 | GT37: 0 | GU37: 0 | GV37: 0 | GW37: 0 | GX37: 0 | GY37: 0 | GZ37: 0 | HA37: 0 | HB37: 0 | HC37: 0 | HD37: 0 | HE37: 0 | HF37: 0 | HG37: 0 | HH37: 0 | HI37: 0 | HJ37: 0 | HK37: 0 | HL37: 0 | HM37: 0 | HN37: 0 | HO37: 0 | HP37: 0 | HQ37: 0 | HR37: 0 | HS37: 0 | HT37: 0 | HU37: 0 | HV37: 0 | HW37: 0 | HX37: 0 | HY37: 0 | HZ37: 0 | IA37: 0 | IB37: 0 | IC37: 0 | ID37: 0 | IE37: 0 | IF37: 0 | IG37: 0 | IH37: 0 | II37: 0 | IJ37: 0 | IK37: 0 | IL37: 0 | IM37: 0 | IN37: 0 | IO37: 0 | IP37: 0 | IQ37: 0 | IR37: 0 | IS37: 0 | IT37: 0 | IU37: 0 | IV37: 0 | IW37: 0 | IX37: 0 | IY37: 0 | IZ37: 0 | JA37: 0 | JB37: 0 | JC37: 0 | JD37: 0 | JE37: 0 | JF37: 0 | JG37: 0 | JH37: 0 | JI37: 0 | JJ37: 0 | JK37: 0 | JL37: 0 | JM37: 0 | JN37: 0 | JO37: 0 | JP37: 0 | JQ37: 0 | JR37: 0 | JS37: 0 | JT37: 0 | JU37: 0 | JV37: 0 | JW37: 0 | JX37: 0 | JY37: 0 | JZ37: 0 | KA37: 0 | KB37: 0 | KC37: 0 | KD37: 0 | KE37: 0 | KF37: 0 | KG37: 0 | KH37: 0 | KI37: 0 | KJ37: 0 | KK37: 0 | KL37: 0 | KM37: 0 | KN37: 0 | KO37: 0 | KP37: 0 | KQ37: 0 | KR37: 0 | KS37: 0 | KT37: 0 | KU37: 0 | KV37: 0 | KW37: 0 | KX37: 0 | KY37: 0 | KZ37: 0 | LA37: 0 | LB37: 0 | LC37: 0 | LD37: 0 | LE37: 0 | LF37: 0 | LG37: 0 | LH37: 0 | LI37: 0 | LJ37: 0 | LK37: 0 | LL37: 0 | LM37: 0 | LN37: 0 | LO37: 0 | LP37: 0 | LQ37: 0 | LR37: 0 | LS37: 0 | LT37: 0 | LU37: 0 | LV37: 0 | LW37: 0 | LX37: 0 | LY37: 0 | LZ37: 0 | MA37: 0 | MB37: 0 | MC37: 0 | MD37: 0 | ME37: 0 | MF37: 0 | MG37: 0 | MH37: 0 | MI37: 0 | MJ37: 0 | MK37: 0 | ML37: 0 | MM37: 0 | MN37: 0 | MO37: 0 | MP37: 0 | MQ37: 0 | MR37: 0 | MS37: 0 | MT37: 0 | MU37: 0 | MV37: 0 | MW37: 0 | MX37: 0 | MY37: 0 | MZ37: 0 | NA37: 0 | NB37: 0 | NC37: 0 | ND37: 0 | NE37: 0 | NF37: 0 | NG37: 0 | NH37: 0 | NI37: 0 | NJ37: 0 | NK37: 0 | NL37: 0 | NM37: 0 | NN37: 0 | NO37: 0 | NP37: 0 | NQ37: 0 | NR37: 0 | NS37: 0 | NT37: 0 | NU37: 0 | NV37: 0 | NW37: 0 | NX37: 0 | NY37: 0 | NZ37: 0 | OA37: 0 | OB37: 0 | OC37: 0 | OD37: 0 | OE37: 0 | OF37: 0 | OG37: 0 | OH37: 0 | OI37: 0 | OJ37: 0 | OK37: 0 | OL37: 0 | OM37: 0 | ON37: 0 | OO37: 0 | OP37: 0 | OQ37: 0 | OR37: 0 | OS37: 0 | OT37: 0 | OU37: 0 | OV37: 0 | OW37: 0 | OX37: 0 | OY37: 0 | OZ37: 0 | PA37: 0 | PB37: 0 | PC37: 0 | PD37: 0 | PE37: 0 | PF37: 0 | PG37: 0 | PH37: 0 | PI37: 0 | PJ37: 0 | PK37: 0 | PL37: 0 | PM37: 0 | PN37: 0 | PO37: 0 | PP37: 0 | PQ37: 0 | PR37: 0 | PS37: 0 | PT37: 0 | PU37: 0 | PV37: 0 | PW37: 0 | PX37: 0 | PY37: 0 | PZ37: 0 | QA37: 0 | QB37: 0 | QC37: 0 | QD37: 0 | QE37: 0 | QF37: 0 | QG37: 0 | QH37: 0 | QI37: 0 | QJ37: 0 | QK37: 0 | QL37: 0 | QM37: 0 | QN37: 0 | QO37: 0 | QP37: 0 | QQ37: 0 | QR37: 0 | QS37: 0 | QT37: 0 | QU37: 0 | QV37: 0 | QW37: 0 | QX37: 0 | QY37: 0 | QZ37: 0 | RA37: 0 | RB37: 0 | RC37: 0 | RD37: 0 | RE37: 0 | RF37: 0 | RG37: 0 | RH37: 0 | RI37: 0 | RJ37: 0 | RK37: 0 | RL37: 0 | RM37: 0 | RN37: 0 | RO37: 0 | RP37: 0 | RQ37: 0 | RR37: 0 | RS37: 0 | RT37: 0 | RU37: 0 | RV37: 0 | RW37: 0 | RX37: 0 | RY37: 0 | RZ37: 0 | SA37: 0 | SB37: 0 | SC37: 0 | SD37: 0 | SE37: 0 | SF37: 0 | SG37: 0 | SH37: 0 | SI37: 0 | SJ37: 0 | SK37: 0 | SL37: 0 | SM37: 0 | SN37: 0 | SO37: 0 | SP37: 0 | SQ37: 0 | SS37: =IF(gIsItPlan,IF(AND(System!Z33,System!AA33),1,0),IF(AND(System!Z33,System!AB33),1,0)) -> 1
B38: =IF($SS38,IF(E38=1,System!B34," "&System!B34),"") -> Приёмка работ | C38: =IF($SS38,IF(gIsItPlan,System!F34,System!I34),"") -> 2014-08-04 | D38: =IF($SS38,IF(gIsItPlan,System!G34,System!J34),"") -> 2014-08-04 | E38: =System!C34 -> 2 | F38: =System!L34 -> 0 | G38: =IF($SS38,gFstCol+MATCH($C38,gGantStartDates,1)-1-IF(gDpC<1,gCpD-1,0),0) -> 89 | H38: =IF($SS38,$G38+ROUND(($I38-$G38)*$F38-gDelta,0),0) -> 89 | I38: =IF($SS38,gFstCol+MATCH($D38,gGantStartDates,1)-1,0) -> 89 | J38: 20 | L38: 0 | M38: 0 | N38: 0 | O38: 0 | P38: 0 | Q38: 0 | R38: 0 | S38: 0 | T38: 0 | U38: 0 | V38: 0 | W38: 0 | X38: 0 | Y38: 0 | Z38: 0 | AA38: 0 | AB38: 0 | AC38: 0 | AD38: 0 | AE38: 0 | AF38: 0 | AG38: 0 | AH38: 0 | AI38: 0 | AJ38: 0 | AK38: 0 | AL38: 0 | AM38: 0 | AN38: 0 | AO38: 0 | AP38: 0 | AQ38: 0 | AR38: 0 | AS38: 0 | AT38: 0 | AU38: 0 | AV38: 0 | AW38: 0 | AX38: 0 | AY38: 0 | AZ38: 0 | BA38: 0 | BB38: 0 | BC38: 0 | BD38: 0 | BE38: 0 | BF38: 0 | BG38: 0 | BH38: 0 | BI38: 0 | BJ38: 0 | BK38: 0 | BL38: 0 | BM38: 0 | BN38: 0 | BO38: 0 | BP38: 0 | BQ38: 0 | BR38: 0 | BS38: 0 | BT38: 0 | BU38: 0 | BV38: 0 | BW38: 0 | BX38: 0 | BY38: 0 | BZ38: 0 | CA38: 0 | CB38: 0 | CC38: 0 | CD38: 0 | CE38: 0 | CF38: 0 | CG38: 0 | CH38: 0 | CI38: 0 | CJ38: 0 | CK38: 0 | CL38: 23 | CM38: 0 | CN38: 0 | CO38: 0 | CP38: 0 | CQ38: 0 | CR38: 0 | CS38: 0 | CT38: 0 | CU38: 0 | CV38: 0 | CW38: 0 | CX38: 0 | CY38: 0 | CZ38: 0 | DA38: 0 | DB38: 0 | DC38: 0 | DD38: 0 | DE38: 0 | DF38: 0 | DG38: 0 | DH38: 0 | DI38: 0 | DJ38: 0 | DK38: 0 | DL38: 0 | DM38: 0 | DN38: 0 | DO38: 0 | DP38: 0 | DQ38: 0 | DR38: 0 | DS38: 0 | DT38: 0 | DU38: 0 | DV38: 0 | DW38: 0 | DX38: 0 | DY38: 0 | DZ38: 0 | EA38: 0 | EB38: 0 | EC38: 0 | ED38: 0 | EE38: 0 | EF38: 0 | EG38: 0 | EH38: 0 | EI38: 0 | EJ38: 0 | EK38: 0 | EL38: 0 | EM38: 0 | EN38: 0 | EO38: 0 | EP38: 0 | EQ38: 0 | ER38: 0 | ES38: 0 | ET38: 0 | EU38: 0 | EV38: 0 | EW38: 0 | EX38: 0 | EY38: 0 | EZ38: 0 | FA38: 0 | FB38: 0 | FC38: 0 | FD38: 0 | FE38: 0 | FF38: 0 | FG38: 0 | FH38: 0 | FI38: 0 | FJ38: 0 | FK38: 0 | FL38: 0 | FM38: 0 | FN38: 0 | FO38: 0 | FP38: 0 | FQ38: 0 | FR38: 0 | FS38: 0 | FT38: 0 | FU38: 0 | FV38: 0 | FW38: 0 | FX38: 0 | FY38: 0 | FZ38: 0 | GA38: 0 | GB38: 0 | GC38: 0 | GD38: 0 | GE38: 0 | GF38: 0 | GG38: 0 | GH38: 0 | GI38: 0 | GJ38: 0 | GK38: 0 | GL38: 0 | GM38: 0 | GN38: 0 | GO38: 0 | GP38: 0 | GQ38: 0 | GR38: 0 | GS38: 0 | GT38: 0 | GU38: 0 | GV38: 0 | GW38: 0 | GX38: 0 | GY38: 0 | GZ38: 0 | HA38: 0 | HB38: 0 | HC38: 0 | HD38: 0 | HE38: 0 | HF38: 0 | HG38: 0 | HH38: 0 | HI38: 0 | HJ38: 0 | HK38: 0 | HL38: 0 | HM38: 0 | HN38: 0 | HO38: 0 | HP38: 0 | HQ38: 0 | HR38: 0 | HS38: 0 | HT38: 0 | HU38: 0 | HV38: 0 | HW38: 0 | HX38: 0 | HY38: 0 | HZ38: 0 | IA38: 0 | IB38: 0 | IC38: 0 | ID38: 0 | IE38: 0 | IF38: 0 | IG38: 0 | IH38: 0 | II38: 0 | IJ38: 0 | IK38: 0 | IL38: 0 | IM38: 0 | IN38: 0 | IO38: 0 | IP38: 0 | IQ38: 0 | IR38: 0 | IS38: 0 | IT38: 0 | IU38: 0 | IV38: 0 | IW38: 0 | IX38: 0 | IY38: 0 | IZ38: 0 | JA38: 0 | JB38: 0 | JC38: 0 | JD38: 0 | JE38: 0 | JF38: 0 | JG38: 0 | JH38: 0 | JI38: 0 | JJ38: 0 | JK38: 0 | JL38: 0 | JM38: 0 | JN38: 0 | JO38: 0 | JP38: 0 | JQ38: 0 | JR38: 0 | JS38: 0 | JT38: 0 | JU38: 0 | JV38: 0 | JW38: 0 | JX38: 0 | JY38: 0 | JZ38: 0 | KA38: 0 | KB38: 0 | KC38: 0 | KD38: 0 | KE38: 0 | KF38: 0 | KG38: 0 | KH38: 0 | KI38: 0 | KJ38: 0 | KK38: 0 | KL38: 0 | KM38: 0 | KN38: 0 | KO38: 0 | KP38: 0 | KQ38: 0 | KR38: 0 | KS38: 0 | KT38: 0 | KU38: 0 | KV38: 0 | KW38: 0 | KX38: 0 | KY38: 0 | KZ38: 0 | LA38: 0 | LB38: 0 | LC38: 0 | LD38: 0 | LE38: 0 | LF38: 0 | LG38: 0 | LH38: 0 | LI38: 0 | LJ38: 0 | LK38: 0 | LL38: 0 | LM38: 0 | LN38: 0 | LO38: 0 | LP38: 0 | LQ38: 0 | LR38: 0 | LS38: 0 | LT38: 0 | LU38: 0 | LV38: 0 | LW38: 0 | LX38: 0 | LY38: 0 | LZ38: 0 | MA38: 0 | MB38: 0 | MC38: 0 | MD38: 0 | ME38: 0 | MF38: 0 | MG38: 0 | MH38: 0 | MI38: 0 | MJ38: 0 | MK38: 0 | ML38: 0 | MM38: 0 | MN38: 0 | MO38: 0 | MP38: 0 | MQ38: 0 | MR38: 0 | MS38: 0 | MT38: 0 | MU38: 0 | MV38: 0 | MW38: 0 | MX38: 0 | MY38: 0 | MZ38: 0 | NA38: 0 | NB38: 0 | NC38: 0 | ND38: 0 | NE38: 0 | NF38: 0 | NG38: 0 | NH38: 0 | NI38: 0 | NJ38: 0 | NK38: 0 | NL38: 0 | NM38: 0 | NN38: 0 | NO38: 0 | NP38: 0 | NQ38: 0 | NR38: 0 | NS38: 0 | NT38: 0 | NU38: 0 | NV38: 0 | NW38: 0 | NX38: 0 | NY38: 0 | NZ38: 0 | OA38: 0 | OB38: 0 | OC38: 0 | OD38: 0 | OE38: 0 | OF38: 0 | OG38: 0 | OH38: 0 | OI38: 0 | OJ38: 0 | OK38: 0 | OL38: 0 | OM38: 0 | ON38: 0 | OO38: 0 | OP38: 0 | OQ38: 0 | OR38: 0 | OS38: 0 | OT38: 0 | OU38: 0 | OV38: 0 | OW38: 0 | OX38: 0 | OY38: 0 | OZ38: 0 | PA38: 0 | PB38: 0 | PC38: 0 | PD38: 0 | PE38: 0 | PF38: 0 | PG38: 0 | PH38: 0 | PI38: 0 | PJ38: 0 | PK38: 0 | PL38: 0 | PM38: 0 | PN38: 0 | PO38: 0 | PP38: 0 | PQ38: 0 | PR38: 0 | PS38: 0 | PT38: 0 | PU38: 0 | PV38: 0 | PW38: 0 | PX38: 0 | PY38: 0 | PZ38: 0 | QA38: 0 | QB38: 0 | QC38: 0 | QD38: 0 | QE38: 0 | QF38: 0 | QG38: 0 | QH38: 0 | QI38: 0 | QJ38: 0 | QK38: 0 | QL38: 0 | QM38: 0 | QN38: 0 | QO38: 0 | QP38: 0 | QQ38: 0 | QR38: 0 | QS38: 0 | QT38: 0 | QU38: 0 | QV38: 0 | QW38: 0 | QX38: 0 | QY38: 0 | QZ38: 0 | RA38: 0 | RB38: 0 | RC38: 0 | RD38: 0 | RE38: 0 | RF38: 0 | RG38: 0 | RH38: 0 | RI38: 0 | RJ38: 0 | RK38: 0 | RL38: 0 | RM38: 0 | RN38: 0 | RO38: 0 | RP38: 0 | RQ38: 0 | RR38: 0 | RS38: 0 | RT38: 0 | RU38: 0 | RV38: 0 | RW38: 0 | RX38: 0 | RY38: 0 | RZ38: 0 | SA38: 0 | SB38: 0 | SC38: 0 | SD38: 0 | SE38: 0 | SF38: 0 | SG38: 0 | SH38: 0 | SI38: 0 | SJ38: 0 | SK38: 0 | SL38: 0 | SM38: 0 | SN38: 0 | SO38: 0 | SP38: 0 | SQ38: 0 | SS38: =IF(gIsItPlan,IF(AND(System!Z34,System!AA34),1,0),IF(AND(System!Z34,System!AB34),1,0)) -> 1
B39: =IF($SS39,IF(E39=1,System!B35," "&System!B35),"") -> Устранение недостатков | C39: =IF($SS39,IF(gIsItPlan,System!F35,System!I35),"") -> 2014-08-05 | D39: =IF($SS39,IF(gIsItPlan,System!G35,System!J35),"") -> 2014-08-07 | E39: =System!C35 -> 2 | F39: =System!L35 -> 0 | G39: 89 | H39: 89 | I39: 90 | J39: 20 | L39: 0 | M39: 0 | N39: 0 | O39: 0 | P39: 0 | Q39: 0 | R39: 0 | S39: 0 | T39: 0 | U39: 0 | V39: 0 | W39: 0 | X39: 0 | Y39: 0 | Z39: 0 | AA39: 0 | AB39: 0 | AC39: 0 | AD39: 0 | AE39: 0 | AF39: 0 | AG39: 0 | AH39: 0 | AI39: 0 | AJ39: 0 | AK39: 0 | AL39: 0 | AM39: 0 | AN39: 0 | AO39: 0 | AP39: 0 | AQ39: 0 | AR39: 0 | AS39: 0 | AT39: 0 | AU39: 0 | AV39: 0 | AW39: 0 | AX39: 0 | AY39: 0 | AZ39: 0 | BA39: 0 | BB39: 0 | BC39: 0 | BD39: 0 | BE39: 0 | BF39: 0 | BG39: 0 | BH39: 0 | BI39: 0 | BJ39: 0 | BK39: 0 | BL39: 0 | BM39: 0 | BN39: 0 | BO39: 0 | BP39: 0 | BQ39: 0 | BR39: 0 | BS39: 0 | BT39: 0 | BU39: 0 | BV39: 0 | BW39: 0 | BX39: 0 | BY39: 0 | BZ39: 0 | CA39: 0 | CB39: 0 | CC39: 0 | CD39: 0 | CE39: 0 | CF39: 0 | CG39: 0 | CH39: 0 | CI39: 0 | CJ39: 0 | CK39: 0 | CL39: 21 | CM39: 22 | CN39: 0 | CO39: 0 | CP39: 0 | CQ39: 0 | CR39: 0 | CS39: 0 | CT39: 0 | CU39: 0 | CV39: 0 | CW39: 0 | CX39: 0 | CY39: 0 | CZ39: 0 | DA39: 0 | DB39: 0 | DC39: 0 | DD39: 0 | DE39: 0 | DF39: 0 | DG39: 0 | DH39: 0 | DI39: 0 | DJ39: 0 | DK39: 0 | DL39: 0 | DM39: 0 | DN39: 0 | DO39: 0 | DP39: 0 | DQ39: 0 | DR39: 0 | DS39: 0 | DT39: 0 | DU39: 0 | DV39: 0 | DW39: 0 | DX39: 0 | DY39: 0 | DZ39: 0 | EA39: 0 | EB39: 0 | EC39: 0 | ED39: 0 | EE39: 0 | EF39: 0 | EG39: 0 | EH39: 0 | EI39: 0 | EJ39: 0 | EK39: 0 | EL39: 0 | EM39: 0 | EN39: 0 | EO39: 0 | EP39: 0 | EQ39: 0 | ER39: 0 | ES39: 0 | ET39: 0 | EU39: 0 | EV39: 0 | EW39: 0 | EX39: 0 | EY39: 0 | EZ39: 0 | FA39: 0 | FB39: 0 | FC39: 0 | FD39: 0 | FE39: 0 | FF39: 0 | FG39: 0 | FH39: 0 | FI39: 0 | FJ39: 0 | FK39: 0 | FL39: 0 | FM39: 0 | FN39: 0 | FO39: 0 | FP39: 0 | FQ39: 0 | FR39: 0 | FS39: 0 | FT39: 0 | FU39: 0 | FV39: 0 | FW39: 0 | FX39: 0 | FY39: 0 | FZ39: 0 | GA39: 0 | GB39: 0 | GC39: 0 | GD39: 0 | GE39: 0 | GF39: 0 | GG39: 0 | GH39: 0 | GI39: 0 | GJ39: 0 | GK39: 0 | GL39: 0 | GM39: 0 | GN39: 0 | GO39: 0 | GP39: 0 | GQ39: 0 | GR39: 0 | GS39: 0 | GT39: 0 | GU39: 0 | GV39: 0 | GW39: 0 | GX39: 0 | GY39: 0 | GZ39: 0 | HA39: 0 | HB39: 0 | HC39: 0 | HD39: 0 | HE39: 0 | HF39: 0 | HG39: 0 | HH39: 0 | HI39: 0 | HJ39: 0 | HK39: 0 | HL39: 0 | HM39: 0 | HN39: 0 | HO39: 0 | HP39: 0 | HQ39: 0 | HR39: 0 | HS39: 0 | HT39: 0 | HU39: 0 | HV39: 0 | HW39: 0 | HX39: 0 | HY39: 0 | HZ39: 0 | IA39: 0 | IB39: 0 | IC39: 0 | ID39: 0 | IE39: 0 | IF39: 0 | IG39: 0 | IH39: 0 | II39: 0 | IJ39: 0 | IK39: 0 | IL39: 0 | IM39: 0 | IN39: 0 | IO39: 0 | IP39: 0 | IQ39: 0 | IR39: 0 | IS39: 0 | IT39: 0 | IU39: 0 | IV39: 0 | IW39: 0 | IX39: 0 | IY39: 0 | IZ39: 0 | JA39: 0 | JB39: 0 | JC39: 0 | JD39: 0 | JE39: 0 | JF39: 0 | JG39: 0 | JH39: 0 | JI39: 0 | JJ39: 0 | JK39: 0 | JL39: 0 | JM39: 0 | JN39: 0 | JO39: 0 | JP39: 0 | JQ39: 0 | JR39: 0 | JS39: 0 | JT39: 0 | JU39: 0 | JV39: 0 | JW39: 0 | JX39: 0 | JY39: 0 | JZ39: 0 | KA39: 0 | KB39: 0 | KC39: 0 | KD39: 0 | KE39: 0 | KF39: 0 | KG39: 0 | KH39: 0 | KI39: 0 | KJ39: 0 | KK39: 0 | KL39: 0 | KM39: 0 | KN39: 0 | KO39: 0 | KP39: 0 | KQ39: 0 | KR39: 0 | KS39: 0 | KT39: 0 | KU39: 0 | KV39: 0 | KW39: 0 | KX39: 0 | KY39: 0 | KZ39: 0 | LA39: 0 | LB39: 0 | LC39: 0 | LD39: 0 | LE39: 0 | LF39: 0 | LG39: 0 | LH39: 0 | LI39: 0 | LJ39: 0 | LK39: 0 | LL39: 0 | LM39: 0 | LN39: 0 | LO39: 0 | LP39: 0 | LQ39: 0 | LR39: 0 | LS39: 0 | LT39: 0 | LU39: 0 | LV39: 0 | LW39: 0 | LX39: 0 | LY39: 0 | LZ39: 0 | MA39: 0 | MB39: 0 | MC39: 0 | MD39: 0 | ME39: 0 | MF39: 0 | MG39: 0 | MH39: 0 | MI39: 0 | MJ39: 0 | MK39: 0 | ML39: 0 | MM39: 0 | MN39: 0 | MO39: 0 | MP39: 0 | MQ39: 0 | MR39: 0 | MS39: 0 | MT39: 0 | MU39: 0 | MV39: 0 | MW39: 0 | MX39: 0 | MY39: 0 | MZ39: 0 | NA39: 0 | NB39: 0 | NC39: 0 | ND39: 0 | NE39: 0 | NF39: 0 | NG39: 0 | NH39: 0 | NI39: 0 | NJ39: 0 | NK39: 0 | NL39: 0 | NM39: 0 | NN39: 0 | NO39: 0 | NP39: 0 | NQ39: 0 | NR39: 0 | NS39: 0 | NT39: 0 | NU39: 0 | NV39: 0 | NW39: 0 | NX39: 0 | NY39: 0 | NZ39: 0 | OA39: 0 | OB39: 0 | OC39: 0 | OD39: 0 | OE39: 0 | OF39: 0 | OG39: 0 | OH39: 0 | OI39: 0 | OJ39: 0 | OK39: 0 | OL39: 0 | OM39: 0 | ON39: 0 | OO39: 0 | OP39: 0 | OQ39: 0 | OR39: 0 | OS39: 0 | OT39: 0 | OU39: 0 | OV39: 0 | OW39: 0 | OX39: 0 | OY39: 0 | OZ39: 0 | PA39: 0 | PB39: 0 | PC39: 0 | PD39: 0 | PE39: 0 | PF39: 0 | PG39: 0 | PH39: 0 | PI39: 0 | PJ39: 0 | PK39: 0 | PL39: 0 | PM39: 0 | PN39: 0 | PO39: 0 | PP39: 0 | PQ39: 0 | PR39: 0 | PS39: 0 | PT39: 0 | PU39: 0 | PV39: 0 | PW39: 0 | PX39: 0 | PY39: 0 | PZ39: 0 | QA39: 0 | QB39: 0 | QC39: 0 | QD39: 0 | QE39: 0 | QF39: 0 | QG39: 0 | QH39: 0 | QI39: 0 | QJ39: 0 | QK39: 0 | QL39: 0 | QM39: 0 | QN39: 0 | QO39: 0 | QP39: 0 | QQ39: 0 | QR39: 0 | QS39: 0 | QT39: 0 | QU39: 0 | QV39: 0 | QW39: 0 | QX39: 0 | QY39: 0 | QZ39: 0 | RA39: 0 | RB39: 0 | RC39: 0 | RD39: 0 | RE39: 0 | RF39: 0 | RG39: 0 | RH39: 0 | RI39: 0 | RJ39: 0 | RK39: 0 | RL39: 0 | RM39: 0 | RN39: 0 | RO39: 0 | RP39: 0 | RQ39: 0 | RR39: 0 | RS39: 0 | RT39: 0 | RU39: 0 | RV39: 0 | RW39: 0 | RX39: 0 | RY39: 0 | RZ39: 0 | SA39: 0 | SB39: 0 | SC39: 0 | SD39: 0 | SE39: 0 | SF39: 0 | SG39: 0 | SH39: 0 | SI39: 0 | SJ39: 0 | SK39: 0 | SL39: 0 | SM39: 0 | SN39: 0 | SO39: 0 | SP39: 0 | SQ39: 0 | SS39: =IF(gIsItPlan,IF(AND(System!Z35,System!AA35),1,0),IF(AND(System!Z35,System!AB35),1,0)) -> 1
B40: =IF($SS40,IF(E40=1,System!B36," "&System!B36),"") -> Оплата услуг подрядчика | C40: =IF($SS40,IF(gIsItPlan,System!F36,System!I36),"") -> 2014-08-08 | D40: =IF($SS40,IF(gIsItPlan,System!G36,System!J36),"") -> 2014-08-09 | E40: =System!C36 -> 2 | F40: =System!L36 -> 0 | G40: 91 | H40: 91 | I40: 91 | J40: 20 | L40: 0 | M40: 0 | N40: 0 | O40: 0 | P40: 0 | Q40: 0 | R40: 0 | S40: 0 | T40: 0 | U40: 0 | V40: 0 | W40: 0 | X40: 0 | Y40: 0 | Z40: 0 | AA40: 0 | AB40: 0 | AC40: 0 | AD40: 0 | AE40: 0 | AF40: 0 | AG40: 0 | AH40: 0 | AI40: 0 | AJ40: 0 | AK40: 0 | AL40: 0 | AM40: 0 | AN40: 0 | AO40: 0 | AP40: 0 | AQ40: 0 | AR40: 0 | AS40: 0 | AT40: 0 | AU40: 0 | AV40: 0 | AW40: 0 | AX40: 0 | AY40: 0 | AZ40: 0 | BA40: 0 | BB40: 0 | BC40: 0 | BD40: 0 | BE40: 0 | BF40: 0 | BG40: 0 | BH40: 0 | BI40: 0 | BJ40: 0 | BK40: 0 | BL40: 0 | BM40: 0 | BN40: 0 | BO40: 0 | BP40: 0 | BQ40: 0 | BR40: 0 | BS40: 0 | BT40: 0 | BU40: 0 | BV40: 0 | BW40: 0 | BX40: 0 | BY40: 0 | BZ40: 0 | CA40: 0 | CB40: 0 | CC40: 0 | CD40: 0 | CE40: 0 | CF40: 0 | CG40: 0 | CH40: 0 | CI40: 0 | CJ40: 0 | CK40: 0 | CL40: 0 | CM40: 0 | CN40: 23 | CO40: 0 | CP40: 0 | CQ40: 0 | CR40: 0 | CS40: 0 | CT40: 0 | CU40: 0 | CV40: 0 | CW40: 0 | CX40: 0 | CY40: 0 | CZ40: 0 | DA40: 0 | DB40: 0 | DC40: 0 | DD40: 0 | DE40: 0 | DF40: 0 | DG40: 0 | DH40: 0 | DI40: 0 | DJ40: 0 | DK40: 0 | DL40: 0 | DM40: 0 | DN40: 0 | DO40: 0 | DP40: 0 | DQ40: 0 | DR40: 0 | DS40: 0 | DT40: 0 | DU40: 0 | DV40: 0 | DW40: 0 | DX40: 0 | DY40: 0 | DZ40: 0 | EA40: 0 | EB40: 0 | EC40: 0 | ED40: 0 | EE40: 0 | EF40: 0 | EG40: 0 | EH40: 0 | EI40: 0 | EJ40: 0 | EK40: 0 | EL40: 0 | EM40: 0 | EN40: 0 | EO40: 0 | EP40: 0 | EQ40: 0 | ER40: 0 | ES40: 0 | ET40: 0 | EU40: 0 | EV40: 0 | EW40: 0 | EX40: 0 | EY40: 0 | EZ40: 0 | FA40: 0 | FB40: 0 | FC40: 0 | FD40: 0 | FE40: 0 | FF40: 0 | FG40: 0 | FH40: 0 | FI40: 0 | FJ40: 0 | FK40: 0 | FL40: 0 | FM40: 0 | FN40: 0 | FO40: 0 | FP40: 0 | FQ40: 0 | FR40: 0 | FS40: 0 | FT40: 0 | FU40: 0 | FV40: 0 | FW40: 0 | FX40: 0 | FY40: 0 | FZ40: 0 | GA40: 0 | GB40: 0 | GC40: 0 | GD40: 0 | GE40: 0 | GF40: 0 | GG40: 0 | GH40: 0 | GI40: 0 | GJ40: 0 | GK40: 0 | GL40: 0 | GM40: 0 | GN40: 0 | GO40: 0 | GP40: 0 | GQ40: 0 | GR40: 0 | GS40: 0 | GT40: 0 | GU40: 0 | GV40: 0 | GW40: 0 | GX40: 0 | GY40: 0 | GZ40: 0 | HA40: 0 | HB40: 0 | HC40: 0 | HD40: 0 | HE40: 0 | HF40: 0 | HG40: 0 | HH40: 0 | HI40: 0 | HJ40: 0 | HK40: 0 | HL40: 0 | HM40: 0 | HN40: 0 | HO40: 0 | HP40: 0 | HQ40: 0 | HR40: 0 | HS40: 0 | HT40: 0 | HU40: 0 | HV40: 0 | HW40: 0 | HX40: 0 | HY40: 0 | HZ40: 0 | IA40: 0 | IB40: 0 | IC40: 0 | ID40: 0 | IE40: 0 | IF40: 0 | IG40: 0 | IH40: 0 | II40: 0 | IJ40: 0 | IK40: 0 | IL40: 0 | IM40: 0 | IN40: 0 | IO40: 0 | IP40: 0 | IQ40: 0 | IR40: 0 | IS40: 0 | IT40: 0 | IU40: 0 | IV40: 0 | IW40: 0 | IX40: 0 | IY40: 0 | IZ40: 0 | JA40: 0 | JB40: 0 | JC40: 0 | JD40: 0 | JE40: 0 | JF40: 0 | JG40: 0 | JH40: 0 | JI40: 0 | JJ40: 0 | JK40: 0 | JL40: 0 | JM40: 0 | JN40: 0 | JO40: 0 | JP40: 0 | JQ40: 0 | JR40: 0 | JS40: 0 | JT40: 0 | JU40: 0 | JV40: 0 | JW40: 0 | JX40: 0 | JY40: 0 | JZ40: 0 | KA40: 0 | KB40: 0 | KC40: 0 | KD40: 0 | KE40: 0 | KF40: 0 | KG40: 0 | KH40: 0 | KI40: 0 | KJ40: 0 | KK40: 0 | KL40: 0 | KM40: 0 | KN40: 0 | KO40: 0 | KP40: 0 | KQ40: 0 | KR40: 0 | KS40: 0 | KT40: 0 | KU40: 0 | KV40: 0 | KW40: 0 | KX40: 0 | KY40: 0 | KZ40: 0 | LA40: 0 | LB40: 0 | LC40: 0 | LD40: 0 | LE40: 0 | LF40: 0 | LG40: 0 | LH40: 0 | LI40: 0 | LJ40: 0 | LK40: 0 | LL40: 0 | LM40: 0 | LN40: 0 | LO40: 0 | LP40: 0 | LQ40: 0 | LR40: 0 | LS40: 0 | LT40: 0 | LU40: 0 | LV40: 0 | LW40: 0 | LX40: 0 | LY40: 0 | LZ40: 0 | MA40: 0 | MB40: 0 | MC40: 0 | MD40: 0 | ME40: 0 | MF40: 0 | MG40: 0 | MH40: 0 | MI40: 0 | MJ40: 0 | MK40: 0 | ML40: 0 | MM40: 0 | MN40: 0 | MO40: 0 | MP40: 0 | MQ40: 0 | MR40: 0 | MS40: 0 | MT40: 0 | MU40: 0 | MV40: 0 | MW40: 0 | MX40: 0 | MY40: 0 | MZ40: 0 | NA40: 0 | NB40: 0 | NC40: 0 | ND40: 0 | NE40: 0 | NF40: 0 | NG40: 0 | NH40: 0 | NI40: 0 | NJ40: 0 | NK40: 0 | NL40: 0 | NM40: 0 | NN40: 0 | NO40: 0 | NP40: 0 | NQ40: 0 | NR40: 0 | NS40: 0 | NT40: 0 | NU40: 0 | NV40: 0 | NW40: 0 | NX40: 0 | NY40: 0 | NZ40: 0 | OA40: 0 | OB40: 0 | OC40: 0 | OD40: 0 | OE40: 0 | OF40: 0 | OG40: 0 | OH40: 0 | OI40: 0 | OJ40: 0 | OK40: 0 | OL40: 0 | OM40: 0 | ON40: 0 | OO40: 0 | OP40: 0 | OQ40: 0 | OR40: 0 | OS40: 0 | OT40: 0 | OU40: 0 | OV40: 0 | OW40: 0 | OX40: 0 | OY40: 0 | OZ40: 0 | PA40: 0 | PB40: 0 | PC40: 0 | PD40: 0 | PE40: 0 | PF40: 0 | PG40: 0 | PH40: 0 | PI40: 0 | PJ40: 0 | PK40: 0 | PL40: 0 | PM40: 0 | PN40: 0 | PO40: 0 | PP40: 0 | PQ40: 0 | PR40: 0 | PS40: 0 | PT40: 0 | PU40: 0 | PV40: 0 | PW40: 0 | PX40: 0 | PY40: 0 | PZ40: 0 | QA40: 0 | QB40: 0 | QC40: 0 | QD40: 0 | QE40: 0 | QF40: 0 | QG40: 0 | QH40: 0 | QI40: 0 | QJ40: 0 | QK40: 0 | QL40: 0 | QM40: 0 | QN40: 0 | QO40: 0 | QP40: 0 | QQ40: 0 | QR40: 0 | QS40: 0 | QT40: 0 | QU40: 0 | QV40: 0 | QW40: 0 | QX40: 0 | QY40: 0 | QZ40: 0 | RA40: 0 | RB40: 0 | RC40: 0 | RD40: 0 | RE40: 0 | RF40: 0 | RG40: 0 | RH40: 0 | RI40: 0 | RJ40: 0 | RK40: 0 | RL40: 0 | RM40: 0 | RN40: 0 | RO40: 0 | RP40: 0 | RQ40: 0 | RR40: 0 | RS40: 0 | RT40: 0 | RU40: 0 | RV40: 0 | RW40: 0 | RX40: 0 | RY40: 0 | RZ40: 0 | SA40: 0 | SB40: 0 | SC40: 0 | SD40: 0 | SE40: 0 | SF40: 0 | SG40: 0 | SH40: 0 | SI40: 0 | SJ40: 0 | SK40: 0 | SL40: 0 | SM40: 0 | SN40: 0 | SO40: 0 | SP40: 0 | SQ40: 0 | SS40: =IF(gIsItPlan,IF(AND(System!Z36,System!AA36),1,0),IF(AND(System!Z36,System!AB36),1,0)) -> 1
B41: =IF($SS41,IF(E41=1,System!B37," "&System!B37),"") ->  | C41: =IF($SS41,IF(gIsItPlan,System!F37,System!I37),"") ->  | D41: =IF($SS41,IF(gIsItPlan,System!G37,System!J37),"") ->  | E41: =System!C37 -> 0 | F41: =System!L37 -> 0 | G41: 0 | H41: 0 | I41: 0 | J41: 20 | L41: 0 | M41: 0 | N41: 0 | O41: 0 | P41: 0 | Q41: 0 | R41: 0 | S41: 0 | T41: 0 | U41: 0 | V41: 0 | W41: 0 | X41: 0 | Y41: 0 | Z41: 0 | AA41: 0 | AB41: 0 | AC41: 0 | AD41: 0 | AE41: 0 | AF41: 0 | AG41: 0 | AH41: 0 | AI41: 0 | AJ41: 0 | AK41: 0 | AL41: 0 | AM41: 0 | AN41: 0 | AO41: 0 | AP41: 0 | AQ41: 0 | AR41: 0 | AS41: 0 | AT41: 0 | AU41: 0 | AV41: 0 | AW41: 0 | AX41: 0 | AY41: 0 | AZ41: 0 | BA41: 0 | BB41: 0 | BC41: 0 | BD41: 0 | BE41: 0 | BF41: 0 | BG41: 0 | BH41: 0 | BI41: 0 | BJ41: 0 | BK41: 0 | BL41: 0 | BM41: 0 | BN41: 0 | BO41: 0 | BP41: 0 | BQ41: 0 | BR41: 0 | BS41: 0 | BT41: 0 | BU41: 0 | BV41: 0 | BW41: 0 | BX41: 0 | BY41: 0 | BZ41: 0 | CA41: 0 | CB41: 0 | CC41: 0 | CD41: 0 | CE41: 0 | CF41: 0 | CG41: 0 | CH41: 0 | CI41: 0 | CJ41: 0 | CK41: 0 | CL41: 0 | CM41: 0 | CN41: 0 | CO41: 0 | CP41: 0 | CQ41: 0 | CR41: 0 | CS41: 0 | CT41: 0 | CU41: 0 | CV41: 0 | CW41: 0 | CX41: 0 | CY41: 0 | CZ41: 0 | DA41: 0 | DB41: 0 | DC41: 0 | DD41: 0 | DE41: 0 | DF41: 0 | DG41: 0 | DH41: 0 | DI41: 0 | DJ41: 0 | DK41: 0 | DL41: 0 | DM41: 0 | DN41: 0 | DO41: 0 | DP41: 0 | DQ41: 0 | DR41: 0 | DS41: 0 | DT41: 0 | DU41: 0 | DV41: 0 | DW41: 0 | DX41: 0 | DY41: 0 | DZ41: 0 | EA41: 0 | EB41: 0 | EC41: 0 | ED41: 0 | EE41: 0 | EF41: 0 | EG41: 0 | EH41: 0 | EI41: 0 | EJ41: 0 | EK41: 0 | EL41: 0 | EM41: 0 | EN41: 0 | EO41: 0 | EP41: 0 | EQ41: 0 | ER41: 0 | ES41: 0 | ET41: 0 | EU41: 0 | EV41: 0 | EW41: 0 | EX41: 0 | EY41: 0 | EZ41: 0 | FA41: 0 | FB41: 0 | FC41: 0 | FD41: 0 | FE41: 0 | FF41: 0 | FG41: 0 | FH41: 0 | FI41: 0 | FJ41: 0 | FK41: 0 | FL41: 0 | FM41: 0 | FN41: 0 | FO41: 0 | FP41: 0 | FQ41: 0 | FR41: 0 | FS41: 0 | FT41: 0 | FU41: 0 | FV41: 0 | FW41: 0 | FX41: 0 | FY41: 0 | FZ41: 0 | GA41: 0 | GB41: 0 | GC41: 0 | GD41: 0 | GE41: 0 | GF41: 0 | GG41: 0 | GH41: 0 | GI41: 0 | GJ41: 0 | GK41: 0 | GL41: 0 | GM41: 0 | GN41: 0 | GO41: 0 | GP41: 0 | GQ41: 0 | GR41: 0 | GS41: 0 | GT41: 0 | GU41: 0 | GV41: 0 | GW41: 0 | GX41: 0 | GY41: 0 | GZ41: 0 | HA41: 0 | HB41: 0 | HC41: 0 | HD41: 0 | HE41: 0 | HF41: 0 | HG41: 0 | HH41: 0 | HI41: 0 | HJ41: 0 | HK41: 0 | HL41: 0 | HM41: 0 | HN41: 0 | HO41: 0 | HP41: 0 | HQ41: 0 | HR41: 0 | HS41: 0 | HT41: 0 | HU41: 0 | HV41: 0 | HW41: 0 | HX41: 0 | HY41: 0 | HZ41: 0 | IA41: 0 | IB41: 0 | IC41: 0 | ID41: 0 | IE41: 0 | IF41: 0 | IG41: 0 | IH41: 0 | II41: 0 | IJ41: 0 | IK41: 0 | IL41: 0 | IM41: 0 | IN41: 0 | IO41: 0 | IP41: 0 | IQ41: 0 | IR41: 0 | IS41: 0 | IT41: 0 | IU41: 0 | IV41: 0 | IW41: 0 | IX41: 0 | IY41: 0 | IZ41: 0 | JA41: 0 | JB41: 0 | JC41: 0 | JD41: 0 | JE41: 0 | JF41: 0 | JG41: 0 | JH41: 0 | JI41: 0 | JJ41: 0 | JK41: 0 | JL41: 0 | JM41: 0 | JN41: 0 | JO41: 0 | JP41: 0 | JQ41: 0 | JR41: 0 | JS41: 0 | JT41: 0 | JU41: 0 | JV41: 0 | JW41: 0 | JX41: 0 | JY41: 0 | JZ41: 0 | KA41: 0 | KB41: 0 | KC41: 0 | KD41: 0 | KE41: 0 | KF41: 0 | KG41: 0 | KH41: 0 | KI41: 0 | KJ41: 0 | KK41: 0 | KL41: 0 | KM41: 0 | KN41: 0 | KO41: 0 | KP41: 0 | KQ41: 0 | KR41: 0 | KS41: 0 | KT41: 0 | KU41: 0 | KV41: 0 | KW41: 0 | KX41: 0 | KY41: 0 | KZ41: 0 | LA41: 0 | LB41: 0 | LC41: 0 | LD41: 0 | LE41: 0 | LF41: 0 | LG41: 0 | LH41: 0 | LI41: 0 | LJ41: 0 | LK41: 0 | LL41: 0 | LM41: 0 | LN41: 0 | LO41: 0 | LP41: 0 | LQ41: 0 | LR41: 0 | LS41: 0 | LT41: 0 | LU41: 0 | LV41: 0 | LW41: 0 | LX41: 0 | LY41: 0 | LZ41: 0 | MA41: 0 | MB41: 0 | MC41: 0 | MD41: 0 | ME41: 0 | MF41: 0 | MG41: 0 | MH41: 0 | MI41: 0 | MJ41: 0 | MK41: 0 | ML41: 0 | MM41: 0 | MN41: 0 | MO41: 0 | MP41: 0 | MQ41: 0 | MR41: 0 | MS41: 0 | MT41: 0 | MU41: 0 | MV41: 0 | MW41: 0 | MX41: 0 | MY41: 0 | MZ41: 0 | NA41: 0 | NB41: 0 | NC41: 0 | ND41: 0 | NE41: 0 | NF41: 0 | NG41: 0 | NH41: 0 | NI41: 0 | NJ41: 0 | NK41: 0 | NL41: 0 | NM41: 0 | NN41: 0 | NO41: 0 | NP41: 0 | NQ41: 0 | NR41: 0 | NS41: 0 | NT41: 0 | NU41: 0 | NV41: 0 | NW41: 0 | NX41: 0 | NY41: 0 | NZ41: 0 | OA41: 0 | OB41: 0 | OC41: 0 | OD41: 0 | OE41: 0 | OF41: 0 | OG41: 0 | OH41: 0 | OI41: 0 | OJ41: 0 | OK41: 0 | OL41: 0 | OM41: 0 | ON41: 0 | OO41: 0 | OP41: 0 | OQ41: 0 | OR41: 0 | OS41: 0 | OT41: 0 | OU41: 0 | OV41: 0 | OW41: 0 | OX41: 0 | OY41: 0 | OZ41: 0 | PA41: 0 | PB41: 0 | PC41: 0 | PD41: 0 | PE41: 0 | PF41: 0 | PG41: 0 | PH41: 0 | PI41: 0 | PJ41: 0 | PK41: 0 | PL41: 0 | PM41: 0 | PN41: 0 | PO41: 0 | PP41: 0 | PQ41: 0 | PR41: 0 | PS41: 0 | PT41: 0 | PU41: 0 | PV41: 0 | PW41: 0 | PX41: 0 | PY41: 0 | PZ41: 0 | QA41: 0 | QB41: 0 | QC41: 0 | QD41: 0 | QE41: 0 | QF41: 0 | QG41: 0 | QH41: 0 | QI41: 0 | QJ41: 0 | QK41: 0 | QL41: 0 | QM41: 0 | QN41: 0 | QO41: 0 | QP41: 0 | QQ41: 0 | QR41: 0 | QS41: 0 | QT41: =IF(QT$1>$I41,0, IF(QT$1<$G41,0, IF(AND(QT$1>$G41,QT$1<$H41),14+$J41, IF(AND(QT$1>$H41,QT$1<$I41),4+$J41, IF(AND(QT$1=$G41,QT$1<>$H41,QT$1<>$I41),11+$J41, IF(AND(QT$1<>$G41,QT$1=$H41,QT$1<>$I41),12+$J41, IF(AND(QT$1<>$G41,QT$1<>$H41,QT$1=$I41),2+$J41, IF(AND(QT$1=$G41,QT$1=$H41,QT$1<>$I41,$F41<>0),13+$J41, IF(AND(QT$1=$G41,QT$1=$H41,QT$1<>$I41,$F41=0),1+$J41, IF(AND(QT$1<>$G41,QT$1=$H41,QT$1=$I41),12+$J41, IF(AND(QT$1=$G41,QT$1=$H41,QT$1=$I41,$F41<=0.5),3+$J41,13+$J41))))))))))) -> 0 | QU41: 0 | QV41: 0 | QW41: 0 | QX41: 0 | QY41: 0 | QZ41: 0 | RA41: 0 | RB41: 0 | RC41: 0 | RD41: 0 | RE41: 0 | RF41: 0 | RG41: 0 | RH41: 0 | RI41: 0 | RJ41: 0 | RK41: 0 | RL41: 0 | RM41: 0 | RN41: 0 | RO41: 0 | RP41: 0 | RQ41: 0 | RR41: 0 | RS41: 0 | RT41: 0 | RU41: 0 | RV41: 0 | RW41: 0 | RX41: =IF(RX$1>$I41,0, IF(RX$1<$G41,0, IF(AND(RX$1>$G41,RX$1<$H41),14+$J41, IF(AND(RX$1>$H41,RX$1<$I41),4+$J41, IF(AND(RX$1=$G41,RX$1<>$H41,RX$1<>$I41),11+$J41, IF(AND(RX$1<>$G41,RX$1=$H41,RX$1<>$I41),12+$J41, IF(AND(RX$1<>$G41,RX$1<>$H41,RX$1=$I41),2+$J41, IF(AND(RX$1=$G41,RX$1=$H41,RX$1<>$I41,$F41<>0),13+$J41, IF(AND(RX$1=$G41,RX$1=$H41,RX$1<>$I41,$F41=0),1+$J41, IF(AND(RX$1<>$G41,RX$1=$H41,RX$1=$I41),12+$J41, IF(AND(RX$1=$G41,RX$1=$H41,RX$1=$I41,$F41<=0.5),3+$J41,13+$J41))))))))))) -> 0 | RY41: 0 | RZ41: 0 | SA41: 0 | SB41: 0 | SC41: 0 | SD41: 0 | SE41: 0 | SF41: 0 | SG41: 0 | SH41: 0 | SI41: 0 | SJ41: 0 | SK41: 0 | SL41: 0 | SM41: 0 | SN41: 0 | SO41: 0 | SP41: 0 | SQ41: 0 | SS41: =IF(gIsItPlan,IF(AND(System!Z37,System!AA37),1,0),IF(AND(System!Z37,System!AB37),1,0)) -> 0
B42: =IF($SS42,IF(E42=1,System!B38," "&System!B38),"") ->  | C42: =IF($SS42,IF(gIsItPlan,System!F38,System!I38),"") ->  | D42: =IF($SS42,IF(gIsItPlan,System!G38,System!J38),"") ->  | E42: =System!C38 -> 0 | F42: =System!L38 -> 0 | G42: 0 | H42: 0 | I42: 0 | J42: 20 | L42: 0 | M42: 0 | N42: 0 | O42: 0 | P42: 0 | Q42: 0 | R42: 0 | S42: 0 | T42: 0 | U42: 0 | V42: 0 | W42: 0 | X42: 0 | Y42: 0 | Z42: 0 | AA42: 0 | AB42: 0 | AC42: 0 | AD42: 0 | AE42: 0 | AF42: 0 | AG42: 0 | AH42: 0 | AI42: 0 | AJ42: 0 | AK42: 0 | AL42: 0 | AM42: 0 | AN42: 0 | AO42: 0 | AP42: 0 | AQ42: 0 | AR42: 0 | AS42: 0 | AT42: 0 | AU42: 0 | AV42: 0 | AW42: 0 | AX42: 0 | AY42: 0 | AZ42: 0 | BA42: 0 | BB42: 0 | BC42: 0 | BD42: 0 | BE42: 0 | BF42: 0 | BG42: 0 | BH42: 0 | BI42: 0 | BJ42: 0 | BK42: 0 | BL42: 0 | BM42: 0 | BN42: 0 | BO42: 0 | BP42: 0 | BQ42: 0 | BR42: 0 | BS42: 0 | BT42: 0 | BU42: 0 | BV42: 0 | BW42: 0 | BX42: 0 | BY42: 0 | BZ42: 0 | CA42: 0 | CB42: 0 | CC42: 0 | CD42: 0 | CE42: 0 | CF42: 0 | CG42: 0 | CH42: 0 | CI42: 0 | CJ42: 0 | CK42: 0 | CL42: 0 | CM42: 0 | CN42: 0 | CO42: 0 | CP42: 0 | CQ42: 0 | CR42: 0 | CS42: 0 | CT42: 0 | CU42: 0 | CV42: 0 | CW42: 0 | CX42: 0 | CY42: 0 | CZ42: 0 | DA42: 0 | DB42: 0 | DC42: 0 | DD42: 0 | DE42: 0 | DF42: 0 | DG42: 0 | DH42: 0 | DI42: 0 | DJ42: 0 | DK42: 0 | DL42: 0 | DM42: 0 | DN42: 0 | DO42: 0 | DP42: 0 | DQ42: 0 | DR42: 0 | DS42: 0 | DT42: 0 | DU42: 0 | DV42: 0 | DW42: 0 | DX42: 0 | DY42: 0 | DZ42: 0 | EA42: 0 | EB42: 0 | EC42: 0 | ED42: 0 | EE42: 0 | EF42: 0 | EG42: 0 | EH42: 0 | EI42: 0 | EJ42: 0 | EK42: 0 | EL42: 0 | EM42: 0 | EN42: 0 | EO42: 0 | EP42: 0 | EQ42: 0 | ER42: 0 | ES42: 0 | ET42: 0 | EU42: 0 | EV42: 0 | EW42: 0 | EX42: 0 | EY42: 0 | EZ42: 0 | FA42: 0 | FB42: 0 | FC42: 0 | FD42: 0 | FE42: 0 | FF42: 0 | FG42: 0 | FH42: 0 | FI42: 0 | FJ42: 0 | FK42: 0 | FL42: 0 | FM42: 0 | FN42: 0 | FO42: 0 | FP42: 0 | FQ42: 0 | FR42: 0 | FS42: 0 | FT42: 0 | FU42: 0 | FV42: 0 | FW42: 0 | FX42: 0 | FY42: 0 | FZ42: 0 | GA42: 0 | GB42: 0 | GC42: 0 | GD42: 0 | GE42: 0 | GF42: 0 | GG42: 0 | GH42: 0 | GI42: 0 | GJ42: 0 | GK42: 0 | GL42: 0 | GM42: 0 | GN42: 0 | GO42: 0 | GP42: 0 | GQ42: 0 | GR42: 0 | GS42: 0 | GT42: 0 | GU42: 0 | GV42: 0 | GW42: 0 | GX42: 0 | GY42: 0 | GZ42: 0 | HA42: 0 | HB42: 0 | HC42: 0 | HD42: 0 | HE42: 0 | HF42: 0 | HG42: 0 | HH42: 0 | HI42: 0 | HJ42: 0 | HK42: 0 | HL42: 0 | HM42: 0 | HN42: 0 | HO42: 0 | HP42: 0 | HQ42: 0 | HR42: 0 | HS42: 0 | HT42: 0 | HU42: 0 | HV42: 0 | HW42: 0 | HX42: 0 | HY42: 0 | HZ42: 0 | IA42: 0 | IB42: 0 | IC42: 0 | ID42: 0 | IE42: 0 | IF42: 0 | IG42: 0 | IH42: 0 | II42: 0 | IJ42: 0 | IK42: 0 | IL42: 0 | IM42: 0 | IN42: 0 | IO42: 0 | IP42: 0 | IQ42: 0 | IR42: 0 | IS42: 0 | IT42: 0 | IU42: 0 | IV42: 0 | IW42: 0 | IX42: 0 | IY42: 0 | IZ42: 0 | JA42: 0 | JB42: 0 | JC42: 0 | JD42: 0 | JE42: 0 | JF42: 0 | JG42: 0 | JH42: 0 | JI42: 0 | JJ42: 0 | JK42: 0 | JL42: 0 | JM42: 0 | JN42: 0 | JO42: 0 | JP42: 0 | JQ42: 0 | JR42: 0 | JS42: 0 | JT42: 0 | JU42: 0 | JV42: 0 | JW42: 0 | JX42: 0 | JY42: 0 | JZ42: 0 | KA42: 0 | KB42: 0 | KC42: 0 | KD42: 0 | KE42: 0 | KF42: 0 | KG42: 0 | KH42: 0 | KI42: 0 | KJ42: 0 | KK42: 0 | KL42: 0 | KM42: 0 | KN42: 0 | KO42: 0 | KP42: 0 | KQ42: 0 | KR42: 0 | KS42: 0 | KT42: 0 | KU42: 0 | KV42: 0 | KW42: 0 | KX42: 0 | KY42: 0 | KZ42: 0 | LA42: 0 | LB42: 0 | LC42: 0 | LD42: 0 | LE42: 0 | LF42: 0 | LG42: 0 | LH42: 0 | LI42: 0 | LJ42: 0 | LK42: 0 | LL42: 0 | LM42: 0 | LN42: 0 | LO42: 0 | LP42: 0 | LQ42: 0 | LR42: 0 | LS42: 0 | LT42: 0 | LU42: 0 | LV42: 0 | LW42: 0 | LX42: 0 | LY42: 0 | LZ42: 0 | MA42: 0 | MB42: 0 | MC42: 0 | MD42: 0 | ME42: 0 | MF42: 0 | MG42: 0 | MH42: 0 | MI42: 0 | MJ42: 0 | MK42: 0 | ML42: 0 | MM42: 0 | MN42: 0 | MO42: 0 | MP42: 0 | MQ42: 0 | MR42: 0 | MS42: 0 | MT42: 0 | MU42: 0 | MV42: 0 | MW42: 0 | MX42: 0 | MY42: 0 | MZ42: 0 | NA42: 0 | NB42: 0 | NC42: 0 | ND42: 0 | NE42: 0 | NF42: 0 | NG42: 0 | NH42: 0 | NI42: 0 | NJ42: 0 | NK42: 0 | NL42: 0 | NM42: 0 | NN42: 0 | NO42: 0 | NP42: 0 | NQ42: 0 | NR42: 0 | NS42: 0 | NT42: 0 | NU42: 0 | NV42: 0 | NW42: 0 | NX42: 0 | NY42: 0 | NZ42: 0 | OA42: 0 | OB42: 0 | OC42: 0 | OD42: 0 | OE42: 0 | OF42: 0 | OG42: 0 | OH42: 0 | OI42: 0 | OJ42: 0 | OK42: 0 | OL42: 0 | OM42: 0 | ON42: 0 | OO42: 0 | OP42: 0 | OQ42: 0 | OR42: 0 | OS42: 0 | OT42: 0 | OU42: 0 | OV42: 0 | OW42: 0 | OX42: 0 | OY42: 0 | OZ42: 0 | PA42: 0 | PB42: 0 | PC42: 0 | PD42: 0 | PE42: 0 | PF42: 0 | PG42: 0 | PH42: 0 | PI42: 0 | PJ42: 0 | PK42: 0 | PL42: 0 | PM42: 0 | PN42: 0 | PO42: 0 | PP42: 0 | PQ42: 0 | PR42: 0 | PS42: 0 | PT42: 0 | PU42: 0 | PV42: 0 | PW42: 0 | PX42: 0 | PY42: 0 | PZ42: 0 | QA42: 0 | QB42: 0 | QC42: 0 | QD42: 0 | QE42: 0 | QF42: 0 | QG42: 0 | QH42: 0 | QI42: 0 | QJ42: 0 | QK42: 0 | QL42: 0 | QM42: 0 | QN42: 0 | QO42: 0 | QP42: 0 | QQ42: =IF(QQ$1>$I42,0, IF(QQ$1<$G42,0, IF(AND(QQ$1>$G42,QQ$1<$H42),14+$J42, IF(AND(QQ$1>$H42,QQ$1<$I42),4+$J42, IF(AND(QQ$1=$G42,QQ$1<>$H42,QQ$1<>$I42),11+$J42, IF(AND(QQ$1<>$G42,QQ$1=$H42,QQ$1<>$I42),12+$J42, IF(AND(QQ$1<>$G42,QQ$1<>$H42,QQ$1=$I42),2+$J42, IF(AND(QQ$1=$G42,QQ$1=$H42,QQ$1<>$I42,$F42<>0),13+$J42, IF(AND(QQ$1=$G42,QQ$1=$H42,QQ$1<>$I42,$F42=0),1+$J42, IF(AND(QQ$1<>$G42,QQ$1=$H42,QQ$1=$I42),12+$J42, IF(AND(QQ$1=$G42,QQ$1=$H42,QQ$1=$I42,$F42<=0.5),3+$J42,13+$J42))))))))))) -> 0 | QR42: 0 | QS42: 0 | QT42: 0 | QU42: 0 | QV42: 0 | QW42: 0 | QX42: 0 | QY42: 0 | QZ42: 0 | RA42: 0 | RB42: 0 | RC42: 0 | RD42: 0 | RE42: 0 | RF42: 0 | RG42: 0 | RH42: 0 | RI42: 0 | RJ42: 0 | RK42: 0 | RL42: 0 | RM42: 0 | RN42: 0 | RO42: 0 | RP42: 0 | RQ42: 0 | RR42: 0 | RS42: 0 | RT42: 0 | RU42: 0 | RV42: 0 | RW42: 0 | RX42: 0 | RY42: 0 | RZ42: 0 | SA42: 0 | SB42: 0 | SC42: 0 | SD42: 0 | SE42: 0 | SF42: 0 | SG42: 0 | SH42: 0 | SI42: 0 | SJ42: 0 | SK42: 0 | SL42: 0 | SM42: 0 | SN42: 0 | SO42: 0 | SP42: 0 | SQ42: 0 | SS42: =IF(gIsItPlan,IF(AND(System!Z38,System!AA38),1,0),IF(AND(System!Z38,System!AB38),1,0)) -> 0
B43: =IF($SS43,IF(E43=1,System!B39," "&System!B39),"") ->  | C43: =IF($SS43,IF(gIsItPlan,System!F39,System!I39),"") ->  | D43: =IF($SS43,IF(gIsItPlan,System!G39,System!J39),"") ->  | E43: =System!C39 -> 0 | F43: =System!L39 -> 0 | G43: 0 | H43: 0 | I43: 0 | J43: 20 | L43: 0 | M43: 0 | N43: 0 | O43: 0 | P43: 0 | Q43: 0 | R43: 0 | S43: 0 | T43: 0 | U43: 0 | V43: 0 | W43: 0 | X43: 0 | Y43: 0 | Z43: 0 | AA43: 0 | AB43: 0 | AC43: 0 | AD43: 0 | AE43: 0 | AF43: 0 | AG43: 0 | AH43: 0 | AI43: 0 | AJ43: 0 | AK43: 0 | AL43: 0 | AM43: 0 | AN43: 0 | AO43: 0 | AP43: 0 | AQ43: 0 | AR43: 0 | AS43: 0 | AT43: 0 | AU43: 0 | AV43: 0 | AW43: 0 | AX43: 0 | AY43: 0 | AZ43: 0 | BA43: 0 | BB43: 0 | BC43: 0 | BD43: 0 | BE43: 0 | BF43: 0 | BG43: 0 | BH43: 0 | BI43: 0 | BJ43: 0 | BK43: 0 | BL43: 0 | BM43: 0 | BN43: 0 | BO43: 0 | BP43: 0 | BQ43: 0 | BR43: 0 | BS43: 0 | BT43: 0 | BU43: 0 | BV43: 0 | BW43: 0 | BX43: 0 | BY43: 0 | BZ43: 0 | CA43: 0 | CB43: 0 | CC43: 0 | CD43: 0 | CE43: 0 | CF43: 0 | CG43: 0 | CH43: 0 | CI43: 0 | CJ43: 0 | CK43: 0 | CL43: 0 | CM43: 0 | CN43: 0 | CO43: 0 | CP43: 0 | CQ43: 0 | CR43: 0 | CS43: 0 | CT43: 0 | CU43: 0 | CV43: 0 | CW43: 0 | CX43: 0 | CY43: 0 | CZ43: 0 | DA43: 0 | DB43: 0 | DC43: 0 | DD43: 0 | DE43: 0 | DF43: 0 | DG43: 0 | DH43: 0 | DI43: 0 | DJ43: 0 | DK43: 0 | DL43: 0 | DM43: 0 | DN43: 0 | DO43: 0 | DP43: 0 | DQ43: 0 | DR43: 0 | DS43: 0 | DT43: 0 | DU43: 0 | DV43: 0 | DW43: 0 | DX43: 0 | DY43: 0 | DZ43: 0 | EA43: 0 | EB43: 0 | EC43: 0 | ED43: 0 | EE43: 0 | EF43: 0 | EG43: 0 | EH43: 0 | EI43: 0 | EJ43: 0 | EK43: 0 | EL43: 0 | EM43: 0 | EN43: 0 | EO43: 0 | EP43: 0 | EQ43: 0 | ER43: 0 | ES43: 0 | ET43: 0 | EU43: 0 | EV43: 0 | EW43: 0 | EX43: 0 | EY43: 0 | EZ43: 0 | FA43: 0 | FB43: 0 | FC43: 0 | FD43: 0 | FE43: 0 | FF43: 0 | FG43: 0 | FH43: 0 | FI43: 0 | FJ43: 0 | FK43: 0 | FL43: 0 | FM43: 0 | FN43: 0 | FO43: 0 | FP43: 0 | FQ43: 0 | FR43: 0 | FS43: 0 | FT43: 0 | FU43: 0 | FV43: 0 | FW43: 0 | FX43: 0 | FY43: 0 | FZ43: 0 | GA43: 0 | GB43: 0 | GC43: 0 | GD43: 0 | GE43: 0 | GF43: 0 | GG43: 0 | GH43: 0 | GI43: 0 | GJ43: 0 | GK43: 0 | GL43: 0 | GM43: 0 | GN43: 0 | GO43: 0 | GP43: 0 | GQ43: 0 | GR43: 0 | GS43: 0 | GT43: 0 | GU43: 0 | GV43: 0 | GW43: 0 | GX43: 0 | GY43: 0 | GZ43: 0 | HA43: 0 | HB43: 0 | HC43: 0 | HD43: 0 | HE43: 0 | HF43: 0 | HG43: 0 | HH43: 0 | HI43: 0 | HJ43: 0 | HK43: 0 | HL43: 0 | HM43: 0 | HN43: 0 | HO43: 0 | HP43: 0 | HQ43: 0 | HR43: 0 | HS43: 0 | HT43: 0 | HU43: 0 | HV43: 0 | HW43: 0 | HX43: 0 | HY43: 0 | HZ43: 0 | IA43: 0 | IB43: 0 | IC43: 0 | ID43: 0 | IE43: 0 | IF43: 0 | IG43: 0 | IH43: 0 | II43: 0 | IJ43: 0 | IK43: 0 | IL43: 0 | IM43: 0 | IN43: 0 | IO43: 0 | IP43: 0 | IQ43: 0 | IR43: 0 | IS43: 0 | IT43: 0 | IU43: 0 | IV43: 0 | IW43: 0 | IX43: 0 | IY43: 0 | IZ43: 0 | JA43: 0 | JB43: 0 | JC43: 0 | JD43: 0 | JE43: 0 | JF43: 0 | JG43: 0 | JH43: 0 | JI43: 0 | JJ43: 0 | JK43: 0 | JL43: 0 | JM43: 0 | JN43: 0 | JO43: 0 | JP43: 0 | JQ43: 0 | JR43: 0 | JS43: 0 | JT43: 0 | JU43: 0 | JV43: 0 | JW43: 0 | JX43: 0 | JY43: 0 | JZ43: 0 | KA43: 0 | KB43: 0 | KC43: 0 | KD43: 0 | KE43: 0 | KF43: 0 | KG43: 0 | KH43: 0 | KI43: 0 | KJ43: 0 | KK43: 0 | KL43: 0 | KM43: 0 | KN43: 0 | KO43: 0 | KP43: 0 | KQ43: 0 | KR43: 0 | KS43: 0 | KT43: 0 | KU43: 0 | KV43: 0 | KW43: 0 | KX43: 0 | KY43: 0 | KZ43: 0 | LA43: 0 | LB43: 0 | LC43: 0 | LD43: 0 | LE43: 0 | LF43: 0 | LG43: 0 | LH43: 0 | LI43: 0 | LJ43: 0 | LK43: 0 | LL43: 0 | LM43: 0 | LN43: 0 | LO43: 0 | LP43: 0 | LQ43: 0 | LR43: 0 | LS43: 0 | LT43: 0 | LU43: 0 | LV43: 0 | LW43: 0 | LX43: 0 | LY43: 0 | LZ43: 0 | MA43: 0 | MB43: 0 | MC43: 0 | MD43: 0 | ME43: 0 | MF43: 0 | MG43: 0 | MH43: 0 | MI43: 0 | MJ43: 0 | MK43: 0 | ML43: 0 | MM43: 0 | MN43: 0 | MO43: 0 | MP43: 0 | MQ43: 0 | MR43: 0 | MS43: 0 | MT43: 0 | MU43: 0 | MV43: 0 | MW43: 0 | MX43: 0 | MY43: 0 | MZ43: 0 | NA43: 0 | NB43: 0 | NC43: 0 | ND43: 0 | NE43: 0 | NF43: 0 | NG43: 0 | NH43: 0 | NI43: 0 | NJ43: 0 | NK43: 0 | NL43: 0 | NM43: 0 | NN43: 0 | NO43: 0 | NP43: 0 | NQ43: 0 | NR43: 0 | NS43: 0 | NT43: 0 | NU43: 0 | NV43: 0 | NW43: 0 | NX43: 0 | NY43: 0 | NZ43: 0 | OA43: 0 | OB43: 0 | OC43: 0 | OD43: 0 | OE43: 0 | OF43: 0 | OG43: 0 | OH43: 0 | OI43: 0 | OJ43: 0 | OK43: 0 | OL43: 0 | OM43: 0 | ON43: 0 | OO43: 0 | OP43: 0 | OQ43: 0 | OR43: 0 | OS43: 0 | OT43: 0 | OU43: 0 | OV43: 0 | OW43: 0 | OX43: 0 | OY43: 0 | OZ43: 0 | PA43: 0 | PB43: 0 | PC43: 0 | PD43: 0 | PE43: 0 | PF43: 0 | PG43: 0 | PH43: 0 | PI43: 0 | PJ43: 0 | PK43: 0 | PL43: 0 | PM43: 0 | PN43: 0 | PO43: 0 | PP43: 0 | PQ43: 0 | PR43: 0 | PS43: 0 | PT43: 0 | PU43: 0 | PV43: 0 | PW43: 0 | PX43: 0 | PY43: 0 | PZ43: 0 | QA43: 0 | QB43: 0 | QC43: 0 | QD43: 0 | QE43: 0 | QF43: 0 | QG43: 0 | QH43: 0 | QI43: 0 | QJ43: 0 | QK43: 0 | QL43: 0 | QM43: 0 | QN43: 0 | QO43: 0 | QP43: 0 | QQ43: 0 | QR43: 0 | QS43: 0 | QT43: 0 | QU43: 0 | QV43: 0 | QW43: 0 | QX43: 0 | QY43: 0 | QZ43: 0 | RA43: 0 | RB43: 0 | RC43: 0 | RD43: 0 | RE43: 0 | RF43: 0 | RG43: 0 | RH43: 0 | RI43: 0 | RJ43: 0 | RK43: 0 | RL43: 0 | RM43: 0 | RN43: 0 | RO43: =IF(RO$1>$I43,0, IF(RO$1<$G43,0, IF(AND(RO$1>$G43,RO$1<$H43),14+$J43, IF(AND(RO$1>$H43,RO$1<$I43),4+$J43, IF(AND(RO$1=$G43,RO$1<>$H43,RO$1<>$I43),11+$J43, IF(AND(RO$1<>$G43,RO$1=$H43,RO$1<>$I43),12+$J43, IF(AND(RO$1<>$G43,RO$1<>$H43,RO$1=$I43),2+$J43, IF(AND(RO$1=$G43,RO$1=$H43,RO$1<>$I43,$F43<>0),13+$J43, IF(AND(RO$1=$G43,RO$1=$H43,RO$1<>$I43,$F43=0),1+$J43, IF(AND(RO$1<>$G43,RO$1=$H43,RO$1=$I43),12+$J43, IF(AND(RO$1=$G43,RO$1=$H43,RO$1=$I43,$F43<=0.5),3+$J43,13+$J43))))))))))) -> 0 | RP43: 0 | RQ43: 0 | RR43: 0 | RS43: 0 | RT43: 0 | RU43: 0 | RV43: 0 | RW43: 0 | RX43: 0 | RY43: 0 | RZ43: 0 | SA43: 0 | SB43: 0 | SC43: 0 | SD43: 0 | SE43: 0 | SF43: 0 | SG43: 0 | SH43: 0 | SI43: 0 | SJ43: 0 | SK43: 0 | SL43: 0 | SM43: 0 | SN43: 0 | SO43: 0 | SP43: 0 | SQ43: 0 | SS43: =IF(gIsItPlan,IF(AND(System!Z39,System!AA39),1,0),IF(AND(System!Z39,System!AB39),1,0)) -> 0
